Workbook

Sheet Month 03-2023
A1: Status | B1: Helper | C1: Provider Code | E1: BATCH NO: | F1: Number of claims | G1: AMOUNT | H1: Date Received | I1: TAT | J1: Date posting | K1: Paid | L1: Rejected | M1: H.H | N1: Pending | O1: Comment | P1: Rev Diff | Q1: Pay Diff | R1: Taxes | S1: Checks no. | T1: Amount checks | U1: Checks no. | V1: Amount checks | W1: Checks no. | X1: Amount checks | Y1: Checks no. | Z1: Amount checks | AA1: Checks no. | AB1: Amount checks | AC1: Checks no. | AD1: Amount checks | AE1: Checks no. | AF1: Amount checks | AG1: Checks no. | AH1: Amount checks | AI1: Checks no. | AJ1: Amount checks | AK1: Checks no. | AL1: Amount checks | AM1: Checks no. | AN1: Amount checks | AO1: Checks no. | AP1: Amount checks | AQ1: Checks no. | AR1: Amount checks | AS1: Checks no. | AT1: Amount checks | AU1: Checks no. | AV1: Amount checks | AW1: TAT | AX1: =CONCATENATE(C1,"-",TEXT(H1,"DD-MM-YYYY")) -> Provider Code-Date Received
A2: =IFERROR(VLOOKUP(C2,#REF!,9,FALSE),"") ->  | B2: =C2&COUNTIF($C$2:C2,C2) -> FCC05801 | C2: FCC0580 | E2: advance | F2: 65 | G2: 876959 | H2: 2023-03-01 | I2: =+TODAY()-H2 -> 156 | J2: 2023-04-05 | K2: 859528.82 | L2: 1522.44 | M2: 15907.74 | N2: 0 | O2: 0 | P2: =+G2-K2-L2-M2-N2 -> 1.164153218e-10 | Q2: =+G2-R2-T2-V2-X2-Z2-AB2-AD2-AF2-AH2-AJ2-AL2-AN2-AP2-AT2-AV2 -> 876959 | AW2: =G2-(L2++R2+T2+V2+X2+Z2+AB2+AD2+AF2+AH2+AJ2+AL2+AN2+AP2+AR2) -> 875436.56 | AX2: =CONCATENATE(C2,"-",TEXT(H2,"DD-MM-YYYY")) -> FCC0580-01-03-2023
A3: =IFERROR(VLOOKUP(C3,#REF!,9,FALSE),"") ->  | B3: =C3&COUNTIF($C$2:C3,C3) -> FCC29801 | C3: FCC2980 | F3: 15 | G3: 178409.64 | H3: 2023-03-01 | I3: 156 | J3: 2023-03-22 | K3: 177609.62 | L3: 800.02 | M3: 0 | N3: 0 | O3: New RR | P3: =+G3-K3-L3-M3-N3 -> 0 | Q3: =+G3-R3-T3-V3-X3-Z3-AB3-AD3-AF3-AH3-AJ3-AL3-AN3-AP3-AT3-AV3 -> 178409.64 | AW3: =G3-(L3++R3+T3+V3+X3+Z3+AB3+AD3+AF3+AH3+AJ3+AL3+AN3+AP3+AR3) -> 177609.62 | AX3: =CONCATENATE(C3,"-",TEXT(H3,"DD-MM-YYYY")) -> FCC2980-01-03-2023
A4: =IFERROR(VLOOKUP(C4,#REF!,9,FALSE),"") ->  | B4: =C4&COUNTIF($C$2:C4,C4) -> FCF23101 | C4: FCF2310 | F4: 3 | G4: 8622.58 | H4: 2023-03-01 | I4: 156 | J4: 2023-03-21 | K4: 8622.58 | L4: -0.01 | M4: 0 | N4: 0 | O4: 0 | P4: 0 | Q4: 8622.58 | AW4: 8622.59 | AX4: FCF2310-01-03-2023
A5: =IFERROR(VLOOKUP(C5,#REF!,9,FALSE),"") ->  | B5: =C5&COUNTIF($C$2:C5,C5) -> FCC91911 | C5: FCC9191 | F5: 3 | G5: 21779.67 | H5: 2023-03-01 | I5: 156 | J5: 2023-03-22 | K5: 21779.67 | L5: -0.01 | M5: 0 | N5: 0 | O5: 0 | P5: 0 | Q5: 21779.67 | AW5: 21779.68 | AX5: FCC9191-01-03-2023
A6: =IFERROR(VLOOKUP(C6,#REF!,9,FALSE),"") ->  | B6: =C6&COUNTIF($C$2:C6,C6) -> FCE00971 | C6: FCE0097 | F6: 1 | G6: 1550 | H6: 2023-03-01 | I6: 156 | J6: 2023-03-21 | K6: 1540 | L6: 10 | M6: 0 | N6: 0 | O6: 0 | P6: 0 | Q6: 1550 | AW6: 1540 | AX6: FCE0097-01-03-2023
A7: =IFERROR(VLOOKUP(C7,#REF!,9,FALSE),"") ->  | B7: =C7&COUNTIF($C$2:C7,C7) -> FCC21501 | C7: FCC2150 | F7: 9 | G7: 83749.45 | H7: 2023-03-01 | I7: 156 | J7: 2023-04-13 | K7: 83035.45 | L7: 714 | M7: 0 | N7: 0 | O7: 0 | P7: 0 | Q7: 83749.45 | AW7: 83035.45 | AX7: FCC2150-01-03-2023
A8: =IFERROR(VLOOKUP(C8,#REF!,9,FALSE),"") ->  | B8: =C8&COUNTIF($C$2:C8,C8) -> FCC25801 | C8: FCC2580 | F8: 2 | G8: 7687.6 | H8: 2023-03-01 | I8: 156 | J8: 2023-03-22 | K8: 7687.6 | L8: 0 | M8: 0 | N8: 0 | O8: 0 | P8: 0 | Q8: 7687.6 | AW8: 7687.6 | AX8: FCC2580-01-03-2023
A9: =IFERROR(VLOOKUP(C9,#REF!,9,FALSE),"") ->  | B9: =C9&COUNTIF($C$2:C9,C9) -> FCU11301 | C9: FCU1130 | F9: 1 | G9: 32727.1 | H9: 2023-03-01 | I9: 156 | J9: 2023-04-11 | K9: 32727.1 | L9: -0.02 | M9: 0 | N9: 0 | O9: 0 | P9: 0.02 | Q9: 32727.1 | AW9: 32727.12 | AX9: FCU1130-01-03-2023
A10: =IFERROR(VLOOKUP(C10,#REF!,9,FALSE),"") ->  | B10: =C10&COUNTIF($C$2:C10,C10) -> FCR34601 | C10: FCR3460 | F10: 4 | G10: 28885 | H10: 2023-03-01 | I10: 156 | J10: 2023-03-30 | K10: 28885 | L10: 0 | M10: 0 | N10: 0 | O10: 0 | P10: 0 | Q10: 28885 | AW10: 28885 | AX10: FCR3460-01-03-2023
A11: =IFERROR(VLOOKUP(C11,#REF!,9,FALSE),"") ->  | B11: =C11&COUNTIF($C$2:C11,C11) -> FCC18001 | C11: FCC1800 | F11: 2 | G11: 132000 | H11: 2023-03-01 | I11: 156 | J11: 2023-03-20 | K11: 132000 | L11: -0.19 | M11: 0 | N11: 0 | O11: 0 | P11: 0 | Q11: 132000 | AW11: 132000.19 | AX11: FCC1800-01-03-2023
A12: =IFERROR(VLOOKUP(C12,#REF!,9,FALSE),"") ->  | B12: =C12&COUNTIF($C$2:C12,C12) -> FCF24701 | C12: FCF2470 | F12: 6 | G12: 28645.9 | H12: 2023-03-02 | I12: 155 | J12: 2023-04-12 | K12: 28605.7 | L12: 40.19 | M12: 0 | N12: 0 | O12: 0 | P12: 0 | Q12: 28645.9 | AW12: 28605.71 | AX12: FCF2470-02-03-2023
A13: =IFERROR(VLOOKUP(C13,#REF!,9,FALSE),"") ->  | B13: =C13&COUNTIF($C$2:C13,C13) -> FCC15901 | C13: FCC1590 | F13: 6 | G13: 30095 | H13: 2023-03-05 | I13: 152 | J13: 2023-03-28 | K13: 30095 | L13: 0 | M13: 0 | N13: 0 | O13: 0 | P13: 0 | Q13: 30095 | AW13: 30095 | AX13: FCC1590-05-03-2023
A14: =IFERROR(VLOOKUP(C14,#REF!,9,FALSE),"") ->  | B14: =C14&COUNTIF($C$2:C14,C14) -> FCC01501 | C14: FCC0150 | E14: advance | F14: 18 | G14: 435964 | H14: 2023-03-05 | I14: 152 | J14: 2023-03-20 | K14: 422282.28 | L14: 14061.716 | M14: 0 | N14: 0 | O14: shared folder | P14: -379.996 | Q14: 435964 | AW14: 421902.284 | AX14: FCC0150-05-03-2023
A15: =IFERROR(VLOOKUP(C15,#REF!,9,FALSE),"") ->  | B15: =C15&COUNTIF($C$2:C15,C15) -> FCB26301 | C15: FCB2630 | F15: 7 | G15: 28867.96 | H15: 2023-03-05 | I15: 152 | J15: 2023-03-22 | K15: 28865.14 | L15: 2.82 | M15: 0 | N15: 0 | O15: 0 | P15: 0 | Q15: 28867.96 | AW15: 28865.14 | AX15: FCB2630-05-03-2023
A16: =IFERROR(VLOOKUP(C16,#REF!,9,FALSE),"") ->  | B16: =C16&COUNTIF($C$2:C16,C16) -> FCC29701 | C16: FCC2970 | F16: 4 | G16: 16800 | H16: 2023-03-05 | I16: 152 | J16: 2023-04-26 | K16: 16800 | L16: 0 | M16: 0 | N16: 0 | O16: 0 | P16: 0 | Q16: 16800 | AW16: 16800 | AX16: FCC2970-05-03-2023
A17: =IFERROR(VLOOKUP(C17,#REF!,9,FALSE),"") ->  | B17: =C17&COUNTIF($C$2:C17,C17) -> FCC01101 | C17: FCC0110 | E17: advance | F17: 109 | G17: 2796147.39 | H17: 2023-03-05 | I17: 152 | J17: 2023-03-30 | K17: 2665858.09 | L17: 38351.4 | M17: 91937.9 | N17: 0 | O17: Shared Folder | P17: 4.656612873e-10 | Q17: 2796147.39 | AW17: 2757795.99 | AX17: FCC0110-05-03-2023
A18: =IFERROR(VLOOKUP(C18,#REF!,9,FALSE),"") ->  | B18: =C18&COUNTIF($C$2:C18,C18) -> FCK34201 | C18: FCK3420 | E18: advance | F18: 39 | G18: 266329.71 | H18: 2023-03-06 | I18: 151 | J18: 2023-04-11 | K18: 263175.39 | L18: 3154.32 | M18: 0 | N18: 0 | O18: 0 | P18: 0 | Q18: 266329.71 | AW18: 263175.39 | AX18: FCK3420-06-03-2023
A19: =IFERROR(VLOOKUP(C19,#REF!,9,FALSE),"") ->  | B19: =C19&COUNTIF($C$2:C19,C19) -> FCC04001 | C19: FCC0400 | E19: advance | F19: 123 | G19: 3320144.09 | H19: 2023-03-06 | I19: 151 | J19: 2023-03-22 | K19: 3164802.18 | L19: 2.29 | M19: 155341.82 | N19: 0 | O19: 0 | P19: -2.2 | Q19: 3320144.09 | AW19: 3320141.8 | AX19: FCC0400-06-03-2023
A20: =IFERROR(VLOOKUP(C20,#REF!,9,FALSE),"") ->  | B20: =C20&COUNTIF($C$2:C20,C20) -> FCF26101 | C20: FCF2610 | F20: 10 | G20: 144066.4 | H20: 2023-03-06 | I20: 151 | J20: 2023-03-29 | K20: 143146.03 | L20: 920.37 | M20: 0 | N20: 0 | O20: 0 | P20: 0 | Q20: 144066.4 | AW20: 143146.03 | AX20: FCF2610-06-03-2023
A21: =IFERROR(VLOOKUP(C21,#REF!,9,FALSE),"") ->  | B21: =C21&COUNTIF($C$2:C21,C21) -> FCZ18101 | C21: FCZ1810 | F21: 20 | G21: 11474.2 | H21: 2023-03-06 | I21: 151 | J21: 2023-03-20 | K21: 11474.16 | L21: 0.04 | M21: 0 | N21: 0 | O21: 0 | P21: 0 | Q21: 11474.2 | AW21: 11474.16 | AX21: FCZ1810-06-03-2023
A22: =IFERROR(VLOOKUP(C22,#REF!,9,FALSE),"") ->  | B22: =C22&COUNTIF($C$2:C22,C22) -> FCX25601 | C22: FCX2560 | F22: 4 | G22: 38431.51 | H22: 2023-03-06 | I22: 151 | J22: 2023-04-12 | K22: 34797.43 | L22: 3634.08 | M22: 0 | N22: 0 | O22: 0 | P22: 0 | Q22: 38431.51 | AW22: 34797.43 | AX22: FCX2560-06-03-2023
A23: =IFERROR(VLOOKUP(C23,#REF!,9,FALSE),"") ->  | B23: =C23&COUNTIF($C$2:C23,C23) -> FCD30501 | C23: FCD3050 | F23: 1 | G23: 21108 | H23: 2023-03-06 | I23: 151 | J23: 2023-03-22 | K23: 21108 | L23: -0.009999999998 | M23: 0 | N23: 0 | O23: 0 | P23: 0 | Q23: 21108 | AW23: 21108.01 | AX23: FCD3050-06-03-2023
A24: =IFERROR(VLOOKUP(C24,#REF!,9,FALSE),"") ->  | B24: =C24&COUNTIF($C$2:C24,C24) -> FCC00901 | C24: FCC0090 | E24: advance | F24: 84 | G24: 3077598.78 | H24: 2023-03-06 | I24: 151 | J24: 2023-04-06 | K24: 2978849.74 | L24: 13009.48 | M24: 85739.2 | N24: 0 | O24: new | P24: 0 | Q24: 3077598.78 | AW24: 3064589.3 | AX24: FCC0090-06-03-2023
A25: =IFERROR(VLOOKUP(C25,#REF!,9,FALSE),"") ->  | B25: =C25&COUNTIF($C$2:C25,C25) -> FCX27961 | C25: FCX2796 | F25: 1 | G25: 7107.8 | H25: 2023-03-06 | I25: 151 | J25: 2023-03-22 | K25: 6857.7 | L25: 250.1 | M25: 0 | N25: 0 | O25: 0 | P25: 0 | Q25: 7107.8 | AW25: 6857.7 | AX25: FCX2796-06-03-2023
A26: =IFERROR(VLOOKUP(C26,#REF!,9,FALSE),"") ->  | B26: =C26&COUNTIF($C$2:C26,C26) -> FCN33701 | C26: FCN3370 | F26: 3 | G26: 35633 | H26: 2023-03-06 | I26: 151 | J26: 2023-04-12 | K26: 33268 | L26: 2365 | M26: 0 | N26: 0 | O26: 0 | P26: 0 | Q26: 35633 | AW26: 33268 | AX26: FCN3370-06-03-2023
A27: =IFERROR(VLOOKUP(C27,#REF!,9,FALSE),"") ->  | B27: =C27&COUNTIF($C$2:C27,C27) -> FCF26141 | C27: FCF2614 | F27: 5 | G27: 52653.4 | H27: 2023-03-06 | I27: 151 | J27: 2023-03-28 | K27: 52623.92 | L27: 29.48 | M27: 0 | N27: 0 | O27: 0 | P27: 0 | Q27: 52653.4 | AW27: 52623.92 | AX27: FCF2614-06-03-2023
A28: =IFERROR(VLOOKUP(C28,#REF!,9,FALSE),"") ->  | B28: =C28&COUNTIF($C$2:C28,C28) -> FCC91621 | C28: FCC9162 | E28: advance | F28: 17 | G28: 394994 | H28: 2023-03-06 | I28: 151 | J28: 2023-04-03 | K28: 394789.87 | L28: 204.13 | M28: 0 | N28: 0 | O28: 0 | P28: 0 | Q28: 394994 | AW28: 394789.87 | AX28: FCC9162-06-03-2023
A29: =IFERROR(VLOOKUP(C29,#REF!,9,FALSE),"") ->  | B29: =C29&COUNTIF($C$2:C29,C29) -> FCS10601 | C29: FCS1060 | F29: 7 | G29: 22163 | H29: 2023-03-07 | I29: 150 | J29: 2023-04-12 | K29: 22158 | L29: 5 | M29: 0 | N29: 0 | O29: 0 | P29: 0 | Q29: 22163 | AW29: 22158 | AX29: FCS1060-07-03-2023
A30: =IFERROR(VLOOKUP(C30,#REF!,9,FALSE),"") ->  | B30: =C30&COUNTIF($C$2:C30,C30) -> FCC91901 | C30: FCC9190 | F30: 3 | G30: 10427 | H30: 2023-03-07 | I30: 150 | J30: 2023-05-07 | K30: 10427 | L30: 0 | M30: 0 | N30: 0 | O30: 0 | P30: 0 | Q30: 10427 | AW30: 10427 | AX30: FCC9190-07-03-2023
A31: =IFERROR(VLOOKUP(C31,#REF!,9,FALSE),"") ->  | B31: =C31&COUNTIF($C$2:C31,C31) -> FCC32001 | C31: FCC3200 | E31: advance | F31: 7 | G31: 214889.91 | H31: 2023-03-07 | I31: 150 | J31: 2023-03-27 | K31: 213473.8 | L31: 10109.49 | M31: 0 | N31: 0 | O31: Price differecne | P31: -8693.38 | Q31: 214889.91 | AW31: 204780.42 | AX31: FCC3200-07-03-2023
A32: =IFERROR(VLOOKUP(C32,#REF!,9,FALSE),"") ->  | B32: =C32&COUNTIF($C$2:C32,C32) -> FCF06901 | C32: FCF0690 | F32: 9 | G32: 37692.3 | H32: 2023-03-07 | I32: 150 | J32: 2023-05-09 | K32: 35782.6 | L32: 1909.61 | M32: 0 | N32: 0 | O32: price differnce | P32: 0.09 | Q32: 37692.3 | AW32: 35782.69 | AX32: FCF0690-07-03-2023
A33: =IFERROR(VLOOKUP(C33,#REF!,9,FALSE),"") ->  | B33: =C33&COUNTIF($C$2:C33,C33) -> fce01001 | C33: fce0100 | F33: 5 | G33: 29881 | H33: 2023-03-07 | I33: 150 | J33: 2023-03-22 | K33: 24505.2 | L33: 9.98 | M33: 5365.8 | N33: 0 | O33: 0 | P33: 0.02 | Q33: 29881 | AW33: 29871.02 | AX33: fce0100-07-03-2023
A34: =IFERROR(VLOOKUP(C34,#REF!,9,FALSE),"") ->  | B34: =C34&COUNTIF($C$2:C34,C34) -> FCC21801 | C34: FCC2180 | E34: advance | F34: 65 | G34: 1678265.53 | H34: 2023-03-07 | I34: 150 | J34: 2023-04-11 | K34: 1660022.91 | L34: 8318.51 | M34: 9924.11 | N34: 0 | O34: Shared Folder | P34: 0 | Q34: 1678265.53 | AW34: 1669947.02 | AX34: FCC2180-07-03-2023
A35: =IFERROR(VLOOKUP(C35,#REF!,9,FALSE),"") ->  | B35: =C35&COUNTIF($C$2:C35,C35) -> FCX32201 | C35: FCX3220 | F35: 1 | G35: 10942.99 | H35: 2023-03-07 | I35: 150 | J35: 2023-04-26 | K35: 10797.42 | L35: 145.57 | M35: 0 | N35: 0 | O35: 0 | P35: 0 | Q35: 10942.99 | AW35: 10797.42 | AX35: FCX3220-07-03-2023
A36: =IFERROR(VLOOKUP(C36,#REF!,9,FALSE),"") ->  | B36: =C36&COUNTIF($C$2:C36,C36) -> FCC91551 | C36: FCC9155 | F36: 3 | G36: 103548.35 | H36: 2023-03-08 | I36: 149 | J36: 2023-03-26 | K36: 103548.34 | L36: 0.01000000001 | M36: 0 | N36: 0 | O36: 0 | P36: 0 | Q36: 103548.35 | AW36: 103548.34 | AX36: FCC9155-08-03-2023
A37: =IFERROR(VLOOKUP(C37,#REF!,9,FALSE),"") ->  | B37: =C37&COUNTIF($C$2:C37,C37) -> FCX27931 | C37: FCX2793 | F37: 6 | G37: 32645.33 | H37: 2023-03-08 | I37: 149 | J37: 2023-04-05 | K37: 32645.32 | L37: 0.01 | M37: 0 | N37: 0 | O37: 0 | P37: 0 | Q37: 32645.33 | AW37: 32645.32 | AX37: FCX2793-08-03-2023
A38: =IFERROR(VLOOKUP(C38,#REF!,9,FALSE),"") ->  | B38: =C38&COUNTIF($C$2:C38,C38) -> FCU19921 | C38: FCU1992 | F38: 3 | G38: 20686.98 | H38: 2023-03-08 | I38: 149 | J38: 2023-04-18 | K38: 20686.98 | L38: 0 | M38: 0 | N38: 0 | O38: 0 | P38: 0 | Q38: 20686.98 | AW38: 20686.98 | AX38: FCU1992-08-03-2023
A39: =IFERROR(VLOOKUP(C39,#REF!,9,FALSE),"") ->  | B39: =C39&COUNTIF($C$2:C39,C39) -> FCC06501 | C39: FCC0650 | F39: 4 | G39: 33809.41 | H39: 2023-03-08 | I39: 149 | J39: 2023-03-26 | K39: 33780.67 | L39: 28.74 | M39: 0 | N39: 0 | O39: stamp 20 LE only | P39: 0 | Q39: 33809.41 | AW39: 33780.67 | AX39: FCC0650-08-03-2023
A40: =IFERROR(VLOOKUP(C40,#REF!,9,FALSE),"") ->  | B40: =C40&COUNTIF($C$2:C40,C40) -> FCC91641 | C40: FCC9164 | F40: 40 | G40: 294566.6 | H40: 2023-03-08 | I40: 149 | J40: 2023-03-28 | K40: 270674.9 | L40: 23891.64 | M40: 0 | N40: 0 | O40: 0 | P40: 0 | Q40: 294566.6 | AW40: 270674.96 | AX40: FCC9164-08-03-2023
A41: =IFERROR(VLOOKUP(C41,#REF!,9,FALSE),"") ->  | B41: =C41&COUNTIF($C$2:C41,C41) -> FCP32811 | C41: FCP3281 | F41: 4 | G41: 33562.2 | H41: 2023-03-08 | I41: 149 | J41: 2023-05-08 | K41: 21082.9 | L41: 3960.73 | M41: 8518.5 | N41: 0 | O41: 0 | P41: 0.07 | Q41: 33562.2 | AW41: 29601.47 | AX41: FCP3281-08-03-2023
A42: =IFERROR(VLOOKUP(C42,#REF!,9,FALSE),"") ->  | B42: =C42&COUNTIF($C$2:C42,C42) -> FCT22301 | C42: FCT2230 | F42: 14 | G42: 52287.86 | H42: 2023-03-08 | I42: 149 | J42: 2023-03-26 | K42: 51795.84 | L42: 492.02 | M42: 0 | N42: 0 | O42: new | P42: 0 | Q42: 52287.86 | AW42: 51795.84 | AX42: FCT2230-08-03-2023
A43: =IFERROR(VLOOKUP(C43,#REF!,9,FALSE),"") ->  | B43: =C43&COUNTIF($C$2:C43,C43) -> FCC02301 | C43: FCC0230 | F43: 27 | G43: 201937.6 | H43: 2023-03-08 | I43: 149 | J43: 2023-03-28 | K43: 200555.8 | L43: 0.01000000001 | M43: 1381.8 | N43: 0 | O43: CORRECTED AMOUNT ACCORDING TO PHYSICAL CLAIMS | P43: -0.009999999995 | Q43: 201937.6 | AW43: 201937.59 | AX43: FCC0230-08-03-2023
A44: =IFERROR(VLOOKUP(C44,#REF!,9,FALSE),"") ->  | B44: =C44&COUNTIF($C$2:C44,C44) -> FCC27801 | C44: FCC2780 | F44: 9 | G44: 27678 | H44: 2023-03-08 | I44: 149 | J44: 2023-04-12 | K44: 27595 | L44: 83 | M44: 0 | N44: 0 | O44: 0 | P44: 0 | Q44: 27678 | AW44: 27595 | AX44: FCC2780-08-03-2023
A45: =IFERROR(VLOOKUP(C45,#REF!,9,FALSE),"") ->  | B45: =C45&COUNTIF($C$2:C45,C45) -> FCS28301 | C45: FCS2830 | F45: 20 | G45: 128196.45 | H45: 2023-03-08 | I45: 149 | J45: 2023-03-30 | K45: 128196.45 | L45: -0.42 | M45: 0 | N45: 0 | O45: 0 | P45: 0 | Q45: 128196.45 | AW45: 128196.87 | AX45: FCS2830-08-03-2023
A46: =IFERROR(VLOOKUP(C46,#REF!,9,FALSE),"") ->  | B46: =C46&COUNTIF($C$2:C46,C46) -> FCC33101 | C46: FCC3310 | F46: 4 | G46: 19564.26 | H46: 2023-03-08 | I46: 149 | J46: 2023-03-22 | K46: 19543.9 | L46: 20.31 | M46: 0 | N46: 0 | O46: corrected amount as physical claims | P46: 0 | Q46: 19564.26 | AW46: 19543.95 | AX46: FCC3310-08-03-2023
A47: =IFERROR(VLOOKUP(C47,#REF!,9,FALSE),"") ->  | B47: =C47&COUNTIF($C$2:C47,C47) -> FCX26901 | C47: FCX2690 | F47: 14 | G47: 264172.42 | H47: 2023-03-08 | I47: 149 | J47: 2023-04-27 | K47: 253556.95 | L47: 10407.49 | M47: 208 | N47: 0 | O47: 0 | P47: 0 | Q47: 264172.42 | AW47: 253764.93 | AX47: FCX2690-08-03-2023
A48: =IFERROR(VLOOKUP(C48,#REF!,9,FALSE),"") ->  | B48: =C48&COUNTIF($C$2:C48,C48) -> FCX27401 | C48: FCX2740 | E48: advance | F48: 63 | G48: 1177202.19 | H48: 2023-03-08 | I48: 149 | J48: 2023-03-30 | K48: 1166221.68 | L48: 1.63 | M48: 10980.51 | N48: 0 | O48: 0 | P48: 0 | Q48: 1177202.19 | AW48: 1177200.56 | AX48: FCX2740-08-03-2023
A49: =IFERROR(VLOOKUP(C49,#REF!,9,FALSE),"") ->  | B49: =C49&COUNTIF($C$2:C49,C49) -> FCX12901 | C49: FCX1290 | E49: advance | F49: 94 | G49: 1537153.6 | H49: 2023-03-08 | I49: 149 | J49: 2023-03-22 | K49: 1462238.65 | L49: 74914.95 | M49: 0 | N49: 0 | O49: 0 | P49: 0 | Q49: 1537153.6 | AW49: 1462238.65 | AX49: FCX1290-08-03-2023
A50: =IFERROR(VLOOKUP(C50,#REF!,9,FALSE),"") ->  | B50: =C50&COUNTIF($C$2:C50,C50) -> FCC28801 | C50: FCC2880 | F50: 27 | G50: 392890.46 | H50: 2023-03-09 | I50: 148 | J50: 2023-03-27 | K50: 390370.46 | L50: -5.55 | M50: 2520 | N50: 0 | O50: 0 | P50: 0 | Q50: 392890.46 | AW50: 392896.01 | AX50: FCC2880-09-03-2023
A51: =IFERROR(VLOOKUP(C51,#REF!,9,FALSE),"") ->  | B51: =C51&COUNTIF($C$2:C51,C51) -> FCC91931 | C51: FCC9193 | F51: 4 | G51: 307186.3 | H51: 2023-03-09 | I51: 148 | J51: 2023-03-28 | K51: 298534.55 | L51: 3776.75 | M51: 4875 | N51: 0 | O51: 0 | P51: 1.091393642e-11 | Q51: 307186.3 | AW51: 303409.55 | AX51: FCC9193-09-03-2023
A52: =IFERROR(VLOOKUP(C52,#REF!,9,FALSE),"") ->  | B52: =C52&COUNTIF($C$2:C52,C52) -> FCX27981 | C52: FCX2798 | F52: 8 | G52: 227896.78 | H52: 2023-03-09 | I52: 148 | J52: 2023-04-13 | K52: 218554.18 | L52: 9342.6 | M52: 0 | N52: 0 | O52: Discount diff in G0290 / Price Difference | P52: 0 | Q52: 227896.78 | AW52: 218554.18 | AX52: FCX2798-09-03-2023
A53: =IFERROR(VLOOKUP(C53,#REF!,9,FALSE),"") ->  | B53: =C53&COUNTIF($C$2:C53,C53) -> FCC27301 | C53: FCC2730 | E53: advance | F53: 15 | G53: 139281 | H53: 2023-03-09 | I53: 148 | J53: 2023-03-28 | K53: 138617.4 | L53: 5.798028724e-12 | M53: 663.6 | N53: 0 | O53: 0 | P53: 0 | Q53: 139281 | AW53: 139281 | AX53: FCC2730-09-03-2023
A54: =IFERROR(VLOOKUP(C54,#REF!,9,FALSE),"") ->  | B54: =C54&COUNTIF($C$2:C54,C54) -> FCX18301 | C54: FCX1830 | F54: 8 | G54: 104871.39 | H54: 2023-03-09 | I54: 148 | J54: 2023-03-27 | K54: 104871.39 | L54: -0.009999999995 | M54: 0 | N54: 0 | O54: 0 | P54: 0 | Q54: 104871.39 | AW54: 104871.4 | AX54: FCX1830-09-03-2023
A55: =IFERROR(VLOOKUP(C55,#REF!,9,FALSE),"") ->  | B55: =C55&COUNTIF($C$2:C55,C55) -> FCC91981 | C55: FCC9198 | E55: advance | F55: 10 | G55: 530263.73 | H55: 2023-03-09 | I55: 148 | J55: 2023-03-30 | K55: 295748.86 | L55: 12792.14 | M55: 221722.73 | N55: 0 | O55: Price diff & Discount diff in second accomdation and packages | P55: 0 | Q55: 530263.73 | AW55: 517471.59 | AX55: FCC9198-09-03-2023
A56: =IFERROR(VLOOKUP(C56,#REF!,9,FALSE),"") ->  | B56: =C56&COUNTIF($C$2:C56,C56) -> FCC35101 | C56: FCC3510 | F56: 1 | G56: 1686.75 | H56: 2023-03-09 | I56: 148 | J56: 2023-03-30 | K56: 1686.75 | L56: 0 | M56: 0 | N56: 0 | O56: 0 | P56: 0 | Q56: 1686.75 | AW56: 1686.75 | AX56: FCC3510-09-03-2023
A57: =IFERROR(VLOOKUP(C57,#REF!,9,FALSE),"") ->  | B57: =C57&COUNTIF($C$2:C57,C57) -> FCC00801 | C57: FCC0080 | F57: 18 | G57: 81784.39 | H57: 2023-03-09 | I57: 148 | J57: 2023-03-28 | K57: 78014.1 | L57: 120.25 | M57: 3650.04 | N57: 0 | O57: 0 | P57: 0 | Q57: 81784.39 | AW57: 81664.14 | AX57: FCC0080-09-03-2023
A58: =IFERROR(VLOOKUP(C58,#REF!,9,FALSE),"") ->  | B58: =C58&COUNTIF($C$2:C58,C58) -> FCC03001 | C58: FCC0300 | E58: advance | F58: 194 | G58: 6349718.79 | H58: 2023-03-09 | I58: 148 | J58: 2023-04-09 | K58: 6223180 | L58: 43936.23085 | M58: 82602.31 | N58: 0 | O58: 0 | P58: 0.2491450001 | Q58: 6349718.79 | AW58: 6305782.559 | AX58: FCC0300-09-03-2023
A59: =IFERROR(VLOOKUP(C59,#REF!,9,FALSE),"") ->  | B59: =C59&COUNTIF($C$2:C59,C59) -> FCC21301 | C59: FCC2130 | F59: 9 | G59: 45202.1 | H59: 2023-03-09 | I59: 148 | J59: 2023-04-04 | K59: 42808.34 | L59: 2393.76 | M59: 0 | N59: 0 | O59: classification difference in claim 9 + no discount applied | P59: 0 | Q59: 45202.1 | AW59: 42808.34 | AX59: FCC2130-09-03-2023
A60: =IFERROR(VLOOKUP(C60,#REF!,9,FALSE),"") ->  | B60: =C60&COUNTIF($C$2:C60,C60) -> FCS23401 | C60: FCS2340 | F60: 13 | G60: 71561 | H60: 2023-03-09 | I60: 148 | J60: 2023-03-22 | K60: 66941 | L60: 4620 | M60: 0 | N60: 0 | O60: 0 | P60: 0 | Q60: 71561 | AW60: 66941 | AX60: FCS2340-09-03-2023
A61: =IFERROR(VLOOKUP(C61,#REF!,9,FALSE),"") ->  | B61: =C61&COUNTIF($C$2:C61,C61) -> FCC17101 | C61: FCC1710 | E61: advance | F61: 8 | G61: 57433 | H61: 2023-03-09 | I61: 148 | J61: 2023-03-27 | K61: 56673.38 | L61: 759.62 | M61: 0 | N61: 0 | O61: Price differecne | P61: 0 | Q61: 57433 | AW61: 56673.38 | AX61: FCC1710-09-03-2023
A62: =IFERROR(VLOOKUP(C62,#REF!,9,FALSE),"") ->  | B62: =C62&COUNTIF($C$2:C62,C62) -> FCC18301 | C62: FCC1830 | F62: 1 | G62: 1200 | H62: 2023-03-09 | I62: 148 | J62: 2023-03-28 | K62: 1000 | L62: 200 | M62: 0 | N62: 0 | O62: 0 | P62: 0 | Q62: 1200 | AW62: 1000 | AX62: FCC1830-09-03-2023
A63: =IFERROR(VLOOKUP(C63,#REF!,9,FALSE),"") ->  | B63: =C63&COUNTIF($C$2:C63,C63) -> FCC26601 | C63: FCC2660 | F63: 16 | G63: 53685 | H63: 2023-03-09 | I63: 148 | J63: 2023-03-22 | K63: 53359.97 | L63: 325.03 | M63: 0 | N63: 0 | O63: 0 | P63: 0 | Q63: 53685 | AW63: 53359.97 | AX63: FCC2660-09-03-2023
A64: =IFERROR(VLOOKUP(C64,#REF!,9,FALSE),"") ->  | B64: =C64&COUNTIF($C$2:C64,C64) -> FCC30401 | C64: FCC3040 | E64: advance | F64: 26 | G64: 302636.9 | H64: 2023-03-09 | I64: 148 | J64: 2023-03-13 | K64: 292873 | L64: 9763.7503 | M64: 0 | N64: 0 | O64: 0 | P64: 0 | Q64: 302636.9 | AW64: 292873.1497 | AX64: FCC3040-09-03-2023
A65: =IFERROR(VLOOKUP(C65,#REF!,9,FALSE),"") ->  | B65: =C65&COUNTIF($C$2:C65,C65) -> FCB28001 | C65: FCB2800 | F65: 3 | G65: 36500 | H65: 2023-03-12 | I65: 145 | J65: 2023-04-30 | K65: 36203.5 | L65: 296.4 | M65: 0 | N65: 0 | O65: 0 | P65: 0 | Q65: 36500 | AW65: 36203.6 | AX65: FCB2800-12-03-2023
A66: =IFERROR(VLOOKUP(C66,#REF!,9,FALSE),"") ->  | B66: =C66&COUNTIF($C$2:C66,C66) -> FCC91851 | C66: FCC9185 | F66: 8 | G66: 300445.39 | H66: 2023-03-12 | I66: =+TODAY()-H66 -> 145 | J66: 2023-03-22 | K66: 300325.37 | L66: 120.02 | M66: 0 | N66: 0 | O66: Discount diff in 99253 (New) | P66: 0 | Q66: 300445.39 | AW66: 300325.37 | AX66: FCC9185-12-03-2023
A67: =IFERROR(VLOOKUP(C67,#REF!,9,FALSE),"") ->  | B67: =C67&COUNTIF($C$2:C67,C67) -> FCC28701 | C67: FCC2870 | F67: 1 | G67: 7362.45 | H67: 2023-03-12 | I67: 145 | J67: 2023-05-01 | K67: 7362.37 | L67: 0.08 | M67: 0 | N67: 0 | O67: 0 | P67: =+G67-K67-L67-M67-N67 -> 0 | Q67: =+G67-R67-T67-V67-X67-Z67-AB67-AD67-AF67-AH67-AJ67-AL67-AN67-AP67-AT67-AV67 -> 7362.45 | AW67: =G67-(L67++R67+T67+V67+X67+Z67+AB67+AD67+AF67+AH67+AJ67+AL67+AN67+AP67+AR67) -> 7362.37 | AX67: =CONCATENATE(C67,"-",TEXT(H67,"DD-MM-YYYY")) -> FCC2870-12-03-2023
A68: =IFERROR(VLOOKUP(C68,#REF!,9,FALSE),"") ->  | B68: =C68&COUNTIF($C$2:C68,C68) -> FCC91561 | C68: FCC9156 | E68: advance | F68: 18 | G68: 313676.69 | H68: 2023-03-12 | I68: 145 | J68: 2023-03-29 | K68: 203364.02 | L68: 9976.778626 | M68: 93723.12 | N68: 0 | O68: 0 | P68: 6612.771374 | Q68: 313676.69 | AW68: 303699.9114 | AX68: FCC9156-12-03-2023
A69: =IFERROR(VLOOKUP(C69,#REF!,9,FALSE),"") ->  | B69: =C69&COUNTIF($C$2:C69,C69) -> FCM27601 | C69: FCM2760 | F69: 11 | G69: 101927.21 | H69: 2023-03-12 | I69: 145 | J69: 2023-03-29 | K69: 101323.1 | L69: 604.09 | M69: 0 | N69: 0 | O69: 0 | P69: 0 | Q69: 101927.21 | AW69: 101323.12 | AX69: FCM2760-12-03-2023
A70: =IFERROR(VLOOKUP(C70,#REF!,9,FALSE),"") ->  | B70: =C70&COUNTIF($C$2:C70,C70) -> FCC91841 | C70: FCC9184 | F70: 2 | G70: 55518.75 | H70: 2023-03-12 | I70: 145 | J70: 2023-03-27 | K70: 51743.67 | L70: 3775.08 | M70: 0 | N70: 0 | O70: 0 | P70: 0 | Q70: 55518.75 | AW70: 51743.67 | AX70: FCC9184-12-03-2023
A71: =IFERROR(VLOOKUP(C71,#REF!,9,FALSE),"") ->  | B71: =C71&COUNTIF($C$2:C71,C71) -> FCC31201 | C71: FCC3120 | F71: 65 | G71: 1608148.6 | H71: 2023-03-12 | I71: 145 | J71: 2023-04-13 | K71: 1421237.5 | L71: 3040.52 | M71: 186784.33 | N71: 0 | O71: 10% Discount Difference in Physiotherapy claim 60 | P71: -2913.75 | Q71: 1608148.6 | AW71: 1605108.08 | AX71: FCC3120-12-03-2023
A72: =IFERROR(VLOOKUP(C72,#REF!,9,FALSE),"") ->  | B72: =C72&COUNTIF($C$2:C72,C72) -> FCC91801 | C72: FCC9180 | F72: 15 | G72: 167078.29 | H72: 2023-03-12 | I72: 145 | J72: 2023-04-12 | K72: 165662.27 | L72: 1416.02 | M72: 0 | N72: 0 | O72: Discount diff in 99253(S.F) | P72: 0 | Q72: 167078.29 | AW72: 165662.27 | AX72: FCC9180-12-03-2023
A73: =IFERROR(VLOOKUP(C73,#REF!,9,FALSE),"") ->  | B73: =C73&COUNTIF($C$2:C73,C73) -> FCI22101 | C73: FCI2210 | F73: 2 | G73: 5611 | H73: 2023-03-12 | I73: 145 | J73: 2023-03-27 | K73: 5611 | L73: 0 | M73: 0 | N73: 0 | O73: 0 | P73: 0 | Q73: 5611 | AW73: 5611 | AX73: FCI2210-12-03-2023
A74: =IFERROR(VLOOKUP(C74,#REF!,9,FALSE),"") ->  | B74: =C74&COUNTIF($C$2:C74,C74) -> FCC14101 | C74: FCC1410 | E74: advance | F74: 20 | G74: 312010.41 | H74: 2023-03-12 | I74: 145 | J74: 2023-04-13 | K74: 310546.14 | L74: 27826.31872 | M74: 0 | N74: 0 | O74: 0 | P74: -26362.04872 | Q74: 312010.41 | AW74: 284184.0913 | AX74: FCC1410-12-03-2023
A75: =IFERROR(VLOOKUP(C75,#REF!,9,FALSE),"") ->  | B75: =C75&COUNTIF($C$2:C75,C75) -> FCC15801 | C75: FCC1580 | E75: advance | F75: 119 | G75: 2638539.63 | H75: 2023-03-12 | I75: 145 | J75: 2023-04-13 | K75: 2444586.06 | L75: 11582.46 | M75: 182371.11 | N75: 0 | O75: 0 | P75: 0 | Q75: 2638539.63 | AW75: 2626957.17 | AX75: FCC1580-12-03-2023
A76: =IFERROR(VLOOKUP(C76,#REF!,9,FALSE),"") ->  | B76: =C76&COUNTIF($C$2:C76,C76) -> FCX18401 | C76: FCX1840 | E76: advance | F76: 50 | G76: 576049.24 | H76: 2023-03-12 | I76: 145 | J76: 2023-04-13 | K76: 570359.57 | L76: 5689.67 | M76: 0 | N76: 0 | O76: 0 | P76: 0 | Q76: 576049.24 | AW76: 570359.57 | AX76: FCX1840-12-03-2023
A77: =IFERROR(VLOOKUP(C77,#REF!,9,FALSE),"") ->  | B77: =C77&COUNTIF($C$2:C77,C77) -> FCC03401 | C77: FCC0340 | F77: 3 | G77: 24239.83 | H77: 2023-03-12 | I77: 145 | J77: 2023-03-27 | K77: 23942.82 | L77: 297 | M77: 0 | N77: 0 | O77: 0 | P77: 0 | Q77: 24239.83 | AW77: 23942.83 | AX77: FCC0340-12-03-2023
A78: =IFERROR(VLOOKUP(C78,#REF!,9,FALSE),"") ->  | B78: =C78&COUNTIF($C$2:C78,C78) -> FCS10301 | C78: FCS1030 | E78: advance | F78: 82 | G78: 1085250.65 | H78: 2023-03-12 | I78: 145 | J78: 2023-04-13 | K78: 1061096 | L78: 11552.9244 | M78: 12599 | N78: 0 | O78: 0 | P78: 2.7256 | Q78: 1085250.65 | AW78: 1073697.726 | AX78: FCS1030-12-03-2023
A79: =IFERROR(VLOOKUP(C79,#REF!,9,FALSE),"") ->  | B79: =C79&COUNTIF($C$2:C79,C79) -> FCC04801 | C79: FCC0480 | F79: 15 | G79: 79873 | H79: 2023-03-12 | I79: 145 | J79: 2023-04-06 | K79: 76133 | L79: 3740 | M79: 0 | N79: 0 | O79: 0 | P79: 0 | Q79: 79873 | AW79: 76133 | AX79: FCC0480-12-03-2023
A80: =IFERROR(VLOOKUP(C80,#REF!,9,FALSE),"") ->  | B80: =C80&COUNTIF($C$2:C80,C80) -> FCF23102 | C80: FCF2310 | F80: 5 | G80: 57454.06 | H80: 2023-03-12 | I80: 145 | J80: 2023-03-13 | K80: 57354 | L80: 99.98 | M80: 0 | N80: 0 | O80: 0 | P80: 0 | Q80: 57454.06 | AW80: 57354.08 | AX80: FCF2310-12-03-2023
A81: =IFERROR(VLOOKUP(C81,#REF!,9,FALSE),"") ->  | B81: =C81&COUNTIF($C$2:C81,C81) -> FCN31421 | C81: FCN3142 | F81: 12 | G81: 93112.05 | H81: 2023-03-13 | I81: 144 | J81: 2023-03-28 | K81: 91323.9 | L81: 1788.1 | M81: 0 | N81: 0 | O81: 0 | P81: 0 | Q81: 93112.05 | AW81: 91323.95 | AX81: FCN3142-13-03-2023
A82: =IFERROR(VLOOKUP(C82,#REF!,9,FALSE),"") ->  | B82: =C82&COUNTIF($C$2:C82,C82) -> FCX16101 | C82: FCX1610 | F82: 8 | G82: 115398.5 | H82: 2023-03-13 | I82: 144 | J82: 2023-04-27 | K82: 115398.49 | L82: 0.009999999995 | M82: 0 | N82: 0 | O82: 0 | P82: 0 | Q82: 115398.5 | AW82: 115398.49 | AX82: FCX1610-13-03-2023
A83: =IFERROR(VLOOKUP(C83,#REF!,9,FALSE),"") ->  | B83: =C83&COUNTIF($C$2:C83,C83) -> FCX26701 | C83: FCX2670 | F83: 4 | G83: 17500 | H83: 2023-03-13 | I83: 144 | J83: 2023-03-29 | K83: 17500 | L83: 0 | M83: 0 | N83: 0 | O83: 0 | P83: 0 | Q83: 17500 | AW83: 17500 | AX83: FCX2670-13-03-2023
A84: =IFERROR(VLOOKUP(C84,#REF!,9,FALSE),"") ->  | B84: =C84&COUNTIF($C$2:C84,C84) -> FCH07101 | C84: FCH0710 | F84: 1 | G84: 4649.88 | H84: 2023-03-13 | I84: 144 | J84: 2023-03-29 | K84: 4552.57 | L84: 97.31 | M84: 0 | N84: 0 | O84: 0 | P84: 0 | Q84: 4649.88 | AW84: 4552.57 | AX84: FCH0710-13-03-2023
A85: =IFERROR(VLOOKUP(C85,#REF!,9,FALSE),"") ->  | B85: =C85&COUNTIF($C$2:C85,C85) -> FCC31101 | C85: FCC3110 | E85: advance+VD | F85: 4 | G85: 41700 | H85: 2023-03-13 | I85: 144 | J85: 2023-03-29 | K85: 39300 | L85: 2400 | M85: 0 | N85: 0 | O85: 0 | P85: 0 | Q85: 41700 | AW85: 39300 | AX85: FCC3110-13-03-2023
A86: =IFERROR(VLOOKUP(C86,#REF!,9,FALSE),"") ->  | B86: =C86&COUNTIF($C$2:C86,C86) -> FCC91451 | C86: FCC9145 | F86: 1 | G86: 4504 | H86: 2023-03-13 | I86: 144 | J86: 2023-03-29 | K86: 4404.48 | L86: 99.52 | M86: 0 | N86: 0 | O86: 0 | P86: 0 | Q86: 4504 | AW86: 4404.48 | AX86: FCC9145-13-03-2023
A87: =IFERROR(VLOOKUP(C87,#REF!,9,FALSE),"") ->  | B87: =C87&COUNTIF($C$2:C87,C87) -> FCC26201 | C87: FCC2620 | E87: advance | F87: 46 | G87: 487137 | H87: 2023-03-13 | I87: 144 | J87: 2023-03-28 | K87: 464796.05 | L87: 16739.51 | M87: 5601.44 | N87: 0 | O87: updated requested amount as per physical claim (please check ur email sent 28/3) | P87: -9.094947018e-13 | Q87: 487137 | AW87: 470397.49 | AX87: FCC2620-13-03-2023
A88: =IFERROR(VLOOKUP(C88,#REF!,9,FALSE),"") ->  | B88: =C88&COUNTIF($C$2:C88,C88) -> FCC91681 | C88: FCC9168 | F88: 2 | G88: 12709.4 | H88: 2023-03-13 | I88: 144 | J88: 2023-03-29 | K88: 12709.35 | L88: 0.05 | M88: 0 | N88: 0 | O88: 0 | P88: 0 | Q88: 12709.4 | AW88: 12709.35 | AX88: FCC9168-13-03-2023
A89: =IFERROR(VLOOKUP(C89,#REF!,9,FALSE),"") ->  | B89: =C89&COUNTIF($C$2:C89,C89) -> FCC26501 | C89: FCC2650 | F89: 4 | G89: 257733.5 | H89: 2023-03-13 | I89: 144 | J89: 2023-04-06 | K89: 161370.74 | L89: 20 | M89: 96342.76 | N89: 0 | O89: 0 | P89: 0 | Q89: 257733.5 | AW89: 257713.5 | AX89: FCC2650-13-03-2023
A90: =IFERROR(VLOOKUP(C90,#REF!,9,FALSE),"") ->  | B90: =C90&COUNTIF($C$2:C90,C90) -> FCC06401 | C90: FCC0640 | F90: 4 | G90: 27337.03 | H90: 2023-03-14 | I90: 143 | J90: 2023-03-27 | K90: 26687 | L90: 649.67 | M90: 0 | N90: 0 | O90: 0 | P90: 0 | Q90: 27337.03 | AW90: 26687.36 | AX90: FCC0640-14-03-2023
A91: =IFERROR(VLOOKUP(C91,#REF!,9,FALSE),"") ->  | B91: =C91&COUNTIF($C$2:C91,C91) -> FCC02001 | C91: FCC0200 | E91: advance | F91: 17 | G91: 121779 | H91: 2023-03-14 | I91: 143 | J91: 2023-04-10 | K91: 121013 | L91: 559.876 | M91: 205.67 | N91: 0 | O91: 0 | P91: 0 | Q91: 121779 | AW91: 121219.124 | AX91: FCC0200-14-03-2023
A92: =IFERROR(VLOOKUP(C92,#REF!,9,FALSE),"") ->  | B92: =C92&COUNTIF($C$2:C92,C92) -> FCV11711 | C92: FCV1171 | F92: 1 | G92: 7243.65 | H92: 2023-03-14 | I92: 143 | J92: 2023-03-29 | K92: 7243.65 | L92: 0 | M92: 0 | N92: 0 | O92: 0 | P92: 0 | Q92: 7243.65 | AW92: 7243.65 | AX92: FCV1171-14-03-2023
A93: =IFERROR(VLOOKUP(C93,#REF!,9,FALSE),"") ->  | B93: =C93&COUNTIF($C$2:C93,C93) -> FCC01301 | C93: FCC0130 | E93: advance | F93: 35 | G93: 795004.37 | H93: 2023-03-14 | I93: 143 | J93: 2023-04-09 | K93: 791666 | L93: 3338.61 | M93: 0 | N93: 0 | O93: 0 | P93: 0 | Q93: 795004.37 | AW93: 791665.76 | AX93: FCC0130-14-03-2023
A94: =IFERROR(VLOOKUP(C94,#REF!,9,FALSE),"") ->  | B94: =C94&COUNTIF($C$2:C94,C94) -> FCS10501 | C94: FCS1050 | F94: 3 | G94: 14159 | H94: 2023-03-14 | I94: 143 | J94: 2023-03-29 | K94: 13978.92 | L94: 180.08 | M94: 0 | N94: 0 | O94: 0 | P94: 0 | Q94: 14159 | AW94: 13978.92 | AX94: FCS1050-14-03-2023
A95: =IFERROR(VLOOKUP(C95,#REF!,9,FALSE),"") ->  | B95: =C95&COUNTIF($C$2:C95,C95) -> FCS22701 | C95: FCS2270 | F95: 2 | G95: 8588.1 | H95: 2023-03-14 | I95: 143 | J95: 2023-03-29 | K95: 8588.1 | L95: 0 | M95: 0 | N95: 0 | O95: CORRECTED AMOUNT AS PHYISICAL CLAIMS | P95: 0 | Q95: 8588.1 | AW95: 8588.1 | AX95: FCS2270-14-03-2023
A96: =IFERROR(VLOOKUP(C96,#REF!,9,FALSE),"") ->  | B96: =C96&COUNTIF($C$2:C96,C96) -> FCC02801 | C96: FCC0280 | E96: advance | F96: 53 | G96: 2343031.67 | H96: 2023-03-14 | I96: 143 | J96: 2023-05-03 | K96: 1929183.94 | L96: 14161.62 | M96: 399686.11 | N96: 0 | O96: Price diff,Discount diff in 420,400 | P96: 0 | Q96: =+G96-R96-T96-V96-X96-Z96-AB96-AD96-AF96-AH96-AJ96-AL96-AN96-AP96-AT96-AV96 -> 2343031.67 | AW96: 2328870.05 | AX96: FCC0280-14-03-2023
A97: =IFERROR(VLOOKUP(C97,#REF!,9,FALSE),"") ->  | B97: =C97&COUNTIF($C$2:C97,C97) -> FCC91671 | C97: FCC9167 | E97: advance | F97: 81 | G97: 1804854.18 | H97: 2023-03-14 | I97: 143 | J97: 2023-04-12 | K97: 1666640.2 | L97: 74734.80742 | M97: 64054.57 | N97: 0 | O97: Price Difference , Classification diff & Discount diff in 99291,400,420 | P97: -575.39742 | Q97: 1804854.18 | AW97: 1730119.373 | AX97: FCC9167-14-03-2023
A98: =IFERROR(VLOOKUP(C98,#REF!,9,FALSE),"") ->  | B98: =C98&COUNTIF($C$2:C98,C98) -> FCS17001 | C98: FCS1700 | F98: 36 | G98: 421065.42 | H98: 2023-03-15 | I98: 142 | J98: 2023-04-13 | K98: 410491.86 | L98: 3910.04 | M98: 6663.52 | N98: 0 | O98: 0 | P98: -2.000888344e-11 | Q98: 421065.42 | AW98: 417155.38 | AX98: FCS1700-15-03-2023
A99: =IFERROR(VLOOKUP(C99,#REF!,9,FALSE),"") ->  | B99: =C99&COUNTIF($C$2:C99,C99) -> FCS10201 | C99: FCS1020 | F99: 51 | G99: 560070.25 | H99: 2023-03-15 | I99: 142 | J99: 2023-04-26 | K99: 559422.35 | L99: 647.9 | M99: 0 | N99: 0 | O99: shared folder | P99: 0 | Q99: 560070.25 | AW99: 559422.35 | AX99: FCS1020-15-03-2023
A100: =IFERROR(VLOOKUP(C100,#REF!,9,FALSE),"") ->  | B100: =C100&COUNTIF($C$2:C100,C100) -> FCC06001 | C100: FCC0600 | F100: 29 | G100: 208988.77 | H100: 2023-03-15 | I100: 142 | J100: 2023-04-03 | K100: 196893.77 | L100: 0 | M100: 12095 | N100: 0 | O100: 0 | P100: 0 | Q100: 208988.77 | AW100: 208988.77 | AX100: FCC0600-15-03-2023
A101: =IFERROR(VLOOKUP(C101,#REF!,9,FALSE),"") ->  | B101: =C101&COUNTIF($C$2:C101,C101) -> FCC91661 | C101: FCC9166 | F101: 2 | G101: 17600 | H101: 2023-03-15 | I101: 142 | J101: 2023-04-03 | K101: 17600 | L101: 0 | M101: 0 | N101: 0 | O101: 0 | P101: 0 | Q101: 17600 | AW101: 17600 | AX101: FCC9166-15-03-2023
A102: =IFERROR(VLOOKUP(C102,#REF!,9,FALSE),"") ->  | B102: =C102&COUNTIF($C$2:C102,C102) -> FCK30781 | C102: FCK3078 | F102: 13 | G102: 63031.5 | H102: 2023-03-15 | I102: 142 | J102: 2023-04-05 | K102: 62888.9 | L102: -1.449507181e-12 | M102: 142.6 | N102: 0 | O102: 0 | P102: 0 | Q102: 63031.5 | AW102: 63031.5 | AX102: FCK3078-15-03-2023
A103: =IFERROR(VLOOKUP(C103,#REF!,9,FALSE),"") ->  | B103: =C103&COUNTIF($C$2:C103,C103) -> FCC33501 | C103: FCC3350 | F103: 19 | G103: 194251 | H103: 2023-03-15 | I103: 142 | J103: 2023-04-03 | K103: 194251 | L103: 0 | M103: 0 | N103: 0 | O103: 0 | P103: 0 | Q103: 194251 | AW103: 194251 | AX103: FCC3350-15-03-2023
A104: =IFERROR(VLOOKUP(C104,#REF!,9,FALSE),"") ->  | B104: =C104&COUNTIF($C$2:C104,C104) -> FCS10701 | C104: FCS1070 | F104: 1 | G104: 3818 | H104: 2023-03-15 | I104: 142 | J104: 2023-04-04 | K104: 3678 | L104: 140 | M104: 0 | N104: 0 | O104: 0 | P104: 0 | Q104: 3818 | AW104: 3678 | AX104: FCS1070-15-03-2023
A105: =IFERROR(VLOOKUP(C105,#REF!,9,FALSE),"") ->  | B105: =C105&COUNTIF($C$2:C105,C105) -> FCC91541 | C105: FCC9154 | F105: 12 | G105: 255276.76 | H105: 2023-03-15 | I105: 142 | J105: 2023-04-11 | K105: 255276.76 | L105: -0.01999999999 | M105: 0 | N105: 0 | O105: 0 | P105: 0 | Q105: 255276.76 | AW105: 255276.78 | AX105: FCC9154-15-03-2023
A106: =IFERROR(VLOOKUP(C106,#REF!,9,FALSE),"") ->  | B106: =C106&COUNTIF($C$2:C106,C106) -> FCS29271 | C106: FCS2927 | F106: 22 | G106: 233708.29 | H106: 2023-03-15 | I106: 142 | J106: 2023-03-29 | K106: 230921.75 | L106: 2786.54 | M106: 0 | N106: 0 | O106: 0 | P106: 0 | Q106: 233708.29 | AW106: 230921.75 | AX106: FCS2927-15-03-2023
A107: =IFERROR(VLOOKUP(C107,#REF!,9,FALSE),"") ->  | B107: =C107&COUNTIF($C$2:C107,C107) -> FCC91761 | C107: FCC9176 | F107: 58 | G107: 918960.76 | H107: 2023-03-15 | I107: 142 | J107: 2023-04-18 | K107: 888527.85 | L107: 30432.91 | M107: 0 | N107: 0 | O107: 0 | P107: 0 | Q107: 918960.76 | AW107: 888527.85 | AX107: FCC9176-15-03-2023
A108: =IFERROR(VLOOKUP(C108,#REF!,9,FALSE),"") ->  | B108: =C108&COUNTIF($C$2:C108,C108) -> FCG30911 | C108: FCG3091 | F108: 41 | G108: 199959.8 | H108: 2023-03-15 | I108: 142 | J108: 2023-05-01 | K108: 164109.8 | L108: 35850 | M108: 0 | N108: 0 | O108: 0 | P108: 0 | Q108: 199959.8 | AW108: 164109.8 | AX108: FCG3091-15-03-2023
A109: =IFERROR(VLOOKUP(C109,#REF!,9,FALSE),"") ->  | B109: =C109&COUNTIF($C$2:C109,C109) -> FCC17801 | C109: FCC1780 | F109: 4 | G109: 143700 | H109: 2023-03-16 | I109: 141 | J109: 2023-03-30 | K109: 143700 | L109: 0 | M109: 0 | N109: 0 | O109: 0 | P109: 0 | Q109: 143700 | AW109: 143700 | AX109: FCC1780-16-03-2023
A110: =IFERROR(VLOOKUP(C110,#REF!,9,FALSE),"") ->  | B110: =C110&COUNTIF($C$2:C110,C110) -> FCS29151 | C110: FCS2915 | F110: 3 | G110: 17172 | H110: 2023-03-16 | I110: 141 | J110: 2023-04-12 | K110: 12954.5 | L110: 4217.5 | M110: 0 | N110: 0 | O110: NEW RR | P110: 0 | Q110: 17172 | AW110: 12954.5 | AX110: FCS2915-16-03-2023
A111: =IFERROR(VLOOKUP(C111,#REF!,9,FALSE),"") ->  | B111: =C111&COUNTIF($C$2:C111,C111) -> FCC01201 | C111: FCC0120 | F111: 28 | G111: 472488.14 | H111: 2023-03-16 | I111: 141 | J111: 2023-04-12 | K111: 472455.8 | L111: 32.3 | M111: 0 | N111: 0 | O111: 0 | P111: 0 | Q111: 472488.14 | AW111: 472455.84 | AX111: FCC0120-16-03-2023
A112: =IFERROR(VLOOKUP(C112,#REF!,9,FALSE),"") ->  | B112: =C112&COUNTIF($C$2:C112,C112) -> FCC29501 | C112: FCC2950 | F112: 20 | G112: 89216 | H112: 2023-03-16 | I112: 141 | J112: 2023-04-10 | K112: 88514.43 | L112: 701.57 | M112: 0 | N112: 0 | O112: 0 | P112: 6.934897101e-12 | Q112: 89216 | AW112: 88514.43 | AX112: FCC2950-16-03-2023
A113: =IFERROR(VLOOKUP(C113,#REF!,9,FALSE),"") ->  | B113: =C113&COUNTIF($C$2:C113,C113) -> FCC91651 | C113: FCC9165 | F113: 5 | G113: 38534 | H113: 2023-03-16 | I113: 141 | J113: 2023-04-12 | K113: 35087.95 | L113: 3446.05 | M113: 0 | N113: 0 | O113: 0 | P113: 0 | Q113: 38534 | AW113: 35087.95 | AX113: FCC9165-16-03-2023
A114: =IFERROR(VLOOKUP(C114,#REF!,9,FALSE),"") ->  | B114: =C114&COUNTIF($C$2:C114,C114) -> FCR34602 | C114: FCR3460 | F114: 3 | G114: 48365 | H114: 2023-03-16 | I114: 141 | J114: 2023-04-12 | K114: 48365 | L114: 0 | M114: 0 | N114: 0 | O114: 0 | P114: 0 | Q114: 48365 | AW114: 48365 | AX114: FCR3460-16-03-2023
A115: =IFERROR(VLOOKUP(C115,#REF!,9,FALSE),"") ->  | B115: =C115&COUNTIF($C$2:C115,C115) -> FCC05901 | C115: FCC0590 | E115: advance | F115: 112 | G115: 3145299.65 | H115: 2023-03-16 | I115: 141 | J115: 2023-04-13 | K115: 2671279 | L115: 226834.92 | M115: 247365.62 | N115: 0 | O115: new | P115: -179.89 | Q115: 3145299.65 | AW115: 2918464.73 | AX115: FCC0590-16-03-2023
A116: =IFERROR(VLOOKUP(C116,#REF!,9,FALSE),"") ->  | B116: =C116&COUNTIF($C$2:C116,C116) -> FCC91821 | C116: FCC9182 | F116: 3 | G116: 13221.25 | H116: 2023-03-16 | I116: 141 | J116: 2023-04-12 | K116: 13221.25 | L116: 0 | M116: 0 | N116: 0 | O116: 0 | P116: 0 | Q116: 13221.25 | AW116: 13221.25 | AX116: FCC9182-16-03-2023
A117: =IFERROR(VLOOKUP(C117,#REF!,9,FALSE),"") ->  | B117: =C117&COUNTIF($C$2:C117,C117) -> FCX18201 | C117: FCX1820 | F117: 3 | G117: 11888.47 | H117: 2023-03-19 | I117: 138 | J117: 2023-04-12 | K117: 11885.85 | L117: 2.62 | M117: 0 | N117: 0 | O117: 0 | P117: 0 | Q117: 11888.47 | AW117: 11885.85 | AX117: FCX1820-19-03-2023
A118: =IFERROR(VLOOKUP(C118,#REF!,9,FALSE),"") ->  | B118: =C118&COUNTIF($C$2:C118,C118) -> FCF26181 | C118: FCF2618 | F118: 1 | G118: 32676.08 | H118: 2023-03-19 | I118: 138 | J118: 2023-04-12 | K118: 32636.08 | L118: 40 | M118: 0 | N118: 0 | O118: 0 | P118: 0 | Q118: 32676.08 | AW118: 32636.08 | AX118: FCF2618-19-03-2023
A119: =IFERROR(VLOOKUP(C119,#REF!,9,FALSE),"") ->  | B119: =C119&COUNTIF($C$2:C119,C119) -> FCX28001 | C119: FCX2800 | F119: 3 | G119: 13280 | H119: 2023-03-19 | I119: 138 | J119: 2023-04-03 | K119: 13280 | L119: 0 | M119: 0 | N119: 0 | O119: 0 | P119: 0 | Q119: 13280 | AW119: 13280 | AX119: FCX2800-19-03-2023
A120: =IFERROR(VLOOKUP(C120,#REF!,9,FALSE),"") ->  | B120: =C120&COUNTIF($C$2:C120,C120) -> FCC91941 | C120: FCC9194 | F120: 2 | G120: 36823 | H120: 2023-03-19 | I120: 138 | J120: 2023-04-03 | K120: 36775 | L120: 48 | M120: 0 | N120: 0 | O120: 0 | P120: 0 | Q120: 36823 | AW120: 36775 | AX120: FCC9194-19-03-2023
A121: =IFERROR(VLOOKUP(C121,#REF!,9,FALSE),"") ->  | B121: =C121&COUNTIF($C$2:C121,C121) -> FCJ20401 | C121: FCJ2040 | F121: 1 | G121: 4114.5 | H121: 2023-03-19 | I121: 138 | J121: 2023-04-03 | K121: 4114.5 | L121: 0 | M121: 0 | N121: 0 | O121: 0 | P121: 0 | Q121: 4114.5 | AW121: 4114.5 | AX121: FCJ2040-19-03-2023
A122: =IFERROR(VLOOKUP(C122,#REF!,9,FALSE),"") ->  | B122: =C122&COUNTIF($C$2:C122,C122) -> FCC91721 | C122: FCC9172 | F122: 6 | G122: 183996.35 | H122: 2023-03-19 | I122: 138 | J122: 2023-04-13 | K122: 176531.14 | L122: 7465.21 | M122: 0 | N122: 0 | O122: shared folder | P122: 0 | Q122: 183996.35 | AW122: 176531.14 | AX122: FCC9172-19-03-2023
A123: =IFERROR(VLOOKUP(C123,#REF!,9,FALSE),"") ->  | B123: =C123&COUNTIF($C$2:C123,C123) -> FCC21101 | C123: FCC2110 | F123: 1 | G123: 14188 | H123: 2023-03-19 | I123: 138 | J123: 2023-04-18 | K123: 14188 | L123: 0 | M123: 0 | N123: 0 | O123: 0 | P123: 0 | Q123: 14188 | AW123: 14188 | AX123: FCC2110-19-03-2023
A124: =IFERROR(VLOOKUP(C124,#REF!,9,FALSE),"") ->  | B124: =C124&COUNTIF($C$2:C124,C124) -> FCD30531 | C124: FCD3053 | F124: 1 | G124: 240 | H124: 2023-03-19 | I124: 138 | J124: 2023-04-03 | K124: 240 | L124: 0 | M124: 0 | N124: 0 | O124: 0 | P124: 0 | Q124: 240 | AW124: 240 | AX124: FCD3053-19-03-2023
A125: =IFERROR(VLOOKUP(C125,#REF!,9,FALSE),"") ->  | B125: =C125&COUNTIF($C$2:C125,C125) -> FCX27951 | C125: FCX2795 | F125: 7 | G125: 45698.29 | H125: 2023-03-19 | I125: 138 | J125: 2023-04-03 | K125: 40962.51 | L125: 4735.78 | M125: 0 | N125: 0 | O125: discount difference in all services applying 5% instead of 20% | P125: 0 | Q125: 45698.29 | AW125: 40962.51 | AX125: FCX2795-19-03-2023
A126: =IFERROR(VLOOKUP(C126,#REF!,9,FALSE),"") ->  | B126: =C126&COUNTIF($C$2:C126,C126) -> FCC33001 | C126: FCC3300 | E126: advance | F126: 189 | G126: 5060046.29 | H126: 2023-03-19 | I126: 138 | J126: 2023-05-01 | K126: 5029905.34 | L126: -0.9200000004 | M126: 30140.95 | N126: 0 | O126: 0 | P126: 0.9200000006 | Q126: 5060046.29 | AW126: 5060047.21 | AX126: FCC3300-19-03-2023
A127: =IFERROR(VLOOKUP(C127,#REF!,9,FALSE),"") ->  | B127: =C127&COUNTIF($C$2:C127,C127) -> FCC17401 | C127: FCC1740 | F127: 20 | G127: 156233 | H127: 2023-03-19 | I127: 138 | J127: 2023-04-10 | K127: 156227.35 | L127: 5.65 | M127: 0 | N127: 0 | O127: 0 | P127: -1.818989404e-11 | Q127: 156233 | AW127: 156227.35 | AX127: FCC1740-19-03-2023
A128: =IFERROR(VLOOKUP(C128,#REF!,9,FALSE),"") ->  | B128: =C128&COUNTIF($C$2:C128,C128) -> FCX32202 | C128: FCX3220 | F128: 1 | G128: 14872.16 | H128: 2023-03-19 | I128: 138 | J128: 2023-04-30 | K128: 14725.16 | L128: 146.56 | M128: 0 | N128: 0 | O128: 0 | P128: 0 | Q128: 14872.16 | AW128: 14725.6 | AX128: FCX3220-19-03-2023
A129: =IFERROR(VLOOKUP(C129,#REF!,9,FALSE),"") ->  | B129: =C129&COUNTIF($C$2:C129,C129) -> FCC91391 | C129: FCC9139 | F129: 2 | G129: 5466 | H129: 2023-03-19 | I129: 138 | J129: 2023-05-02 | K129: 5466 | L129: 0 | M129: 0 | N129: 0 | O129: 0 | P129: 0 | Q129: 5466 | AW129: 5466 | AX129: FCC9139-19-03-2023
A130: =IFERROR(VLOOKUP(C130,#REF!,9,FALSE),"") ->  | B130: =C130&COUNTIF($C$2:C130,C130) -> FCS29781 | C130: FCS2978 | F130: 12 | G130: 47218.5 | H130: 2023-03-19 | I130: =+TODAY()-H130 -> 138 | J130: 2023-05-01 | K130: 44949.5 | L130: 1485 | M130: 784 | N130: 0 | O130: 0 | P130: 0 | Q130: 47218.5 | AW130: 45733.5 | AX130: FCS2978-19-03-2023
A131: =IFERROR(VLOOKUP(C131,#REF!,9,FALSE),"") ->  | B131: =C131&COUNTIF($C$2:C131,C131) -> FCB17601 | C131: FCB1760 | F131: 13 | G131: 71773.38 | H131: 2023-03-20 | I131: 137 | J131: 2023-04-30 | K131: 61223 | L131: 10550 | M131: 0 | N131: 0 | O131: 0 | P131: 0 | Q131: =+G131-R131-T131-V131-X131-Z131-AB131-AD131-AF131-AH131-AJ131-AL131-AN131-AP131-AT131-AV131 -> 71773.38 | AW131: =G131-(L131++R131+T131+V131+X131+Z131+AB131+AD131+AF131+AH131+AJ131+AL131+AN131+AP131+AR131) -> 61223.38 | AX131: =CONCATENATE(C131,"-",TEXT(H131,"DD-MM-YYYY")) -> FCB1760-20-03-2023
A132: =IFERROR(VLOOKUP(C132,#REF!,9,FALSE),"") ->  | B132: =C132&COUNTIF($C$2:C132,C132) -> FCC91521 | C132: FCC9152 | F132: 12 | G132: 206000 | H132: 2023-03-20 | I132: 137 | J132: 2023-04-18 | K132: 203700.1 | L132: 2299.9 | M132: 0 | N132: 0 | O132: 0 | P132: =+G132-K132-L132-M132-N132 -> 0 | Q132: 206000 | AW132: 203700.1 | AX132: FCC9152-20-03-2023
A133: =IFERROR(VLOOKUP(C133,#REF!,9,FALSE),"") ->  | B133: =C133&COUNTIF($C$2:C133,C133) -> FCC14901 | C133: FCC1490 | F133: 7 | G133: 89087.88 | H133: 2023-03-20 | I133: 137 | J133: 2023-04-13 | K133: 88439.89 | L133: 647.99 | M133: 0 | N133: 0 | O133: 0 | P133: 0 | Q133: 89087.88 | AW133: 88439.89 | AX133: FCC1490-20-03-2023
A134: =IFERROR(VLOOKUP(C134,#REF!,9,FALSE),"") ->  | B134: =C134&COUNTIF($C$2:C134,C134) -> FCC91811 | C134: FCC9181 | F134: 5 | G134: 111892.5 | H134: 2023-03-20 | I134: 137 | J134: 2023-04-13 | K134: 111892.5 | L134: 0 | M134: 0 | N134: 0 | O134: 0 | P134: 0 | Q134: 111892.5 | AW134: 111892.5 | AX134: FCC9181-20-03-2023
A135: =IFERROR(VLOOKUP(C135,#REF!,9,FALSE),"") ->  | B135: =C135&COUNTIF($C$2:C135,C135) -> FCK24101 | C135: FCK2410 | F135: 15 | G135: 85682 | H135: 2023-03-20 | I135: 137 | J135: 2023-04-05 | K135: 85062.88 | L135: 619.12 | M135: 0 | N135: 0 | O135: 0 | P135: 0 | Q135: 85682 | AW135: 85062.88 | AX135: FCK2410-20-03-2023
A136: =IFERROR(VLOOKUP(C136,#REF!,9,FALSE),"") ->  | B136: =C136&COUNTIF($C$2:C136,C136) -> FCK30841 | C136: FCK3084 | F136: 6 | G136: 72653 | H136: 2023-03-20 | I136: 137 | J136: 2023-04-03 | K136: 64407.8 | L136: 7770.4 | M136: 474.8 | N136: 0 | O136: 0 | P136: -8.924416761e-12 | Q136: 72653 | AW136: 64882.6 | AX136: FCK3084-20-03-2023
A137: =IFERROR(VLOOKUP(C137,#REF!,9,FALSE),"") ->  | B137: =C137&COUNTIF($C$2:C137,C137) -> FCC06601 | C137: FCC0660 | F137: 5 | G137: 139501.2 | H137: 2023-03-20 | I137: 137 | J137: 2023-07-13 | K137: 135947.2 | L137: 3554 | M137: 0 | N137: 0 | O137: 0 | P137: 0 | Q137: 139501.2 | AW137: 135947.2 | AX137: FCC0660-20-03-2023
A138: =IFERROR(VLOOKUP(C138,#REF!,9,FALSE),"") ->  | B138: =C138&COUNTIF($C$2:C138,C138) -> FCC00601 | C138: FCC0060 | E138: advance | F138: 17 | G138: 156531.25 | H138: 2023-03-20 | I138: 137 | J138: 2023-04-13 | K138: 154855.58 | L138: 2606.26 | M138: 0 | N138: 0 | O138: NEW | P138: -930.59 | Q138: 156531.25 | AW138: 153924.99 | AX138: FCC0060-20-03-2023
A139: =IFERROR(VLOOKUP(C139,#REF!,9,FALSE),"") ->  | B139: =C139&COUNTIF($C$2:C139,C139) -> FCC35201 | C139: FCC3520 | E139: advance+VD | F139: 33 | G139: 405619.41 | H139: 2023-03-20 | I139: 137 | J139: 2023-04-13 | K139: 389982.67 | L139: 9516.00584 | M139: 6120.75 | N139: 0 | O139: Updated Final Reconcilation | P139: 0 | Q139: 405619.41 | AW139: 396103.4042 | AX139: FCC3520-20-03-2023
A140: =IFERROR(VLOOKUP(C140,#REF!,9,FALSE),"") ->  | B140: =C140&COUNTIF($C$2:C140,C140) -> FCC91921 | C140: FCC9192 | F140: 8 | G140: 150055.06 | H140: 2023-03-20 | I140: 137 | J140: 2023-05-02 | K140: 142629.78 | L140: 7425.28 | M140: 0 | N140: 0 | O140: 0 | P140: 0 | Q140: 150055.06 | AW140: 142629.78 | AX140: FCC9192-20-03-2023
A141: =IFERROR(VLOOKUP(C141,#REF!,9,FALSE),"") ->  | B141: =C141&COUNTIF($C$2:C141,C141) -> FCC90901 | C141: FCC9090 | F141: 23 | G141: 669388.78 | H141: 2023-03-20 | I141: 137 | J141: 2023-04-13 | K141: 635509.19 | L141: 0.2900000001 | M141: 33878.8 | N141: 0 | O141: corrected amount according to provider's statement | P141: 0.5 | Q141: 669388.78 | AW141: 669388.49 | AX141: FCC9090-20-03-2023
A142: =IFERROR(VLOOKUP(C142,#REF!,9,FALSE),"") ->  | B142: =C142&COUNTIF($C$2:C142,C142) -> FCC91711 | C142: FCC9171 | F142: 13 | G142: 618215.84 | H142: 2023-03-20 | I142: 137 | J142: 2023-05-03 | K142: 592989.77 | L142: 13323.57 | M142: 0 | N142: 0 | O142: 0 | P142: 11902.5 | Q142: 618215.84 | AW142: 604892.27 | AX142: FCC9171-20-03-2023
A143: =IFERROR(VLOOKUP(C143,#REF!,9,FALSE),"") ->  | B143: =C143&COUNTIF($C$2:C143,C143) -> FCX27921 | C143: FCX2792 | F143: 8 | G143: 103284.45 | H143: 2023-03-21 | I143: 136 | J143: 2023-05-01 | K143: 71354.25 | L143: 31930.2 | M143: 0 | N143: 0 | O143: 0 | P143: 0 | Q143: 103284.45 | AW143: 71354.25 | AX143: FCX2792-21-03-2023
A144: =IFERROR(VLOOKUP(C144,#REF!,9,FALSE),"") ->  | B144: =C144&COUNTIF($C$2:C144,C144) -> FCB30801 | C144: FCB3080 | F144: 1 | G144: 8219 | H144: 2023-03-21 | I144: 136 | J144: 2023-04-10 | K144: 8142 | L144: 77 | M144: 0 | N144: 0 | O144: 0 | P144: 0 | Q144: 8219 | AW144: 8142 | AX144: FCB3080-21-03-2023
A145: =IFERROR(VLOOKUP(C145,#REF!,9,FALSE),"") ->  | B145: =C145&COUNTIF($C$2:C145,C145) -> FCC91861 | C145: FCC9186 | F145: 1 | G145: 4800 | H145: 2023-03-21 | I145: 136 | J145: 2023-07-16 | K145: 4500 | L145: 300 | M145: 0 | N145: 0 | O145: 0 | P145: 0 | Q145: 4800 | AW145: 4500 | AX145: FCC9186-21-03-2023
A146: =IFERROR(VLOOKUP(C146,#REF!,9,FALSE),"") ->  | B146: =C146&COUNTIF($C$2:C146,C146) -> FCF26221 | C146: FCF2622 | F146: 2 | G146: 18931.8 | H146: 2023-03-21 | I146: 136 | J146: 2023-04-10 | K146: 18931.8 | L146: 0 | M146: 0 | N146: 0 | O146: 0 | P146: 0 | Q146: 18931.8 | AW146: 18931.8 | AX146: FCF2622-21-03-2023
A147: =IFERROR(VLOOKUP(C147,#REF!,9,FALSE),"") ->  | B147: =C147&COUNTIF($C$2:C147,C147) -> FCC33801 | C147: FCC3380 | F147: 18 | G147: 136202 | H147: 2023-03-21 | I147: 136 | J147: 2023-04-13 | K147: 134438.65 | L147: 1763.35 | M147: 0 | N147: 0 | O147: 0 | P147: 0 | Q147: 136202 | AW147: 134438.65 | AX147: FCC3380-21-03-2023
A148: =IFERROR(VLOOKUP(C148,#REF!,9,FALSE),"") ->  | B148: =C148&COUNTIF($C$2:C148,C148) -> FCN21701 | C148: FCN2170 | F148: 1 | G148: 59300 | H148: 2023-03-21 | I148: 136 | J148: 2023-04-13 | K148: 59300 | L148: 0 | M148: 0 | N148: 0 | O148: 0 | P148: 0 | Q148: 59300 | AW148: 59300 | AX148: FCN2170-21-03-2023
A149: =IFERROR(VLOOKUP(C149,#REF!,9,FALSE),"") ->  | B149: =C149&COUNTIF($C$2:C149,C149) -> FCC16501 | C149: FCC1650 | E149: advance | F149: 4 | G149: 61419 | H149: 2023-03-21 | I149: 136 | J149: 2023-04-10 | K149: 61338.01 | L149: 80.99 | M149: 0 | N149: 0 | O149: NEW | P149: -2.032152224e-12 | Q149: 61419 | AW149: 61338.01 | AX149: FCC1650-21-03-2023
A150: =IFERROR(VLOOKUP(C150,#REF!,9,FALSE),"") ->  | B150: =C150&COUNTIF($C$2:C150,C150) -> FCM27621 | C150: FCM2762 | F150: 6 | G150: 64030 | H150: 2023-03-21 | I150: 136 | J150: 2023-05-02 | K150: 64030 | L150: -0.15 | M150: 0 | N150: 0 | O150: 0 | P150: 0 | Q150: 64030 | AW150: 64030.15 | AX150: FCM2762-21-03-2023
A151: =IFERROR(VLOOKUP(C151,#REF!,9,FALSE),"") ->  | B151: =C151&COUNTIF($C$2:C151,C151) -> FCS29171 | C151: FCS2917 | F151: 11 | G151: 37694.25 | H151: 2023-03-21 | I151: 136 | J151: 2023-05-01 | K151: 37694.25 | L151: 0 | M151: 0 | N151: 0 | O151: 0 | P151: 0 | Q151: 37694.25 | AW151: 37694.25 | AX151: FCS2917-21-03-2023
A152: =IFERROR(VLOOKUP(C152,#REF!,9,FALSE),"") ->  | B152: =C152&COUNTIF($C$2:C152,C152) -> FCC91501 | C152: FCC9150 | F152: 2 | G152: 20277.83 | H152: 2023-03-21 | I152: 136 | J152: 2023-04-18 | K152: 20277.83 | L152: 0 | M152: 0 | N152: 0 | O152: 0 | P152: 0 | Q152: 20277.83 | AW152: 20277.83 | AX152: FCC9150-21-03-2023
A153: =IFERROR(VLOOKUP(C153,#REF!,9,FALSE),"") ->  | B153: =C153&COUNTIF($C$2:C153,C153) -> FCF26161 | C153: FCF2616 | F153: 3 | G153: 9028.5 | H153: 2023-03-21 | I153: 136 | J153: 2023-04-13 | K153: 7930.65 | L153: 1097.85 | M153: 0 | N153: 0 | O153: 0 | P153: 0 | Q153: 9028.5 | AW153: 7930.65 | AX153: FCF2616-21-03-2023
A154: =IFERROR(VLOOKUP(C154,#REF!,9,FALSE),"") ->  | B154: =C154&COUNTIF($C$2:C154,C154) -> FCC18002 | C154: FCC1800 | F154: 2 | G154: 96573.47 | H154: 2023-03-21 | I154: 136 | J154: 2023-04-26 | K154: 96535.97 | L154: 163.5 | M154: 0 | N154: 0 | O154: 0 | P154: -126 | Q154: 96573.47 | AW154: 96409.97 | AX154: FCC1800-21-03-2023
A155: =IFERROR(VLOOKUP(C155,#REF!,9,FALSE),"") ->  | B155: =C155&COUNTIF($C$2:C155,C155) -> FCX27991 | C155: FCX2799 | F155: 8 | G155: 80665.44 | H155: 2023-03-22 | I155: 135 | J155: 2023-04-10 | K155: 80044.04 | L155: 621.4 | M155: 0 | N155: 0 | O155: 0 | P155: 8.753886505e-12 | Q155: 80665.44 | AW155: 80044.04 | AX155: FCX2799-22-03-2023
A156: =IFERROR(VLOOKUP(C156,#REF!,9,FALSE),"") ->  | B156: =C156&COUNTIF($C$2:C156,C156) -> FCV11701 | C156: FCV1170 | F156: 4 | G156: 20957.18 | H156: 2023-03-22 | I156: 135 | J156: 2023-04-13 | K156: 19237.13 | L156: 1720.05 | M156: 0 | N156: 0 | O156: 0 | P156: 0 | Q156: 20957.18 | AW156: 19237.13 | AX156: FCV1170-22-03-2023
A157: =IFERROR(VLOOKUP(C157,#REF!,9,FALSE),"") ->  | B157: =C157&COUNTIF($C$2:C157,C157) -> FCS29141 | C157: FCS2914 | F157: 13 | G157: 82949.05 | H157: 2023-03-22 | I157: 135 | J157: 2023-04-18 | K157: 73166.54 | L157: 9782.51 | M157: 0 | N157: 0 | O157: 0 | P157: 0 | Q157: 82949.05 | AW157: 73166.54 | AX157: FCS2914-22-03-2023
A158: =IFERROR(VLOOKUP(C158,#REF!,9,FALSE),"") ->  | B158: =C158&COUNTIF($C$2:C158,C158) -> FCC28401 | C158: FCC2840 | E158: advance | F158: 40 | G158: 233792.25 | H158: 2023-03-22 | I158: 135 | J158: 2023-04-30 | K158: 193465 | L158: 36373.304 | M158: 3954 | N158: 0 | O158: 0 | P158: 0 | Q158: 233792.25 | AW158: 197418.946 | AX158: FCC2840-22-03-2023
A159: =IFERROR(VLOOKUP(C159,#REF!,9,FALSE),"") ->  | B159: =C159&COUNTIF($C$2:C159,C159) -> FCZ13601 | C159: FCZ1360 | F159: 1 | G159: 2404 | H159: 2023-03-22 | I159: 135 | J159: 2023-04-10 | K159: 2404 | L159: 0 | M159: 0 | N159: 0 | O159: 0 | P159: 0 | Q159: 2404 | AW159: 2404 | AX159: FCZ1360-22-03-2023
A160: =IFERROR(VLOOKUP(C160,#REF!,9,FALSE),"") ->  | B160: =C160&COUNTIF($C$2:C160,C160) -> FCC91581 | C160: FCC9158 | E160: advance | F160: 35 | G160: 1744981.8 | H160: 2023-03-22 | I160: 135 | J160: 2023-04-13 | K160: 1454037.98 | L160: 255580.43 | M160: 35723.39 | N160: 0 | O160: 0 | P160: -360 | Q160: 1744981.8 | AW160: 1489401.37 | AX160: FCC9158-22-03-2023
A161: =IFERROR(VLOOKUP(C161,#REF!,9,FALSE),"") ->  | B161: =C161&COUNTIF($C$2:C161,C161) -> FCC30201 | C161: FCC3020 | F161: 2 | G161: 30000 | H161: 2023-03-22 | I161: 135 | J161: 2023-04-26 | K161: 30000 | L161: 0 | M161: 0 | N161: 0 | O161: 0 | P161: 0 | Q161: 30000 | AW161: 30000 | AX161: FCC3020-22-03-2023
A162: =IFERROR(VLOOKUP(C162,#REF!,9,FALSE),"") ->  | B162: =C162&COUNTIF($C$2:C162,C162) -> FCC29802 | C162: FCC2980 | F162: 14 | G162: 200405.78 | H162: 2023-03-22 | I162: 135 | J162: 2023-04-18 | K162: 200066.38 | L162: 339.4 | M162: 0 | N162: 0 | O162: new | P162: 0 | Q162: 200405.78 | AW162: 200066.38 | AX162: FCC2980-22-03-2023
A163: =IFERROR(VLOOKUP(C163,#REF!,9,FALSE),"") ->  | B163: =C163&COUNTIF($C$2:C163,C163) -> FCC91751 | C163: FCC9175 | F163: 6 | G163: 45386.98 | H163: 2023-03-22 | I163: 135 | J163: 2023-04-18 | K163: 44096.98 | L163: 1290 | M163: 0 | N163: 0 | O163: 0 | P163: 0 | Q163: 45386.98 | AW163: 44096.98 | AX163: FCC9175-22-03-2023
A164: =IFERROR(VLOOKUP(C164,#REF!,9,FALSE),"") ->  | B164: =C164&COUNTIF($C$2:C164,C164) -> FCC91831 | C164: FCC9183 | F164: 3 | G164: 11928.03 | H164: 2023-03-22 | I164: 135 | J164: 2023-04-13 | K164: 11928.02 | L164: 0.01 | M164: 0 | N164: 0 | O164: 0 | P164: 0 | Q164: 11928.03 | AW164: 11928.02 | AX164: FCC9183-22-03-2023
A165: =IFERROR(VLOOKUP(C165,#REF!,9,FALSE),"") ->  | B165: =C165&COUNTIF($C$2:C165,C165) -> FCC22501 | C165: FCC2250 | F165: 1 | G165: 10181 | H165: 2023-03-26 | I165: 131 | J165: 2023-05-11 | K165: 10181 | L165: 0 | M165: 0 | N165: 0 | O165: 0 | P165: 0 | Q165: 10181 | AW165: 10181 | AX165: FCC2250-26-03-2023
A166: =IFERROR(VLOOKUP(C166,#REF!,9,FALSE),"") ->  | B166: =C166&COUNTIF($C$2:C166,C166) -> FCK35501 | C166: FCK3550 | F166: 2 | G166: 7370.32 | H166: 2023-03-26 | I166: 131 | J166: 2023-04-13 | K166: 7050.22 | L166: 320.1 | M166: 0 | N166: 0 | O166: new | P166: 0 | Q166: 7370.32 | AW166: 7050.22 | AX166: FCK3550-26-03-2023
A167: =IFERROR(VLOOKUP(C167,#REF!,9,FALSE),"") ->  | B167: =C167&COUNTIF($C$2:C167,C167) -> FCK30821 | C167: FCK3082 | F167: 6 | G167: 15190.36 | H167: 2023-03-26 | I167: 131 | J167: 2023-04-04 | K167: 14798.36 | L167: 392 | M167: 0 | N167: 0 | O167: 0 | P167: 0 | Q167: 15190.36 | AW167: 14798.36 | AX167: FCK3082-26-03-2023
A168: =IFERROR(VLOOKUP(C168,#REF!,9,FALSE),"") ->  | B168: =C168&COUNTIF($C$2:C168,C168) -> FCC91691 | C168: FCC9169 | F168: 4 | G168: 40383.19 | H168: 2023-03-26 | I168: 131 | J168: 2023-04-13 | K168: 40323.18 | L168: 60.01 | M168: 0 | N168: 0 | O168: 0 | P168: 0 | Q168: 40383.19 | AW168: 40323.18 | AX168: FCC9169-26-03-2023
A169: =IFERROR(VLOOKUP(C169,#REF!,9,FALSE),"") ->  | B169: =C169&COUNTIF($C$2:C169,C169) -> FCB31941 | C169: FCB3194 | F169: 4 | G169: 10280 | H169: 2023-03-26 | I169: 131 | J169: 2023-05-01 | K169: 10280 | L169: -0.24 | M169: 0 | N169: 0 | O169: 0 | P169: 0 | Q169: 10280 | AW169: 10280.24 | AX169: FCB3194-26-03-2023
A170: =IFERROR(VLOOKUP(C170,#REF!,9,FALSE),"") ->  | B170: =C170&COUNTIF($C$2:C170,C170) -> FCX34901 | C170: FCX3490 | F170: 1 | G170: 6300 | H170: 2023-03-26 | I170: 131 | J170: 2023-05-01 | K170: 6300 | L170: 0 | M170: 0 | N170: 0 | O170: 0 | P170: 0 | Q170: 6300 | AW170: 6300 | AX170: FCX3490-26-03-2023
A171: =IFERROR(VLOOKUP(C171,#REF!,9,FALSE),"") ->  | B171: =C171&COUNTIF($C$2:C171,C171) -> FCQ34401 | C171: FCQ3440 | F171: 2 | G171: 10153 | H171: 2023-03-26 | I171: 131 | J171: 2023-07-19 | K171: 8323 | L171: 1830 | M171: 0 | N171: 0 | O171: 0 | P171: 0 | Q171: 10153 | AW171: 8323 | AX171: FCQ3440-26-03-2023
A172: =IFERROR(VLOOKUP(C172,#REF!,9,FALSE),"") ->  | B172: =C172&COUNTIF($C$2:C172,C172) -> FCY27061 | C172: FCY2706 | F172: 3 | G172: 15171 | H172: 2023-03-26 | I172: 131 | J172: 2023-05-01 | K172: 13701 | L172: 1470 | M172: 0 | N172: 0 | O172: 0 | P172: 0 | Q172: 15171 | AW172: 13701 | AX172: FCY2706-26-03-2023
A173: =IFERROR(VLOOKUP(C173,#REF!,9,FALSE),"") ->  | B173: =C173&COUNTIF($C$2:C173,C173) -> FCX34801 | C173: FCX3480 | F173: 4 | G173: 48060.37 | H173: 2023-03-26 | I173: 131 | J173: 2023-05-01 | K173: 44838.2 | L173: 3222.14 | M173: 0 | N173: 0 | O173: 0 | P173: 0 | Q173: 48060.37 | AW173: 44838.23 | AX173: FCX3480-26-03-2023
A174: =IFERROR(VLOOKUP(C174,#REF!,9,FALSE),"") ->  | B174: =C174&COUNTIF($C$2:C174,C174) -> FCT10801 | C174: FCT1080 | F174: 1 | G174: 12450 | H174: 2023-03-26 | I174: 131 | J174: 2023-04-30 | K174: 12450 | L174: 0 | M174: 0 | N174: 0 | O174: 0 | P174: 0 | Q174: 12450 | AW174: 12450 | AX174: FCT1080-26-03-2023
A175: =IFERROR(VLOOKUP(C175,#REF!,9,FALSE),"") ->  | B175: =C175&COUNTIF($C$2:C175,C175) -> fcn31451 | C175: fcn3145 | F175: 16 | G175: 21103.1 | H175: 2023-03-26 | I175: 131 | J175: 2023-04-13 | K175: 18037.1 | L175: 2736 | M175: 330 | N175: 0 | O175: 0 | P175: 0 | Q175: 21103.1 | AW175: 18367.1 | AX175: fcn3145-26-03-2023
A176: =IFERROR(VLOOKUP(C176,#REF!,9,FALSE),"") ->  | B176: =C176&COUNTIF($C$2:C176,C176) -> FCY27051 | C176: FCY2705 | F176: 1 | G176: 12083.5 | H176: 2023-03-26 | I176: 131 | J176: 2023-05-01 | K176: 7930 | L176: 4153.1 | M176: 0 | N176: 0 | O176: 0 | P176: 0 | Q176: 12083.5 | AW176: 7930.4 | AX176: FCY2705-26-03-2023
A177: =IFERROR(VLOOKUP(C177,#REF!,9,FALSE),"") ->  | B177: =C177&COUNTIF($C$2:C177,C177) -> FCS29261 | C177: FCS2926 | F177: 1 | G177: 8135 | H177: 2023-03-26 | I177: 131 | J177: 2023-05-03 | K177: 7718.36 | L177: 416.64 | M177: 0 | N177: 0 | O177: 0 | P177: 0 | Q177: 8135 | AW177: 7718.36 | AX177: FCS2926-26-03-2023
A178: =IFERROR(VLOOKUP(C178,#REF!,9,FALSE),"") ->  | B178: =C178&COUNTIF($C$2:C178,C178) -> FCC00401 | C178: FCC0040 | F178: 3 | G178: 7466 | H178: 2023-03-26 | I178: 131 | J178: 2023-05-03 | K178: 7256 | L178: 210 | M178: 0 | N178: 0 | O178: 0 | P178: 0 | Q178: 7466 | AW178: 7256 | AX178: FCC0040-26-03-2023
A179: =IFERROR(VLOOKUP(C179,#REF!,9,FALSE),"") ->  | B179: =C179&COUNTIF($C$2:C179,C179) -> FCK25201 | C179: FCK2520 | F179: 5 | G179: 44000 | H179: 2023-03-26 | I179: 131 | J179: 2023-04-30 | K179: 44000 | L179: 0 | M179: 0 | N179: 0 | O179: 0 | P179: 0 | Q179: 44000 | AW179: 44000 | AX179: FCK2520-26-03-2023
A180: =IFERROR(VLOOKUP(C180,#REF!,9,FALSE),"") ->  | B180: =C180&COUNTIF($C$2:C180,C180) -> FCC91881 | C180: FCC9188 | F180: 6 | G180: 461058.98 | H180: 2023-03-26 | I180: 131 | J180: 2023-05-03 | K180: 81059 | L180: 0.62 | M180: 380000 | N180: 0 | O180: 0 | P180: -0.64 | Q180: 461058.98 | AW180: 461058.36 | AX180: FCC9188-26-03-2023
A181: =IFERROR(VLOOKUP(C181,#REF!,9,FALSE),"") ->  | B181: =C181&COUNTIF($C$2:C181,C181) -> FCZ27281 | C181: FCZ2728 | F181: 2 | G181: 594.86 | H181: 2023-03-26 | I181: 131 | J181: 2023-05-01 | K181: 534.8 | L181: 60.04 | M181: 0 | N181: 0 | O181: 0 | P181: 0 | Q181: 594.86 | AW181: 534.82 | AX181: FCZ2728-26-03-2023
A182: =IFERROR(VLOOKUP(C182,#REF!,9,FALSE),"") ->  | B182: =C182&COUNTIF($C$2:C182,C182) -> FCL07701 | C182: FCL0770 | F182: 2 | G182: 14702 | H182: 2023-03-26 | I182: 131 | J182: 2023-05-01 | K182: 14402 | L182: 300 | M182: 0 | N182: 0 | O182: 0 | P182: 0 | Q182: 14702 | AW182: 14402 | AX182: FCL0770-26-03-2023
A183: =IFERROR(VLOOKUP(C183,#REF!,9,FALSE),"") ->  | B183: =C183&COUNTIF($C$2:C183,C183) -> FCC04501 | C183: FCC0450 | F183: 3 | G183: 18668.92 | H183: 2023-03-26 | I183: 131 | J183: 2023-05-09 | K183: 18611.92 | L183: 57 | M183: 0 | N183: 0 | O183: 0 | P183: 0 | Q183: 18668.92 | AW183: 18611.92 | AX183: FCC0450-26-03-2023
A184: =IFERROR(VLOOKUP(C184,#REF!,9,FALSE),"") ->  | B184: =C184&COUNTIF($C$2:C184,C184) -> FCC01901 | C184: FCC0190 | F184: 7 | G184: 23395 | H184: 2023-03-26 | I184: 131 | J184: 2023-04-04 | K184: 23395 | L184: -0.009999999998 | M184: 0 | N184: 0 | O184: 0 | P184: 0 | Q184: 23395 | AW184: 23395.01 | AX184: FCC0190-26-03-2023
A185: =IFERROR(VLOOKUP(C185,#REF!,9,FALSE),"") ->  | B185: =C185&COUNTIF($C$2:C185,C185) -> FCB35401 | C185: FCB3540 | F185: 5 | G185: 18101 | H185: 2023-03-26 | I185: 131 | J185: 2023-05-03 | K185: 18101 | L185: 0 | M185: 0 | N185: 0 | O185: 0 | P185: 0 | Q185: 18101 | AW185: 18101 | AX185: FCB3540-26-03-2023
A186: =IFERROR(VLOOKUP(C186,#REF!,9,FALSE),"") ->  | B186: =C186&COUNTIF($C$2:C186,C186) -> FCE01011 | C186: FCE0101 | F186: 6 | G186: 35846.82 | H186: 2023-03-26 | I186: 131 | J186: 2023-04-04 | K186: 32434.32 | L186: 3412.5 | M186: 0 | N186: 0 | O186: 0 | P186: 0 | Q186: 35846.82 | AW186: 32434.32 | AX186: FCE0101-26-03-2023
A187: =IFERROR(VLOOKUP(C187,#REF!,9,FALSE),"") ->  | B187: =C187&COUNTIF($C$2:C187,C187) -> FCE33901 | C187: FCE3390 | F187: 6 | G187: 11879 | H187: 2023-03-26 | I187: 131 | J187: 2023-04-11 | K187: 7844 | L187: 4035 | M187: 0 | N187: 0 | O187: 0 | P187: 0 | Q187: 11879 | AW187: 7844 | AX187: FCE3390-26-03-2023
A188: =IFERROR(VLOOKUP(C188,#REF!,9,FALSE),"") ->  | B188: =C188&COUNTIF($C$2:C188,C188) -> FCV11721 | C188: FCV1172 | F188: 2 | G188: 9069.4 | H188: 2023-03-26 | I188: 131 | J188: 2023-04-11 | K188: 9069.4 | L188: 0 | M188: 0 | N188: 0 | O188: 0 | P188: 0 | Q188: 9069.4 | AW188: 9069.4 | AX188: FCV1172-26-03-2023
A189: =IFERROR(VLOOKUP(C189,#REF!,9,FALSE),"") ->  | B189: =C189&COUNTIF($C$2:C189,C189) -> FCF26131 | C189: FCF2613 | F189: 1 | G189: 4476.59 | H189: 2023-03-26 | I189: 131 | J189: 2023-04-11 | K189: 4356.59 | L189: 120 | M189: 0 | N189: 0 | O189: 0 | P189: 0 | Q189: 4476.59 | AW189: 4356.59 | AX189: FCF2613-26-03-2023
A190: =IFERROR(VLOOKUP(C190,#REF!,9,FALSE),"") ->  | B190: =C190&COUNTIF($C$2:C190,C190) -> FCU11302 | C190: FCU1130 | F190: 1 | G190: 10200 | H190: 2023-03-26 | I190: 131 | J190: 2023-04-11 | K190: 10200 | L190: 0 | M190: 0 | N190: 0 | O190: shared folder | P190: 0 | Q190: 10200 | AW190: 10200 | AX190: FCU1130-26-03-2023
A191: =IFERROR(VLOOKUP(C191,#REF!,9,FALSE),"") ->  | B191: =C191&COUNTIF($C$2:C191,C191) -> FCS29191 | C191: FCS2919 | F191: 1 | G191: 3610.08 | H191: 2023-03-26 | I191: 131 | J191: 2023-05-07 | K191: 3610.08 | L191: 0 | M191: 0 | N191: 0 | O191: 0 | P191: 0 | Q191: 3610.08 | AW191: 3610.08 | AX191: FCS2919-26-03-2023
A192: =IFERROR(VLOOKUP(C192,#REF!,9,FALSE),"") ->  | B192: =C192&COUNTIF($C$2:C192,C192) -> FCP22801 | C192: FCP2280 | F192: 2 | G192: 18639.35 | H192: 2023-03-26 | I192: 131 | J192: 2023-05-11 | K192: 18639.35 | L192: 0 | M192: 0 | N192: 0 | O192: 0 | P192: 0 | Q192: 18639.35 | AW192: 18639.35 | AX192: FCP2280-26-03-2023
A193: =IFERROR(VLOOKUP(C193,#REF!,9,FALSE),"") ->  | B193: =C193&COUNTIF($C$2:C193,C193) -> FCS29181 | C193: FCS2918 | F193: 1 | G193: 27158.7 | H193: 2023-03-26 | I193: 131 | J193: 2023-05-03 | K193: 26813.7 | L193: 345 | M193: 0 | N193: 0 | O193: 0 | P193: 0 | Q193: 27158.7 | AW193: 26813.7 | AX193: FCS2918-26-03-2023
A194: =IFERROR(VLOOKUP(C194,#REF!,9,FALSE),"") ->  | B194: =C194&COUNTIF($C$2:C194,C194) -> FCP17201 | C194: FCP1720 | F194: 9 | G194: 45708.49 | H194: 2023-03-26 | I194: =+TODAY()-H194 -> 131 | J194: 2023-05-07 | K194: 45708.49 | L194: 0 | M194: 0 | N194: 0 | O194: 0 | P194: 0 | Q194: 45708.49 | AW194: 45708.49 | AX194: FCP1720-26-03-2023
A195: =IFERROR(VLOOKUP(C195,#REF!,9,FALSE),"") ->  | B195: =C195&COUNTIF($C$2:C195,C195) -> FCU19901 | C195: FCU1990 | F195: 4 | G195: 48955.95 | H195: 2023-03-26 | I195: 131 | J195: 2023-05-15 | K195: 48740.95 | L195: 215 | M195: 0 | N195: 0 | O195: Price Difference | P195: =+G195-K195-L195-M195-N195 -> 0 | Q195: =+G195-R195-T195-V195-X195-Z195-AB195-AD195-AF195-AH195-AJ195-AL195-AN195-AP195-AT195-AV195 -> 48955.95 | AW195: =G195-(L195++R195+T195+V195+X195+Z195+AB195+AD195+AF195+AH195+AJ195+AL195+AN195+AP195+AR195) -> 48740.95 | AX195: =CONCATENATE(C195,"-",TEXT(H195,"DD-MM-YYYY")) -> FCU1990-26-03-2023
A196: =IFERROR(VLOOKUP(C196,#REF!,9,FALSE),"") ->  | B196: =C196&COUNTIF($C$2:C196,C196) -> FCC02701 | C196: FCC0270 | E196: advance | F196: 19 | G196: 148400 | H196: 2023-03-26 | I196: 131 | J196: 2023-04-13 | K196: 145126.34 | L196: 3273.66 | M196: 0 | N196: 0 | O196: 0 | P196: 0 | Q196: 148400 | AW196: 145126.34 | AX196: FCC0270-26-03-2023
A197: =IFERROR(VLOOKUP(C197,#REF!,9,FALSE),"") ->  | B197: =C197&COUNTIF($C$2:C197,C197) -> FCQ09801 | C197: FCQ0980 | F197: 1 | G197: 25000 | H197: 2023-03-26 | I197: 131 | J197: 2023-05-08 | K197: 25000 | L197: 0 | M197: 0 | N197: 0 | O197: 0 | P197: 0 | Q197: 25000 | AW197: 25000 | AX197: FCQ0980-26-03-2023
A198: =IFERROR(VLOOKUP(C198,#REF!,9,FALSE),"") ->  | B198: =C198&COUNTIF($C$2:C198,C198) -> FCL32101 | C198: FCL3210 | F198: 3 | G198: 56460 | H198: 2023-03-26 | I198: 131 | J198: 2023-05-08 | K198: 56460 | L198: 0 | M198: 0 | N198: 0 | O198: 0 | P198: 0 | Q198: 56460 | AW198: 56460 | AX198: FCL3210-26-03-2023
A199: =IFERROR(VLOOKUP(C199,#REF!,9,FALSE),"") ->  | B199: =C199&COUNTIF($C$2:C199,C199) -> FCC91461 | C199: FCC9146 | F199: 1 | G199: 20508.52 | H199: 2023-03-26 | I199: 131 | J199: 2023-05-09 | K199: 20508.52 | L199: 0 | M199: 0 | N199: 0 | O199: 0 | P199: 0 | Q199: 20508.52 | AW199: 20508.52 | AX199: FCC9146-26-03-2023
A200: =IFERROR(VLOOKUP(C200,#REF!,9,FALSE),"") ->  | B200: =C200&COUNTIF($C$2:C200,C200) -> FCC01401 | C200: FCC0140 | F200: 12 | G200: 133495.66 | H200: 2023-03-26 | I200: 131 | J200: 2023-05-01 | K200: 132261 | L200: 0.06000000001 | M200: 1234.3 | N200: 0 | O200: 0 | P200: 0.3 | Q200: 133495.66 | AW200: 133495.6 | AX200: FCC0140-26-03-2023
... 35 more rows

Sheet Month 05-2023
A1: Status | B1: Helper | C1: Provider Code | E1: BATCH NO: | F1: Number of claims | G1: AMOUNT | H1: Date Received | I1: TAT | J1: Date posting | K1: Paid | L1: Rejected | M1: H.H | N1: Pending | O1: Comment | P1: Rev Diff | Q1: Pay Diff | R1: Taxes | S1: Checks no. | T1: Amount checks | U1: Checks no. | V1: Amount checks | W1: Checks no. | X1: Amount checks | Y1: Checks no. | Z1: Amount checks | AA1: Checks no. | AB1: Amount checks | AC1: Checks no. | AD1: Amount checks | AE1: Checks no. | AF1: Amount checks | AG1: Checks no. | AH1: Amount checks | AI1: Checks no. | AJ1: Amount checks | AK1: Checks no. | AL1: Amount checks | AM1: Checks no. | AN1: Amount checks | AO1: Checks no. | AP1: Amount checks | AQ1: Checks no. | AR1: Amount checks | AS1: Checks no. | AT1: Amount checks | AU1: Checks no. | AV1: Amount checks | AW1: TAT | AX1: =CONCATENATE(C1,"-",TEXT(H1,"DD-MM-YYYY")) -> Provider Code-Date Received
A2: =IFERROR(VLOOKUP(C2,#REF!,9,FALSE),"") ->  | B2: =C2&COUNTIF($C$2:C2,C2) -> FCC91731 | C2: FCC9173 | F2: 1 | G2: 6000 | H2: 2023-05-01 | I2: =+TODAY()-H2 -> 95 | J2: 2023-05-29 | K2: 6000 | L2: 0 | M2: 0 | N2: 0 | O2: 0 | P2: =+G2-K2-L2-M2-N2 -> 0 | Q2: =+G2-R2-T2-V2-X2-Z2-AB2-AD2-AF2-AH2-AJ2-AL2-AN2-AP2-AT2-AV2 -> 6000 | AW2: =G2-(L2++R2+T2+V2+X2+Z2+AB2+AD2+AF2+AH2+AJ2+AL2+AN2+AP2+AR2) -> 6000 | AX2: FCC9173-01-05-2023
A3: =IFERROR(VLOOKUP(C3,#REF!,9,FALSE),"") ->  | B3: =C3&COUNTIF($C$2:C3,C3) -> fcc21501 | C3: fcc2150 | F3: 9 | G3: 125132.8 | H3: 2023-05-01 | I3: 95 | J3: 2023-05-29 | K3: 119151 | L3: 5981.74 | M3: 0 | N3: 0 | O3: 0 | P3: 0 | Q3: 125132.8 | AW3: =G3-(L3++R3+T3+V3+X3+Z3+AB3+AD3+AF3+AH3+AJ3+AL3+AN3+AP3+AR3) -> 119151.06 | AX3: =CONCATENATE(C3,"-",TEXT(H3,"DD-MM-YYYY")) -> fcc2150-01-05-2023
A4: =IFERROR(VLOOKUP(C4,#REF!,9,FALSE),"") ->  | B4: =C4&COUNTIF($C$2:C4,C4) -> FCC30601 | C4: FCC3060 | F4: 2 | G4: 19500 | H4: 2023-05-01 | I4: 95 | J4: 2023-05-29 | K4: 19500 | L4: 0 | M4: 0 | N4: 0 | O4: 0 | P4: 0 | Q4: 19500 | AW4: 19500 | AX4: FCC3060-01-05-2023
A5: =IFERROR(VLOOKUP(C5,#REF!,9,FALSE),"") ->  | B5: =C5&COUNTIF($C$2:C5,C5) -> FCF23101 | C5: FCF2310 | F5: 2 | G5: 4979.29 | H5: 2023-05-01 | I5: 95 | J5: 2023-05-29 | K5: 4979.29 | L5: 0 | M5: 0 | N5: 0 | O5: 0 | P5: 0 | Q5: 4979.29 | AW5: 4979.29 | AX5: FCF2310-01-05-2023
A6: =IFERROR(VLOOKUP(C6,#REF!,9,FALSE),"") ->  | B6: =C6&COUNTIF($C$2:C6,C6) -> FCN31421 | C6: FCN3142 | F6: 4 | G6: 18401.9 | H6: 2023-05-01 | I6: 95 | J6: 2023-05-29 | K6: 16545.7 | L6: 1856.18 | M6: 0 | N6: 0 | O6: 0 | P6: 0 | Q6: 18401.9 | AW6: 16545.72 | AX6: FCN3142-01-05-2023
A7: =IFERROR(VLOOKUP(C7,#REF!,9,FALSE),"") ->  | B7: =C7&COUNTIF($C$2:C7,C7) -> FCC21801 | C7: FCC2180 | E7: advance | F7: 81 | G7: 2422946.71 | H7: 2023-05-01 | I7: 95 | J7: 2023-06-08 | K7: 2305974.83 | L7: 90359.79 | M7: 26612.09 | N7: 0 | O7: NEW | P7: -3.637978807e-12 | Q7: 2422946.71 | AW7: 2332586.92 | AX7: FCC2180-01-05-2023
A8: =IFERROR(VLOOKUP(C8,#REF!,9,FALSE),"") ->  | B8: =C8&COUNTIF($C$2:C8,C8) -> FCC91661 | C8: FCC9166 | F8: 1 | G8: 10400 | H8: 2023-05-02 | I8: 94 | J8: 2023-05-31 | K8: 10400 | L8: 0 | M8: 0 | N8: 0 | O8: 0 | P8: =+G8-K8-L8-M8-N8 -> 0 | Q8: =+G8-R8-T8-V8-X8-Z8-AB8-AD8-AF8-AH8-AJ8-AL8-AN8-AP8-AT8-AV8 -> 10400 | AW8: 10400 | AX8: FCC9166-02-05-2023
A9: =IFERROR(VLOOKUP(C9,#REF!,9,FALSE),"") ->  | B9: =C9&COUNTIF($C$2:C9,C9) -> FCX28001 | C9: FCX2800 | F9: 3 | G9: 9323 | H9: 2023-05-02 | I9: 94 | J9: 2023-05-29 | K9: 9322.6 | L9: 0.4 | M9: 0 | N9: 0 | O9: 0 | P9: 0 | Q9: 9323 | AW9: 9322.6 | AX9: FCX2800-02-05-2023
A10: =IFERROR(VLOOKUP(C10,#REF!,9,FALSE),"") ->  | B10: =C10&COUNTIF($C$2:C10,C10) -> FCC91821 | C10: FCC9182 | F10: 1 | G10: 4121.25 | H10: 2023-05-02 | I10: 94 | J10: 2023-05-29 | K10: 4121.25 | L10: 0 | M10: 0 | N10: 0 | O10: 0 | P10: 0 | Q10: 4121.25 | AW10: 4121.25 | AX10: FCC9182-02-05-2023
A11: =IFERROR(VLOOKUP(C11,#REF!,9,FALSE),"") ->  | B11: =C11&COUNTIF($C$2:C11,C11) -> FCC15901 | C11: FCC1590 | F11: 4 | G11: 15490 | H11: 2023-05-03 | I11: 93 | J11: 2023-05-29 | K11: 15490 | L11: 0 | M11: 0 | N11: 0 | O11: 0 | P11: 0 | Q11: 15490 | AW11: 15490 | AX11: FCC1590-03-05-2023
A12: =IFERROR(VLOOKUP(C12,#REF!,9,FALSE),"") ->  | B12: =C12&COUNTIF($C$2:C12,C12) -> FCC02001 | C12: FCC0200 | E12: advance | F12: 22 | G12: 244735 | H12: 2023-05-03 | I12: 93 | J12: 2023-05-29 | K12: 201789.6 | L12: 12504.1 | M12: 30441.3 | N12: 0 | O12: 0 | P12: 0 | Q12: 244735 | AW12: 232230.9 | AX12: FCC0200-03-05-2023
A13: =IFERROR(VLOOKUP(C13,#REF!,9,FALSE),"") ->  | B13: =C13&COUNTIF($C$2:C13,C13) -> FCB28001 | C13: FCB2800 | F13: 2 | G13: 20000 | H13: 2023-05-03 | I13: 93 | J13: 2023-06-21 | K13: 19935.3 | L13: 64.6 | M13: 0 | N13: 0 | O13: 0 | P13: 0 | Q13: 20000 | AW13: 19935.4 | AX13: FCB2800-03-05-2023
A14: =IFERROR(VLOOKUP(C14,#REF!,9,FALSE),"") ->  | B14: =C14&COUNTIF($C$2:C14,C14) -> FCC91451 | C14: FCC9145 | F14: 3 | G14: 13835 | H14: 2023-05-03 | I14: 93 | J14: 2023-06-11 | K14: 13535.8 | L14: 299.14 | M14: 0 | N14: 0 | O14: 0 | P14: 0 | Q14: 13835 | AW14: 13535.86 | AX14: FCC9145-03-05-2023
A15: =IFERROR(VLOOKUP(C15,#REF!,9,FALSE),"") ->  | B15: =C15&COUNTIF($C$2:C15,C15) -> FCK34201 | C15: FCK3420 | E15: advance | F15: 24 | G15: 228844.46 | H15: 2023-05-07 | I15: 89 | J15: 2023-05-28 | K15: 227449.3 | L15: 2395.08 | M15: 0 | N15: 0 | O15: 0 | P15: -999.92 | Q15: 228844.46 | AW15: 226449.38 | AX15: FCK3420-07-05-2023
A16: =IFERROR(VLOOKUP(C16,#REF!,9,FALSE),"") ->  | B16: =C16&COUNTIF($C$2:C16,C16) -> FCF26101 | C16: FCF2610 | F16: 5 | G16: 26138.7 | H16: 2023-05-07 | I16: 89 | J16: 2023-06-11 | K16: 25338.49 | L16: 800.21 | M16: 0 | N16: 0 | O16: 0 | P16: 0 | Q16: 26138.7 | AW16: 25338.49 | AX16: FCF2610-07-05-2023
A17: =IFERROR(VLOOKUP(C17,#REF!,9,FALSE),"") ->  | B17: =C17&COUNTIF($C$2:C17,C17) -> FCC91551 | C17: FCC9155 | F17: 3 | G17: 117658.63 | H17: 2023-05-07 | I17: 89 | J17: 2023-06-06 | K17: 117658.63 | L17: 0 | M17: 0 | N17: 0 | O17: 0 | P17: 0 | Q17: 117658.63 | AW17: 117658.63 | AX17: FCC9155-07-05-2023
A18: =IFERROR(VLOOKUP(C18,#REF!,9,FALSE),"") ->  | B18: =C18&COUNTIF($C$2:C18,C18) -> FCC04001 | C18: FCC0400 | E18: advance | F18: 136 | G18: 3461908.57 | H18: 2023-05-07 | I18: 89 | J18: 2023-06-19 | K18: 3403396.42 | L18: 9866.41 | M18: 48647.15 | N18: 0 | O18: Discount diff (S.F) | P18: 0 | Q18: 3461908.57 | AW18: 3452042.16 | AX18: FCC0400-07-05-2023
A19: =IFERROR(VLOOKUP(C19,#REF!,9,FALSE),"") ->  | B19: =C19&COUNTIF($C$2:C19,C19) -> FCX12301 | C19: FCX1230 | F19: 1 | G19: 2254.88 | H19: 2023-05-07 | I19: 89 | J19: 2023-06-11 | K19: 2253.98 | L19: 0.9 | M19: 0 | N19: 0 | O19: 0 | P19: 0 | Q19: 2254.88 | AW19: 2253.98 | AX19: FCX1230-07-05-2023
A20: =IFERROR(VLOOKUP(C20,#REF!,9,FALSE),"") ->  | B20: =C20&COUNTIF($C$2:C20,C20) -> FCC03001 | C20: FCC0300 | E20: advance | F20: 133 | G20: 4472526.47 | H20: 2023-05-07 | I20: 89 | J20: 2023-06-12 | K20: 3995608.92 | L20: 20553.41 | M20: 133994.9 | N20: 322369.24 | O20: 0 | P20: 0 | Q20: 4472526.47 | AW20: 4451973.06 | AX20: FCC0300-07-05-2023
A21: =IFERROR(VLOOKUP(C21,#REF!,9,FALSE),"") ->  | B21: =C21&COUNTIF($C$2:C21,C21) -> FCS10601 | C21: FCS1060 | F21: 6 | G21: 20427.5 | H21: 2023-05-07 | I21: 89 | J21: 2023-06-11 | K21: 15451 | L21: 135 | M21: 0 | N21: 4841.5 | O21: 0 | P21: 0 | Q21: 20427.5 | AW21: 20292.5 | AX21: FCS1060-07-05-2023
A22: =IFERROR(VLOOKUP(C22,#REF!,9,FALSE),"") ->  | B22: =C22&COUNTIF($C$2:C22,C22) -> FCC91981 | C22: FCC9198 | E22: advance | F22: 17 | G22: 509588.73 | H22: 2023-05-07 | I22: 89 | J22: 2023-06-18 | K22: 443239.9 | L22: 4570.13 | M22: 0 | N22: 61778.7 | O22: new rejection report | P22: 0 | Q22: 509588.73 | AW22: 505018.6 | AX22: FCC9198-07-05-2023
A23: =IFERROR(VLOOKUP(C23,#REF!,9,FALSE),"") ->  | B23: =C23&COUNTIF($C$2:C23,C23) -> FCD30501 | C23: FCD3050 | F23: 5 | G23: 28285 | H23: 2023-05-07 | I23: 89 | J23: 2023-06-06 | K23: 27764.1 | L23: 520.9 | M23: 0 | N23: 0 | O23: 0 | P23: 0 | Q23: 28285 | AW23: 27764.1 | AX23: FCD3050-07-05-2023
A24: =IFERROR(VLOOKUP(C24,#REF!,9,FALSE),"") ->  | B24: =C24&COUNTIF($C$2:C24,C24) -> FCX34801 | C24: FCX3480 | F24: 2 | G24: 19710.19 | H24: 2023-05-07 | I24: 89 | J24: 2023-06-20 | K24: 17263.59 | L24: 2446.6 | M24: 0 | N24: 0 | O24: new rr | P24: 0 | Q24: 19710.19 | AW24: 17263.59 | AX24: FCX3480-07-05-2023
A25: =IFERROR(VLOOKUP(C25,#REF!,9,FALSE),"") ->  | B25: =C25&COUNTIF($C$2:C25,C25) -> FCY27061 | C25: FCY2706 | F25: 6 | G25: 45609 | H25: 2023-05-07 | I25: 89 | J25: 2023-06-08 | K25: 45409 | L25: 200 | M25: 0 | N25: 0 | O25: 0 | P25: 0 | Q25: 45609 | AW25: 45409 | AX25: FCY2706-07-05-2023
A26: =IFERROR(VLOOKUP(C26,#REF!,9,FALSE),"") ->  | B26: =C26&COUNTIF($C$2:C26,C26) -> FCC33101 | C26: FCC3310 | F26: 4 | G26: 18586.51 | H26: 2023-05-07 | I26: 89 | J26: 2023-07-19 | K26: 18576.5 | L26: 20.29 | M26: 0 | N26: 0 | O26: 0 | P26: -10.28 | Q26: 18586.51 | AW26: 18566.22 | AX26: FCC3310-07-05-2023
A27: =IFERROR(VLOOKUP(C27,#REF!,9,FALSE),"") ->  | B27: =C27&COUNTIF($C$2:C27,C27) -> FCC01101 | C27: FCC0110 | E27: advance | F27: 183 | G27: 4135253.06 | H27: 2023-05-07 | I27: 89 | J27: 2023-06-13 | K27: 3988995.73 | L27: 8.731149137e-11 | M27: 62994.52 | N27: 83262.81 | O27: 0 | P27: 0 | Q27: 4135253.06 | AW27: 4135253.06 | AX27: FCC0110-07-05-2023
A28: =IFERROR(VLOOKUP(C28,#REF!,9,FALSE),"") ->  | B28: =C28&COUNTIF($C$2:C28,C28) -> FCC01501 | C28: FCC0150 | E28: advance | F28: 14 | G28: 131733 | H28: 2023-05-07 | I28: 89 | J28: 2023-05-29 | K28: 131733 | L28: 589.852 | M28: 0 | N28: 0 | O28: 0 | P28: -589.852 | Q28: 131733 | AW28: 131143.148 | AX28: FCC0150-07-05-2023
A29: =IFERROR(VLOOKUP(C29,#REF!,9,FALSE),"") ->  | B29: =C29&COUNTIF($C$2:C29,C29) -> FCC21802 | C29: FCC2180 | E29: advance | F29: 39 | G29: 925121.19 | H29: 2023-05-07 | I29: 89 | J29: 2023-05-31 | K29: 922081.6 | L29: 4028.61 | M29: 0 | N29: 0 | O29: 0 | P29: -989.02 | Q29: 925121.19 | AW29: 921092.58 | AX29: FCC2180-07-05-2023
A30: =IFERROR(VLOOKUP(C30,#REF!,9,FALSE),"") ->  | B30: =C30&COUNTIF($C$2:C30,C30) -> FCC14101 | C30: FCC1410 | E30: advance | F30: 22 | G30: 378039.59 | H30: 2023-05-07 | I30: 89 | J30: 2023-06-14 | K30: 371373.35 | L30: 7489.23893 | M30: 0 | N30: 0 | O30: 0 | P30: -822.99893 | Q30: 378039.59 | AW30: 370550.3511 | AX30: FCC1410-07-05-2023
A31: =IFERROR(VLOOKUP(C31,#REF!,9,FALSE),"") ->  | B31: =C31&COUNTIF($C$2:C31,C31) -> FCR10131 | C31: FCR1013 | F31: 1 | G31: 3825 | H31: 2023-05-08 | I31: 88 | J31: 2023-07-17 | K31: 3825 | L31: 0 | M31: 0 | N31: 0 | O31: 0 | P31: 0 | Q31: 3825 | AW31: 3825 | AX31: FCR1013-08-05-2023
A32: =IFERROR(VLOOKUP(C32,#REF!,9,FALSE),"") ->  | B32: =C32&COUNTIF($C$2:C32,C32) -> FCC91931 | C32: FCC9193 | F32: 6 | G32: 98019.94 | H32: 2023-05-08 | I32: 88 | J32: 2023-06-08 | K32: 98019.94 | L32: -0.02999999999 | M32: 0 | N32: 0 | O32: updated | P32: 0 | Q32: 98019.94 | AW32: 98019.97 | AX32: FCC9193-08-05-2023
A33: =IFERROR(VLOOKUP(C33,#REF!,9,FALSE),"") ->  | B33: =C33&COUNTIF($C$2:C33,C33) -> FCZ18301 | C33: FCZ1830 | F33: 2 | G33: 8527 | H33: 2023-05-08 | I33: 88 | J33: 2023-06-14 | K33: 8527 | L33: 0 | M33: 0 | N33: 0 | O33: 0 | P33: 0 | Q33: 8527 | AW33: 8527 | AX33: FCZ1830-08-05-2023
A34: =IFERROR(VLOOKUP(C34,#REF!,9,FALSE),"") ->  | B34: =C34&COUNTIF($C$2:C34,C34) -> FCE33901 | C34: FCE3390 | F34: 6 | G34: 13651 | H34: 2023-05-08 | I34: 88 | J34: 2023-06-08 | K34: 10321 | L34: 3330 | M34: 0 | N34: 0 | O34: 0 | P34: 0 | Q34: 13651 | AW34: 10321 | AX34: FCE3390-08-05-2023
A35: =IFERROR(VLOOKUP(C35,#REF!,9,FALSE),"") ->  | B35: =C35&COUNTIF($C$2:C35,C35) -> FCX26901 | C35: FCX2690 | F35: 6 | G35: 107065.84 | H35: 2023-05-08 | I35: 88 | J35: 2023-07-16 | K35: 93574.3 | L35: 13491.54 | M35: 0 | N35: 0 | O35: 0 | P35: 0 | Q35: 107065.84 | AW35: 93574.3 | AX35: FCX2690-08-05-2023
A36: =IFERROR(VLOOKUP(C36,#REF!,9,FALSE),"") ->  | B36: =C36&COUNTIF($C$2:C36,C36) -> FCH17901 | C36: FCH1790 | E36: advance | F36: 7 | G36: 151147 | H36: 2023-05-08 | I36: 88 | J36: 2023-06-14 | K36: 127489.02 | L36: 149.99 | M36: 0 | N36: 23507.99 | O36: 0 | P36: 0 | Q36: 151147 | AW36: 150997.01 | AX36: FCH1790-08-05-2023
A37: =IFERROR(VLOOKUP(C37,#REF!,9,FALSE),"") ->  | B37: =C37&COUNTIF($C$2:C37,C37) -> FCC91691 | C37: FCC9169 | F37: 11 | G37: 164847.6 | H37: 2023-05-08 | I37: 88 | J37: 2023-06-11 | K37: 156177.2 | L37: 7403.05 | M37: 1267.3 | N37: 0 | O37: 0 | P37: 0 | Q37: 164847.6 | AW37: 157444.55 | AX37: FCC9169-08-05-2023
A38: =IFERROR(VLOOKUP(C38,#REF!,9,FALSE),"") ->  | B38: =C38&COUNTIF($C$2:C38,C38) -> FCU11501 | C38: FCU1150 | F38: 3 | G38: 8624.5 | H38: 2023-05-08 | I38: 88 | J38: 2023-07-16 | K38: 8624.5 | L38: 0 | M38: 0 | N38: 0 | O38: 0 | P38: 0 | Q38: 8624.5 | AW38: 8624.5 | AX38: FCU1150-08-05-2023
A39: =IFERROR(VLOOKUP(C39,#REF!,9,FALSE),"") ->  | B39: =C39&COUNTIF($C$2:C39,C39) -> FCC30401 | C39: FCC3040 | E39: advance | F39: 30 | G39: 324933.69 | H39: 2023-05-08 | I39: 88 | J39: 2023-05-29 | K39: 310181 | L39: 2334.81963 | M39: 12418.45 | N39: 0 | O39: new | P39: 0 | Q39: 324933.69 | AW39: 322598.8704 | AX39: FCC3040-08-05-2023
A40: =IFERROR(VLOOKUP(C40,#REF!,9,FALSE),"") ->  | B40: =C40&COUNTIF($C$2:C40,C40) -> FCB26301 | C40: FCB2630 | F40: 4 | G40: 16091.78 | H40: 2023-05-08 | I40: 88 | J40: 2023-06-14 | K40: 16092 | L40: -0.37 | M40: 0 | N40: 0 | O40: 0 | P40: 0 | Q40: 16091.78 | AW40: 16092.15 | AX40: FCB2630-08-05-2023
A41: =IFERROR(VLOOKUP(C41,#REF!,9,FALSE),"") ->  | B41: =C41&COUNTIF($C$2:C41,C41) -> FCC91641 | C41: FCC9164 | F41: 23 | G41: 156407.24 | H41: 2023-05-08 | I41: 88 | J41: 2023-06-13 | K41: 129840.1 | L41: 20424.33 | M41: 6142.81 | N41: 0 | O41: 0 | P41: -1.728039933e-11 | Q41: 156407.24 | AW41: 135982.91 | AX41: FCC9164-08-05-2023
A42: =IFERROR(VLOOKUP(C42,#REF!,9,FALSE),"") ->  | B42: =C42&COUNTIF($C$2:C42,C42) -> FCC31101 | C42: FCC3110 | E42: advance+VD | F42: 5 | G42: 64825 | H42: 2023-05-08 | I42: 88 | J42: 2023-06-25 | K42: 58900 | L42: 5925 | M42: 0 | N42: 0 | O42: 0 | P42: 0 | Q42: 64825 | AW42: 58900 | AX42: FCC3110-08-05-2023
A43: =IFERROR(VLOOKUP(C43,#REF!,9,FALSE),"") ->  | B43: =C43&COUNTIF($C$2:C43,C43) -> FCS23401 | C43: FCS2340 | F43: 11 | G43: 47600 | H43: 2023-05-08 | I43: 88 | J43: 2023-05-23 | K43: 46829 | L43: 771 | M43: 0 | N43: 0 | O43: price differnce | P43: 0 | Q43: 47600 | AW43: 46829 | AX43: FCS2340-08-05-2023
A44: =IFERROR(VLOOKUP(C44,#REF!,9,FALSE),"") ->  | B44: =C44&COUNTIF($C$2:C44,C44) -> FCX27951 | C44: FCX2795 | F44: 2 | G44: 3857.37 | H44: 2023-05-08 | I44: 88 | J44: 2023-06-14 | K44: 3574.67 | L44: 282.7 | M44: 0 | N44: 0 | O44: 0 | P44: 0 | Q44: 3857.37 | AW44: 3574.67 | AX44: FCX2795-08-05-2023
A45: =IFERROR(VLOOKUP(C45,#REF!,9,FALSE),"") ->  | B45: =C45&COUNTIF($C$2:C45,C45) -> FCC27301 | C45: FCC2730 | E45: advance | F45: 13 | G45: 221571.5 | H45: 2023-05-08 | I45: 88 | J45: 2023-06-25 | K45: 221571.5 | L45: -0.154 | M45: 0 | N45: 0 | O45: 0 | P45: 0 | Q45: 221571.5 | AW45: 221571.654 | AX45: FCC2730-08-05-2023
A46: =IFERROR(VLOOKUP(C46,#REF!,9,FALSE),"") ->  | B46: =C46&COUNTIF($C$2:C46,C46) -> FCC91621 | C46: FCC9162 | E46: advance | F46: 30 | G46: 580151 | H46: 2023-05-08 | I46: 88 | J46: 2023-06-05 | K46: 579303.37 | L46: 847.634 | M46: 0 | N46: 0 | O46: new | P46: =+G46-K46-L46-M46-N46 -> -0.004000000044 | Q46: 580151 | AW46: 579303.366 | AX46: FCC9162-08-05-2023
A47: =IFERROR(VLOOKUP(C47,#REF!,9,FALSE),"") ->  | B47: =C47&COUNTIF($C$2:C47,C47) -> FCN33701 | C47: FCN3370 | F47: 4 | G47: 16582 | H47: 2023-05-09 | I47: 87 | J47: 2023-06-14 | K47: 15236.2 | L47: 1345.8 | M47: 0 | N47: 0 | O47: 0 | P47: 0 | Q47: 16582 | AW47: 15236.2 | AX47: FCN3370-09-05-2023
A48: =IFERROR(VLOOKUP(C48,#REF!,9,FALSE),"") ->  | B48: =C48&COUNTIF($C$2:C48,C48) -> fcx26701 | C48: fcx2670 | F48: 4 | G48: 11110 | H48: 2023-05-09 | I48: 87 | J48: 2023-06-14 | K48: 11110 | L48: 0 | M48: 0 | N48: 0 | O48: 0 | P48: 0 | Q48: 11110 | AW48: 11110 | AX48: fcx2670-09-05-2023
A49: =IFERROR(VLOOKUP(C49,#REF!,9,FALSE),"") ->  | B49: =C49&COUNTIF($C$2:C49,C49) -> FCB31941 | C49: FCB3194 | F49: 4 | G49: 43340 | H49: 2023-05-09 | I49: 87 | J49: 2023-06-21 | K49: 42472.1 | L49: 867.9 | M49: 0 | N49: 0 | O49: 0 | P49: 0 | Q49: 43340 | AW49: 42472.1 | AX49: FCB3194-09-05-2023
A50: =IFERROR(VLOOKUP(C50,#REF!,9,FALSE),"") ->  | B50: =C50&COUNTIF($C$2:C50,C50) -> FCX27931 | C50: FCX2793 | F50: 5 | G50: 21861.86 | H50: 2023-05-09 | I50: 87 | J50: 2023-06-13 | K50: 21861.86 | L50: 803 | M50: 0 | N50: 0 | O50: 0 | P50: -803 | Q50: 21861.86 | AW50: 21058.86 | AX50: FCX2793-09-05-2023
A51: =IFERROR(VLOOKUP(C51,#REF!,9,FALSE),"") ->  | B51: =C51&COUNTIF($C$2:C51,C51) -> FCF24701 | C51: FCF2470 | F51: 1 | G51: 2607.69 | H51: 2023-05-09 | I51: 87 | J51: 2023-06-13 | K51: 2604.77 | L51: 3.58 | M51: 0 | N51: 0 | O51: 0 | P51: 0 | Q51: 2607.69 | AW51: 2604.11 | AX51: FCF2470-09-05-2023
A52: =IFERROR(VLOOKUP(C52,#REF!,9,FALSE),"") ->  | B52: =C52&COUNTIF($C$2:C52,C52) -> fcn31451 | C52: fcn3145 | F52: 31 | G52: 41819.55 | H52: 2023-05-09 | I52: 87 | J52: 2023-05-17 | K52: 37287.31 | L52: 4532.24 | M52: 0 | N52: 0 | O52: 0 | P52: 0 | Q52: 41819.55 | AW52: 37287.31 | AX52: fcn3145-09-05-2023
A53: =IFERROR(VLOOKUP(C53,#REF!,9,FALSE),"") ->  | B53: =C53&COUNTIF($C$2:C53,C53) -> FCC06501 | C53: FCC0650 | F53: 4 | G53: 106798.66 | H53: 2023-05-09 | I53: 87 | J53: 2023-07-26 | K53: 106793.79 | L53: 4.87 | M53: 0 | N53: 0 | O53: Denied Amount | P53: 0 | Q53: 106798.66 | AW53: 106793.79 | AX53: FCC0650-09-05-2023
A54: =IFERROR(VLOOKUP(C54,#REF!,9,FALSE),"") ->  | B54: =C54&COUNTIF($C$2:C54,C54) -> FCH17902 | C54: FCH1790 | E54: advance | F54: 4 | G54: 49072 | H54: 2023-05-09 | I54: 87 | J54: 2023-07-13 | K54: 49072 | L54: -0.001999999989 | M54: 0 | N54: 0 | O54: 0 | P54: 0.001999999989 | Q54: 49072 | AW54: 49072.002 | AX54: FCH1790-09-05-2023
A55: =IFERROR(VLOOKUP(C55,#REF!,9,FALSE),"") ->  | B55: =C55&COUNTIF($C$2:C55,C55) -> FCX13001 | C55: FCX1300 | F55: 1 | G55: 3004.12 | H55: 2023-05-09 | I55: 87 | J55: 2023-06-21 | K55: 2791.13 | L55: 212.99 | M55: 0 | N55: 0 | O55: Discount diff in all services (doesn't apply discount at all) | P55: 0 | Q55: 3004.12 | AW55: 2791.13 | AX55: FCX1300-09-05-2023
A56: =IFERROR(VLOOKUP(C56,#REF!,9,FALSE),"") ->  | B56: =C56&COUNTIF($C$2:C56,C56) -> FCX18401 | C56: FCX1840 | E56: advance | F56: 37 | G56: 526582.59 | H56: 2023-05-09 | I56: 87 | J56: 2023-06-13 | K56: 492707.75 | L56: -2.910383046e-11 | M56: 0 | N56: 33874.84 | O56: 0 | P56: 0 | Q56: 526582.59 | AW56: 526582.59 | AX56: FCX1840-09-05-2023
A57: =IFERROR(VLOOKUP(C57,#REF!,9,FALSE),"") ->  | B57: =C57&COUNTIF($C$2:C57,C57) -> FCS28301 | C57: FCS2830 | E57: advance | F57: 27 | G57: 113649.49 | H57: 2023-05-09 | I57: 87 | J57: 2023-06-13 | K57: 112196.61 | L57: 1452.88 | M57: 0 | N57: 0 | O57: 0 | P57: 4.547473509e-12 | Q57: 113649.49 | AW57: 112196.61 | AX57: FCS2830-09-05-2023
A58: =IFERROR(VLOOKUP(C58,#REF!,9,FALSE),"") ->  | B58: =C58&COUNTIF($C$2:C58,C58) -> FCC15701 | C58: FCC1570 | F58: 3 | G58: 25851.5 | H58: 2023-05-09 | I58: 87 | J58: 2023-06-21 | K58: 25851.5 | L58: -0.01 | M58: 0 | N58: 0 | O58: 0 | P58: 0 | Q58: 25851.5 | AW58: 25851.51 | AX58: FCC1570-09-05-2023
A59: =IFERROR(VLOOKUP(C59,#REF!,9,FALSE),"") ->  | B59: =C59&COUNTIF($C$2:C59,C59) -> FCE01001 | C59: FCE0100 | F59: 4 | G59: 40803 | H59: 2023-05-09 | I59: 87 | J59: 2023-07-05 | K59: 40803 | L59: 0 | M59: 0 | N59: 0 | O59: 0 | P59: =+G59-K59-L59-M59-N59 -> 0 | Q59: 40803 | AW59: 40803 | AX59: FCE0100-09-05-2023
A60: =IFERROR(VLOOKUP(C60,#REF!,9,FALSE),"") ->  | B60: =C60&COUNTIF($C$2:C60,C60) -> FCF26141 | C60: FCF2614 | F60: 3 | G60: 79089.4 | H60: 2023-05-09 | I60: 87 | J60: 2023-06-19 | K60: 78859.4 | L60: 280 | M60: 0 | N60: 0 | O60: Price diff | P60: -50 | Q60: 79089.4 | AW60: 78809.4 | AX60: FCF2614-09-05-2023
A61: =IFERROR(VLOOKUP(C61,#REF!,9,FALSE),"") ->  | B61: =C61&COUNTIF($C$2:C61,C61) -> FCK30841 | C61: FCK3084 | F61: 11 | G61: 183568.6 | H61: 2023-05-09 | I61: 87 | J61: 2023-06-19 | K61: 177230.6 | L61: 6338 | M61: 0 | N61: 0 | O61: Price differnece & Denied Amount | P61: 0 | Q61: 183568.6 | AW61: 177230.6 | AX61: FCK3084-09-05-2023
A62: =IFERROR(VLOOKUP(C62,#REF!,9,FALSE),"") ->  | B62: =C62&COUNTIF($C$2:C62,C62) -> FCC00901 | C62: FCC0090 | E62: advance | F62: 187 | G62: 6611770.24 | H62: 2023-05-09 | I62: 87 | J62: 2023-06-14 | K62: 6501810.96 | L62: 39194.88 | M62: 74630.8 | N62: 0 | O62: 0 | P62: =+G62-K62-L62-M62-N62 -> -3866.4 | Q62: 6611770.24 | AW62: 6572575.36 | AX62: FCC0090-09-05-2023
A63: =IFERROR(VLOOKUP(C63,#REF!,9,FALSE),"") ->  | B63: =C63&COUNTIF($C$2:C63,C63) -> FCC91681 | C63: FCC9168 | F63: 3 | G63: 83697.22 | H63: 2023-05-09 | I63: 87 | J63: 2023-06-13 | K63: 83697.22 | L63: 0 | M63: 0 | N63: 0 | O63: 0 | P63: 0 | Q63: 83697.22 | AW63: 83697.22 | AX63: FCC9168-09-05-2023
A64: =IFERROR(VLOOKUP(C64,#REF!,9,FALSE),"") ->  | B64: =C64&COUNTIF($C$2:C64,C64) -> FCC91791 | C64: FCC9179 | F64: 2 | G64: 50113.49 | H64: 2023-05-09 | I64: 87 | J64: 2023-06-20 | K64: 50073.49 | L64: 40 | M64: 0 | N64: 0 | O64: 0 | P64: 0 | Q64: 50113.49 | AW64: 50073.49 | AX64: FCC9179-09-05-2023
A65: =IFERROR(VLOOKUP(C65,#REF!,9,FALSE),"") ->  | B65: =C65&COUNTIF($C$2:C65,C65) -> FCX27401 | C65: FCX2740 | E65: advance | F65: 64 | G65: 952662.35 | H65: 2023-05-09 | I65: 87 | J65: 2023-06-11 | K65: 810570.07 | L65: 692.28 | M65: 3135 | N65: 138265 | O65: 0 | P65: 0 | Q65: 952662.35 | AW65: 951970.07 | AX65: FCX2740-09-05-2023
A66: =IFERROR(VLOOKUP(C66,#REF!,9,FALSE),"") ->  | B66: =C66&COUNTIF($C$2:C66,C66) -> FCC91851 | C66: FCC9185 | F66: 3 | G66: 124181.2 | H66: 2023-05-10 | I66: =+TODAY()-H66 -> 86 | J66: 2023-07-17 | K66: 123539.16 | L66: 642.04 | M66: 0 | N66: 0 | O66: 0 | P66: 0 | Q66: 124181.2 | AW66: 123539.16 | AX66: FCC9185-10-05-2023
A67: =IFERROR(VLOOKUP(C67,#REF!,9,FALSE),"") ->  | B67: =C67&COUNTIF($C$2:C67,C67) -> FCC91561 | C67: FCC9156 | E67: advance | F67: 6 | G67: 94110.24 | H67: 2023-05-10 | I67: 86 | J67: 2023-06-13 | K67: 80729.97 | L67: 3.637978807e-12 | M67: 13380.27 | N67: -0.05423999999 | O67: 0 | P67: 0 | Q67: 94110.24 | AW67: =G67-(L67++R67+T67+V67+X67+Z67+AB67+AD67+AF67+AH67+AJ67+AL67+AN67+AP67+AR67) -> 94110.24 | AX67: =CONCATENATE(C67,"-",TEXT(H67,"DD-MM-YYYY")) -> FCC9156-10-05-2023
A68: =IFERROR(VLOOKUP(C68,#REF!,9,FALSE),"") ->  | B68: =C68&COUNTIF($C$2:C68,C68) -> FCC06401 | C68: FCC0640 | F68: 7 | G68: 51752.35 | H68: 2023-05-10 | I68: 86 | J68: 2023-06-14 | K68: 49584.85 | L68: 2167.5 | M68: 0 | N68: 0 | O68: 0 | P68: 0 | Q68: 51752.35 | AW68: 49584.85 | AX68: FCC0640-10-05-2023
A69: =IFERROR(VLOOKUP(C69,#REF!,9,FALSE),"") ->  | B69: =C69&COUNTIF($C$2:C69,C69) -> FCP17201 | C69: FCP1720 | F69: 6 | G69: 36157.45 | H69: 2023-05-10 | I69: 86 | J69: 2023-06-21 | K69: 36157.45 | L69: 0.59 | M69: 0 | N69: 0 | O69: 0 | P69: 0 | Q69: 36157.45 | AW69: 36156.86 | AX69: FCP1720-10-05-2023
A70: =IFERROR(VLOOKUP(C70,#REF!,9,FALSE),"") ->  | B70: =C70&COUNTIF($C$2:C70,C70) -> FCH28941 | C70: FCH2894 | F70: 1 | G70: 7892 | H70: 2023-05-10 | I70: 86 | J70: 2023-06-08 | K70: 7892 | L70: -0.01 | M70: 0 | N70: 0 | O70: 0 | P70: 0 | Q70: 7892 | AW70: 7892.01 | AX70: FCH2894-10-05-2023
A71: =IFERROR(VLOOKUP(C71,#REF!,9,FALSE),"") ->  | B71: =C71&COUNTIF($C$2:C71,C71) -> FCC27801 | C71: FCC2780 | F71: 22 | G71: 119218 | H71: 2023-05-10 | I71: 86 | J71: 2023-05-21 | K71: 114716 | L71: 4502 | M71: 0 | N71: 0 | O71: duplicate claim | P71: 0 | Q71: 119218 | AW71: 114716 | AX71: FCC2780-10-05-2023
A72: =IFERROR(VLOOKUP(C72,#REF!,9,FALSE),"") ->  | B72: =C72&COUNTIF($C$2:C72,C72) -> FCC91651 | C72: FCC9165 | F72: 12 | G72: 93740.8 | H72: 2023-05-10 | I72: 86 | J72: 2023-06-20 | K72: 66081.16 | L72: 620.99 | M72: 0 | N72: 27038.65 | O72: 0 | P72: =+G72-K72-L72-M72-N72 -> 0 | Q72: =+G72-R72-T72-V72-X72-Z72-AB72-AD72-AF72-AH72-AJ72-AL72-AN72-AP72-AT72-AV72 -> 93740.8 | AW72: 93119.81 | AX72: FCC9165-10-05-2023
A73: =IFERROR(VLOOKUP(C73,#REF!,9,FALSE),"") ->  | B73: =C73&COUNTIF($C$2:C73,C73) -> FCC00401 | C73: FCC0040 | F73: 5 | G73: 10845 | H73: 2023-05-10 | I73: 86 | J73: 2023-07-17 | K73: 8670 | L73: 2175 | M73: 0 | N73: 0 | O73: 0 | P73: 0 | Q73: 10845 | AW73: 8670 | AX73: FCC0040-10-05-2023
A74: =IFERROR(VLOOKUP(C74,#REF!,9,FALSE),"") ->  | B74: =C74&COUNTIF($C$2:C74,C74) -> FCC91461 | C74: FCC9146 | F74: 3 | G74: 62694.5 | H74: 2023-05-10 | I74: 86 | J74: 2023-07-17 | K74: 62694.5 | L74: 0 | M74: 0 | N74: 0 | O74: 0 | P74: 0 | Q74: 62694.5 | AW74: 62694.5 | AX74: FCC9146-10-05-2023
A75: =IFERROR(VLOOKUP(C75,#REF!,9,FALSE),"") ->  | B75: =C75&COUNTIF($C$2:C75,C75) -> FCC00801 | C75: FCC0080 | F75: 23 | G75: 90528.01 | H75: 2023-05-10 | I75: 86 | J75: 2023-06-05 | K75: 90528 | L75: -0.41 | M75: 0 | N75: 0 | O75: 0 | P75: 0 | Q75: 90528.01 | AW75: 90528.42 | AX75: FCC0080-10-05-2023
A76: =IFERROR(VLOOKUP(C76,#REF!,9,FALSE),"") ->  | B76: =C76&COUNTIF($C$2:C76,C76) -> FCC91801 | C76: FCC9180 | F76: 10 | G76: 159514.32 | H76: 2023-05-10 | I76: 86 | J76: 2023-06-11 | K76: 158689.5 | L76: 824.75 | M76: 0 | N76: 0 | O76: 0 | P76: 0 | Q76: 159514.32 | AW76: 158689.57 | AX76: FCC9180-10-05-2023
A77: =IFERROR(VLOOKUP(C77,#REF!,9,FALSE),"") ->  | B77: =C77&COUNTIF($C$2:C77,C77) -> FCC00701 | C77: FCC0070 | F77: 1 | G77: 3032 | H77: 2023-05-10 | I77: 86 | J77: 2023-06-21 | K77: 0 | L77: 0 | M77: 3032 | N77: 0 | O77: 0 | P77: 0 | Q77: 3032 | AW77: 3032 | AX77: FCC0070-10-05-2023
A78: =IFERROR(VLOOKUP(C78,#REF!,9,FALSE),"") ->  | B78: =C78&COUNTIF($C$2:C78,C78) -> FCC91541 | C78: FCC9154 | F78: 2 | G78: 171245.51 | H78: 2023-05-10 | I78: 86 | J78: 2023-07-19 | K78: 171245.51 | L78: 0 | M78: 0 | N78: 0 | O78: 0 | P78: 0 | Q78: 171245.51 | AW78: 171245.51 | AX78: FCC9154-10-05-2023
A79: =IFERROR(VLOOKUP(C79,#REF!,9,FALSE),"") ->  | B79: =C79&COUNTIF($C$2:C79,C79) -> FCC15801 | C79: FCC1580 | E79: advance | F79: 74 | G79: 930686.6 | H79: 2023-05-10 | I79: 86 | J79: 2023-06-14 | K79: 930168.6 | L79: 517.95 | M79: 0 | N79: 0 | O79: 0 | P79: 0 | Q79: 930686.6 | AW79: 930168.65 | AX79: FCC1580-10-05-2023
A80: =IFERROR(VLOOKUP(C80,#REF!,9,FALSE),"") ->  | B80: =C80&COUNTIF($C$2:C80,C80) -> FCS10201 | C80: FCS1020 | F80: 52 | G80: 422157.1 | H80: 2023-05-10 | I80: 86 | J80: 2023-06-05 | K80: 408103.3 | L80: 396.17 | M80: 0 | N80: 13657.63 | O80: 0 | P80: 0 | Q80: 422157.1 | AW80: 421760.93 | AX80: FCS1020-10-05-2023
A81: =IFERROR(VLOOKUP(C81,#REF!,9,FALSE),"") ->  | B81: =C81&COUNTIF($C$2:C81,C81) -> FCS17001 | C81: FCS1700 | F81: 34 | G81: 330701.3 | H81: 2023-05-10 | I81: 86 | J81: 2023-06-05 | K81: 326957.04 | L81: 649.92 | M81: 3094.34 | N81: 0 | O81: new | P81: 2.5920599e-11 | Q81: 330701.3 | AW81: 330051.38 | AX81: FCS1700-10-05-2023
A82: =IFERROR(VLOOKUP(C82,#REF!,9,FALSE),"") ->  | B82: =C82&COUNTIF($C$2:C82,C82) -> FCK30781 | C82: FCK3078 | F82: 20 | G82: 47836.25 | H82: 2023-05-10 | I82: 86 | J82: 2023-06-05 | K82: 47766.25 | L82: 70 | M82: 0 | N82: 0 | O82: 0 | P82: 0 | Q82: 47836.25 | AW82: 47766.25 | AX82: FCK3078-10-05-2023
A83: =IFERROR(VLOOKUP(C83,#REF!,9,FALSE),"") ->  | B83: =C83&COUNTIF($C$2:C83,C83) -> FCC18301 | C83: FCC1830 | F83: 1 | G83: 20000 | H83: 2023-05-10 | I83: 86 | J83: 2023-05-29 | K83: 20000 | L83: 0 | M83: 0 | N83: 0 | O83: 0 | P83: 0 | Q83: 20000 | AW83: 20000 | AX83: FCC1830-10-05-2023
A84: =IFERROR(VLOOKUP(C84,#REF!,9,FALSE),"") ->  | B84: =C84&COUNTIF($C$2:C84,C84) -> FCC91901 | C84: FCC9190 | F84: 1 | G84: 4905 | H84: 2023-05-10 | I84: 86 | J84: 2023-06-18 | K84: 4905 | L84: 0 | M84: 0 | N84: 0 | O84: 0 | P84: 0 | Q84: 4905 | AW84: 4905 | AX84: FCC9190-10-05-2023
A85: =IFERROR(VLOOKUP(C85,#REF!,9,FALSE),"") ->  | B85: =C85&COUNTIF($C$2:C85,C85) -> FCC26601 | C85: FCC2660 | F85: 8 | G85: 39269 | H85: 2023-05-10 | I85: 86 | J85: 2023-05-28 | K85: 39194.06 | L85: 74.94 | M85: 0 | N85: 0 | O85: 0 | P85: 0 | Q85: 39269 | AW85: 39194.06 | AX85: FCC2660-10-05-2023
A86: =IFERROR(VLOOKUP(C86,#REF!,9,FALSE),"") ->  | B86: =C86&COUNTIF($C$2:C86,C86) -> FCC91751 | C86: FCC9175 | F86: 4 | G86: 57360.24 | H86: 2023-05-10 | I86: 86 | J86: 2023-07-17 | K86: 54591.02 | L86: 2769.22 | M86: 0 | N86: 0 | O86: 0 | P86: 0 | Q86: 57360.24 | AW86: 54591.02 | AX86: FCC9175-10-05-2023
A87: =IFERROR(VLOOKUP(C87,#REF!,9,FALSE),"") ->  | B87: =C87&COUNTIF($C$2:C87,C87) -> FCK29901 | C87: FCK2990 | F87: 1 | G87: 7550 | H87: 2023-05-10 | I87: 86 | P87: 7550 | Q87: 7550 | AW87: 7550 | AX87: FCK2990-10-05-2023
A88: =IFERROR(VLOOKUP(C88,#REF!,9,FALSE),"") ->  | B88: =C88&COUNTIF($C$2:C88,C88) -> FCC91831 | C88: FCC9183 | F88: 3 | G88: 9652.57 | H88: 2023-05-10 | I88: 86 | P88: 9652.57 | Q88: 9652.57 | AW88: 9652.57 | AX88: FCC9183-10-05-2023
A89: =IFERROR(VLOOKUP(C89,#REF!,9,FALSE),"") ->  | B89: =C89&COUNTIF($C$2:C89,C89) -> FCC03401 | C89: FCC0340 | F89: 2 | G89: 7024.4 | H89: 2023-05-10 | I89: 86 | J89: 2023-06-14 | K89: 6746.48 | L89: 277.92 | M89: 0 | N89: 0 | O89: discount diff 400 /420 (15%) | P89: 0 | Q89: 7024.4 | AW89: 6746.48 | AX89: FCC0340-10-05-2023
A90: =IFERROR(VLOOKUP(C90,#REF!,9,FALSE),"") ->  | B90: =C90&COUNTIF($C$2:C90,C90) -> FCC26501 | C90: FCC2650 | F90: 5 | G90: 143217 | H90: 2023-05-10 | I90: 86 | J90: 2023-07-05 | K90: 79796.99 | L90: 0.009999999995 | M90: 0 | N90: 63420 | O90: 0 | P90: =+G90-K90-L90-M90-N90 -> 0 | Q90: 143217 | AW90: 143216.99 | AX90: FCC2650-10-05-2023
A91: =IFERROR(VLOOKUP(C91,#REF!,9,FALSE),"") ->  | B91: =C91&COUNTIF($C$2:C91,C91) -> FCX12901 | C91: FCX1290 | E91: advance | F91: 98 | G91: 1703398.75 | H91: 2023-05-10 | I91: 86 | J91: 2023-06-04 | K91: 1639696.73 | L91: 2057.08 | M91: 61644.8 | N91: 0 | O91: 0 | P91: 0 | Q91: 1703398.75 | AW91: 1701341.67 | AX91: FCX1290-10-05-2023
A92: =IFERROR(VLOOKUP(C92,#REF!,9,FALSE),"") ->  | B92: =C92&COUNTIF($C$2:C92,C92) -> FCL32101 | C92: FCL3210 | F92: 3 | G92: 43954 | H92: 2023-05-11 | I92: 85 | J92: 2023-07-05 | K92: 13571.32 | L92: 20438.68 | M92: 0 | N92: 9944 | O92: 0 | P92: =+G92-K92-L92-M92-N92 -> 0 | Q92: 43954 | AW92: 23515.32 | AX92: FCL3210-11-05-2023
A93: =IFERROR(VLOOKUP(C93,#REF!,9,FALSE),"") ->  | B93: =C93&COUNTIF($C$2:C93,C93) -> FCB30001 | C93: FCB3000 | F93: 2 | G93: 19561 | H93: 2023-05-11 | I93: 85 | P93: 19561 | Q93: 19561 | AW93: 19561 | AX93: FCB3000-11-05-2023
A94: =IFERROR(VLOOKUP(C94,#REF!,9,FALSE),"") ->  | B94: =C94&COUNTIF($C$2:C94,C94) -> FCF26181 | C94: FCF2618 | F94: 1 | G94: 13965.7 | H94: 2023-05-11 | I94: 85 | J94: 2023-07-06 | K94: 13965.7 | L94: 0 | M94: 0 | N94: 0 | O94: 0 | P94: 0 | Q94: 13965.7 | AW94: 13965.7 | AX94: FCF2618-11-05-2023
A95: =IFERROR(VLOOKUP(C95,#REF!,9,FALSE),"") ->  | B95: =C95&COUNTIF($C$2:C95,C95) -> FCS31501 | C95: FCS3150 | F95: 2 | G95: 28669 | H95: 2023-05-11 | I95: 85 | J95: 2023-06-18 | K95: 28071.5 | L95: 597.5 | M95: 0 | N95: 0 | O95: missed | P95: =+G95-K95-L95-M95-N95 -> 0 | Q95: 28669 | AW95: 28071.5 | AX95: FCS3150-11-05-2023
A96: =IFERROR(VLOOKUP(C96,#REF!,9,FALSE),"") ->  | B96: =C96&COUNTIF($C$2:C96,C96) -> FCC28801 | C96: FCC2880 | F96: 29 | G96: 377065.74 | H96: 2023-05-11 | I96: 85 | J96: 2023-06-19 | K96: 377024.87 | L96: 20.87 | M96: 0 | N96: 0 | O96: updated | P96: =+G96-K96-L96-M96-N96 -> 20 | Q96: 377065.74 | AW96: 377044.87 | AX96: FCC2880-11-05-2023
A97: =IFERROR(VLOOKUP(C97,#REF!,9,FALSE),"") ->  | B97: =C97&COUNTIF($C$2:C97,C97) -> FCC91721 | C97: FCC9172 | F97: 12 | G97: 456936.54 | H97: 2023-05-11 | I97: 85 | J97: 2023-07-10 | K97: 357022.13 | L97: 3076.87 | M97: 96837.54 | N97: 0 | O97: Price diff & Discount diff | P97: 0 | Q97: 456936.54 | AW97: 453859.67 | AX97: FCC9172-11-05-2023
A98: =IFERROR(VLOOKUP(C98,#REF!,9,FALSE),"") ->  | B98: =C98&COUNTIF($C$2:C98,C98) -> FCC91941 | C98: FCC9194 | F98: 2 | G98: 6567 | H98: 2023-05-11 | I98: 85 | J98: 2023-06-18 | K98: 6567 | L98: 0 | M98: 0 | N98: 0 | O98: 0 | P98: 0 | Q98: 6567 | AW98: 6567 | AX98: FCC9194-11-05-2023
A99: =IFERROR(VLOOKUP(C99,#REF!,9,FALSE),"") ->  | B99: =C99&COUNTIF($C$2:C99,C99) -> FCM27601 | C99: FCM2760 | F99: 6 | G99: 49331.77 | H99: 2023-05-11 | I99: 85 | J99: 2023-06-18 | K99: 49042.99 | L99: 288.78 | M99: 0 | N99: 0 | O99: 0 | P99: 0 | Q99: 49331.77 | AW99: 49042.99 | AX99: FCM2760-11-05-2023
A100: =IFERROR(VLOOKUP(C100,#REF!,9,FALSE),"") ->  | B100: =C100&COUNTIF($C$2:C100,C100) -> FCX27981 | C100: FCX2798 | F100: 17 | G100: 144386.55 | H100: 2023-05-11 | I100: 85 | J100: 2023-06-21 | K100: 140350.06 | L100: 1324.49 | M100: 2712 | N100: 0 | O100: Discount diff in cardiac cath & 201 operation fees | P100: 1.500666258e-11 | Q100: 144386.55 | AW100: 143062.06 | AX100: FCX2798-11-05-2023
A101: =IFERROR(VLOOKUP(C101,#REF!,9,FALSE),"") ->  | B101: =C101&COUNTIF($C$2:C101,C101) -> FCI22101 | C101: FCI2210 | F101: 1 | G101: 13496 | H101: 2023-05-11 | I101: 85 | J101: 2023-07-13 | K101: 10901.75 | L101: 2594.25 | M101: 0 | N101: 0 | O101: 0 | P101: 0 | Q101: 13496 | AW101: 10901.75 | AX101: FCI2210-11-05-2023
A102: =IFERROR(VLOOKUP(C102,#REF!,9,FALSE),"") ->  | B102: =C102&COUNTIF($C$2:C102,C102) -> FCL07701 | C102: FCL0770 | F102: 2 | G102: 48400 | H102: 2023-05-11 | I102: 85 | J102: 2023-06-20 | K102: 48400 | L102: 0 | M102: 0 | N102: 0 | O102: 0 | P102: 0 | Q102: 48400 | AW102: 48400 | AX102: FCL0770-11-05-2023
A103: =IFERROR(VLOOKUP(C103,#REF!,9,FALSE),"") ->  | B103: =C103&COUNTIF($C$2:C103,C103) -> FCS10301 | C103: FCS1030 | E103: advance | F103: 67 | G103: 954182.33 | H103: 2023-05-11 | I103: 85 | J103: 2023-06-14 | K103: 926727.24 | L103: 9587.74592 | M103: 17867.34 | N103: 0 | O103: 0 | P103: 0.004080000039 | Q103: 954182.33 | AW103: 944594.5841 | AX103: FCS1030-11-05-2023
A104: =IFERROR(VLOOKUP(C104,#REF!,9,FALSE),"") ->  | B104: =C104&COUNTIF($C$2:C104,C104) -> FCC17101 | C104: FCC1710 | E104: advance | F104: 5 | G104: 40493 | H104: 2023-05-11 | I104: 85 | J104: 2023-06-20 | K104: 40493 | L104: 0 | M104: 0 | N104: 0 | O104: 0 | P104: 0 | Q104: 40493 | AW104: 40493 | AX104: FCC1710-11-05-2023
A105: =IFERROR(VLOOKUP(C105,#REF!,9,FALSE),"") ->  | B105: =C105&COUNTIF($C$2:C105,C105) -> FCC04801 | C105: FCC0480 | F105: 10 | G105: 97204 | H105: 2023-05-11 | I105: 85 | J105: 2023-06-05 | K105: 97204 | L105: 0 | M105: 0 | N105: 0 | O105: 0 | P105: 0 | Q105: 97204 | AW105: 97204 | AX105: FCC0480-11-05-2023
A106: =IFERROR(VLOOKUP(C106,#REF!,9,FALSE),"") ->  | B106: =C106&COUNTIF($C$2:C106,C106) -> fcc32501 | C106: fcc3250 | F106: 4 | G106: 82983 | H106: 2023-05-11 | I106: 85 | J106: 2023-06-18 | K106: 43206 | L106: 1776.5 | M106: 38000 | N106: 0 | O106: 0 | P106: 0.5 | Q106: 82983 | AW106: 81206.5 | AX106: fcc3250-11-05-2023
A107: =IFERROR(VLOOKUP(C107,#REF!,9,FALSE),"") ->  | B107: =C107&COUNTIF($C$2:C107,C107) -> FCX16201 | C107: FCX1620 | F107: 4 | G107: 88026 | H107: 2023-05-14 | I107: 82 | J107: 2023-06-19 | K107: 76026 | L107: 12000 | M107: 0 | N107: 0 | O107: 0 | P107: 0 | Q107: 88026 | AW107: 76026 | AX107: FCX1620-14-05-2023
A108: =IFERROR(VLOOKUP(C108,#REF!,9,FALSE),"") ->  | B108: =C108&COUNTIF($C$2:C108,C108) -> FCC20601 | C108: FCC2060 | F108: 2 | G108: 78500 | H108: 2023-05-14 | I108: 82 | J108: 2023-06-19 | K108: 78500 | L108: -0.01 | M108: 0 | N108: 0 | O108: 0 | P108: 0 | Q108: 78500 | AW108: 78500.01 | AX108: FCC2060-14-05-2023
A109: =IFERROR(VLOOKUP(C109,#REF!,9,FALSE),"") ->  | B109: =C109&COUNTIF($C$2:C109,C109) -> FCS29261 | C109: FCS2926 | F109: 2 | G109: 8832 | H109: 2023-05-14 | I109: 82 | J109: 2023-06-20 | K109: 8147.51 | L109: 684.49 | M109: 0 | N109: 0 | O109: 0 | P109: 0 | Q109: 8832 | AW109: 8147.51 | AX109: FCS2926-14-05-2023
A110: =IFERROR(VLOOKUP(C110,#REF!,9,FALSE),"") ->  | B110: =C110&COUNTIF($C$2:C110,C110) -> FCT10801 | C110: FCT1080 | F110: 3 | G110: 23005 | H110: 2023-05-14 | I110: 82 | J110: 2023-06-20 | K110: 23005 | L110: 0 | M110: 0 | N110: 0 | O110: 0 | P110: 0 | Q110: 23005 | AW110: 23005 | AX110: FCT1080-14-05-2023
A111: =IFERROR(VLOOKUP(C111,#REF!,9,FALSE),"") ->  | B111: =C111&COUNTIF($C$2:C111,C111) -> FCC91961 | C111: FCC9196 | F111: 2 | G111: 24335.79 | H111: 2023-05-14 | I111: 82 | J111: 2023-07-05 | K111: 24273.29 | L111: 62.5 | M111: 0 | N111: 0 | O111: 0 | P111: =+G111-K111-L111-M111-N111 -> 0 | Q111: 24335.79 | AW111: 24273.29 | AX111: FCC9196-14-05-2023
A112: =IFERROR(VLOOKUP(C112,#REF!,9,FALSE),"") ->  | B112: =C112&COUNTIF($C$2:C112,C112) -> FCC01201 | C112: FCC0120 | F112: 28 | G112: 631087.19 | H112: 2023-05-14 | I112: 82 | J112: 2023-07-05 | K112: 375021.11 | L112: 0 | M112: 0 | N112: 256066.08 | O112: 0 | P112: =+G112-K112-L112-M112-N112 -> 0 | Q112: 631087.19 | AW112: 631087.19 | AX112: FCC0120-14-05-2023
A113: =IFERROR(VLOOKUP(C113,#REF!,9,FALSE),"") ->  | B113: =C113&COUNTIF($C$2:C113,C113) -> FCC91841 | C113: FCC9184 | F113: 1 | G113: 3230 | H113: 2023-05-14 | I113: 82 | P113: 3230 | Q113: 3230 | AW113: 3230 | AX113: FCC9184-14-05-2023
A114: =IFERROR(VLOOKUP(C114,#REF!,9,FALSE),"") ->  | B114: =C114&COUNTIF($C$2:C114,C114) -> FCC21301 | C114: FCC2130 | F114: 6 | G114: 36388.83 | H114: 2023-05-14 | I114: 82 | J114: 2023-05-21 | K114: 35547.37 | L114: 841.46 | M114: 0 | N114: 0 | O114: discount not applied | P114: 0 | Q114: 36388.83 | AW114: 35547.37 | AX114: FCC2130-14-05-2023
A115: =IFERROR(VLOOKUP(C115,#REF!,9,FALSE),"") ->  | B115: =C115&COUNTIF($C$2:C115,C115) -> FCC91611 | C115: FCC9161 | F115: 1 | G115: 2000 | H115: 2023-05-14 | I115: 82 | P115: 2000 | Q115: 2000 | AW115: 2000 | AX115: FCC9161-14-05-2023
A116: =IFERROR(VLOOKUP(C116,#REF!,9,FALSE),"") ->  | B116: =C116&COUNTIF($C$2:C116,C116) -> FCB22201 | C116: FCB2220 | F116: 5 | G116: 11027.65 | H116: 2023-05-14 | I116: 82 | J116: 2023-07-17 | K116: 11027.65 | L116: 0 | M116: 0 | N116: 0 | O116: 0 | P116: 0 | Q116: 11027.65 | AW116: 11027.65 | AX116: FCB2220-14-05-2023
A117: =IFERROR(VLOOKUP(C117,#REF!,9,FALSE),"") ->  | B117: =C117&COUNTIF($C$2:C117,C117) -> FCQ34401 | C117: FCQ3440 | F117: 1 | G117: 1522 | H117: 2023-05-14 | I117: 82 | J117: 2023-07-19 | K117: 1522 | L117: 0 | M117: 0 | N117: 0 | O117: 0 | P117: 0 | Q117: 1522 | AW117: 1522 | AX117: FCQ3440-14-05-2023
A118: =IFERROR(VLOOKUP(C118,#REF!,9,FALSE),"") ->  | B118: =C118&COUNTIF($C$2:C118,C118) -> FCF26131 | C118: FCF2613 | F118: 1 | G118: 4295.7 | H118: 2023-05-14 | I118: 82 | J118: 2023-07-16 | K118: 4295.7 | L118: 0 | M118: 0 | N118: 0 | O118: 0 | P118: 0 | Q118: 4295.7 | AW118: 4295.7 | AX118: FCF2613-14-05-2023
A119: =IFERROR(VLOOKUP(C119,#REF!,9,FALSE),"") ->  | B119: =C119&COUNTIF($C$2:C119,C119) -> FCP22801 | C119: FCP2280 | F119: 1 | G119: 17278.85 | H119: 2023-05-14 | I119: 82 | J119: 2023-07-18 | K119: 0 | L119: 0 | M119: 17278.85 | N119: 0 | O119: 0 | P119: 0 | Q119: 17278.85 | AW119: 17278.85 | AX119: FCP2280-14-05-2023
A120: =IFERROR(VLOOKUP(C120,#REF!,9,FALSE),"") ->  | B120: =C120&COUNTIF($C$2:C120,C120) -> FCC01301 | C120: FCC0130 | E120: advance | F120: 23 | G120: 437427.75 | H120: 2023-05-14 | I120: 82 | J120: 2023-06-20 | K120: 434374.27 | L120: 3053.48 | M120: 0 | N120: 0 | O120: 0 | P120: 0 | Q120: 437427.75 | AW120: 434374.27 | AX120: FCC0130-14-05-2023
A121: =IFERROR(VLOOKUP(C121,#REF!,9,FALSE),"") ->  | B121: =C121&COUNTIF($C$2:C121,C121) -> FCC31201 | C121: FCC3120 | F121: 54 | G121: 0 | H121: 2023-05-14 | I121: 82 | P121: 0 | Q121: 0 | AW121: 0 | AX121: FCC3120-14-05-2023
A122: =IFERROR(VLOOKUP(C122,#REF!,9,FALSE),"") ->  | B122: =C122&COUNTIF($C$2:C122,C122) -> FCJ31721 | C122: FCJ3172 | F122: 1 | G122: 8420 | H122: 2023-05-14 | I122: 82 | J122: 2023-06-14 | K122: 8420 | L122: 0 | M122: 0 | N122: 0 | O122: 0 | P122: 0 | Q122: 8420 | AW122: 8420 | AX122: FCJ3172-14-05-2023
A123: =IFERROR(VLOOKUP(C123,#REF!,9,FALSE),"") ->  | B123: =C123&COUNTIF($C$2:C123,C123) -> FCC18201 | C123: FCC1820 | F123: 1 | G123: 4800 | H123: 2023-05-14 | I123: 82 | J123: 2023-06-14 | K123: 4800 | L123: 0 | M123: 0 | N123: 0 | O123: 0 | P123: 0 | Q123: 4800 | AW123: 4800 | AX123: FCC1820-14-05-2023
A124: =IFERROR(VLOOKUP(C124,#REF!,9,FALSE),"") ->  | B124: =C124&COUNTIF($C$2:C124,C124) -> FCN31441 | C124: FCN3144 | F124: 10 | G124: 163052 | H124: 2023-05-14 | I124: 82 | J124: 2023-06-21 | K124: 152711.34 | L124: 545.5 | M124: 9795.16 | N124: 0 | O124: 0 | P124: 1.818989404e-12 | Q124: 163052 | AW124: 162506.5 | AX124: FCN3144-14-05-2023
A125: =IFERROR(VLOOKUP(C125,#REF!,9,FALSE),"") ->  | B125: =C125&COUNTIF($C$2:C125,C125) -> FCC91761 | C125: FCC9176 | E125: advance | F125: 57 | G125: 817373.05 | H125: 2023-05-14 | I125: 82 | J125: 2023-06-12 | K125: 787513.84 | L125: 22494.64 | M125: 7364.57 | N125: 0 | O125: Discount diff in 530 no dis applied | P125: 0 | Q125: 817373.05 | AW125: 794878.41 | AX125: FCC9176-14-05-2023
A126: =IFERROR(VLOOKUP(C126,#REF!,9,FALSE),"") ->  | B126: =C126&COUNTIF($C$2:C126,C126) -> Fck24101 | C126: Fck2410 | F126: 7 | G126: 22022.76 | H126: 2023-05-14 | I126: 82 | J126: 2023-06-21 | K126: 21925.34 | L126: 97.42 | M126: 0 | N126: 0 | O126: 0 | P126: 0 | Q126: 22022.76 | AW126: 21925.34 | AX126: Fck2410-14-05-2023
A127: =IFERROR(VLOOKUP(C127,#REF!,9,FALSE),"") ->  | B127: =C127&COUNTIF($C$2:C127,C127) -> FCS29241 | C127: FCS2924 | F127: 1 | G127: 10134 | H127: 2023-05-14 | I127: =+TODAY()-H127 -> 82 | J127: 2023-07-11 | K127: 6453.5 | L127: 3680.5 | M127: 0 | N127: 0 | O127: 0 | P127: 0 | Q127: =+G127-R127-T127-V127-X127-Z127-AB127-AD127-AF127-AH127-AJ127-AL127-AN127-AP127-AT127-AV127 -> 10134 | AW127: 6453.5 | AX127: FCS2924-14-05-2023
A128: =IFERROR(VLOOKUP(C128,#REF!,9,FALSE),"") ->  | B128: =C128&COUNTIF($C$2:C128,C128) -> FCC91521 | C128: FCC9152 | E128: VD | F128: 5 | G128: 110190 | H128: 2023-05-15 | I128: 81 | J128: 2023-07-05 | K128: 110190 | L128: 0 | M128: 0 | N128: 0 | O128: 0 | P128: =+G128-K128-L128-M128-N128 -> 0 | Q128: 110190 | AW128: 110190 | AX128: FCC9152-15-05-2023
A129: =IFERROR(VLOOKUP(C129,#REF!,9,FALSE),"") ->  | B129: =C129&COUNTIF($C$2:C129,C129) -> FCB35401 | C129: FCB3540 | F129: 3 | G129: 19047 | H129: 2023-05-15 | I129: 81 | J129: 2023-07-06 | K129: 15540 | L129: 0 | M129: 0 | N129: 3507 | O129: 0 | P129: 0 | Q129: 19047 | AW129: 19047 | AX129: FCB3540-15-05-2023
A130: =IFERROR(VLOOKUP(C130,#REF!,9,FALSE),"") ->  | B130: =C130&COUNTIF($C$2:C130,C130) -> FCN21701 | C130: FCN2170 | F130: 3 | G130: 5795 | H130: 2023-05-15 | I130: 81 | J130: 2023-07-06 | K130: 5795 | L130: 0 | M130: 0 | N130: 0 | O130: 0 | P130: 0 | Q130: 5795 | AW130: 5795 | AX130: FCN2170-15-05-2023
A131: =IFERROR(VLOOKUP(C131,#REF!,9,FALSE),"") ->  | B131: =C131&COUNTIF($C$2:C131,C131) -> FCC06001 | C131: FCC0600 | F131: 22 | G131: 300476 | H131: 2023-05-15 | I131: =+TODAY()-H131 -> 81 | J131: 2023-06-08 | K131: 293476 | L131: 0 | M131: 0 | N131: 7000 | O131: 0 | P131: 0 | Q131: 300476 | AW131: =G131-(L131++R131+T131+V131+X131+Z131+AB131+AD131+AF131+AH131+AJ131+AL131+AN131+AP131+AR131) -> 300476 | AX131: =CONCATENATE(C131,"-",TEXT(H131,"DD-MM-YYYY")) -> FCC0600-15-05-2023
A132: =IFERROR(VLOOKUP(C132,#REF!,9,FALSE),"") ->  | B132: =C132&COUNTIF($C$2:C132,C132) -> FCC91711 | C132: FCC9171 | F132: 12 | G132: 497857.6 | H132: 2023-05-15 | I132: 81 | J132: 2023-06-19 | K132: 491447.19 | L132: 6410.41 | M132: 0 | N132: 0 | O132: updated | P132: =+G132-K132-L132-M132-N132 -> 0 | Q132: 497857.6 | AW132: 491447.19 | AX132: FCC9171-15-05-2023
A133: =IFERROR(VLOOKUP(C133,#REF!,9,FALSE),"") ->  | B133: =C133&COUNTIF($C$2:C133,C133) -> FCC04501 | C133: FCC0450 | F133: 4 | G133: 9872.28 | H133: 2023-05-15 | I133: 81 | J133: 2023-07-17 | K133: 9141.5 | L133: 731.13 | M133: 0 | N133: 0 | O133: 0 | P133: 0 | Q133: 9872.28 | AW133: 9141.15 | AX133: FCC0450-15-05-2023
A134: =IFERROR(VLOOKUP(C134,#REF!,9,FALSE),"") ->  | B134: =C134&COUNTIF($C$2:C134,C134) -> FCT22301 | C134: FCT2230 | F134: 4 | G134: 83227.67 | H134: 2023-05-15 | I134: 81 | J134: 2023-07-17 | K134: 38737.65 | L134: 86.25 | M134: 1608.89 | N134: 42794.88 | O134: discount diff in room charge 10% | P134: 0 | Q134: 83227.67 | AW134: 83141.42 | AX134: FCT2230-15-05-2023
A135: =IFERROR(VLOOKUP(C135,#REF!,9,FALSE),"") ->  | B135: =C135&COUNTIF($C$2:C135,C135) -> FCC02801 | C135: FCC0280 | E135: advance | F135: 41 | G135: 1559090.5 | H135: 2023-05-15 | I135: 81 | J135: 2023-06-21 | K135: 951946.02 | L135: 1667.45 | M135: 55181.53 | N135: 550295.5 | O135: 0 | P135: =+G135-K135-L135-M135-N135 -> 0 | Q135: 1559090.5 | AW135: 1557423.05 | AX135: FCC0280-15-05-2023
A136: =IFERROR(VLOOKUP(C136,#REF!,9,FALSE),"") ->  | B136: =C136&COUNTIF($C$2:C136,C136) -> FCC91662 | C136: FCC9166 | F136: 1 | G136: 10400 | H136: 2023-05-15 | I136: 81 | J136: 2023-07-17 | K136: 10400 | L136: 0 | M136: 0 | N136: 0 | O136: 0 | P136: 0 | Q136: 10400 | AW136: 10400 | AX136: FCC9166-15-05-2023
A137: =IFERROR(VLOOKUP(C137,#REF!,9,FALSE),"") ->  | B137: =C137&COUNTIF($C$2:C137,C137) -> FCF06901 | C137: FCF0690 | F137: 23 | G137: 113042 | H137: 2023-05-15 | I137: 81 | J137: 2023-06-12 | K137: 106310.51 | L137: 6731.49 | M137: 0 | N137: 0 | O137: price differnce | P137: =+G137-K137-L137-M137-N137 -> 0 | Q137: =+G137-R137-T137-V137-X137-Z137-AB137-AD137-AF137-AH137-AJ137-AL137-AN137-AP137-AT137-AV137 -> 113042 | AW137: 106310.51 | AX137: FCF0690-15-05-2023
A138: =IFERROR(VLOOKUP(C138,#REF!,9,FALSE),"") ->  | B138: =C138&COUNTIF($C$2:C138,C138) -> FCC33001 | C138: FCC3300 | E138: advance | F138: 142 | G138: 4489821.71 | H138: 2023-05-15 | I138: 81 | J138: 2023-06-19 | K138: 4217101.18 | L138: 165831.12 | M138: 106889.8 | N138: 0 | O138: 0 | P138: 0 | Q138: 4489821.71 | AW138: 4323990.59 | AX138: FCC3300-15-05-2023
A139: =IFERROR(VLOOKUP(C139,#REF!,9,FALSE),"") ->  | B139: =C139&COUNTIF($C$2:C140,C139) -> FCC33002 | C139: FCC3300 | E139: advance | F139: 1 | G139: 17969.91 | H139: 2023-05-15 | I139: =+TODAY()-H139 -> 81 | J139: 2023-05-21 | K139: 17970 | L139: 0 | M139: 0 | N139: 0 | O139: 0 | P139: 0 | Q139: =+G139-R139-T139-V139-X139-Z139-AB139-AD139-AF139-AH139-AJ139-AL139-AN139-AP139-AT139-AV139 -> 17969.91 | AW139: 17969.91 | AX139: FCC3300-15-05-2023
A140: =IFERROR(VLOOKUP(C140,#REF!,9,FALSE),"") ->  | B140: =C140&COUNTIF($C$2:C140,C140) -> FCC91501 | C140: FCC9150 | F140: 3 | G140: 35939.52 | H140: 2023-05-15 | I140: 81 | J140: 2023-07-31 | K140: 33810.27 | L140: 2129.25 | M140: 0 | N140: 0 | O140: Classification Difference in claim 3 | P140: 0 | Q140: 35939.52 | AW140: 33810.27 | AX140: FCC9150-15-05-2023
A141: =IFERROR(VLOOKUP(C141,#REF!,9,FALSE),"") ->  | B141: =C141&COUNTIF($C$2:C141,C141) -> FCC91822 | C141: FCC9182 | F141: 7 | G141: 60350 | H141: 2023-05-15 | I141: 81 | J141: 2023-05-22 | K141: 60349.8 | L141: 0.2 | M141: 0 | N141: 0 | O141: 0 | P141: 0 | Q141: 60350 | AW141: 60349.8 | AX141: FCC9182-15-05-2023
A142: =IFERROR(VLOOKUP(C142,#REF!,9,FALSE),"") ->  | B142: =C142&COUNTIF($C$2:C142,C142) -> FCV11721 | C142: FCV1172 | F142: 4 | G142: 16179.45 | H142: 2023-05-16 | I142: 80 | J142: 2023-06-18 | K142: 16179.45 | L142: 0 | M142: 0 | N142: 0 | O142: 0 | P142: 0 | Q142: 16179.45 | AW142: 16179.45 | AX142: FCV1172-16-05-2023
A143: =IFERROR(VLOOKUP(C143,#REF!,9,FALSE),"") ->  | B143: =C143&COUNTIF($C$2:C143,C143) -> FCS29201 | C143: FCS2920 | F143: 2 | G143: 3429 | H143: 2023-05-16 | I143: 80 | J143: 2023-06-18 | K143: 3219 | L143: 210 | M143: 0 | N143: 0 | O143: 0 | P143: 0 | Q143: 3429 | AW143: 3219 | AX143: FCS2920-16-05-2023
A144: =IFERROR(VLOOKUP(C144,#REF!,9,FALSE),"") ->  | B144: =C144&COUNTIF($C$2:C144,C144) -> FCS29781 | C144: FCS2978 | F144: 8 | G144: 22443 | H144: 2023-05-16 | I144: 80 | J144: 2023-07-19 | K144: 13448 | L144: 700 | M144: 0 | N144: 8295 | O144: 0 | P144: 0 | Q144: 22443 | AW144: 21743 | AX144: FCS2978-16-05-2023
A145: =IFERROR(VLOOKUP(C145,#REF!,9,FALSE),"") ->  | B145: =C145&COUNTIF($C$2:C145,C145) -> FCC91311 | C145: FCC9131 | F145: 5 | G145: 41307 | H145: 2023-05-16 | I145: 80 | J145: 2023-07-16 | K145: 41307 | L145: 0 | M145: 0 | N145: 0 | O145: 0 | P145: 0 | Q145: 41307 | AW145: 41307 | AX145: FCC9131-16-05-2023
A146: =IFERROR(VLOOKUP(C146,#REF!,9,FALSE),"") ->  | B146: =C146&COUNTIF($C$2:C146,C146) -> FCS29231 | C146: FCS2923 | F146: 2 | G146: 20265 | H146: 2023-05-16 | I146: 80 | J146: 2023-07-11 | K146: 18951.4 | L146: 1313.6 | M146: 0 | N146: 0 | O146: 0 | P146: 0 | Q146: 20265 | AW146: 18951.4 | AX146: FCS2923-16-05-2023
A147: =IFERROR(VLOOKUP(C147,#REF!,9,FALSE),"") ->  | B147: =C147&COUNTIF($C$2:C147,C147) -> FCX12601 | C147: FCX1260 | F147: 8 | G147: 11838 | H147: 2023-05-16 | I147: 80 | J147: 2023-06-12 | K147: 11837.9 | L147: 0.1 | M147: 0 | N147: 0 | O147: 0 | P147: 0 | Q147: 11838 | AW147: 11837.9 | AX147: FCX1260-16-05-2023
A148: =IFERROR(VLOOKUP(C148,#REF!,9,FALSE),"") ->  | B148: =C148&COUNTIF($C$2:C148,C148) -> FCU19901 | C148: FCU1990 | F148: 2 | G148: 5478.25 | H148: 2023-05-16 | I148: 80 | J148: 2023-06-18 | K148: 5478.25 | L148: 0 | M148: 0 | N148: 0 | O148: 0 | P148: 0 | Q148: 5478.25 | AW148: 5478.25 | AX148: FCU1990-16-05-2023
A149: =IFERROR(VLOOKUP(C149,#REF!,9,FALSE),"") ->  | B149: =C149&COUNTIF($C$2:C149,C149) -> fcc27501 | C149: fcc2750 | F149: 6 | G149: 122324 | H149: 2023-05-16 | I149: 80 | J149: 2023-07-11 | K149: 119317.03 | L149: 3006.97 | M149: 0 | N149: 0 | O149: 0 | P149: 0 | Q149: 122324 | AW149: 119317.03 | AX149: fcc2750-16-05-2023
A150: =IFERROR(VLOOKUP(C150,#REF!,9,FALSE),"") ->  | B150: =C150&COUNTIF($C$2:C150,C150) -> FCS29181 | C150: FCS2918 | F150: 1 | G150: 18209 | H150: 2023-05-16 | I150: 80 | J150: 2023-06-20 | K150: 17974.25 | L150: 234.75 | M150: 0 | N150: 0 | O150: 0 | P150: 0 | Q150: 18209 | AW150: 17974.25 | AX150: FCS2918-16-05-2023
A151: =IFERROR(VLOOKUP(C151,#REF!,9,FALSE),"") ->  | B151: =C151&COUNTIF($C$2:C151,C151) -> FCC16601 | C151: FCC1660 | E151: advance | F151: 36 | G151: 434844.44 | H151: 2023-05-16 | I151: 80 | J151: 2023-07-19 | K151: 429569.87 | L151: 5274.57 | M151: 0 | N151: 0 | O151: Price diff (S.F) | P151: 0 | Q151: 434844.44 | AW151: 429569.87 | AX151: FCC1660-16-05-2023
A152: =IFERROR(VLOOKUP(C152,#REF!,9,FALSE),"") ->  | B152: =C152&COUNTIF($C$2:C152,C152) -> FCM27621 | C152: FCM2762 | F152: 1 | G152: 10789 | H152: 2023-05-16 | I152: 80 | J152: 2023-06-20 | K152: 10789 | L152: 1999.03 | M152: 0 | N152: 0 | O152: 0 | P152: -1999.03 | Q152: 10789 | AW152: 8789.97 | AX152: FCM2762-16-05-2023
A153: =IFERROR(VLOOKUP(C153,#REF!,9,FALSE),"") ->  | B153: =C153&COUNTIF($C$2:C153,C153) -> FCC91471 | C153: FCC9147 | F153: 2 | G153: 5660 | H153: 2023-05-17 | I153: 79 | J153: 2023-07-12 | K153: 5660 | L153: 0 | M153: 0 | N153: 0 | O153: 0 | P153: 0 | Q153: 5660 | AW153: 5660 | AX153: FCC9147-17-05-2023
A154: =IFERROR(VLOOKUP(C154,#REF!,9,FALSE),"") ->  | B154: =C154&COUNTIF($C$2:C154,C154) -> FCC01901 | C154: FCC0190 | F154: 5 | G154: 14140 | H154: 2023-05-17 | I154: 79 | J154: 2023-06-20 | K154: 14140 | L154: 0 | M154: 0 | N154: 0 | O154: 0 | P154: 0 | Q154: 14140 | AW154: 14140 | AX154: FCC0190-17-05-2023
A155: =IFERROR(VLOOKUP(C155,#REF!,9,FALSE),"") ->  | B155: =C155&COUNTIF($C$2:C155,C155) -> FCS10501 | C155: FCS1050 | F155: 7 | G155: 27126.8 | H155: 2023-05-17 | I155: 79 | J155: 2023-06-14 | K155: 26945.5 | L155: 181.3 | M155: 0 | N155: 0 | O155: updated amount as per statement | P155: 0 | Q155: 27126.8 | AW155: 26945.5 | AX155: FCS1050-17-05-2023
A156: =IFERROR(VLOOKUP(C156,#REF!,9,FALSE),"") ->  | B156: =C156&COUNTIF($C$2:C156,C156) -> FCC90901 | C156: FCC9090 | F156: 14 | G156: 757328.87 | H156: 2023-05-17 | I156: 79 | J156: 2023-06-19 | K156: 591948.32 | L156: 54.05 | M156: 104818.93 | N156: 60507.57 | O156: 0 | P156: 6.548361853e-11 | Q156: 757328.87 | AW156: 757274.82 | AX156: FCC9090-17-05-2023
A157: =IFERROR(VLOOKUP(C157,#REF!,9,FALSE),"") ->  | B157: =C157&COUNTIF($C$2:C157,C157) -> FCC28701 | C157: FCC2870 | F157: 2 | G157: 59721 | H157: 2023-05-17 | I157: 79 | J157: 2023-07-10 | K157: 56027.36 | L157: 3693.64 | M157: 0 | N157: 0 | O157: 0 | P157: 0 | Q157: 59721 | AW157: 56027.36 | AX157: FCC2870-17-05-2023
A158: =IFERROR(VLOOKUP(C158,#REF!,9,FALSE),"") ->  | B158: =C158&COUNTIF($C$2:C158,C158) -> FCH17903 | C158: FCH1790 | E158: advance | F158: 5 | G158: 98173 | H158: 2023-05-17 | I158: 79 | J158: 2023-06-20 | K158: 97623.6 | L158: 549.4 | M158: 0 | N158: 0 | O158: old&new rr | P158: 0 | Q158: 98173 | AW158: 97623.6 | AX158: FCH1790-17-05-2023
A159: =IFERROR(VLOOKUP(C159,#REF!,9,FALSE),"") ->  | B159: =C159&COUNTIF($C$2:C159,C159) -> FCC33801 | C159: FCC3380 | F159: 7 | G159: 45417 | H159: 2023-05-17 | I159: 79 | J159: 2023-06-20 | K159: 45416.7 | L159: 0.3 | M159: 0 | N159: 0 | O159: 0 | P159: 0 | Q159: 45417 | AW159: 45416.7 | AX159: FCC3380-17-05-2023
A160: =IFERROR(VLOOKUP(C160,#REF!,9,FALSE),"") ->  | B160: =C160&COUNTIF($C$2:C160,C160) -> fcc91951 | C160: fcc9195 | F160: 11 | G160: 56540.05 | H160: 2023-05-17 | I160: 79 | J160: 2023-06-12 | K160: 56540.04 | L160: 0.01 | M160: 0 | N160: 0 | O160: 0 | P160: 0 | Q160: 56540.05 | AW160: 56540.04 | AX160: fcc9195-17-05-2023
A161: =IFERROR(VLOOKUP(C161,#REF!,9,FALSE),"") ->  | B161: =C161&COUNTIF($C$2:C161,C161) -> FCC21101 | C161: FCC2110 | F161: 4 | G161: 3528 | H161: 2023-05-17 | I161: 79 | J161: 2023-06-21 | K161: 3528 | L161: 0 | M161: 0 | N161: 0 | O161: 0 | P161: 0 | Q161: 3528 | AW161: 3528 | AX161: FCC2110-17-05-2023
A162: =IFERROR(VLOOKUP(C162,#REF!,9,FALSE),"") ->  | B162: =C162&COUNTIF($C$2:C162,C162) -> FCC16501 | C162: FCC1650 | E162: advance | F162: 2 | G162: 23961.1 | H162: 2023-05-17 | I162: 79 | J162: 2023-06-20 | K162: 20920.6 | L162: 3040.2864 | M162: 0 | N162: 0 | O162: 0 | P162: 0 | Q162: 23961.1 | AW162: 20920.8136 | AX162: FCC1650-17-05-2023
A163: =IFERROR(VLOOKUP(C163,#REF!,9,FALSE),"") ->  | B163: =C163&COUNTIF($C$2:C163,C163) -> FCE01011 | C163: FCE0101 | F163: 2 | G163: 7744.16 | H163: 2023-05-17 | I163: 79 | J163: 2023-06-21 | K163: 7254.15 | L163: 490.01 | M163: 0 | N163: 0 | O163: 0 | P163: 0 | Q163: 7744.16 | AW163: 7254.15 | AX163: FCE0101-17-05-2023
A164: =IFERROR(VLOOKUP(C164,#REF!,9,FALSE),"") ->  | B164: =C164&COUNTIF($C$2:C164,C164) -> FCF26171 | C164: FCF2617 | F164: 2 | G164: 7761.24 | H164: 2023-05-17 | I164: 79 | J164: 2023-06-14 | K164: 7761.24 | L164: 0 | M164: 0 | N164: 0 | O164: 0 | P164: 0 | Q164: 7761.24 | AW164: 7761.24 | AX164: FCF2617-17-05-2023
A165: =IFERROR(VLOOKUP(C165,#REF!,9,FALSE),"") ->  | B165: =C165&COUNTIF($C$2:C165,C165) -> FCC28401 | C165: FCC2840 | E165: advance | F165: 31 | G165: 124593.7 | H165: 2023-05-17 | I165: 79 | J165: 2023-06-08 | K165: 118177.7 | L165: 6416 | M165: 0 | N165: 0 | O165: 0 | P165: 0 | Q165: 124593.7 | AW165: 118177.7 | AX165: FCC2840-17-05-2023
A166: =IFERROR(VLOOKUP(C166,#REF!,9,FALSE),"") ->  | B166: =C166&COUNTIF($C$2:C166,C166) -> FCC14901 | C166: FCC1490 | F166: 1 | G166: 35028 | H166: 2023-05-17 | I166: 79 | J166: 2023-07-17 | K166: 35028 | L166: 0 | M166: 0 | N166: 0 | O166: 0 | P166: 0 | Q166: 35028 | AW166: 35028 | AX166: FCC1490-17-05-2023
A167: =IFERROR(VLOOKUP(C167,#REF!,9,FALSE),"") ->  | B167: =C167&COUNTIF($C$2:C167,C167) -> FCC32001 | C167: FCC3200 | E167: advance | F167: 14 | G167: 310275.79 | H167: 2023-05-18 | I167: 78 | J167: 2023-07-25 | K167: 298331.84 | L167: 11943.95 | M167: 0 | N167: 0 | O167: 0 | P167: 0 | Q167: 310275.79 | AW167: 298331.84 | AX167: FCC3200-18-05-2023
A168: =IFERROR(VLOOKUP(C168,#REF!,9,FALSE),"") ->  | B168: =C168&COUNTIF($C$2:C168,C168) -> FCH30301 | C168: FCH3030 | F168: 1 | G168: 7252.83 | H168: 2023-05-18 | I168: 78 | J168: 2023-07-12 | K168: 7252.83 | L168: -0.02 | M168: 0 | N168: 0 | O168: 0 | P168: 0 | Q168: 7252.83 | AW168: 7252.85 | AX168: FCH3030-18-05-2023
A169: =IFERROR(VLOOKUP(C169,#REF!,9,FALSE),"") ->  | B169: =C169&COUNTIF($C$2:C169,C169) -> FCU19921 | C169: FCU1992 | F169: 3 | G169: 14902.02 | H169: 2023-05-18 | I169: 78 | J169: 2023-06-21 | K169: 14582.02 | L169: 320 | M169: 0 | N169: 0 | O169: 0 | P169: 0 | Q169: 14902.02 | AW169: 14582.02 | AX169: FCU1992-18-05-2023
A170: =IFERROR(VLOOKUP(C170,#REF!,9,FALSE),"") ->  | B170: =C170&COUNTIF($C$2:C170,C170) -> FCX27991 | C170: FCX2799 | F170: 12 | G170: 226681.99 | H170: 2023-05-18 | I170: 78 | J170: 2023-07-19 | K170: 82076.54 | L170: 4979.41 | M170: 139626.04 | N170: 0 | O170: NEW | P170: 0 | Q170: 226681.99 | AW170: 221702.58 | AX170: FCX2799-18-05-2023
A171: =IFERROR(VLOOKUP(C171,#REF!,9,FALSE),"") ->  | B171: =C171&COUNTIF($C$2:C171,C171) -> FCF23301 | C171: FCF2330 | F171: 4 | G171: 12460.9 | H171: 2023-05-18 | I171: 78 | J171: 2023-07-10 | K171: 8444.16 | L171: 595.04 | M171: 3421.7 | N171: 0 | O171: 0 | P171: 0 | Q171: 12460.9 | AW171: 11865.86 | AX171: FCF2330-18-05-2023
A172: =IFERROR(VLOOKUP(C172,#REF!,9,FALSE),"") ->  | B172: =C172&COUNTIF($C$2:C172,C172) -> FCX32201 | C172: FCX3220 | F172: 5 | G172: 76373.19 | H172: 2023-05-18 | I172: 78 | J172: 2023-07-10 | K172: 76007.29 | L172: 365.9 | M172: 0 | N172: 0 | O172: 0 | P172: 0 | Q172: 76373.19 | AW172: 76007.29 | AX172: FCX3220-18-05-2023
A173: =IFERROR(VLOOKUP(C173,#REF!,9,FALSE),"") ->  | B173: =C173&COUNTIF($C$2:C173,C173) -> FCP31601 | C173: FCP3160 | F173: 1 | G173: 8460 | H173: 2023-05-18 | I173: 78 | J173: 2023-07-12 | K173: 8460 | L173: 0 | M173: 0 | N173: 0 | O173: 0 | P173: 0 | Q173: 8460 | AW173: 8460 | AX173: FCP3160-18-05-2023
A174: =IFERROR(VLOOKUP(C174,#REF!,9,FALSE),"") ->  | B174: =C174&COUNTIF($C$2:C174,C174) -> FCC00601 | C174: FCC0060 | E174: advance | F174: 5 | G174: 64224.72 | H174: 2023-05-18 | I174: 78 | J174: 2023-07-10 | K174: 64074.7 | L174: 149.95328 | M174: 0 | N174: 0 | O174: 0 | P174: 0 | Q174: 64224.72 | AW174: 64074.76672 | AX174: FCC0060-18-05-2023
A175: =IFERROR(VLOOKUP(C175,#REF!,9,FALSE),"") ->  | B175: =C175&COUNTIF($C$2:C175,C175) -> FCC91671 | C175: FCC9167 | E175: advance | F175: 52 | G175: 1028115.89 | H175: 2023-05-18 | I175: 78 | J175: 2023-07-17 | K175: 866484.83 | L175: 20472.96 | M175: 141158.1 | N175: 0 | O175: Discount diff , price diff , classifiaction diff | P175: 0 | Q175: 1028115.89 | AW175: 1007642.93 | AX175: FCC9167-18-05-2023
A176: =IFERROR(VLOOKUP(C176,#REF!,9,FALSE),"") ->  | B176: =C176&COUNTIF($C$2:C176,C176) -> FCC00902 | C176: FCC0090 | E176: advance | F176: 114 | G176: 4230771.1 | H176: 2023-05-18 | I176: 78 | J176: 2023-06-19 | K176: 4108613.53 | L176: 1031.43 | M176: 121126.14 | N176: 0 | O176: Price difference (S.F) | P176: 0 | Q176: 4230771.1 | AW176: 4229739.67 | AX176: FCC0090-18-05-2023
A177: =IFERROR(VLOOKUP(C177,#REF!,9,FALSE),"") ->  | B177: =C177&COUNTIF($C$2:C177,C177) -> FCC26201 | C177: FCC2620 | E177: advance | F177: 39 | G177: 405949.95 | H177: 2023-05-18 | I177: 78 | J177: 2023-06-11 | K177: 401878.7 | L177: 3851.1 | M177: 220.15 | N177: 0 | O177: exceeding approvals limits | P177: 8.526512829e-14 | Q177: 405949.95 | AW177: 402098.85 | AX177: FCC2620-18-05-2023
A178: =IFERROR(VLOOKUP(C178,#REF!,9,FALSE),"") ->  | B178: =C178&COUNTIF($C$2:C178,C178) -> FCC17401 | C178: FCC1740 | F178: 9 | G178: 61486 | H178: 2023-05-18 | I178: 78 | J178: 2023-06-14 | K178: 61483.63 | L178: 2.37 | M178: 0 | N178: 0 | O178: 0 | P178: 0 | Q178: 61486 | AW178: 61483.63 | AX178: FCC1740-18-05-2023
A179: =IFERROR(VLOOKUP(C179,#REF!,9,FALSE),"") ->  | B179: =C179&COUNTIF($C$2:C179,C179) -> FCS29171 | C179: FCS2917 | F179: 19 | G179: 71883 | H179: 2023-05-18 | I179: 78 | J179: 2023-06-11 | K179: 71879.9 | L179: 3.1 | M179: 0 | N179: 0 | O179: 0 | P179: 0 | Q179: 71883 | AW179: 71879.9 | AX179: FCS2917-18-05-2023
A180: =IFERROR(VLOOKUP(C180,#REF!,9,FALSE),"") ->  | B180: =C180&COUNTIF($C$2:C180,C180) -> FCC91971 | C180: FCC9197 | F180: 1 | G180: 6674.95 | H180: 2023-05-18 | I180: 78 | J180: 2023-07-12 | K180: 6448.59 | L180: 226.36 | M180: 0 | N180: 0 | O180: 0 | P180: 0 | Q180: 6674.95 | AW180: 6448.59 | AX180: FCC9197-18-05-2023
A181: =IFERROR(VLOOKUP(C181,#REF!,9,FALSE),"") ->  | B181: =C181&COUNTIF($C$2:C181,C181) -> FCC25801 | C181: FCC2580 | F181: 1 | G181: 416 | H181: 2023-05-21 | I181: 75 | J181: 2023-07-10 | K181: 416 | L181: 0 | M181: 0 | N181: 0 | O181: 0 | P181: 0 | Q181: 416 | AW181: 416 | AX181: FCC2580-21-05-2023
A182: =IFERROR(VLOOKUP(C182,#REF!,9,FALSE),"") ->  | B182: =C182&COUNTIF($C$2:C182,C182) -> FCH07101 | C182: FCH0710 | F182: 2 | G182: 2162.68 | H182: 2023-05-21 | I182: 75 | J182: 2023-07-10 | K182: 2162.67 | L182: 0.01 | M182: 0 | N182: 0 | O182: 0 | P182: 0 | Q182: 2162.68 | AW182: 2162.67 | AX182: FCH0710-21-05-2023
A183: =IFERROR(VLOOKUP(C183,#REF!,9,FALSE),"") ->  | B183: =C183&COUNTIF($C$2:C183,C183) -> FCV11701 | C183: FCV1170 | F183: 5 | G183: 23288.87 | H183: 2023-05-21 | I183: 75 | J183: 2023-06-08 | K183: 20559.05 | L183: 2729.82 | M183: 0 | N183: 0 | O183: price-classification differnce-second class | P183: 0 | Q183: 23288.87 | AW183: 20559.05 | AX183: FCV1170-21-05-2023
A184: =IFERROR(VLOOKUP(C184,#REF!,9,FALSE),"") ->  | B184: =C184&COUNTIF($C$2:C184,C184) -> FCS29271 | C184: FCS2927 | F184: 10 | G184: 95426.12 | H184: 2023-05-21 | I184: 75 | J184: 2023-07-30 | K184: 95426.11 | L184: 0.009999999995 | M184: 0 | N184: 0 | O184: 0 | P184: 0 | Q184: 95426.12 | AW184: 95426.11 | AX184: FCS2927-21-05-2023
A185: =IFERROR(VLOOKUP(C185,#REF!,9,FALSE),"") ->  | B185: =C185&COUNTIF($C$2:C185,C185) -> FCV11711 | C185: FCV1171 | F185: 2 | G185: 7498.4 | H185: 2023-05-21 | I185: 75 | P185: 7498.4 | Q185: 7498.4 | AW185: 7498.4 | AX185: FCV1171-21-05-2023
A186: =IFERROR(VLOOKUP(C186,#REF!,9,FALSE),"") ->  | B186: =C186&COUNTIF($C$2:C186,C186) -> FCS29141 | C186: FCS2914 | F186: 6 | G186: 36433.79 | H186: 2023-05-21 | I186: 75 | J186: 2023-06-20 | K186: 34958.79 | L186: 1475 | M186: 0 | N186: 0 | O186: 0 | P186: 0 | Q186: 36433.79 | AW186: 34958.79 | AX186: FCS2914-21-05-2023
A187: =IFERROR(VLOOKUP(C187,#REF!,9,FALSE),"") ->  | B187: =C187&COUNTIF($C$2:C187,C187) -> FCC91811 | C187: FCC9181 | F187: 3 | G187: 91940.5 | H187: 2023-05-21 | I187: 75 | J187: 2023-07-25 | K187: 91940.5 | L187: 0 | M187: 0 | N187: 0 | O187: 0 | P187: 0 | Q187: 91940.5 | AW187: 91940.5 | AX187: FCC9181-21-05-2023
A188: =IFERROR(VLOOKUP(C188,#REF!,9,FALSE),"") ->  | B188: =C188&COUNTIF($C$2:C188,C188) -> FCA19101 | C188: FCA1910 | F188: 2 | G188: 1911.27 | H188: 2023-05-21 | I188: 75 | J188: 2023-07-19 | K188: 1911.27 | L188: 0 | M188: 0 | N188: 0 | O188: 0 | P188: 0 | Q188: 1911.27 | AW188: 1911.27 | AX188: FCA1910-21-05-2023
A189: =IFERROR(VLOOKUP(C189,#REF!,9,FALSE),"") ->  | B189: =C189&COUNTIF($C$2:C189,C189) -> FCC29501 | C189: FCC2950 | F189: 12 | G189: 43337 | H189: 2023-05-21 | I189: 75 | J189: 2023-06-20 | K189: 43336.93 | L189: 0.07 | M189: 0 | N189: 0 | O189: 0 | P189: 0 | Q189: 43337 | AW189: 43336.93 | AX189: FCC2950-21-05-2023
A190: =IFERROR(VLOOKUP(C190,#REF!,9,FALSE),"") ->  | B190: =C190&COUNTIF($C$2:C190,C190) -> FCX18301 | C190: FCX1830 | F190: 9 | G190: 305704.14 | H190: 2023-05-21 | I190: 75 | J190: 2023-07-05 | K190: 231268.03 | L190: 0 | M190: 27458.18 | N190: 46977.93 | O190: UPDATED | P190: =+G190-K190-L190-M190-N190 -> 0 | Q190: 305704.14 | AW190: 305704.14 | AX190: FCX1830-21-05-2023
A191: =IFERROR(VLOOKUP(C191,#REF!,9,FALSE),"") ->  | B191: =C191&COUNTIF($C$2:C191,C191) -> FCC91911 | C191: FCC9191 | F191: 2 | G191: 7553.7 | H191: 2023-05-21 | I191: 75 | J191: 2023-07-25 | K191: 7553.7 | L191: 0 | M191: 0 | N191: 0 | O191: 0 | P191: 0 | Q191: 7553.7 | AW191: 7553.7 | AX191: FCC9191-21-05-2023
A192: =IFERROR(VLOOKUP(C192,#REF!,9,FALSE),"") ->  | B192: =C192&COUNTIF($C$2:C192,C192) -> FCS22601 | C192: FCS2260 | F192: 19 | G192: 91921.5 | H192: 2023-05-21 | I192: 75 | J192: 2023-06-21 | K192: 71272.2 | L192: 20649.3 | M192: 0 | N192: 0 | O192: corrected amount according to physical claims | P192: 0 | Q192: 91921.5 | AW192: 71272.2 | AX192: FCS2260-21-05-2023
A193: =IFERROR(VLOOKUP(C193,#REF!,9,FALSE),"") ->  | B193: =C193&COUNTIF($C$2:C193,C193) -> FCC91581 | C193: FCC9158 | E193: advance | F193: 36 | G193: 847207.26 | H193: 2023-05-21 | I193: 75 | J193: 2023-06-20 | K193: 761979.79 | L193: 43693.29 | M193: 41534.18 | N193: 0 | O193: NEW | P193: 0 | Q193: 847207.26 | AW193: 803513.97 | AX193: FCC9158-21-05-2023
A194: =IFERROR(VLOOKUP(C194,#REF!,9,FALSE),"") ->  | B194: =C194&COUNTIF($C$2:C194,C194) -> FCC05901 | C194: FCC0590 | E194: advance | F194: 83 | G194: 2979195.28 | H194: 2023-05-21 | I194: 75 | J194: 2023-06-19 | K194: 2742451.03 | L194: 62845.44 | M194: 173898.81 | N194: 0 | O194: NEW | P194: 0 | Q194: 2979195.28 | AW194: 2916349.84 | AX194: FCC0590-21-05-2023
A195: =IFERROR(VLOOKUP(C195,#REF!,9,FALSE),"") ->  | B195: =C195&COUNTIF($C$2:C195,C195) -> FCC91391 | C195: FCC9139 | F195: 3 | G195: 9642 | H195: 2023-05-21 | I195: =+TODAY()-H195 -> 75 | J195: 2023-07-25 | K195: 9642 | L195: 0 | M195: 0 | N195: 0 | O195: 0 | P195: 0 | Q195: 9642 | AW195: =G195-(L195++R195+T195+V195+X195+Z195+AB195+AD195+AF195+AH195+AJ195+AL195+AN195+AP195+AR195) -> 9642 | AX195: =CONCATENATE(C195,"-",TEXT(H195,"DD-MM-YYYY")) -> FCC9139-21-05-2023
A196: =IFERROR(VLOOKUP(C196,#REF!,9,FALSE),"") ->  | B196: =C196&COUNTIF($C$2:C196,C196) -> FCG30921 | C196: FCG3092 | F196: 4 | G196: 10787.4 | H196: 2023-05-22 | I196: 74 | J196: 2023-06-11 | K196: 10687.3 | L196: 100.1 | M196: 0 | N196: 0 | O196: 0 | P196: 0 | Q196: 10787.4 | AW196: 10687.3 | AX196: FCG3092-22-05-2023
A197: =IFERROR(VLOOKUP(C197,#REF!,9,FALSE),"") ->  | B197: =C197&COUNTIF($C$2:C197,C197) -> FCC33501 | C197: FCC3350 | F197: 22 | G197: 160224.5 | H197: 2023-05-22 | I197: 74 | J197: 2023-06-08 | K197: 140603.35 | L197: 50 | M197: 19571.15 | N197: 0 | O197: 0 | P197: 0 | Q197: 160224.5 | AW197: 160174.5 | AX197: FCC3350-22-05-2023
A198: =IFERROR(VLOOKUP(C198,#REF!,9,FALSE),"") ->  | B198: =C198&COUNTIF($C$2:C198,C198) -> FCC01401 | C198: FCC0140 | F198: 5 | G198: 89477.81 | H198: 2023-05-22 | I198: 74 | J198: 2023-06-11 | K198: 89477.2 | L198: 0.61 | M198: 0 | N198: 0 | O198: 0 | P198: 0 | Q198: 89477.81 | AW198: 89477.2 | AX198: FCC0140-22-05-2023
A199: =IFERROR(VLOOKUP(C199,#REF!,9,FALSE),"") ->  | B199: =C199&COUNTIF($C$2:C199,C199) -> FCD30531 | C199: FCD3053 | F199: 1 | G199: 3000 | H199: 2023-05-22 | I199: 74 | J199: 2023-06-11 | K199: 3000 | L199: 0 | M199: 0 | N199: 0 | O199: 0 | P199: 0 | Q199: 3000 | AW199: 3000 | AX199: FCD3053-22-05-2023
A200: =IFERROR(VLOOKUP(C200,#REF!,9,FALSE),"") ->  | B200: =C200&COUNTIF($C$2:C200,C200) -> FCK35501 | C200: FCK3550 | F200: 1 | G200: 10331.4 | H200: 2023-05-23 | I200: 73 | J200: 2023-07-26 | K200: 10177.4 | L200: 154 | M200: 0 | N200: 0 | O200: Discount diff in operation room and anethesia fees (no disc. Applied ) | P200: 0 | Q200: 10331.4 | AW200: 10177.4 | AX200: FCK3550-23-05-2023
... 94 more rows

Sheet Month 06-2023
A1: Status | B1: Helper | C1: Provider Code | E1: BATCH NO: | F1: Number of claims | G1: AMOUNT | H1: Date Received | I1: TAT | J1: Date posting | K1: Paid | L1: Rejected | M1: H.H | N1: Pending | O1: Comment | P1: Rev Diff | Q1: Pay Diff | R1: Taxes | S1: Checks no. | T1: Amount checks | U1: Checks no. | V1: Amount checks | W1: Checks no. | X1: Amount checks | Y1: Checks no. | Z1: Amount checks | AA1: Checks no. | AB1: Amount checks | AC1: Checks no. | AD1: Amount checks | AE1: Checks no. | AF1: Amount checks | AG1: Checks no. | AH1: Amount checks | AI1: Checks no. | AJ1: Amount checks | AK1: Checks no. | AL1: Amount checks | AM1: Checks no. | AN1: Amount checks | AO1: Checks no. | AP1: Amount checks | AQ1: Checks no. | AR1: Amount checks | AS1: Checks no. | AT1: Amount checks | AU1: Checks no. | AV1: Amount checks | AW1: TAT | AX1: =CONCATENATE(C1,"-",TEXT(H1,"DD-MM-YYYY")) -> Provider Code-Date Received
A2: =IFERROR(VLOOKUP(C2,#REF!,9,FALSE),"") ->  | B2: =C2&COUNTIF($C$2:C2,C2) -> FCC03801 | C2: FCC0380 | F2: 30 | G2: 300862 | H2: 2023-06-01 | I2: =+TODAY()-H2 -> 64 | J2: 2023-06-21 | K2: 295796.83 | L2: 1065.17 | M2: 4000 | N2: 0 | O2: 0 | P2: =+G2-K2-L2-M2-N2 -> -5.820766091e-11 | Q2: =+G2-R2-T2-V2-X2-Z2-AB2-AD2-AF2-AH2-AJ2-AL2-AN2-AP2-AT2-AV2 -> 300862 | AW2: =G2-(L2++R2+T2+V2+X2+Z2+AB2+AD2+AF2+AH2+AJ2+AL2+AN2+AP2+AR2) -> 299796.83 | AX2: =CONCATENATE(C2,"-",TEXT(H2,"DD-MM-YYYY")) -> FCC0380-01-06-2023
A3: =IFERROR(VLOOKUP(C3,#REF!,9,FALSE),"") ->  | B3: =C3&COUNTIF($C$2:C3,C3) -> FCC05801 | C3: FCC0580 | E3: advance | F3: 63 | G3: 1188652 | H3: 2023-06-01 | I3: 64 | J3: 2023-06-20 | K3: 1096373.7 | L3: 92278.26 | M3: 0 | N3: 0 | O3: 0 | P3: 0 | Q3: 1188652 | AW3: =G3-(L3++R3+T3+V3+X3+Z3+AB3+AD3+AF3+AH3+AJ3+AL3+AN3+AP3+AR3) -> 1096373.74 | AX3: =CONCATENATE(C3,"-",TEXT(H3,"DD-MM-YYYY")) -> FCC0580-01-06-2023
A4: =IFERROR(VLOOKUP(C4,#REF!,9,FALSE),"") ->  | B4: =C4&COUNTIF($C$2:C4,C4) -> FCX27981 | C4: FCX2798 | F4: 24 | G4: 262832.7 | H4: 2023-06-01 | I4: 64 | J4: 2023-07-31 | K4: 261142.11 | L4: 1690.59 | M4: 0 | N4: 0 | O4: new | P4: 0 | Q4: 262832.7 | AW4: 261142.11 | AX4: FCX2798-01-06-2023
A5: =IFERROR(VLOOKUP(C5,#REF!,9,FALSE),"") ->  | B5: =C5&COUNTIF($C$2:C5,C5) -> FCC31201 | C5: FCC3120 | F5: 54 | G5: 1054309.94 | H5: 2023-06-01 | I5: 64 | J5: 2023-06-20 | K5: 1051730.86 | L5: 112.07 | M5: 2467.01 | N5: 0 | O5: Discount Difference claims 10 and 13 | P5: 0 | Q5: 1054309.94 | AW5: 1054197.87 | AX5: FCC3120-01-06-2023
A6: =IFERROR(VLOOKUP(C6,#REF!,9,FALSE),"") ->  | B6: =C6&COUNTIF($C$2:C6,C6) -> FCJ20401 | C6: FCJ2040 | F6: 2 | G6: 11431 | H6: 2023-06-01 | I6: 64 | P6: 11431 | Q6: 11431 | AW6: 11431 | AX6: FCJ2040-01-06-2023
A7: =IFERROR(VLOOKUP(C7,#REF!,9,FALSE),"") ->  | B7: =C7&COUNTIF($C$2:C7,C7) -> FCN31001 | C7: FCN3100 | F7: 2 | G7: 6105 | H7: 2023-06-04 | I7: 61 | P7: 6105 | Q7: 6105 | AW7: 6105 | AX7: FCN3100-04-06-2023
A8: =IFERROR(VLOOKUP(C8,#REF!,9,FALSE),"") ->  | B8: =C8&COUNTIF($C$2:C8,C8) -> FCX12301 | C8: FCX1230 | F8: 1 | G8: 4731.7 | H8: 2023-06-04 | I8: 61 | P8: 4731.7 | Q8: 4731.7 | AW8: 4731.7 | AX8: FCX1230-04-06-2023
A9: =IFERROR(VLOOKUP(C9,#REF!,9,FALSE),"") ->  | B9: =C9&COUNTIF($C$2:C9,C9) -> FCB28001 | C9: FCB2800 | F9: 7 | G9: 71000 | H9: 2023-06-04 | I9: 61 | P9: 71000 | Q9: 71000 | AW9: 71000 | AX9: FCB2800-04-06-2023
A10: =IFERROR(VLOOKUP(C10,#REF!,9,FALSE),"") ->  | B10: =C10&COUNTIF($C$2:C10,C10) -> FCC15901 | C10: FCC1590 | F10: 8 | G10: 41650 | H10: 2023-06-05 | I10: 60 | J10: 2023-07-13 | K10: 38710 | L10: 7284.17 | M10: 0 | N10: 0 | O10: coinsurance | P10: -4344.17 | Q10: 41650 | AW10: 34365.83 | AX10: FCC1590-05-06-2023
A11: =IFERROR(VLOOKUP(C11,#REF!,9,FALSE),"") ->  | B11: =C11&COUNTIF($C$2:C11,C11) -> FCC91621 | C11: FCC9162 | E11: advance | F11: 20 | G11: 325527 | H11: 2023-06-05 | I11: 60 | J11: 2023-06-21 | K11: 314393.04 | L11: 4443.95 | M11: 6690 | N11: 0 | O11: NEW | P11: 0 | Q11: 325527 | AW11: 321083.05 | AX11: FCC9162-05-06-2023
A12: =IFERROR(VLOOKUP(C12,#REF!,9,FALSE),"") ->  | B12: =C12&COUNTIF($C$2:C12,C12) -> FCB31941 | C12: FCB3194 | F12: 9 | G12: 49440.06 | H12: 2023-06-05 | I12: 60 | P12: 49440.06 | Q12: 49440.06 | AW12: 49440.06 | AX12: FCB3194-05-06-2023
A13: =IFERROR(VLOOKUP(C13,#REF!,9,FALSE),"") ->  | B13: =C13&COUNTIF($C$2:C13,C13) -> FCC33101 | C13: FCC3310 | F13: 3 | G13: 17661.09 | H13: 2023-06-05 | I13: 60 | P13: 17661.09 | Q13: 17661.09 | AW13: 17661.09 | AX13: FCC3310-05-06-2023
A14: =IFERROR(VLOOKUP(C14,#REF!,9,FALSE),"") ->  | B14: =C14&COUNTIF($C$2:C14,C14) -> FCC01501 | C14: FCC0150 | E14: advance | F14: 16 | G14: 287761 | H14: 2023-06-05 | I14: 60 | J14: 2023-06-21 | K14: 286208.13 | L14: 1552.87 | M14: 0 | N14: 0 | O14: 0 | P14: 0 | Q14: 287761 | AW14: 286208.13 | AX14: FCC0150-05-06-2023
A15: =IFERROR(VLOOKUP(C15,#REF!,9,FALSE),"") ->  | B15: =C15&COUNTIF($C$2:C15,C15) -> FCC91541 | C15: FCC9154 | F15: 10 | G15: 445860.48 | H15: 2023-06-05 | I15: 60 | J15: 2023-07-19 | K15: 277580 | L15: 1.48 | M15: 44999 | N15: 123280 | O15: 0 | P15: 0 | Q15: 445860.48 | AW15: 445859 | AX15: FCC9154-05-06-2023
A16: =IFERROR(VLOOKUP(C16,#REF!,9,FALSE),"") ->  | B16: =C16&COUNTIF($C$2:C16,C16) -> FCX27951 | C16: FCX2795 | F16: 6 | G16: 16471.65 | H16: 2023-06-05 | I16: 60 | P16: 16471.65 | Q16: 16471.65 | AW16: 16471.65 | AX16: FCX2795-05-06-2023
A17: =IFERROR(VLOOKUP(C17,#REF!,9,FALSE),"") ->  | B17: =C17&COUNTIF($C$2:C17,C17) -> FCC35701 | C17: FCC3570 | E17: advance | F17: 4 | G17: 53457.46 | H17: 2023-06-05 | I17: 60 | P17: 53457.46 | Q17: 53457.46 | AW17: 53457.46 | AX17: FCC3570-05-06-2023
A18: =IFERROR(VLOOKUP(C18,#REF!,9,FALSE),"") ->  | B18: =C18&COUNTIF($C$2:C18,C18) -> FCK34201 | C18: FCK3420 | E18: advance | F18: 49 | G18: 369835.87 | H18: 2023-06-06 | I18: 59 | J18: 2023-06-19 | K18: 369367.87 | L18: 468 | M18: 0 | N18: 0 | O18: 0 | P18: 0 | Q18: 369835.87 | AW18: 369367.87 | AX18: FCK3420-06-06-2023
A19: =IFERROR(VLOOKUP(C19,#REF!,9,FALSE),"") ->  | B19: =C19&COUNTIF($C$2:C19,C19) -> FCC02001 | C19: FCC0200 | E19: advance | F19: 27 | G19: 494878.74 | H19: 2023-06-06 | I19: 59 | J19: 2023-07-12 | K19: 397810.21 | L19: 42050.21 | M19: 0 | N19: 55018.32 | O19: 0 | P19: 0 | Q19: 494878.74 | AW19: 452828.53 | AX19: FCC0200-06-06-2023
A20: =IFERROR(VLOOKUP(C20,#REF!,9,FALSE),"") ->  | B20: =C20&COUNTIF($C$2:C20,C20) -> FCS10601 | C20: FCS1060 | F20: 7 | G20: 31620.5 | H20: 2023-06-06 | I20: 59 | P20: 31620.5 | Q20: 31620.5 | AW20: 31620.5 | AX20: FCS1060-06-06-2023
A21: =IFERROR(VLOOKUP(C21,#REF!,9,FALSE),"") ->  | B21: =C21&COUNTIF($C$2:C21,C21) -> FCX27961 | C21: FCX2796 | F21: 7 | G21: 25867.9 | H21: 2023-06-06 | I21: 59 | P21: 25867.9 | Q21: 25867.9 | AW21: 25867.9 | AX21: FCX2796-06-06-2023
A22: =IFERROR(VLOOKUP(C22,#REF!,9,FALSE),"") ->  | B22: =C22&COUNTIF($C$2:C22,C22) -> FCC91611 | C22: FCC9161 | F22: 1 | G22: 14000 | H22: 2023-06-06 | I22: 59 | P22: 14000 | Q22: 14000 | AW22: 14000 | AX22: FCC9161-06-06-2023
A23: =IFERROR(VLOOKUP(C23,#REF!,9,FALSE),"") ->  | B23: =C23&COUNTIF($C$2:C23,C23) -> FCE01001 | C23: FCE0100 | F23: 8 | G23: 78110 | H23: 2023-06-06 | I23: 59 | P23: 78110 | Q23: 78110 | AW23: 78110 | AX23: FCE0100-06-06-2023
A24: =IFERROR(VLOOKUP(C24,#REF!,9,FALSE),"") ->  | B24: =C24&COUNTIF($C$2:C24,C24) -> FCC32001 | C24: FCC3200 | E24: advance | F24: 17 | G24: 391435.09 | H24: 2023-06-06 | I24: 59 | P24: 391435.09 | Q24: 391435.09 | AW24: 391435.09 | AX24: FCC3200-06-06-2023
A25: =IFERROR(VLOOKUP(C25,#REF!,9,FALSE),"") ->  | B25: =C25&COUNTIF($C$2:C25,C25) -> FCC91451 | C25: FCC9145 | F25: 1 | G25: 17156 | H25: 2023-06-06 | I25: 59 | P25: 17156 | Q25: 17156 | AW25: 17156 | AX25: FCC9145-06-06-2023
A26: =IFERROR(VLOOKUP(C26,#REF!,9,FALSE),"") ->  | B26: =C26&COUNTIF($C$2:C26,C26) -> FCP32811 | C26: FCP3281 | F26: 1 | G26: 7922.63 | H26: 2023-06-07 | I26: 58 | P26: 7922.63 | Q26: 7922.63 | AW26: 7922.63 | AX26: FCP3281-07-06-2023
A27: =IFERROR(VLOOKUP(C27,#REF!,9,FALSE),"") ->  | B27: =C27&COUNTIF($C$2:C27,C27) -> FCL32101 | C27: FCL3210 | F27: 6 | G27: 85291 | H27: 2023-06-07 | I27: 58 | P27: 85291 | Q27: 85291 | AW27: 85291 | AX27: FCL3210-07-06-2023
A28: =IFERROR(VLOOKUP(C28,#REF!,9,FALSE),"") ->  | B28: =C28&COUNTIF($C$2:C28,C28) -> FCX34801 | C28: FCX3480 | F28: 2 | G28: 14008.27 | H28: 2023-06-07 | I28: 58 | P28: 14008.27 | Q28: 14008.27 | AW28: 14008.27 | AX28: FCX3480-07-06-2023
A29: =IFERROR(VLOOKUP(C29,#REF!,9,FALSE),"") ->  | B29: =C29&COUNTIF($C$2:C29,C29) -> FCN31451 | C29: FCN3145 | F29: 32 | G29: 27953.9 | H29: 2023-06-07 | I29: 58 | J29: 2023-07-12 | K29: 27464.5 | L29: 489.4 | M29: 0 | N29: 0 | O29: 0 | P29: 0 | Q29: 27953.9 | AW29: 27464.5 | AX29: FCN3145-07-06-2023
A30: =IFERROR(VLOOKUP(C30,#REF!,9,FALSE),"") ->  | B30: =C30&COUNTIF($C$2:C30,C30) -> FCX27931 | C30: FCX2793 | F30: 4 | G30: 32483.38 | H30: 2023-06-07 | I30: 58 | P30: 32483.38 | Q30: 32483.38 | AW30: 32483.38 | AX30: FCX2793-07-06-2023
A31: =IFERROR(VLOOKUP(C31,#REF!,9,FALSE),"") ->  | B31: =C31&COUNTIF($C$2:C31,C31) -> FCF26101 | C31: FCF2610 | F31: 13 | G31: 63553 | H31: 2023-06-07 | I31: 58 | J31: 2023-07-12 | K31: 60484.37 | L31: 3068.67 | M31: 0 | N31: 0 | O31: 0 | P31: 0 | Q31: 63553 | AW31: 60484.33 | AX31: FCF2610-07-06-2023
A32: =IFERROR(VLOOKUP(C32,#REF!,9,FALSE),"") ->  | B32: =C32&COUNTIF($C$2:C32,C32) -> FCH17901 | C32: FCH1790 | E32: advance | F32: 6 | G32: 227086 | H32: 2023-06-07 | I32: 58 | P32: 227086 | Q32: 227086 | AW32: 227086 | AX32: FCH1790-07-06-2023
A33: =IFERROR(VLOOKUP(C33,#REF!,9,FALSE),"") ->  | B33: =C33&COUNTIF($C$2:C33,C33) -> FCF24701 | C33: FCF2470 | F33: 1 | G33: 5149.05 | H33: 2023-06-07 | I33: 58 | P33: 5149.05 | Q33: 5149.05 | AW33: 5149.05 | AX33: FCF2470-07-06-2023
A34: =IFERROR(VLOOKUP(C34,#REF!,9,FALSE),"") ->  | B34: =C34&COUNTIF($C$2:C34,C34) -> FCC91551 | C34: FCC9155 | F34: 3 | G34: 165940.75 | H34: 2023-06-07 | I34: 58 | P34: 165940.75 | Q34: 165940.75 | AW34: 165940.75 | AX34: FCC9155-07-06-2023
A35: =IFERROR(VLOOKUP(C35,#REF!,9,FALSE),"") ->  | B35: =C35&COUNTIF($C$2:C35,C35) -> FCF26141 | C35: FCF2614 | F35: 5 | G35: 61456.66 | H35: 2023-06-07 | I35: 58 | P35: 61456.66 | Q35: 61456.66 | AW35: 61456.66 | AX35: FCF2614-07-06-2023
A36: =IFERROR(VLOOKUP(C36,#REF!,9,FALSE),"") ->  | B36: =C36&COUNTIF($C$2:C36,C36) -> FCN33701 | C36: FCN3370 | F36: 5 | G36: 72840 | H36: 2023-06-07 | I36: 58 | P36: 72840 | Q36: 72840 | AW36: 72840 | AX36: FCN3370-07-06-2023
A37: =IFERROR(VLOOKUP(C37,#REF!,9,FALSE),"") ->  | B37: =C37&COUNTIF($C$2:C37,C37) -> FCC00801 | C37: FCC0080 | F37: 23 | G37: 105856.64 | H37: 2023-06-07 | I37: 58 | J37: 2023-07-12 | K37: 102557.39 | L37: 0 | M37: 3299.25 | N37: 0 | O37: 0 | P37: 0 | Q37: 105856.64 | AW37: 105856.64 | AX37: FCC0080-07-06-2023
A38: =IFERROR(VLOOKUP(C38,#REF!,9,FALSE),"") ->  | B38: =C38&COUNTIF($C$2:C38,C38) -> FCC91801 | C38: FCC9180 | F38: 21 | G38: 374744.64 | H38: 2023-06-07 | I38: 58 | J38: 2023-07-09 | K38: 347452.99 | L38: 20237.87 | M38: 7053.78 | N38: 0 | O38: new | P38: 3.183231456e-11 | Q38: 374744.64 | AW38: 354506.77 | AX38: FCC9180-07-06-2023
A39: =IFERROR(VLOOKUP(C39,#REF!,9,FALSE),"") ->  | B39: =C39&COUNTIF($C$2:C39,C39) -> FCC35101 | C39: FCC3510 | F39: 2 | G39: 5609 | H39: 2023-06-07 | I39: 58 | P39: 5609 | Q39: 5609 | AW39: 5609 | AX39: FCC3510-07-06-2023
A40: =IFERROR(VLOOKUP(C40,#REF!,9,FALSE),"") ->  | B40: =C40&COUNTIF($C$2:C40,C40) -> FCC00701 | C40: FCC0070 | F40: 5 | G40: 10351 | H40: 2023-06-07 | I40: 58 | P40: 10351 | Q40: 10351 | AW40: 10351 | AX40: FCC0070-07-06-2023
A41: =IFERROR(VLOOKUP(C41,#REF!,9,FALSE),"") ->  | B41: =C41&COUNTIF($C$2:C41,C41) -> FCC27801 | C41: FCC2780 | F41: 25 | G41: 164540 | H41: 2023-06-07 | I41: 58 | P41: 164540 | Q41: 164540 | AW41: 164540 | AX41: FCC2780-07-06-2023
A42: =IFERROR(VLOOKUP(C42,#REF!,9,FALSE),"") ->  | B42: =C42&COUNTIF($C$2:C42,C42) -> FCX27401 | C42: FCX2740 | E42: advance | F42: 97 | G42: 1097716.6 | H42: 2023-06-07 | I42: 58 | J42: 2023-07-10 | K42: 1067717.15 | L42: 17076.91 | M42: 12922.54 | N42: 0 | O42: 0 | P42: 0 | Q42: 1097716.6 | AW42: 1080639.69 | AX42: FCX2740-07-06-2023
A43: =IFERROR(VLOOKUP(C43,#REF!,9,FALSE),"") ->  | B43: =C43&COUNTIF($C$2:C43,C43) -> FCC27301 | C43: FCC2730 | E43: advance | F43: 24 | G43: 316356 | H43: 2023-06-07 | I43: 58 | P43: 316356 | Q43: 316356 | AW43: 316356 | AX43: FCC2730-07-06-2023
A44: =IFERROR(VLOOKUP(C44,#REF!,9,FALSE),"") ->  | B44: =C44&COUNTIF($C$2:C44,C44) -> FCC91851 | C44: FCC9185 | F44: 11 | G44: 149095.8 | H44: 2023-06-07 | I44: 58 | J44: 2023-07-18 | K44: 139471.63 | L44: 9624.17 | M44: 0 | N44: 0 | O44: 0 | P44: 0 | Q44: 149095.8 | AW44: 139471.63 | AX44: FCC9185-07-06-2023
A45: =IFERROR(VLOOKUP(C45,#REF!,9,FALSE),"") ->  | B45: =C45&COUNTIF($C$2:C45,C45) -> FCC21801 | C45: FCC2180 | E45: advance | F45: 69 | G45: 3044017.36 | H45: 2023-06-07 | I45: 58 | J45: 2023-06-20 | K45: 2656165.57 | L45: 3877.1 | M45: 175374.7 | N45: 208599.99 | O45: UPDATED | P45: 0 | Q45: 3044017.36 | AW45: 3040140.26 | AX45: FCC2180-07-06-2023
A46: =IFERROR(VLOOKUP(C46,#REF!,9,FALSE),"") ->  | B46: =C46&COUNTIF($C$2:C46,C46) -> FCM27611 | C46: FCM2761 | F46: 1 | G46: 3305 | H46: 2023-06-08 | I46: 57 | J46: 2023-07-27 | K46: 2735 | L46: 570 | M46: 0 | N46: 0 | O46: 0 | P46: 0 | Q46: 3305 | AW46: 2735 | AX46: FCM2761-08-06-2023
A47: =IFERROR(VLOOKUP(C47,#REF!,9,FALSE),"") ->  | B47: =C47&COUNTIF($C$2:C47,C47) -> FCX16201 | C47: FCX1620 | F47: 2 | G47: 38625 | H47: 2023-06-08 | I47: 57 | J47: 2023-07-27 | K47: 38600 | L47: 25 | M47: 0 | N47: 0 | O47: 0 | P47: 0 | Q47: 38625 | AW47: 38600 | AX47: FCX1620-08-06-2023
A48: =IFERROR(VLOOKUP(C48,#REF!,9,FALSE),"") ->  | B48: =C48&COUNTIF($C$2:C48,C48) -> FCC01101 | C48: FCC0110 | E48: advance | F48: 158 | G48: 3961930.06 | H48: 2023-06-08 | I48: 57 | J48: 2023-06-20 | K48: 3890031.03 | L48: 0 | M48: 5066.18 | N48: 66832.85 | O48: 0 | P48: 0 | Q48: 3961930.06 | AW48: 3961930.06 | AX48: FCC0110-08-06-2023
A49: =IFERROR(VLOOKUP(C49,#REF!,9,FALSE),"") ->  | B49: =C49&COUNTIF($C$2:C49,C49) -> FCC91931 | C49: FCC9193 | F49: 9 | G49: 381826.24 | H49: 2023-06-08 | I49: 57 | J49: 2023-07-19 | K49: 44839 | L49: 0 | M49: 0 | N49: 336987.24 | O49: 0 | P49: 0 | Q49: 381826.24 | AW49: 381826.24 | AX49: FCC9193-08-06-2023
A50: =IFERROR(VLOOKUP(C50,#REF!,9,FALSE),"") ->  | B50: =C50&COUNTIF($C$2:C50,C50) -> FCC91901 | C50: FCC9190 | F50: 3 | G50: 11255 | H50: 2023-06-08 | I50: 57 | J50: 2023-07-27 | K50: 11255 | L50: 0 | M50: 0 | N50: 0 | O50: 0 | P50: 0 | Q50: 11255 | AW50: 11255 | AX50: FCC9190-08-06-2023
A51: =IFERROR(VLOOKUP(C51,#REF!,9,FALSE),"") ->  | B51: =C51&COUNTIF($C$2:C51,C51) -> FCC15801 | C51: FCC1580 | E51: advance | F51: 104 | G51: 2172841 | H51: 2023-06-08 | I51: 57 | J51: 2023-07-13 | K51: 1571316.49 | L51: 0 | M51: 179.2 | N51: 601345.31 | O51: 0 | P51: 0 | Q51: 2172841 | AW51: 2172841 | AX51: FCC1580-08-06-2023
A52: =IFERROR(VLOOKUP(C52,#REF!,9,FALSE),"") ->  | B52: =C52&COUNTIF($C$2:C52,C52) -> FCC16501 | C52: FCC1650 | E52: advance | F52: 6 | G52: 41990.05 | H52: 2023-06-08 | I52: 57 | J52: 2023-07-27 | K52: 41925 | L52: 65.05 | M52: 0 | N52: 0 | O52: new | P52: 0 | Q52: 41990.05 | AW52: 41925 | AX52: FCC1650-08-06-2023
A53: =IFERROR(VLOOKUP(C53,#REF!,9,FALSE),"") ->  | B53: =C53&COUNTIF($C$2:C53,C53) -> FCC20601 | C53: FCC2060 | F53: 2 | G53: 107710 | H53: 2023-06-08 | I53: 57 | J53: 2023-07-27 | K53: 107710 | L53: 0 | M53: 0 | N53: 0 | O53: 0 | P53: 0 | Q53: 107710 | AW53: 107710 | AX53: FCC2060-08-06-2023
A54: =IFERROR(VLOOKUP(C54,#REF!,9,FALSE),"") ->  | B54: =C54&COUNTIF($C$2:C54,C54) -> FCC06501 | C54: FCC0650 | F54: 10 | G54: 58065.83 | H54: 2023-06-08 | I54: 57 | P54: 58065.83 | Q54: 58065.83 | AW54: 58065.83 | AX54: FCC0650-08-06-2023
A55: =IFERROR(VLOOKUP(C55,#REF!,9,FALSE),"") ->  | B55: =C55&COUNTIF($C$2:C55,C55) -> FCC06601 | C55: FCC0660 | F55: 7 | G55: 125568.96 | H55: 2023-06-08 | I55: 57 | J55: 2023-07-19 | K55: 125545.93 | L55: 23.03 | M55: 0 | N55: 0 | O55: 0 | P55: 0 | Q55: 125568.96 | AW55: 125545.93 | AX55: FCC0660-08-06-2023
A56: =IFERROR(VLOOKUP(C56,#REF!,9,FALSE),"") ->  | B56: =C56&COUNTIF($C$2:C56,C56) -> FCS23401 | C56: FCS2340 | F56: 15 | G56: 51430 | H56: 2023-06-08 | I56: 57 | J56: 2023-07-10 | K56: 49341 | L56: 2089 | M56: 0 | N56: 0 | O56: 0 | P56: 0 | Q56: 51430 | AW56: 49341 | AX56: FCS2340-08-06-2023
A57: =IFERROR(VLOOKUP(C57,#REF!,9,FALSE),"") ->  | B57: =C57&COUNTIF($C$2:C57,C57) -> FCC91491 | C57: FCC9149 | F57: 3 | G57: 10202.45 | H57: 2023-06-08 | I57: 57 | J57: 2023-07-27 | K57: 10142.45 | L57: 60.01 | M57: 0 | N57: 0 | O57: 0 | P57: 0 | Q57: 10202.45 | AW57: 10142.44 | AX57: FCC9149-08-06-2023
A58: =IFERROR(VLOOKUP(C58,#REF!,9,FALSE),"") ->  | B58: =C58&COUNTIF($C$2:C58,C58) -> FCX26901 | C58: FCX2690 | F58: 13 | G58: 159972.39 | H58: 2023-06-08 | I58: 57 | P58: 159972.39 | Q58: 159972.39 | AW58: 159972.39 | AX58: FCX2690-08-06-2023
A59: =IFERROR(VLOOKUP(C59,#REF!,9,FALSE),"") ->  | B59: =C59&COUNTIF($C$2:C59,C59) -> FCS28301 | C59: FCS2830 | E59: advance | F59: 54 | G59: 351512.39 | H59: 2023-06-08 | I59: 57 | J59: 2023-06-26 | K59: 348471.94 | L59: 3040.45 | M59: 0 | N59: 0 | O59: 0 | P59: 0 | Q59: 351512.39 | AW59: 348471.94 | AX59: FCS2830-08-06-2023
A60: =IFERROR(VLOOKUP(C60,#REF!,9,FALSE),"") ->  | B60: =C60&COUNTIF($C$2:C60,C60) -> FCC31101 | C60: FCC3110 | E60: advance+VD | F60: 9 | G60: 59100 | H60: 2023-06-08 | I60: 57 | J60: 2023-07-27 | K60: 55800 | L60: 3300 | M60: 0 | N60: 0 | O60: 0 | P60: 0 | Q60: 59100 | AW60: 55800 | AX60: FCC3110-08-06-2023
A61: =IFERROR(VLOOKUP(C61,#REF!,9,FALSE),"") ->  | B61: =C61&COUNTIF($C$2:C61,C61) -> FCC30401 | C61: FCC3040 | E61: advance | F61: 30 | G61: 446193.82 | H61: 2023-06-08 | I61: 57 | J61: 2023-06-19 | K61: 442910 | L61: 3283.82 | M61: 0 | N61: 0 | O61: new | P61: 0 | Q61: 446193.82 | AW61: 442910 | AX61: FCC3040-08-06-2023
A62: =IFERROR(VLOOKUP(C62,#REF!,9,FALSE),"") ->  | B62: =C62&COUNTIF($C$2:C62,C62) -> FCC32501 | C62: FCC3250 | F62: 4 | G62: 81173 | H62: 2023-06-08 | I62: 57 | J62: 2023-07-31 | K62: 43567.74 | L62: 605.26 | M62: 37000 | N62: 0 | O62: 0 | P62: 0 | Q62: 81173 | AW62: 80567.74 | AX62: FCC3250-08-06-2023
A63: =IFERROR(VLOOKUP(C63,#REF!,9,FALSE),"") ->  | B63: =C63&COUNTIF($C$2:C63,C63) -> FCX18401 | C63: FCX1840 | E63: advance | F63: 55 | G63: 727779.11 | H63: 2023-06-08 | I63: 57 | J63: 2023-07-09 | K63: 717412.63 | L63: 1148.78 | M63: 9217.7 | N63: 0 | O63: Price Difference | P63: -2.000888344e-11 | Q63: 727779.11 | AW63: 726630.33 | AX63: FCX1840-08-06-2023
A64: =IFERROR(VLOOKUP(C64,#REF!,9,FALSE),"") ->  | B64: =C64&COUNTIF($C$2:C64,C64) -> FCC91561 | C64: FCC9156 | E64: advance | F64: 31 | G64: 639044.7 | H64: 2023-06-08 | I64: 57 | P64: 639044.7 | Q64: 639044.7 | AW64: 639044.7 | AX64: FCC9156-08-06-2023
A65: =IFERROR(VLOOKUP(C65,#REF!,9,FALSE),"") ->  | B65: =C65&COUNTIF($C$2:C65,C65) -> FCD30501 | C65: FCD3050 | F65: 14 | G65: 75685 | H65: 2023-06-08 | I65: 57 | P65: 75685 | Q65: 75685 | AW65: 75685 | AX65: FCD3050-08-06-2023
A66: =IFERROR(VLOOKUP(C66,#REF!,9,FALSE),"") ->  | B66: =C66&COUNTIF($C$2:C66,C66) -> FCX34901 | C66: FCX3490 | F66: 5 | G66: 37852 | H66: 2023-06-11 | I66: =+TODAY()-H66 -> 54 | P66: =+G66-K66-L66-M66-N66 -> 37852 | Q66: =+G66-R66-T66-V66-X66-Z66-AB66-AD66-AF66-AH66-AJ66-AL66-AN66-AP66-AT66-AV66 -> 37852 | AW66: 37852 | AX66: FCX3490-11-06-2023
A67: =IFERROR(VLOOKUP(C67,#REF!,9,FALSE),"") ->  | B67: =C67&COUNTIF($C$2:C67,C67) -> FCP31601 | C67: FCP3160 | F67: 1 | G67: 5021 | H67: 2023-06-11 | I67: 54 | J67: 2023-07-27 | K67: 5021 | L67: 0 | M67: 0 | N67: 0 | O67: 0 | P67: 0 | Q67: 5021 | AW67: =G67-(L67++R67+T67+V67+X67+Z67+AB67+AD67+AF67+AH67+AJ67+AL67+AN67+AP67+AR67) -> 5021 | AX67: =CONCATENATE(C67,"-",TEXT(H67,"DD-MM-YYYY")) -> FCP3160-11-06-2023
A68: =IFERROR(VLOOKUP(C68,#REF!,9,FALSE),"") ->  | B68: =C68&COUNTIF($C$2:C68,C68) -> FCC28801 | C68: FCC2880 | F68: 38 | G68: 907837.86 | H68: 2023-06-11 | I68: 54 | J68: 2023-07-16 | K68: 579691.79 | L68: 916.47 | M68: 17000 | N68: 310229.6 | O68: 0 | P68: 0 | Q68: 907837.86 | AW68: 906921.39 | AX68: FCC2880-11-06-2023
A69: =IFERROR(VLOOKUP(C69,#REF!,9,FALSE),"") ->  | B69: =C69&COUNTIF($C$2:C69,C69) -> FCF06901 | C69: FCF0690 | F69: 6 | G69: 67976.98 | H69: 2023-06-11 | I69: 54 | P69: 67976.98 | Q69: 67976.98 | AW69: 67976.98 | AX69: FCF0690-11-06-2023
A70: =IFERROR(VLOOKUP(C70,#REF!,9,FALSE),"") ->  | B70: =C70&COUNTIF($C$2:C70,C70) -> FCC17101 | C70: FCC1710 | E70: advance | F70: 13 | G70: 39094 | H70: 2023-06-11 | I70: 54 | J70: 2023-07-31 | K70: 39043.52 | L70: 50.48 | M70: 0 | N70: 0 | O70: 0 | P70: 0 | Q70: 39094 | AW70: 39043.52 | AX70: FCC1710-11-06-2023
A71: =IFERROR(VLOOKUP(C71,#REF!,9,FALSE),"") ->  | B71: =C71&COUNTIF($C$2:C71,C71) -> FCI22101 | C71: FCI2210 | F71: 2 | G71: 8000 | H71: 2023-06-11 | I71: 54 | J71: 2023-07-31 | K71: 8000 | L71: 0 | M71: 0 | N71: 0 | O71: 0 | P71: 0 | Q71: 8000 | AW71: 8000 | AX71: FCI2210-11-06-2023
A72: =IFERROR(VLOOKUP(C72,#REF!,9,FALSE),"") ->  | B72: =C72&COUNTIF($C$2:C72,C72) -> FCS10401 | C72: FCS1040 | F72: 3 | G72: 16247 | H72: 2023-06-11 | I72: 54 | P72: 16247 | Q72: 16247 | AW72: 16247 | AX72: FCS1040-11-06-2023
A73: =IFERROR(VLOOKUP(C73,#REF!,9,FALSE),"") ->  | B73: =C73&COUNTIF($C$2:C73,C73) -> FCC14101 | C73: FCC1410 | E73: advance | F73: 32 | G73: 586264.38 | H73: 2023-06-11 | I73: 54 | J73: 2023-07-30 | K73: 553260 | L73: 1551.38 | M73: 0 | N73: 31453 | O73: 0 | P73: 0 | Q73: 586264.38 | AW73: 584713 | AX73: FCC1410-11-06-2023
A74: =IFERROR(VLOOKUP(C74,#REF!,9,FALSE),"") ->  | B74: =C74&COUNTIF($C$2:C74,C74) -> FCS10201 | C74: FCS1020 | F74: 85 | G74: 701322.78 | H74: 2023-06-11 | I74: 54 | J74: 2023-07-31 | K74: 632149 | L74: 0.21 | M74: 662 | N74: 68511.57 | O74: 0 | P74: 0 | Q74: 701322.78 | AW74: 701322.57 | AX74: FCS1020-11-06-2023
A75: =IFERROR(VLOOKUP(C75,#REF!,9,FALSE),"") ->  | B75: =C75&COUNTIF($C$2:C75,C75) -> FCC03401 | C75: FCC0340 | F75: 1 | G75: 11106.49 | H75: 2023-06-11 | I75: 54 | J75: 2023-07-27 | K75: 10890.48 | L75: 216.01 | M75: 0 | N75: 0 | O75: 20% discount difference in anesthia | P75: 0 | Q75: 11106.49 | AW75: 10890.48 | AX75: FCC0340-11-06-2023
A76: =IFERROR(VLOOKUP(C76,#REF!,9,FALSE),"") ->  | B76: =C76&COUNTIF($C$2:C76,C76) -> FCC26501 | C76: FCC2650 | F76: 13 | G76: 129476.63 | H76: 2023-06-11 | I76: 54 | J76: 2023-07-27 | K76: 41881.63 | L76: 0 | M76: 0 | N76: 87595 | O76: 0 | P76: 0 | Q76: 129476.63 | AW76: 129476.63 | AX76: FCC2650-11-06-2023
A77: =IFERROR(VLOOKUP(C77,#REF!,9,FALSE),"") ->  | B77: =C77&COUNTIF($C$2:C77,C77) -> FCC21301 | C77: FCC2130 | F77: 12 | G77: 81289.83 | H77: 2023-06-11 | I77: 54 | J77: 2023-07-27 | K77: 80939.84 | L77: 349.99 | M77: 0 | N77: 0 | O77: 0 | P77: 0 | Q77: 81289.83 | AW77: 80939.84 | AX77: FCC2130-11-06-2023
A78: =IFERROR(VLOOKUP(C78,#REF!,9,FALSE),"") ->  | B78: =C78&COUNTIF($C$2:C78,C78) -> FCS17001 | C78: FCS1700 | F78: 56 | G78: 526344.51 | H78: 2023-06-11 | I78: 54 | J78: 2023-07-19 | K78: 507229.67 | L78: 19234.84 | M78: 0 | N78: 0 | O78: 0 | P78: -120 | Q78: 526344.51 | AW78: 507109.67 | AX78: FCS1700-11-06-2023
A79: =IFERROR(VLOOKUP(C79,#REF!,9,FALSE),"") ->  | B79: =C79&COUNTIF($C$2:C79,C79) -> FCX12901 | C79: FCX1290 | E79: advance | F79: 157 | G79: 2289155.93 | H79: 2023-06-11 | I79: 54 | J79: 2023-07-19 | K79: 1964940.53 | L79: 0 | M79: 995.67 | N79: 323219.73 | O79: 0 | P79: 0 | Q79: 2289155.93 | AW79: 2289155.93 | AX79: FCX1290-11-06-2023
A80: =IFERROR(VLOOKUP(C80,#REF!,9,FALSE),"") ->  | B80: =C80&COUNTIF($C$2:C80,C80) -> FCC00901 | C80: FCC0090 | E80: advance | F80: 227 | G80: 7610897.32 | H80: 2023-06-11 | I80: 54 | J80: 2023-07-11 | K80: 7557010.94 | L80: 3020.26 | M80: 50866.1 | N80: 0 | O80: 0 | P80: 0 | Q80: 7610897.32 | AW80: 7607877.06 | AX80: FCC0090-11-06-2023
A81: =IFERROR(VLOOKUP(C81,#REF!,9,FALSE),"") ->  | B81: =C81&COUNTIF($C$2:C81,C81) -> FCS10301 | C81: FCS1030 | E81: advance | F81: 125 | G81: 1539703.3 | H81: 2023-06-11 | I81: 54 | J81: 2023-07-19 | K81: 1522611.32 | L81: 17091.98 | M81: 0 | N81: 0 | O81: 0 | P81: 0 | Q81: 1539703.3 | AW81: 1522611.32 | AX81: FCS1030-11-06-2023
A82: =IFERROR(VLOOKUP(C82,#REF!,9,FALSE),"") ->  | B82: =C82&COUNTIF($C$2:C82,C82) -> FCC91651 | C82: FCC9165 | F82: 12 | G82: 106765 | H82: 2023-06-11 | I82: 54 | P82: 106765 | Q82: 106765 | AW82: 106765 | AX82: FCC9165-11-06-2023
A83: =IFERROR(VLOOKUP(C83,#REF!,9,FALSE),"") ->  | B83: =C83&COUNTIF($C$2:C83,C83) -> FCC26201 | C83: FCC2620 | E83: advance | F83: 50 | G83: 420776.16 | H83: 2023-06-11 | I83: 54 | J83: 2023-07-13 | K83: 395997.26 | L83: 7798.28 | M83: 16980.56 | N83: 0 | O83: 0 | P83: 0 | Q83: 420776.16 | AW83: 412977.88 | AX83: FCC2620-11-06-2023
A84: =IFERROR(VLOOKUP(C84,#REF!,9,FALSE),"") ->  | B84: =C84&COUNTIF($C$2:C84,C84) -> FCC18201 | C84: FCC1820 | F84: 2 | G84: 10400 | H84: 2023-06-11 | I84: 54 | J84: 2023-07-27 | K84: 10400 | L84: 0 | M84: 0 | N84: 0 | O84: 0 | P84: 0 | Q84: 10400 | AW84: 10400 | AX84: FCC1820-11-06-2023
A85: =IFERROR(VLOOKUP(C85,#REF!,9,FALSE),"") ->  | B85: =C85&COUNTIF($C$2:C85,C85) -> FCC15701 | C85: FCC1570 | F85: 6 | G85: 26254 | H85: 2023-06-11 | I85: 54 | P85: 26254 | Q85: 26254 | AW85: 26254 | AX85: FCC1570-11-06-2023
A86: =IFERROR(VLOOKUP(C86,#REF!,9,FALSE),"") ->  | B86: =C86&COUNTIF($C$2:C86,C86) -> fcx26701 | C86: fcx2670 | F86: 14 | G86: 138775 | H86: 2023-06-11 | I86: 54 | J86: 2023-07-12 | K86: 138725 | L86: 50 | M86: 0 | N86: 0 | O86: 0 | P86: 0 | Q86: 138775 | AW86: 138725 | AX86: fcx2670-11-06-2023
A87: =IFERROR(VLOOKUP(C87,#REF!,9,FALSE),"") ->  | B87: =C87&COUNTIF($C$2:C87,C87) -> FCH07101 | C87: FCH0710 | F87: 2 | G87: 19660.3 | H87: 2023-06-11 | I87: 54 | P87: 19660.3 | Q87: 19660.3 | AW87: 19660.3 | AX87: FCH0710-11-06-2023
A88: =IFERROR(VLOOKUP(C88,#REF!,9,FALSE),"") ->  | B88: =C88&COUNTIF($C$2:C88,C88) -> FCC04801 | C88: FCC0480 | F88: 39 | G88: 655037 | H88: 2023-06-12 | I88: 53 | J88: 2023-07-10 | K88: 607748.46 | L88: -0.03000000004 | M88: 47288.54 | N88: 0 | O88: 0 | P88: 0.03000000007 | Q88: 655037 | AW88: 655037.03 | AX88: FCC0480-12-06-2023
A89: =IFERROR(VLOOKUP(C89,#REF!,9,FALSE),"") ->  | B89: =C89&COUNTIF($C$2:C89,C89) -> FCC91641 | C89: FCC9164 | F89: 60 | G89: 469144.11 | H89: 2023-06-12 | I89: 53 | J89: 2023-07-12 | K89: 444255.87 | L89: -0.03000000004 | M89: 7000 | N89: 0 | O89: OLD&NEW RR | P89: 17888.27 | Q89: 469144.11 | AW89: 469144.14 | AX89: FCC9164-12-06-2023
A90: =IFERROR(VLOOKUP(C90,#REF!,9,FALSE),"") ->  | B90: =C90&COUNTIF($C$2:C90,C90) -> FCP17201 | C90: FCP1720 | F90: 6 | G90: 19371.69 | H90: 2023-06-12 | I90: 53 | P90: 19371.69 | Q90: 19371.69 | AW90: 19371.69 | AX90: FCP1720-12-06-2023
A91: =IFERROR(VLOOKUP(C91,#REF!,9,FALSE),"") ->  | B91: =C91&COUNTIF($C$2:C91,C91) -> FCK29901 | C91: FCK2990 | F91: 2 | G91: 17615 | H91: 2023-06-12 | I91: 53 | P91: 17615 | Q91: 17615 | AW91: 17615 | AX91: FCK2990-12-06-2023
A92: =IFERROR(VLOOKUP(C92,#REF!,9,FALSE),"") ->  | B92: =C92&COUNTIF($C$2:C92,C92) -> FCC01201 | C92: FCC0120 | F92: 50 | G92: 933597.06 | H92: 2023-06-12 | I92: 53 | J92: 2023-07-26 | K92: 789004.85 | L92: 0 | M92: 1118.15 | N92: 143474.06 | O92: 0 | P92: 0 | Q92: 933597.06 | AW92: 933597.06 | AX92: FCC0120-12-06-2023
A93: =IFERROR(VLOOKUP(C93,#REF!,9,FALSE),"") ->  | B93: =C93&COUNTIF($C$2:C93,C93) -> FCC91841 | C93: FCC9184 | F93: 3 | G93: 23375 | H93: 2023-06-12 | I93: 53 | P93: 23375 | Q93: 23375 | AW93: 23375 | AX93: FCC9184-12-06-2023
A94: =IFERROR(VLOOKUP(C94,#REF!,9,FALSE),"") ->  | B94: =C94&COUNTIF($C$2:C94,C94) -> FCC03001 | C94: FCC0300 | E94: advance | F94: 218 | G94: 7394952.75 | H94: 2023-06-12 | I94: 53 | J94: 2023-07-19 | K94: 5489783.47 | L94: 0 | M94: 0 | N94: 1905169.28 | O94: new | P94: 0 | Q94: 7394952.75 | AW94: 7394952.75 | AX94: FCC0300-12-06-2023
A95: =IFERROR(VLOOKUP(C95,#REF!,9,FALSE),"") ->  | B95: =C95&COUNTIF($C$2:C95,C95) -> FCC91981 | C95: FCC9198 | E95: advance | F95: 33 | G95: 1145613.3 | H95: 2023-06-12 | I95: 53 | P95: 1145613.3 | Q95: 1145613.3 | AW95: 1145613.3 | AX95: FCC9198-12-06-2023
A96: =IFERROR(VLOOKUP(C96,#REF!,9,FALSE),"") ->  | B96: =C96&COUNTIF($C$2:C96,C96) -> FCC04001 | C96: FCC0400 | E96: advance | F96: 198 | G96: 4651817.65 | H96: 2023-06-12 | I96: 53 | J96: 2023-07-16 | K96: 4362117.25 | L96: 6305.15 | M96: 283395.25 | N96: 0 | O96: 0 | P96: 0 | Q96: 4651817.65 | AW96: 4645512.5 | AX96: FCC0400-12-06-2023
A97: =IFERROR(VLOOKUP(C97,#REF!,9,FALSE),"") ->  | B97: =C97&COUNTIF($C$2:C97,C97) -> FCN31441 | C97: FCN3144 | F97: 22 | G97: 207744.35 | H97: 2023-06-12 | I97: 53 | J97: 2023-07-16 | K97: 204106 | L97: 3638.13 | M97: 0 | N97: 0 | O97: 0 | P97: 0 | Q97: 207744.35 | AW97: 204106.22 | AX97: FCN3144-12-06-2023
A98: =IFERROR(VLOOKUP(C98,#REF!,9,FALSE),"") ->  | B98: =C98&COUNTIF($C$2:C98,C98) -> FCL07701 | C98: FCL0770 | F98: 3 | G98: 26124.45 | H98: 2023-06-12 | I98: 53 | P98: 26124.45 | Q98: 26124.45 | AW98: 26124.45 | AX98: FCL0770-12-06-2023
A99: =IFERROR(VLOOKUP(C99,#REF!,9,FALSE),"") ->  | B99: =C99&COUNTIF($C$2:C99,C99) -> FCM27621 | C99: FCM2762 | F99: 5 | G99: 55489.5 | H99: 2023-06-12 | I99: 53 | P99: 55489.5 | Q99: 55489.5 | AW99: 55489.5 | AX99: FCM2762-12-06-2023
A100: =IFERROR(VLOOKUP(C100,#REF!,9,FALSE),"") ->  | B100: =C100&COUNTIF($C$2:C100,C100) -> FCJ31721 | C100: FCJ3172 | F100: 2 | G100: 10811 | H100: 2023-06-12 | I100: 53 | J100: 2023-07-30 | K100: 8312 | L100: 0 | M100: 0 | N100: 2499 | O100: 0 | P100: 0 | Q100: 10811 | AW100: 10811 | AX100: FCJ3172-12-06-2023
A101: =IFERROR(VLOOKUP(C101,#REF!,9,FALSE),"") ->  | B101: =C101&COUNTIF($C$2:C101,C101) -> FCC04501 | C101: FCC0450 | F101: 8 | G101: 34285.16 | H101: 2023-06-12 | I101: 53 | P101: 34285.16 | Q101: 34285.16 | AW101: 34285.16 | AX101: FCC0450-12-06-2023
A102: =IFERROR(VLOOKUP(C102,#REF!,9,FALSE),"") ->  | B102: =C102&COUNTIF($C$2:C102,C102) -> FCC05901 | C102: FCC0590 | E102: advance | F102: 145 | G102: 4968235.52 | H102: 2023-06-12 | I102: 53 | J102: 2023-07-17 | K102: 3937963.26 | L102: 0 | M102: 217802.21 | N102: 812470.05 | O102: 0 | P102: 0 | Q102: 4968235.52 | AW102: 4968235.52 | AX102: FCC0590-12-06-2023
A103: =IFERROR(VLOOKUP(C103,#REF!,9,FALSE),"") ->  | B103: =C103&COUNTIF($C$2:C103,C103) -> FCC26601 | C103: FCC2660 | F103: 19 | G103: 90392 | H103: 2023-06-12 | I103: 53 | P103: 90392 | Q103: 90392 | AW103: 90392 | AX103: FCC2660-12-06-2023
A104: =IFERROR(VLOOKUP(C104,#REF!,9,FALSE),"") ->  | B104: =C104&COUNTIF($C$2:C104,C104) -> FCS31501 | C104: FCS3150 | F104: 4 | G104: 56448 | H104: 2023-06-13 | I104: 52 | P104: 56448 | Q104: 56448 | AW104: 56448 | AX104: FCS3150-13-06-2023
A105: =IFERROR(VLOOKUP(C105,#REF!,9,FALSE),"") ->  | B105: =C105&COUNTIF($C$2:C105,C105) -> FCS29261 | C105: FCS2926 | F105: 2 | G105: 15331 | H105: 2023-06-13 | I105: 52 | P105: 15331 | Q105: 15331 | AW105: 15331 | AX105: FCS2926-13-06-2023
A106: =IFERROR(VLOOKUP(C106,#REF!,9,FALSE),"") ->  | B106: =C106&COUNTIF($C$2:C106,C106) -> FCC00401 | C106: FCC0040 | F106: 8 | G106: 33054 | H106: 2023-06-13 | I106: 52 | P106: 33054 | Q106: 33054 | AW106: 33054 | AX106: FCC0040-13-06-2023
A107: =IFERROR(VLOOKUP(C107,#REF!,9,FALSE),"") ->  | B107: =C107&COUNTIF($C$2:C107,C107) -> FCN31002 | C107: FCN3100 | F107: 1 | G107: 5830 | H107: 2023-06-13 | I107: 52 | P107: 5830 | Q107: 5830 | AW107: 5830 | AX107: FCN3100-13-06-2023
A108: =IFERROR(VLOOKUP(C108,#REF!,9,FALSE),"") ->  | B108: =C108&COUNTIF($C$2:C108,C108) -> FCX16101 | C108: FCX1610 | F108: 5 | G108: 194731.02 | H108: 2023-06-13 | I108: 52 | P108: 194731.02 | Q108: 194731.02 | AW108: 194731.02 | AX108: FCX1610-13-06-2023
A109: =IFERROR(VLOOKUP(C109,#REF!,9,FALSE),"") ->  | B109: =C109&COUNTIF($C$2:C109,C109) -> FCC91961 | C109: FCC9196 | F109: 3 | G109: 26844.03 | H109: 2023-06-13 | I109: 52 | P109: 26844.03 | Q109: 26844.03 | AW109: 26844.03 | AX109: FCC9196-13-06-2023
A110: =IFERROR(VLOOKUP(C110,#REF!,9,FALSE),"") ->  | B110: =C110&COUNTIF($C$2:C110,C110) -> FCC30601 | C110: FCC3060 | F110: 2 | G110: 9115 | H110: 2023-06-13 | I110: 52 | P110: 9115 | Q110: 9115 | AW110: 9115 | AX110: FCC3060-13-06-2023
A111: =IFERROR(VLOOKUP(C111,#REF!,9,FALSE),"") ->  | B111: =C111&COUNTIF($C$2:C111,C111) -> FCX18501 | C111: FCX1850 | F111: 6 | G111: 14166 | H111: 2023-06-13 | I111: 52 | P111: 14166 | Q111: 14166 | AW111: 14166 | AX111: FCX1850-13-06-2023
A112: =IFERROR(VLOOKUP(C112,#REF!,9,FALSE),"") ->  | B112: =C112&COUNTIF($C$2:C112,C112) -> FCC91671 | C112: FCC9167 | E112: advance | F112: 47 | G112: 1115648.49 | H112: 2023-06-13 | I112: 52 | J112: 2023-07-16 | K112: 994826.5 | L112: 63390.99 | M112: 57431 | N112: 0 | O112: old& new / tests and radiology (10%disc)diff | P112: 0 | Q112: 1115648.49 | AW112: 1052257.5 | AX112: FCC9167-13-06-2023
A113: =IFERROR(VLOOKUP(C113,#REF!,9,FALSE),"") ->  | B113: =C113&COUNTIF($C$2:C113,C113) -> FCK30781 | C113: FCK3078 | F113: 19 | G113: 80788.45 | H113: 2023-06-13 | I113: 52 | P113: 80788.45 | Q113: 80788.45 | AW113: 80788.45 | AX113: FCK3078-13-06-2023
A114: =IFERROR(VLOOKUP(C114,#REF!,9,FALSE),"") ->  | B114: =C114&COUNTIF($C$2:C114,C114) -> FCC17801 | C114: FCC1780 | F114: 2 | G114: 46800 | H114: 2023-06-13 | I114: 52 | P114: 46800 | Q114: 46800 | AW114: 46800 | AX114: FCC1780-13-06-2023
A115: =IFERROR(VLOOKUP(C115,#REF!,9,FALSE),"") ->  | B115: =C115&COUNTIF($C$2:C115,C115) -> FCC91461 | C115: FCC9146 | F115: 1 | G115: 28510.68 | H115: 2023-06-13 | I115: 52 | P115: 28510.68 | Q115: 28510.68 | AW115: 28510.68 | AX115: FCC9146-13-06-2023
A116: =IFERROR(VLOOKUP(C116,#REF!,9,FALSE),"") ->  | B116: =C116&COUNTIF($C$2:C116,C116) -> FCC31202 | C116: FCC3120 | F116: 80 | G116: 1661535.1 | H116: 2023-06-14 | I116: 51 | J116: 2023-07-10 | K116: 1593188.08 | L116: 345.14 | M116: 0 | N116: 68001.88 | O116: Denied Amount | P116: 0 | Q116: 1661535.1 | AW116: 1661189.96 | AX116: FCC3120-14-06-2023
A117: =IFERROR(VLOOKUP(C117,#REF!,9,FALSE),"") ->  | B117: =C117&COUNTIF($C$2:C117,C117) -> FCN21701 | C117: FCN2170 | F117: 4 | G117: 91085 | H117: 2023-06-14 | I117: 51 | P117: 91085 | Q117: 91085 | AW117: 91085 | AX117: FCN2170-14-06-2023
A118: =IFERROR(VLOOKUP(C118,#REF!,9,FALSE),"") ->  | B118: =C118&COUNTIF($C$2:C118,C118) -> FCC91521 | C118: FCC9152 | E118: advance+VD | F118: 11 | G118: 263200 | H118: 2023-06-14 | I118: 51 | P118: 263200 | Q118: 263200 | AW118: 263200 | AX118: FCC9152-14-06-2023
A119: =IFERROR(VLOOKUP(C119,#REF!,9,FALSE),"") ->  | B119: =C119&COUNTIF($C$2:C119,C119) -> FCS29151 | C119: FCS2915 | F119: 2 | G119: 11719 | H119: 2023-06-14 | I119: 51 | P119: 11719 | Q119: 11719 | AW119: 11719 | AX119: FCS2915-14-06-2023
A120: =IFERROR(VLOOKUP(C120,#REF!,9,FALSE),"") ->  | B120: =C120&COUNTIF($C$2:C120,C120) -> FCC91721 | C120: FCC9172 | F120: 17 | G120: 308360.61 | H120: 2023-06-14 | I120: 51 | P120: 308360.61 | Q120: 308360.61 | AW120: 308360.61 | AX120: FCC9172-14-06-2023
A121: =IFERROR(VLOOKUP(C121,#REF!,9,FALSE),"") ->  | B121: =C121&COUNTIF($C$2:C121,C121) -> FCT22301 | C121: FCT2230 | F121: 18 | G121: 120741.85 | H121: 2023-06-14 | I121: 51 | P121: 120741.85 | Q121: 120741.85 | AW121: 120741.85 | AX121: FCT2230-14-06-2023
A122: =IFERROR(VLOOKUP(C122,#REF!,9,FALSE),"") ->  | B122: =C122&COUNTIF($C$2:C122,C122) -> FCC01301 | C122: FCC0130 | E122: advance | F122: 38 | G122: 859801.95 | H122: 2023-06-14 | I122: 51 | P122: 859801.95 | Q122: 859801.95 | AW122: 859801.95 | AX122: FCC0130-14-06-2023
A123: =IFERROR(VLOOKUP(C123,#REF!,9,FALSE),"") ->  | B123: =C123&COUNTIF($C$2:C123,C123) -> fcc91951 | C123: fcc9195 | F123: 10 | G123: 87291.08 | H123: 2023-06-14 | I123: 51 | J123: 2023-07-27 | K123: 87041.1 | L123: 249.98 | M123: 0 | N123: 0 | O123: 0 | P123: 0 | Q123: 87291.08 | AW123: 87041.1 | AX123: fcc9195-14-06-2023
A124: =IFERROR(VLOOKUP(C124,#REF!,9,FALSE),"") ->  | B124: =C124&COUNTIF($C$2:C124,C124) -> FCC91311 | C124: FCC9131 | F124: 5 | G124: 30196.25 | H124: 2023-06-14 | I124: 51 | P124: 30196.25 | Q124: 30196.25 | AW124: 30196.25 | AX124: FCC9131-14-06-2023
A125: =IFERROR(VLOOKUP(C125,#REF!,9,FALSE),"") ->  | B125: =C125&COUNTIF($C$2:C125,C125) -> FCC91751 | C125: FCC9175 | F125: 7 | G125: 76537.04 | H125: 2023-06-14 | I125: 51 | P125: 76537.04 | Q125: 76537.04 | AW125: 76537.04 | AX125: FCC9175-14-06-2023
A126: =IFERROR(VLOOKUP(C126,#REF!,9,FALSE),"") ->  | B126: =C126&COUNTIF($C$2:C126,C126) -> FCC28701 | C126: FCC2870 | F126: 3 | G126: 19575.11 | H126: 2023-06-14 | I126: 51 | P126: 19575.11 | Q126: 19575.11 | AW126: 19575.11 | AX126: FCC2870-14-06-2023
A127: =IFERROR(VLOOKUP(C127,#REF!,9,FALSE),"") ->  | B127: =C127&COUNTIF($C$2:C127,C127) -> FCK25201 | C127: FCK2520 | F127: 8 | G127: 47500 | H127: 2023-06-14 | I127: 51 | J127: 2023-07-10 | K127: 47500 | L127: 0 | M127: 0 | N127: 0 | O127: 0 | P127: 0 | Q127: 47500 | AW127: 47500 | AX127: FCK2520-14-06-2023
A128: =IFERROR(VLOOKUP(C128,#REF!,9,FALSE),"") ->  | B128: =C128&COUNTIF($C$2:C128,C128) -> FCC29701 | C128: FCC2970 | F128: 5 | G128: 20330 | H128: 2023-06-14 | I128: 51 | P128: 20330 | Q128: 20330 | AW128: 20330 | AX128: FCC2970-14-06-2023
A129: =IFERROR(VLOOKUP(C129,#REF!,9,FALSE),"") ->  | B129: =C129&COUNTIF($C$2:C129,C129) -> FCX32201 | C129: FCX3220 | F129: 6 | G129: 37582.22 | H129: 2023-06-14 | I129: 51 | P129: 37582.22 | Q129: 37582.22 | AW129: 37582.22 | AX129: FCX3220-14-06-2023
A130: =IFERROR(VLOOKUP(C130,#REF!,9,FALSE),"") ->  | B130: =C130&COUNTIF($C$2:C130,C130) -> FCX27921 | C130: FCX2792 | F130: 7 | G130: 93085.6 | H130: 2023-06-15 | I130: =+TODAY()-H130 -> 50 | J130: 2023-07-27 | K130: 39601.4 | L130: -0.3 | M130: 0 | N130: 53484.5 | O130: 0 | P130: =+G130-K130-L130-M130-N130 -> 0 | Q130: =+G130-R130-T130-V130-X130-Z130-AB130-AD130-AF130-AH130-AJ130-AL130-AN130-AP130-AT130-AV130 -> 93085.6 | AW130: 93085.9 | AX130: FCX2792-15-06-2023
A131: =IFERROR(VLOOKUP(C131,#REF!,9,FALSE),"") ->  | B131: =C131&COUNTIF($C$2:C131,C131) -> FCC25801 | C131: FCC2580 | F131: 1 | G131: 4220 | H131: 2023-06-15 | I131: 50 | P131: 4220 | Q131: 4220 | AW131: =G131-(L131++R131+T131+V131+X131+Z131+AB131+AD131+AF131+AH131+AJ131+AL131+AN131+AP131+AR131) -> 4220 | AX131: =CONCATENATE(C131,"-",TEXT(H131,"DD-MM-YYYY")) -> FCC2580-15-06-2023
A132: =IFERROR(VLOOKUP(C132,#REF!,9,FALSE),"") ->  | B132: =C132&COUNTIF($C$2:C132,C132) -> FCP31602 | C132: FCP3160 | F132: 1 | G132: 2948 | H132: 2023-06-15 | I132: 50 | P132: 2948 | Q132: 2948 | AW132: 2948 | AX132: FCP3160-15-06-2023
A133: =IFERROR(VLOOKUP(C133,#REF!,9,FALSE),"") ->  | B133: =C133&COUNTIF($C$2:C133,C133) -> FCV11711 | C133: FCV1171 | F133: 2 | G133: 4760.65 | H133: 2023-06-15 | I133: 50 | P133: 4760.65 | Q133: 4760.65 | AW133: 4760.65 | AX133: FCV1171-15-06-2023
A134: =IFERROR(VLOOKUP(C134,#REF!,9,FALSE),"") ->  | B134: =C134&COUNTIF($C$2:C134,C134) -> FCR34601 | C134: FCR3460 | F134: 7 | G134: 56020 | H134: 2023-06-15 | I134: 50 | P134: 56020 | Q134: 56020 | AW134: 56020 | AX134: FCR3460-15-06-2023
A135: =IFERROR(VLOOKUP(C135,#REF!,9,FALSE),"") ->  | B135: =C135&COUNTIF($C$2:C135,C135) -> FCD30541 | C135: FCD3054 | F135: 5 | G135: 34517 | H135: 2023-06-15 | I135: 50 | P135: 34517 | Q135: 34517 | AW135: 34517 | AX135: FCD3054-15-06-2023
A136: =IFERROR(VLOOKUP(C136,#REF!,9,FALSE),"") ->  | B136: =C136&COUNTIF($C$2:C136,C136) -> FCM27601 | C136: FCM2760 | F136: 12 | G136: 84354.02 | H136: 2023-06-15 | I136: 50 | P136: 84354.02 | Q136: 84354.02 | AW136: 84354.02 | AX136: FCM2760-15-06-2023
A137: =IFERROR(VLOOKUP(C137,#REF!,9,FALSE),"") ->  | B137: =C137&COUNTIF($C$2:C137,C137) -> FCX28001 | C137: FCX2800 | F137: 4 | G137: 42378 | H137: 2023-06-15 | I137: 50 | P137: 42378 | Q137: 42378 | AW137: 42378 | AX137: FCX2800-15-06-2023
A138: =IFERROR(VLOOKUP(C138,#REF!,9,FALSE),"") ->  | B138: =C138&COUNTIF($C$2:C138,C138) -> FCC06001 | C138: FCC0600 | F138: 83 | G138: 400460.75 | H138: 2023-06-15 | I138: 50 | J138: 2023-07-19 | K138: 390770.76 | L138: 4269.99 | M138: 0 | N138: 5420 | O138: 0 | P138: 0 | Q138: 400460.75 | AW138: 396190.76 | AX138: FCC0600-15-06-2023
A139: =IFERROR(VLOOKUP(C139,#REF!,9,FALSE),"") ->  | B139: =C139&COUNTIF($C$2:C139,C139) -> FCB26301 | C139: FCB2630 | F139: 7 | G139: 29381.05 | H139: 2023-06-15 | I139: 50 | P139: 29381.05 | Q139: 29381.05 | AW139: 29381.05 | AX139: FCB2630-15-06-2023
A140: =IFERROR(VLOOKUP(C140,#REF!,9,FALSE),"") ->  | B140: =C140&COUNTIF($C$2:C140,C140) -> FCC91761 | C140: FCC9176 | E140: advance | F140: 114 | G140: 1796270.87 | H140: 2023-06-15 | I140: 50 | P140: 1796270.87 | Q140: 1796270.87 | AW140: 1796270.87 | AX140: FCC9176-15-06-2023
A141: =IFERROR(VLOOKUP(C141,#REF!,9,FALSE),"") ->  | B141: =C141&COUNTIF($C$2:C141,C141) -> FCC91581 | C141: FCC9158 | E141: advance | F141: 84 | G141: 3572641.5 | H141: 2023-06-15 | I141: 50 | J141: 2023-07-18 | K141: 1804198.6 | L141: 223389.5 | M141: 0 | N141: 1545053.4 | O141: old&new rr | P141: 0 | Q141: 3572641.5 | AW141: 3349252 | AX141: FCC9158-15-06-2023
A142: =IFERROR(VLOOKUP(C142,#REF!,9,FALSE),"") ->  | B142: =C142&COUNTIF($C$2:C142,C142) -> FCC33001 | C142: FCC3300 | E142: advance | F142: 207 | G142: 7925748.17 | H142: 2023-06-15 | I142: 50 | J142: 2023-07-19 | K142: 6910342.05 | L142: 0 | M142: 430966.08 | N142: 584440.04 | O142: 0 | P142: 0 | Q142: 7925748.17 | AW142: 7925748.17 | AX142: FCC3300-15-06-2023
C143: FCS2924 | F143: 5 | G143: 16669 | H143: 2023-06-15 | I143: =+TODAY()-H143 -> 50 | P143: =+G143-K143-L143-M143-N143 -> 16669 | AW143: 16669 | AX143: FCS2924-15-06-2023
A144: =IFERROR(VLOOKUP(C144,#REF!,9,FALSE),"") ->  | B144: =C144&COUNTIF($C$2:C144,C144) -> FCF26131 | C144: FCF2613 | F144: 6 | G144: 52992.9 | H144: 2023-06-18 | I144: 47 | P144: 52992.9 | Q144: 52992.9 | AW144: 52992.9 | AX144: FCF2613-18-06-2023
A145: =IFERROR(VLOOKUP(C145,#REF!,9,FALSE),"") ->  | B145: =C145&COUNTIF($C$2:C145,C145) -> FCC35301 | C145: FCC3530 | F145: 5 | G145: 10132 | H145: 2023-06-18 | I145: 47 | P145: 10132 | Q145: 10132 | AW145: 10132 | AX145: FCC3530-18-06-2023
A146: =IFERROR(VLOOKUP(C146,#REF!,9,FALSE),"") ->  | B146: =C146&COUNTIF($C$2:C146,C146) -> FCS29781 | C146: FCS2978 | F146: 12 | G146: 60465 | H146: 2023-06-18 | I146: 47 | P146: 60465 | Q146: 60465 | AW146: 60465 | AX146: FCS2978-18-06-2023
A147: =IFERROR(VLOOKUP(C147,#REF!,9,FALSE),"") ->  | B147: =C147&COUNTIF($C$2:C147,C147) -> FCS29201 | C147: FCS2920 | F147: 1 | G147: 4229 | H147: 2023-06-18 | I147: 47 | P147: 4229 | Q147: 4229 | AW147: 4229 | AX147: FCS2920-18-06-2023
A148: =IFERROR(VLOOKUP(C148,#REF!,9,FALSE),"") ->  | B148: =C148&COUNTIF($C$2:C148,C148) -> FCC91871 | C148: FCC9187 | F148: 2 | G148: 9690 | H148: 2023-06-18 | I148: 47 | P148: 9690 | Q148: 9690 | AW148: 9690 | AX148: FCC9187-18-06-2023
A149: =IFERROR(VLOOKUP(C149,#REF!,9,FALSE),"") ->  | B149: =C149&COUNTIF($C$2:C149,C149) -> FCC91711 | C149: FCC9171 | F149: 8 | G149: 477441.69 | H149: 2023-06-18 | I149: 47 | P149: 477441.69 | Q149: 477441.69 | AW149: 477441.69 | AX149: FCC9171-18-06-2023
A150: =IFERROR(VLOOKUP(C150,#REF!,9,FALSE),"") ->  | B150: =C150&COUNTIF($C$2:C150,C150) -> FCB22201 | C150: FCB2220 | F150: 2 | G150: 1457.69 | H150: 2023-06-18 | I150: 47 | P150: 1457.69 | Q150: 1457.69 | AW150: 1457.69 | AX150: FCB2220-18-06-2023
A151: =IFERROR(VLOOKUP(C151,#REF!,9,FALSE),"") ->  | B151: =C151&COUNTIF($C$2:C151,C151) -> FCS29171 | C151: FCS2917 | F151: 9 | G151: 56634.75 | H151: 2023-06-18 | I151: 47 | P151: 56634.75 | Q151: 56634.75 | AW151: 56634.75 | AX151: FCS2917-18-06-2023
A152: =IFERROR(VLOOKUP(C152,#REF!,9,FALSE),"") ->  | B152: =C152&COUNTIF($C$2:C152,C152) -> FCS10501 | C152: FCS1050 | F152: 15 | G152: 108183.7 | H152: 2023-06-18 | I152: 47 | P152: 108183.7 | Q152: 108183.7 | AW152: 108183.7 | AX152: FCS1050-18-06-2023
A153: =IFERROR(VLOOKUP(C153,#REF!,9,FALSE),"") ->  | B153: =C153&COUNTIF($C$2:C153,C153) -> FCC14901 | C153: FCC1490 | F153: 6 | G153: 48999.88 | H153: 2023-06-18 | I153: 47 | P153: 48999.88 | Q153: 48999.88 | AW153: 48999.88 | AX153: FCC1490-18-06-2023
A154: =IFERROR(VLOOKUP(C154,#REF!,9,FALSE),"") ->  | B154: =C154&COUNTIF($C$2:C154,C154) -> FCE00971 | C154: FCE0097 | F154: 1 | G154: 1928.3 | H154: 2023-06-18 | I154: 47 | P154: 1928.3 | Q154: 1928.3 | AW154: 1928.3 | AX154: FCE0097-18-06-2023
A155: =IFERROR(VLOOKUP(C155,#REF!,9,FALSE),"") ->  | B155: =C155&COUNTIF($C$2:C155,C155) -> FCX12601 | C155: FCX1260 | F155: 13 | G155: 38394 | H155: 2023-06-18 | I155: 47 | P155: 38394 | Q155: 38394 | AW155: 38394 | AX155: FCX1260-18-06-2023
A156: =IFERROR(VLOOKUP(C156,#REF!,9,FALSE),"") ->  | B156: =C156&COUNTIF($C$2:C156,C156) -> FCC91501 | C156: FCC9150 | F156: 6 | G156: 89936.67 | H156: 2023-06-18 | I156: 47 | P156: 89936.67 | Q156: 89936.67 | AW156: 89936.67 | AX156: FCC9150-18-06-2023
A157: =IFERROR(VLOOKUP(C157,#REF!,9,FALSE),"") ->  | B157: =C157&COUNTIF($C$2:C157,C157) -> FCD24301 | C157: FCD2430 | F157: 1 | G157: 2428 | H157: 2023-06-19 | I157: 46 | P157: 2428 | Q157: 2428 | AW157: 2428 | AX157: FCD2430-19-06-2023
A158: =IFERROR(VLOOKUP(C158,#REF!,9,FALSE),"") ->  | B158: =C158&COUNTIF($C$2:C158,C158) -> FCC91691 | C158: FCC9169 | F158: 6 | G158: 156432.14 | H158: 2023-06-19 | I158: 46 | P158: 156432.14 | Q158: 156432.14 | AW158: 156432.14 | AX158: FCC9169-19-06-2023
A159: =IFERROR(VLOOKUP(C159,#REF!,9,FALSE),"") ->  | B159: =C159&COUNTIF($C$2:C159,C159) -> FCB35401 | C159: FCB3540 | F159: 2 | G159: 15529 | H159: 2023-06-19 | I159: 46 | P159: 15529 | Q159: 15529 | AW159: 15529 | AX159: FCB3540-19-06-2023
A160: =IFERROR(VLOOKUP(C160,#REF!,9,FALSE),"") ->  | B160: =C160&COUNTIF($C$2:C160,C160) -> FCC91941 | C160: FCC9194 | F160: 3 | G160: 40639 | H160: 2023-06-19 | I160: 46 | P160: 40639 | Q160: 40639 | AW160: 40639 | AX160: FCC9194-19-06-2023
A161: =IFERROR(VLOOKUP(C161,#REF!,9,FALSE),"") ->  | B161: =C161&COUNTIF($C$2:C161,C161) -> FCC91811 | C161: FCC9181 | F161: 4 | G161: 60487.5 | H161: 2023-06-19 | I161: 46 | P161: 60487.5 | Q161: 60487.5 | AW161: 60487.5 | AX161: FCC9181-19-06-2023
A162: =IFERROR(VLOOKUP(C162,#REF!,9,FALSE),"") ->  | B162: =C162&COUNTIF($C$2:C162,C162) -> FCC06401 | C162: FCC0640 | F162: 7 | G162: 162612.01 | H162: 2023-06-19 | I162: 46 | P162: 162612.01 | Q162: 162612.01 | AW162: 162612.01 | AX162: FCC0640-19-06-2023
A163: =IFERROR(VLOOKUP(C163,#REF!,9,FALSE),"") ->  | B163: =C163&COUNTIF($C$2:C163,C163) -> FCC33801 | C163: FCC3380 | F163: 33 | G163: 237061 | H163: 2023-06-19 | I163: 46 | J163: 2023-07-30 | K163: 214169 | L163: 3 | M163: 0 | N163: 22889 | O163: 0 | P163: 0 | Q163: 237061 | AW163: 237058 | AX163: FCC3380-19-06-2023
A164: =IFERROR(VLOOKUP(C164,#REF!,9,FALSE),"") ->  | B164: =C164&COUNTIF($C$2:C164,C164) -> FCC90901 | C164: FCC9090 | F164: 24 | G164: 653448.48 | H164: 2023-06-19 | I164: 46 | P164: 653448.48 | Q164: 653448.48 | AW164: 653448.48 | AX164: FCC9090-19-06-2023
A165: =IFERROR(VLOOKUP(C165,#REF!,9,FALSE),"") ->  | B165: =C165&COUNTIF($C$2:C165,C165) -> FCF26161 | C165: FCF2616 | F165: 7 | G165: 28930.5 | H165: 2023-06-19 | I165: 46 | P165: 28930.5 | Q165: 28930.5 | AW165: 28930.5 | AX165: FCF2616-19-06-2023
A166: =IFERROR(VLOOKUP(C166,#REF!,9,FALSE),"") ->  | B166: =C166&COUNTIF($C$2:C166,C166) -> FCC01502 | C166: FCC0150 | E166: advance | F166: 1 | G166: 8235 | H166: 2023-06-19 | I166: 46 | J166: 2023-06-20 | K166: 8235 | L166: -6588 | M166: 0 | N166: 0 | O166: 0 | P166: 6588 | Q166: 8235 | AW166: 14823 | AX166: FCC0150-19-06-2023
A167: =IFERROR(VLOOKUP(C167,#REF!,9,FALSE),"") ->  | B167: =C167&COUNTIF($C$2:C167,C167) -> FCC02801 | C167: FCC0280 | E167: advance | F167: 78 | G167: 2129152.1 | H167: 2023-06-19 | I167: 46 | J167: 2023-07-19 | K167: 970988.38 | L167: 0 | M167: 19357.5 | N167: 1138806.22 | O167: 0 | P167: 0 | Q167: 2129152.1 | AW167: 2129152.1 | AX167: FCC0280-19-06-2023
A168: =IFERROR(VLOOKUP(C168,#REF!,9,FALSE),"") ->  | B168: =C168&COUNTIF($C$2:C168,C168) -> FCS22701 | C168: FCS2270 | F168: 4 | G168: 34709.1 | H168: 2023-06-19 | I168: 46 | P168: 34709.1 | Q168: 34709.1 | AW168: 34709.1 | AX168: FCS2270-19-06-2023
A169: =IFERROR(VLOOKUP(C169,#REF!,9,FALSE),"") ->  | B169: =C169&COUNTIF($C$2:C169,C169) -> FCS29271 | C169: FCS2927 | F169: 22 | G169: 254561.69 | H169: 2023-06-19 | I169: 46 | P169: 254561.69 | Q169: 254561.69 | AW169: 254561.69 | AX169: FCS2927-19-06-2023
A170: =IFERROR(VLOOKUP(C170,#REF!,9,FALSE),"") ->  | B170: =C170&COUNTIF($C$2:C170,C170) -> FCC91391 | C170: FCC9139 | F170: 9 | G170: 39405 | H170: 2023-06-19 | I170: 46 | P170: 39405 | Q170: 39405 | AW170: 39405 | AX170: FCC9139-19-06-2023
A171: =IFERROR(VLOOKUP(C171,#REF!,9,FALSE),"") ->  | B171: =C171&COUNTIF($C$2:C171,C171) -> FCC21101 | C171: FCC2110 | F171: 2 | G171: 9528 | H171: 2023-06-19 | I171: 46 | P171: 9528 | Q171: 9528 | AW171: 9528 | AX171: FCC2110-19-06-2023
A172: =IFERROR(VLOOKUP(C172,#REF!,9,FALSE),"") ->  | B172: =C172&COUNTIF($C$2:C172,C172) -> FCC91821 | C172: FCC9182 | F172: 3 | G172: 24482.5 | H172: 2023-06-19 | I172: 46 | P172: 24482.5 | Q172: 24482.5 | AW172: 24482.5 | AX172: FCC9182-19-06-2023
A173: =IFERROR(VLOOKUP(C173,#REF!,9,FALSE),"") ->  | B173: =C173&COUNTIF($C$2:C173,C173) -> FCF26171 | C173: FCF2617 | F173: 5 | G173: 74039.44 | H173: 2023-06-20 | I173: 45 | P173: 74039.44 | Q173: 74039.44 | AW173: 74039.44 | AX173: FCF2617-20-06-2023
A174: =IFERROR(VLOOKUP(C174,#REF!,9,FALSE),"") ->  | B174: =C174&COUNTIF($C$2:C174,C174) -> FCC28401 | C174: FCC2840 | E174: advance | F174: 43 | G174: 148371.5 | H174: 2023-06-20 | I174: 45 | J174: 2023-07-27 | K174: 118209.9 | L174: 10322.1 | M174: 0 | N174: 19839.5 | O174: 0 | P174: 0 | Q174: 148371.5 | AW174: 138049.4 | AX174: FCC2840-20-06-2023
A175: =IFERROR(VLOOKUP(C175,#REF!,9,FALSE),"") ->  | B175: =C175&COUNTIF($C$2:C175,C175) -> FCS29141 | C175: FCS2914 | F175: 13 | G175: 62991.53 | H175: 2023-06-20 | I175: 45 | P175: 62991.53 | Q175: 62991.53 | AW175: 62991.53 | AX175: FCS2914-20-06-2023
A176: =IFERROR(VLOOKUP(C176,#REF!,9,FALSE),"") ->  | B176: =C176&COUNTIF($C$2:C176,C176) -> FCC91881 | C176: FCC9188 | F176: 9 | G176: 119375.26 | H176: 2023-06-20 | I176: 45 | P176: 119375.26 | Q176: 119375.26 | AW176: 119375.26 | AX176: FCC9188-20-06-2023
A177: =IFERROR(VLOOKUP(C177,#REF!,9,FALSE),"") ->  | B177: =C177&COUNTIF($C$2:C177,C177) -> FCC16601 | C177: FCC1660 | E177: advance+VD | F177: 63 | G177: 792226.13 | H177: 2023-06-20 | I177: 45 | J177: 2023-07-19 | K177: 788554.87 | L177: 3471.26 | M177: 200 | N177: 0 | O177: 0 | P177: 0 | Q177: 792226.13 | AW177: 788754.87 | AX177: FCC1660-20-06-2023
A178: =IFERROR(VLOOKUP(C178,#REF!,9,FALSE),"") ->  | B178: =C178&COUNTIF($C$2:C178,C178) -> FCK24101 | C178: FCK2410 | F178: 19 | G178: 109745.66 | H178: 2023-06-20 | I178: 45 | P178: 109745.66 | Q178: 109745.66 | AW178: 109745.66 | AX178: FCK2410-20-06-2023
A179: =IFERROR(VLOOKUP(C179,#REF!,9,FALSE),"") ->  | B179: =C179&COUNTIF($C$2:C179,C179) -> FCU19921 | C179: FCU1992 | F179: 6 | G179: 59956.41 | H179: 2023-06-21 | I179: 44 | P179: 59956.41 | Q179: 59956.41 | AW179: 59956.41 | AX179: FCU1992-21-06-2023
A180: =IFERROR(VLOOKUP(C180,#REF!,9,FALSE),"") ->  | B180: =C180&COUNTIF($C$2:C180,C180) -> FCC02701 | C180: FCC0270 | E180: advance | F180: 10 | G180: 53720 | H180: 2023-06-21 | I180: 44 | J180: 2023-07-16 | K180: 48858.29 | L180: 4861.71 | M180: 0 | N180: 0 | O180: price differnce, claim paid in cash | P180: 0 | Q180: 53720 | AW180: 48858.29 | AX180: FCC0270-21-06-2023
A181: =IFERROR(VLOOKUP(C181,#REF!,9,FALSE),"") ->  | B181: =C181&COUNTIF($C$2:C181,C181) -> FCV11701 | C181: FCV1170 | F181: 10 | G181: 48259.24 | H181: 2023-06-21 | I181: 44 | P181: 48259.24 | Q181: 48259.24 | AW181: 48259.24 | AX181: FCV1170-21-06-2023
A182: =IFERROR(VLOOKUP(C182,#REF!,9,FALSE),"") ->  | B182: =C182&COUNTIF($C$2:C182,C182) -> FCC00601 | C182: FCC0060 | E182: advance | F182: 24 | G182: 220562.8 | H182: 2023-06-21 | I182: 44 | P182: 220562.8 | Q182: 220562.8 | AW182: 220562.8 | AX182: FCC0060-21-06-2023
A183: =IFERROR(VLOOKUP(C183,#REF!,9,FALSE),"") ->  | B183: =C183&COUNTIF($C$2:C183,C183) -> FCE01011 | C183: FCE0101 | F183: 19 | G183: 96402.36 | H183: 2023-06-21 | I183: 44 | P183: 96402.36 | Q183: 96402.36 | AW183: 96402.36 | AX183: FCE0101-21-06-2023
A184: =IFERROR(VLOOKUP(C184,#REF!,9,FALSE),"") ->  | B184: =C184&COUNTIF($C$2:C184,C184) -> FCU19901 | C184: FCU1990 | F184: 20 | G184: 115126.85 | H184: 2023-06-21 | I184: 44 | P184: 115126.85 | Q184: 115126.85 | AW184: 115126.85 | AX184: FCU1990-21-06-2023
A185: =IFERROR(VLOOKUP(C185,#REF!,9,FALSE),"") ->  | B185: =C185&COUNTIF($C$2:C185,C185) -> FCC91471 | C185: FCC9147 | F185: 2 | G185: 6500 | H185: 2023-06-21 | I185: 44 | P185: 6500 | Q185: 6500 | AW185: 6500 | AX185: FCC9147-21-06-2023
A186: =IFERROR(VLOOKUP(C186,#REF!,9,FALSE),"") ->  | B186: =C186&COUNTIF($C$2:C186,C186) -> FCK30841 | C186: FCK3084 | F186: 15 | G186: 180167.3 | H186: 2023-06-21 | I186: 44 | P186: 180167.3 | Q186: 180167.3 | AW186: 180167.3 | AX186: FCK3084-21-06-2023
A187: =IFERROR(VLOOKUP(C187,#REF!,9,FALSE),"") ->  | B187: =C187&COUNTIF($C$2:C187,C187) -> FCX27991 | C187: FCX2799 | F187: 9 | G187: 120856.68 | H187: 2023-06-22 | I187: 43 | P187: 120856.68 | Q187: 120856.68 | AW187: 120856.68 | AX187: FCX2799-22-06-2023
A188: =IFERROR(VLOOKUP(C188,#REF!,9,FALSE),"") ->  | B188: =C188&COUNTIF($C$2:C188,C188) -> FCN08901 | C188: FCN0890 | F188: 6 | G188: 91728.74 | H188: 2023-06-22 | I188: 43 | P188: 91728.74 | Q188: 91728.74 | AW188: 91728.74 | AX188: FCN0890-22-06-2023
A189: =IFERROR(VLOOKUP(C189,#REF!,9,FALSE),"") ->  | B189: =C189&COUNTIF($C$2:C189,C189) -> FCF26181 | C189: FCF2618 | F189: 4 | G189: 53285.86 | H189: 2023-06-22 | I189: 43 | P189: 53285.86 | Q189: 53285.86 | AW189: 53285.86 | AX189: FCF2618-22-06-2023
A190: =IFERROR(VLOOKUP(C190,#REF!,9,FALSE),"") ->  | B190: =C190&COUNTIF($C$2:C190,C190) -> FCZ17801 | C190: FCZ1780 | F190: 42 | G190: 69243.95 | H190: 2023-06-22 | I190: 43 | J190: 2023-07-26 | K190: 62820.83 | L190: 5694.63 | M190: 728.49 | N190: 0 | O190: 0 | P190: -2.273736754e-13 | Q190: 69243.95 | AW190: 63549.32 | AX190: FCZ1780-22-06-2023
A191: =IFERROR(VLOOKUP(C191,#REF!,9,FALSE),"") ->  | B191: =C191&COUNTIF($C$2:C191,C191) -> FCC91741 | C191: FCC9174 | F191: 1 | G191: 27000 | H191: 2023-06-22 | I191: 43 | P191: 27000 | Q191: 27000 | AW191: 27000 | AX191: FCC9174-22-06-2023
A192: =IFERROR(VLOOKUP(C192,#REF!,9,FALSE),"") ->  | B192: =C192&COUNTIF($C$2:C192,C192) -> FCC17802 | C192: FCC1780 | F192: 4 | G192: 51700 | H192: 2023-06-22 | I192: 43 | P192: 51700 | Q192: 51700 | AW192: 51700 | AX192: FCC1780-22-06-2023
A193: =IFERROR(VLOOKUP(C193,#REF!,9,FALSE),"") ->  | B193: =C193&COUNTIF($C$2:C193,C193) -> FCC35201 | C193: FCC3520 | E193: advance | F193: 33 | G193: 540315.6 | H193: 2023-06-25 | I193: 40 | P193: 540315.6 | Q193: 540315.6 | AW193: 540315.6 | AX193: FCC3520-25-06-2023
A194: =IFERROR(VLOOKUP(C194,#REF!,9,FALSE),"") ->  | B194: =C194&COUNTIF($C$2:C194,C194) -> FCC91921 | C194: FCC9192 | F194: 9 | G194: 109246.09 | H194: 2023-06-25 | I194: =+TODAY()-H194 -> 40 | P194: =+G194-K194-L194-M194-N194 -> 109246.09 | Q194: =+G194-R194-T194-V194-X194-Z194-AB194-AD194-AF194-AH194-AJ194-AL194-AN194-AP194-AT194-AV194 -> 109246.09 | AW194: 109246.09 | AX194: FCC9192-25-06-2023
A195: =IFERROR(VLOOKUP(C195,#REF!,9,FALSE),"") ->  | B195: =C195&COUNTIF($C$2:C195,C195) -> FCY13501 | C195: FCY1350 | F195: 20 | G195: 195774.97 | H195: 2023-06-25 | I195: 40 | P195: 195774.97 | Q195: 195774.97 | AW195: =G195-(L195++R195+T195+V195+X195+Z195+AB195+AD195+AF195+AH195+AJ195+AL195+AN195+AP195+AR195) -> 195774.97 | AX195: =CONCATENATE(C195,"-",TEXT(H195,"DD-MM-YYYY")) -> FCY1350-25-06-2023
A196: =IFERROR(VLOOKUP(C196,#REF!,9,FALSE),"") ->  | B196: =C196&COUNTIF($C$2:C196,C196) -> FCG30921 | C196: FCG3092 | F196: 5 | G196: 20125.25 | H196: 2023-06-25 | I196: 40 | P196: 20125.25 | Q196: 20125.25 | AW196: 20125.25 | AX196: FCG3092-25-06-2023
A197: =IFERROR(VLOOKUP(C197,#REF!,9,FALSE),"") ->  | B197: =C197&COUNTIF($C$2:C197,C197) -> FCX18301 | C197: FCX1830 | F197: 20 | G197: 191489.71 | H197: 2023-06-25 | I197: 40 | P197: 191489.71 | Q197: 191489.71 | AW197: 191489.71 | AX197: FCX1830-25-06-2023
A198: =IFERROR(VLOOKUP(C198,#REF!,9,FALSE),"") ->  | B198: =C198&COUNTIF($C$2:C198,C198) -> FCZ18101 | C198: FCZ1810 | F198: 11 | G198: 4744.1 | H198: 2023-06-25 | I198: 40 | P198: 4744.1 | Q198: 4744.1 | AW198: 4744.1 | AX198: FCZ1810-25-06-2023
A199: =IFERROR(VLOOKUP(C199,#REF!,9,FALSE),"") ->  | B199: =C199&COUNTIF($C$2:C199,C199) -> FCX25601 | C199: FCX2560 | F199: 3 | G199: 81282.96 | H199: 2023-06-25 | I199: 40 | P199: 81282.96 | Q199: 81282.96 | AW199: 81282.96 | AX199: FCX2560-25-06-2023
A200: =IFERROR(VLOOKUP(C200,#REF!,9,FALSE),"") ->  | B200: =C200&COUNTIF($C$2:C200,C200) -> FCK35501 | C200: FCK3550 | F200: 1 | G200: 9380.22 | H200: 2023-06-25 | I200: 40 | P200: 9380.22 | Q200: 9380.22 | AW200: 9380.22 | AX200: FCK3550-25-06-2023
... 78 more rows

Sheet Month 07-2023
A1: Status | B1: Helper | C1: Provider Code | E1: BATCH NO: | F1: Number of claims | G1: AMOUNT | H1: Date Received | I1: TAT | J1: Date posting | K1: Paid | L1: Rejected | M1: H.H | N1: Pending | O1: Comment | P1: Rev Diff | Q1: Pay Diff | R1: Taxes | S1: Checks no. | T1: Amount checks | U1: Checks no. | V1: Amount checks | W1: Checks no. | X1: Amount checks | Y1: Checks no. | Z1: Amount checks | AA1: Checks no. | AB1: Amount checks | AC1: Checks no. | AD1: Amount checks | AE1: Checks no. | AF1: Amount checks | AG1: Checks no. | AH1: Amount checks | AI1: Checks no. | AJ1: Amount checks | AK1: Checks no. | AL1: Amount checks | AM1: Checks no. | AN1: Amount checks | AO1: Checks no. | AP1: Amount checks | AQ1: Checks no. | AR1: Amount checks | AS1: Checks no. | AT1: Amount checks | AU1: Checks no. | AV1: Amount checks | AW1: TAT | AX1: =CONCATENATE(C1,"-",TEXT(H1,"DD-MM-YYYY")) -> Provider Code-Date Received
A2: =IFERROR(VLOOKUP(C2,#REF!,9,FALSE),"") ->  | B2: =C2&COUNTIF($C$2:C2,C2) -> FCC01401 | C2: FCC0140 | F2: 20 | G2: 365238.29 | H2: 2023-07-04 | I2: =+TODAY()-H2 -> 31 | P2: =+G2-K2-L2-M2-N2 -> 365238.29 | Q2: =+G2-R2-T2-V2-X2-Z2-AB2-AD2-AF2-AH2-AJ2-AL2-AN2-AP2-AT2-AV2 -> 365238.29 | AW2: =G2-(L2++R2+T2+V2+X2+Z2+AB2+AD2+AF2+AH2+AJ2+AL2+AN2+AP2+AR2) -> 365238.29 | AX2: FCC0140-04-07-2023
A3: =IFERROR(VLOOKUP(C3,#REF!,9,FALSE),"") ->  | B3: =C3&COUNTIF($C$2:C3,C3) -> FCK30831 | C3: FCK3083 | F3: 4 | G3: 74064 | H3: 2023-07-04 | I3: 31 | P3: 74064 | Q3: 74064 | AW3: 74064 | AX3: FCK3083-04-07-2023
A4: =IFERROR(VLOOKUP(C4,#REF!,9,FALSE),"") ->  | B4: =C4&COUNTIF($C$2:C4,C4) -> FCC22001 | C4: FCC2200 | F4: 2 | G4: 46000 | H4: 2023-07-04 | I4: 31 | P4: 46000 | Q4: 46000 | AW4: 46000 | AX4: FCC2200-04-07-2023
A5: =IFERROR(VLOOKUP(C5,#REF!,9,FALSE),"") ->  | B5: =C5&COUNTIF($C$2:C5,C5) -> fcc21501 | C5: fcc2150 | F5: 7 | G5: 61637.74 | H5: 2023-07-04 | I5: 31 | P5: 61637.74 | Q5: 61637.74 | AW5: 61637.74 | AX5: fcc2150-04-07-2023
A6: =IFERROR(VLOOKUP(C6,#REF!,9,FALSE),"") ->  | B6: =C6&COUNTIF($C$2:C6,C6) -> FCB30801 | C6: FCB3080 | F6: 2 | G6: 8941 | H6: 2023-07-04 | I6: 31 | P6: 8941 | Q6: 8941 | AW6: 8941 | AX6: FCB3080-04-07-2023
A7: =IFERROR(VLOOKUP(C7,#REF!,9,FALSE),"") ->  | B7: =C7&COUNTIF($C$2:C7,C7) -> FCF23301 | C7: FCF2330 | F7: 6 | G7: 36686.95 | H7: 2023-07-04 | I7: 31 | P7: 36686.95 | Q7: 36686.95 | AW7: 36686.95 | AX7: FCF2330-04-07-2023
A8: =IFERROR(VLOOKUP(C8,#REF!,9,FALSE),"") ->  | B8: =C8&COUNTIF($C$2:C8,C8) -> FCN31431 | C8: FCN3143 | F8: 14 | G8: 65145.59 | H8: 2023-07-04 | I8: 31 | P8: 65145.59 | Q8: 65145.59 | AW8: 65145.59 | AX8: FCN3143-04-07-2023
A9: =IFERROR(VLOOKUP(C9,#REF!,9,FALSE),"") ->  | B9: =C9&COUNTIF($C$2:C9,C9) -> FCU11301 | C9: FCU1130 | F9: 1 | G9: 8817.85 | H9: 2023-07-04 | I9: 31 | P9: 8817.85 | Q9: 8817.85 | AW9: 8817.85 | AX9: FCU1130-04-07-2023
A10: =IFERROR(VLOOKUP(C10,#REF!,9,FALSE),"") ->  | B10: =C10&COUNTIF($C$2:C10,C10) -> FCX34801 | C10: FCX3480 | F10: 3 | G10: 33283.02 | H10: 2023-07-05 | I10: 30 | P10: 33283.02 | Q10: 33283.02 | AW10: 33283.02 | AX10: FCX3480-05-07-2023
A11: =IFERROR(VLOOKUP(C11,#REF!,9,FALSE),"") ->  | B11: =C11&COUNTIF($C$2:C11,C11) -> FCH07201 | C11: FCH0720 | F11: 3 | G11: 63341.12 | H11: 2023-07-05 | I11: 30 | P11: 63341.12 | Q11: 63341.12 | AW11: 63341.12 | AX11: FCH0720-05-07-2023
A12: =IFERROR(VLOOKUP(C12,#REF!,9,FALSE),"") ->  | B12: =C12&COUNTIF($C$2:C12,C12) -> FCF26101 | C12: FCF2610 | F12: 17 | G12: 103017 | H12: 2023-07-05 | I12: 30 | P12: 103017 | Q12: 103017 | AW12: 103017 | AX12: FCF2610-05-07-2023
A13: =IFERROR(VLOOKUP(C13,#REF!,9,FALSE),"") ->  | B13: =C13&COUNTIF($C$2:C13,C13) -> FCC15901 | C13: FCC1590 | F13: 4 | G13: 36373.5 | H13: 2023-07-05 | I13: 30 | P13: 36373.5 | Q13: 36373.5 | AW13: 36373.5 | AX13: FCC1590-05-07-2023
A14: =IFERROR(VLOOKUP(C14,#REF!,9,FALSE),"") ->  | B14: =C14&COUNTIF($C$2:C14,C14) -> FCC04101 | C14: FCC0410 | F14: 4 | G14: 13078 | H14: 2023-07-05 | I14: 30 | P14: 13078 | Q14: 13078 | AW14: 13078 | AX14: FCC0410-05-07-2023
A15: =IFERROR(VLOOKUP(C15,#REF!,9,FALSE),"") ->  | B15: =C15&COUNTIF($C$2:C15,C15) -> FCF24701 | C15: FCF2470 | F15: 2 | G15: 27877.96 | H15: 2023-07-05 | I15: 30 | P15: 27877.96 | Q15: 27877.96 | AW15: 27877.96 | AX15: FCF2470-05-07-2023
A16: =IFERROR(VLOOKUP(C16,#REF!,9,FALSE),"") ->  | B16: =C16&COUNTIF($C$2:C16,C16) -> FCC27801 | C16: FCC2780 | F16: 14 | G16: 86652 | H16: 2023-07-05 | I16: 30 | J16: 2023-07-31 | K16: 86101.5 | L16: 550.5 | M16: 0 | N16: 0 | O16: 0 | P16: 0 | Q16: 86652 | AW16: 86101.5 | AX16: FCC2780-05-07-2023
A17: =IFERROR(VLOOKUP(C17,#REF!,9,FALSE),"") ->  | B17: =C17&COUNTIF($C$2:C17,C17) -> FCX16101 | C17: FCX1610 | F17: 1 | G17: 35306.72 | H17: 2023-07-05 | I17: 30 | P17: 35306.72 | Q17: 35306.72 | AW17: 35306.72 | AX17: FCX1610-05-07-2023
A18: =IFERROR(VLOOKUP(C18,#REF!,9,FALSE),"") ->  | B18: =C18&COUNTIF($C$2:C18,C18) -> FCF26141 | C18: FCF2614 | F18: 4 | G18: 109729.46 | H18: 2023-07-05 | I18: 30 | P18: 109729.46 | Q18: 109729.46 | AW18: 109729.46 | AX18: FCF2614-05-07-2023
A19: =IFERROR(VLOOKUP(C19,#REF!,9,FALSE),"") ->  | B19: =C19&COUNTIF($C$2:C19,C19) -> FCX27961 | C19: FCX2796 | F19: 1 | G19: 3043.55 | H19: 2023-07-05 | I19: 30 | P19: 3043.55 | Q19: 3043.55 | AW19: 3043.55 | AX19: FCX2796-05-07-2023
A20: =IFERROR(VLOOKUP(C20,#REF!,9,FALSE),"") ->  | B20: =C20&COUNTIF($C$2:C20,C20) -> FCD30501 | C20: FCD3050 | F20: 8 | G20: 42779 | H20: 2023-07-05 | I20: 30 | P20: 42779 | Q20: 42779 | AW20: 42779 | AX20: FCD3050-05-07-2023
A21: =IFERROR(VLOOKUP(C21,#REF!,9,FALSE),"") ->  | B21: =C21&COUNTIF($C$2:C21,C21) -> FCC91861 | C21: FCC9186 | F21: 2 | G21: 13200 | H21: 2023-07-05 | I21: 30 | P21: 13200 | Q21: 13200 | AW21: 13200 | AX21: FCC9186-05-07-2023
A22: =IFERROR(VLOOKUP(C22,#REF!,9,FALSE),"") ->  | B22: =C22&COUNTIF($C$2:C22,C22) -> FCX12301 | C22: FCX1230 | F22: 1 | G22: 2018.7 | H22: 2023-07-05 | I22: 30 | P22: 2018.7 | Q22: 2018.7 | AW22: 2018.7 | AX22: FCX1230-05-07-2023
A23: =IFERROR(VLOOKUP(C23,#REF!,9,FALSE),"") ->  | B23: =C23&COUNTIF($C$2:C23,C23) -> FCK34201 | C23: FCK3420 | E23: advance | F23: 40 | G23: 460541.81 | H23: 2023-07-06 | I23: 29 | P23: 460541.81 | Q23: 460541.81 | AW23: 460541.81 | AX23: FCK3420-06-07-2023
A24: =IFERROR(VLOOKUP(C24,#REF!,9,FALSE),"") ->  | B24: =C24&COUNTIF($C$2:C24,C24) -> FCB26301 | C24: FCB2630 | F24: 9 | G24: 49598.37 | H24: 2023-07-06 | I24: 29 | P24: 49598.37 | Q24: 49598.37 | AW24: 49598.37 | AX24: FCB2630-06-07-2023
A25: =IFERROR(VLOOKUP(C25,#REF!,9,FALSE),"") ->  | B25: =C25&COUNTIF($C$2:C25,C25) -> FCP32821 | C25: FCP3282 | F25: 1 | G25: 1648.18 | H25: 2023-07-06 | I25: 29 | P25: 1648.18 | Q25: 1648.18 | AW25: 1648.18 | AX25: FCP3282-06-07-2023
A26: =IFERROR(VLOOKUP(C26,#REF!,9,FALSE),"") ->  | B26: =C26&COUNTIF($C$2:C26,C26) -> FCS29191 | C26: FCS2919 | F26: 3 | G26: 15446.75 | H26: 2023-07-06 | I26: 29 | P26: 15446.75 | Q26: 15446.75 | AW26: 15446.75 | AX26: FCS2919-06-07-2023
A27: =IFERROR(VLOOKUP(C27,#REF!,9,FALSE),"") ->  | B27: =C27&COUNTIF($C$2:C27,C27) -> FCC33101 | C27: FCC3310 | F27: 4 | G27: 23919.21 | H27: 2023-07-06 | I27: 29 | P27: 23919.21 | Q27: 23919.21 | AW27: 23919.21 | AX27: FCC3310-06-07-2023
A28: =IFERROR(VLOOKUP(C28,#REF!,9,FALSE),"") ->  | B28: =C28&COUNTIF($C$2:C28,C28) -> FCZ27281 | C28: FCZ2728 | F28: 5 | G28: 2524.16 | H28: 2023-07-06 | I28: 29 | P28: 2524.16 | Q28: 2524.16 | AW28: 2524.16 | AX28: FCZ2728-06-07-2023
A29: =IFERROR(VLOOKUP(C29,#REF!,9,FALSE),"") ->  | B29: =C29&COUNTIF($C$2:C29,C29) -> FCC91451 | C29: FCC9145 | F29: 2 | G29: 22788 | H29: 2023-07-06 | I29: 29 | P29: 22788 | Q29: 22788 | AW29: 22788 | AX29: FCC9145-06-07-2023
A30: =IFERROR(VLOOKUP(C30,#REF!,9,FALSE),"") ->  | B30: =C30&COUNTIF($C$2:C30,C30) -> FCS10601 | C30: FCS1060 | F30: 6 | G30: 25876.35 | H30: 2023-07-06 | I30: 29 | P30: 25876.35 | Q30: 25876.35 | AW30: 25876.35 | AX30: FCS1060-06-07-2023
A31: =IFERROR(VLOOKUP(C31,#REF!,9,FALSE),"") ->  | B31: =C31&COUNTIF($C$2:C31,C31) -> FCC17501 | C31: FCC1750 | F31: 4 | G31: 40600 | H31: 2023-07-06 | I31: 29 | P31: 40600 | Q31: 40600 | AW31: 40600 | AX31: FCC1750-06-07-2023
A32: =IFERROR(VLOOKUP(C32,#REF!,9,FALSE),"") ->  | B32: =C32&COUNTIF($C$2:C32,C32) -> FCC91621 | C32: FCC9162 | E32: advance | F32: 18 | G32: 253293 | H32: 2023-07-06 | I32: 29 | P32: 253293 | Q32: 253293 | AW32: 253293 | AX32: FCC9162-06-07-2023
A33: =IFERROR(VLOOKUP(C33,#REF!,9,FALSE),"") ->  | B33: =C33&COUNTIF($C$2:C33,C33) -> FCC01501 | C33: FCC0150 | E33: advance | F33: 22 | G33: 244724 | H33: 2023-07-06 | I33: 29 | P33: 244724 | Q33: 244724 | AW33: 244724 | AX33: FCC0150-06-07-2023
A34: =IFERROR(VLOOKUP(C34,#REF!,9,FALSE),"") ->  | B34: =C34&COUNTIF($C$2:C34,C34) -> FCU11501 | C34: FCU1150 | F34: 6 | G34: 18038.5 | H34: 2023-07-09 | I34: 26 | P34: 18038.5 | Q34: 18038.5 | AW34: 18038.5 | AX34: FCU1150-09-07-2023
A35: =IFERROR(VLOOKUP(C35,#REF!,9,FALSE),"") ->  | B35: =C35&COUNTIF($C$2:C35,C35) -> FCB28001 | C35: FCB2800 | F35: 4 | G35: 42000 | H35: 2023-07-09 | I35: 26 | P35: 42000 | Q35: 42000 | AW35: 42000 | AX35: FCB2800-09-07-2023
A36: =IFERROR(VLOOKUP(C36,#REF!,9,FALSE),"") ->  | B36: =C36&COUNTIF($C$2:C36,C36) -> FCY27051 | C36: FCY2705 | F36: 2 | G36: 11281.57 | H36: 2023-07-09 | I36: 26 | P36: 11281.57 | Q36: 11281.57 | AW36: 11281.57 | AX36: FCY2705-09-07-2023
A37: =IFERROR(VLOOKUP(C37,#REF!,9,FALSE),"") ->  | B37: =C37&COUNTIF($C$2:C37,C37) -> FCC02001 | C37: FCC0200 | E37: advance | F37: 27 | G37: 275373 | H37: 2023-07-09 | I37: 26 | P37: 275373 | Q37: 275373 | AW37: 275373 | AX37: FCC0200-09-07-2023
A38: =IFERROR(VLOOKUP(C38,#REF!,9,FALSE),"") ->  | B38: =C38&COUNTIF($C$2:C38,C38) -> FCC06501 | C38: FCC0650 | F38: 3 | G38: 18202.71 | H38: 2023-07-09 | I38: 26 | P38: 18202.71 | Q38: 18202.71 | AW38: 18202.71 | AX38: FCC0650-09-07-2023
A39: =IFERROR(VLOOKUP(C39,#REF!,9,FALSE),"") ->  | B39: =C39&COUNTIF($C$2:C39,C39) -> FCE33901 | C39: FCE3390 | F39: 3 | G39: 6718 | H39: 2023-07-09 | I39: 26 | P39: 6718 | Q39: 6718 | AW39: 6718 | AX39: FCE3390-09-07-2023
A40: =IFERROR(VLOOKUP(C40,#REF!,9,FALSE),"") ->  | B40: =C40&COUNTIF($C$2:C40,C40) -> FCC00801 | C40: FCC0080 | F40: 36 | G40: 190024.31 | H40: 2023-07-09 | I40: 26 | P40: 190024.31 | Q40: 190024.31 | AW40: 190024.31 | AX40: FCC0080-09-07-2023
A41: =IFERROR(VLOOKUP(C41,#REF!,9,FALSE),"") ->  | B41: =C41&COUNTIF($C$2:C41,C41) -> FCC91801 | C41: FCC9180 | F41: 7 | G41: 90123.51 | H41: 2023-07-09 | I41: 26 | P41: 90123.51 | Q41: 90123.51 | AW41: 90123.51 | AX41: FCC9180-09-07-2023
A42: =IFERROR(VLOOKUP(C42,#REF!,9,FALSE),"") ->  | B42: =C42&COUNTIF($C$2:C42,C42) -> FCC35101 | C42: FCC3510 | F42: 4 | G42: 8012.91 | H42: 2023-07-09 | I42: 26 | P42: 8012.91 | Q42: 8012.91 | AW42: 8012.91 | AX42: FCC3510-09-07-2023
A43: =IFERROR(VLOOKUP(C43,#REF!,9,FALSE),"") ->  | B43: =C43&COUNTIF($C$2:C43,C43) -> FCC35801 | C43: FCC3580 | F43: 1 | G43: 5362 | H43: 2023-07-09 | I43: 26 | P43: 5362 | Q43: 5362 | AW43: 5362 | AX43: FCC3580-09-07-2023
A44: =IFERROR(VLOOKUP(C44,#REF!,9,FALSE),"") ->  | B44: =C44&COUNTIF($C$2:C44,C44) -> FCC15801 | C44: FCC1580 | E44: advance | F44: 116 | G44: 2520525.52 | H44: 2023-07-09 | I44: 26 | P44: 2520525.52 | Q44: 2520525.52 | AW44: 2520525.52 | AX44: FCC1580-09-07-2023
A45: =IFERROR(VLOOKUP(C45,#REF!,9,FALSE),"") ->  | B45: =C45&COUNTIF($C$2:C45,C45) -> FCC91461 | C45: FCC9146 | F45: 2 | G45: 24164 | H45: 2023-07-09 | I45: 26 | P45: 24164 | Q45: 24164 | AW45: 24164 | AX45: FCC9146-09-07-2023
A46: =IFERROR(VLOOKUP(C46,#REF!,9,FALSE),"") ->  | B46: =C46&COUNTIF($C$2:C46,C46) -> FCC91721 | C46: FCC9172 | F46: 17 | G46: 439919.65 | H46: 2023-07-09 | I46: 26 | P46: 439919.65 | Q46: 439919.65 | AW46: 439919.65 | AX46: FCC9172-09-07-2023
A47: =IFERROR(VLOOKUP(C47,#REF!,9,FALSE),"") ->  | B47: =C47&COUNTIF($C$2:C47,C47) -> FCS28301 | C47: FCS2830 | E47: advance | F47: 40 | G47: 395709.92 | H47: 2023-07-09 | I47: 26 | P47: 395709.92 | Q47: 395709.92 | AW47: 395709.92 | AX47: FCS2830-09-07-2023
A48: =IFERROR(VLOOKUP(C48,#REF!,9,FALSE),"") ->  | B48: =C48&COUNTIF($C$2:C48,C48) -> FCJ31721 | C48: FCJ3172 | F48: 1 | G48: 1860 | H48: 2023-07-09 | I48: 26 | P48: 1860 | Q48: 1860 | AW48: 1860 | AX48: FCJ3172-09-07-2023
A49: =IFERROR(VLOOKUP(C49,#REF!,9,FALSE),"") ->  | B49: =C49&COUNTIF($C$2:C49,C49) -> FCC91641 | C49: FCC9164 | F49: 44 | G49: 387551 | H49: 2023-07-09 | I49: 26 | P49: 387551 | Q49: 387551 | AW49: 387551 | AX49: FCC9164-09-07-2023
A50: =IFERROR(VLOOKUP(C50,#REF!,9,FALSE),"") ->  | B50: =C50&COUNTIF($C$2:C50,C50) -> FCX27951 | C50: FCX2795 | F50: 3 | G50: 17806.73 | H50: 2023-07-09 | I50: 26 | P50: 17806.73 | Q50: 17806.73 | AW50: 17806.73 | AX50: FCX2795-09-07-2023
A51: =IFERROR(VLOOKUP(C51,#REF!,9,FALSE),"") ->  | B51: =C51&COUNTIF($C$2:C51,C51) -> FCC21801 | C51: FCC2180 | E51: advance | F51: 111 | G51: 2922299.88 | H51: 2023-07-09 | I51: 26 | J51: 2023-07-19 | K51: 1036414.49 | L51: 0.74 | M51: 95162.65 | N51: 1790722 | O51: 0 | P51: 0 | Q51: 2922299.88 | AW51: 2922299.14 | AX51: FCC2180-09-07-2023
A52: =IFERROR(VLOOKUP(C52,#REF!,9,FALSE),"") ->  | B52: =C52&COUNTIF($C$2:C52,C52) -> FCC31101 | C52: FCC3110 | E52: advance+VD | F52: 5 | G52: 48000 | H52: 2023-07-09 | I52: 26 | P52: 48000 | Q52: 48000 | AW52: 48000 | AX52: FCC3110-09-07-2023
A53: =IFERROR(VLOOKUP(C53,#REF!,9,FALSE),"") ->  | B53: =C53&COUNTIF($C$2:C53,C53) -> FCC14101 | C53: FCC1410 | E53: advance | F53: 36 | G53: 714981.97 | H53: 2023-07-09 | I53: 26 | P53: 714981.97 | Q53: 714981.97 | AW53: 714981.97 | AX53: FCC1410-09-07-2023
A54: =IFERROR(VLOOKUP(C54,#REF!,9,FALSE),"") ->  | B54: =C54&COUNTIF($C$2:C54,C54) -> FCC26201 | C54: FCC2620 | E54: advance | F54: 63 | G54: 587745.24 | H54: 2023-07-09 | I54: 26 | J54: 2023-07-26 | K54: 546713.21 | L54: 16032.03 | M54: 0 | N54: 25000 | O54: 0 | P54: 2.910383046e-11 | Q54: 587745.24 | AW54: 571713.21 | AX54: FCC2620-09-07-2023
A55: =IFERROR(VLOOKUP(C55,#REF!,9,FALSE),"") ->  | B55: =C55&COUNTIF($C$2:C55,C55) -> FCC32001 | C55: FCC3200 | E55: advance | F55: 10 | G55: 232847.22 | H55: 2023-07-09 | I55: 26 | P55: 232847.22 | Q55: 232847.22 | AW55: 232847.22 | AX55: FCC3200-09-07-2023
A56: =IFERROR(VLOOKUP(C56,#REF!,9,FALSE),"") ->  | B56: =C56&COUNTIF($C$2:C56,C56) -> FCB31941 | C56: FCB3194 | F56: 4 | G56: 27701.5 | H56: 2023-07-10 | I56: 25 | P56: 27701.5 | Q56: 27701.5 | AW56: 27701.5 | AX56: FCB3194-10-07-2023
A57: =IFERROR(VLOOKUP(C57,#REF!,9,FALSE),"") ->  | B57: =C57&COUNTIF($C$2:C57,C57) -> FCQ09801 | C57: FCQ0980 | F57: 2 | G57: 80465 | H57: 2023-07-10 | I57: 25 | P57: 80465 | Q57: 80465 | AW57: 80465 | AX57: FCQ0980-10-07-2023
A58: =IFERROR(VLOOKUP(C58,#REF!,9,FALSE),"") ->  | B58: =C58&COUNTIF($C$2:C58,C58) -> FCM27601 | C58: FCM2760 | F58: 7 | G58: 76121.19 | H58: 2023-07-10 | I58: 25 | P58: 76121.19 | Q58: 76121.19 | AW58: 76121.19 | AX58: FCM2760-10-07-2023
A59: =IFERROR(VLOOKUP(C59,#REF!,9,FALSE),"") ->  | B59: =C59&COUNTIF($C$2:C59,C59) -> FCC28801 | C59: FCC2880 | F59: 37 | G59: 438865.24 | H59: 2023-07-10 | I59: 25 | P59: 438865.24 | Q59: 438865.24 | AW59: 438865.24 | AX59: FCC2880-10-07-2023
A60: =IFERROR(VLOOKUP(C60,#REF!,9,FALSE),"") ->  | B60: =C60&COUNTIF($C$2:C60,C60) -> FCP32811 | C60: FCP3281 | F60: 1 | G60: 39307.44 | H60: 2023-07-10 | I60: 25 | P60: 39307.44 | Q60: 39307.44 | AW60: 39307.44 | AX60: FCP3281-10-07-2023
A61: =IFERROR(VLOOKUP(C61,#REF!,9,FALSE),"") ->  | B61: =C61&COUNTIF($C$2:C61,C61) -> FCK29901 | C61: FCK2990 | F61: 5 | G61: 32623 | H61: 2023-07-10 | I61: 25 | P61: 32623 | Q61: 32623 | AW61: 32623 | AX61: FCK2990-10-07-2023
A62: =IFERROR(VLOOKUP(C62,#REF!,9,FALSE),"") ->  | B62: =C62&COUNTIF($C$2:C62,C62) -> FCL32101 | C62: FCL3210 | F62: 6 | G62: 56989 | H62: 2023-07-10 | I62: 25 | P62: 56989 | Q62: 56989 | AW62: 56989 | AX62: FCL3210-10-07-2023
A63: =IFERROR(VLOOKUP(C63,#REF!,9,FALSE),"") ->  | B63: =C63&COUNTIF($C$2:C63,C63) -> FCS17001 | C63: FCS1700 | F63: 41 | G63: 377554.08 | H63: 2023-07-10 | I63: 25 | P63: 377554.08 | Q63: 377554.08 | AW63: 377554.08 | AX63: FCS1700-10-07-2023
A64: =IFERROR(VLOOKUP(C64,#REF!,9,FALSE),"") ->  | B64: =C64&COUNTIF($C$2:C64,C64) -> FCS10201 | C64: FCS1020 | F64: 78 | G64: 808395.54 | H64: 2023-07-10 | I64: 25 | P64: 808395.54 | Q64: 808395.54 | AW64: 808395.54 | AX64: FCS1020-10-07-2023
A65: =IFERROR(VLOOKUP(C65,#REF!,9,FALSE),"") ->  | B65: =C65&COUNTIF($C$2:C65,C65) -> FCX27931 | C65: FCX2793 | F65: 3 | G65: 37065.31 | H65: 2023-07-10 | I65: 25 | P65: 37065.31 | Q65: 37065.31 | AW65: 37065.31 | AX65: =CONCATENATE(C65,"-",TEXT(H65,"DD-MM-YYYY")) -> FCX2793-10-07-2023
A66: =IFERROR(VLOOKUP(C66,#REF!,9,FALSE),"") ->  | B66: =C66&COUNTIF($C$2:C66,C66) -> FCC91931 | C66: FCC9193 | F66: 3 | G66: 66396.09 | H66: 2023-07-10 | I66: =+TODAY()-H66 -> 25 | P66: =+G66-K66-L66-M66-N66 -> 66396.09 | Q66: =+G66-R66-T66-V66-X66-Z66-AB66-AD66-AF66-AH66-AJ66-AL66-AN66-AP66-AT66-AV66 -> 66396.09 | AW66: =G66-(L66++R66+T66+V66+X66+Z66+AB66+AD66+AF66+AH66+AJ66+AL66+AN66+AP66+AR66) -> 66396.09 | AX66: FCC9193-10-07-2023
A67: =IFERROR(VLOOKUP(C67,#REF!,9,FALSE),"") ->  | B67: =C67&COUNTIF($C$2:C67,C67) -> FCC91661 | C67: FCC9166 | F67: 1 | G67: 10400 | H67: 2023-07-10 | I67: 25 | P67: 10400 | Q67: 10400 | AW67: 10400 | AX67: FCC9166-10-07-2023
A68: =IFERROR(VLOOKUP(C68,#REF!,9,FALSE),"") ->  | B68: =C68&COUNTIF($C$2:C68,C68) -> FCC91851 | C68: FCC9185 | F68: 6 | G68: 96401.72 | H68: 2023-07-10 | I68: 25 | P68: 96401.72 | Q68: 96401.72 | AW68: 96401.72 | AX68: FCC9185-10-07-2023
A69: =IFERROR(VLOOKUP(C69,#REF!,9,FALSE),"") ->  | B69: =C69&COUNTIF($C$2:C69,C69) -> fcn31451 | C69: fcn3145 | F69: 41 | G69: 96758.14 | H69: 2023-07-10 | I69: 25 | J69: 2023-07-25 | K69: 90228.14 | L69: 6610 | M69: 0 | N69: 0 | O69: 0 | P69: -80 | Q69: 96758.14 | AW69: 90148.14 | AX69: fcn3145-10-07-2023
A70: =IFERROR(VLOOKUP(C70,#REF!,9,FALSE),"") ->  | B70: =C70&COUNTIF($C$2:C70,C70) -> FCU11302 | C70: FCU1130 | F70: 1 | G70: 6229.9 | H70: 2023-07-10 | I70: 25 | P70: 6229.9 | Q70: 6229.9 | AW70: 6229.9 | AX70: FCU1130-10-07-2023
A71: =IFERROR(VLOOKUP(C71,#REF!,9,FALSE),"") ->  | B71: =C71&COUNTIF($C$2:C71,C71) -> FCS23401 | C71: FCS2340 | F71: 9 | G71: 46745 | H71: 2023-07-10 | I71: 25 | P71: 46745 | Q71: 46745 | AW71: 46745 | AX71: FCS2340-10-07-2023
A72: =IFERROR(VLOOKUP(C72,#REF!,9,FALSE),"") ->  | B72: =C72&COUNTIF($C$2:C72,C72) -> FCX27401 | C72: FCX2740 | E72: advance | F72: 79 | G72: 1419946.21 | H72: 2023-07-10 | I72: 25 | P72: 1419946.21 | Q72: 1419946.21 | AW72: 1419946.21 | AX72: FCX2740-10-07-2023
A73: =IFERROR(VLOOKUP(C73,#REF!,9,FALSE),"") ->  | B73: =C73&COUNTIF($C$2:C73,C73) -> FCC06601 | C73: FCC0660 | F73: 8 | G73: 133388.35 | H73: 2023-07-10 | I73: 25 | P73: 133388.35 | Q73: 133388.35 | AW73: 133388.35 | AX73: FCC0660-10-07-2023
A74: =IFERROR(VLOOKUP(C74,#REF!,9,FALSE),"") ->  | B74: =C74&COUNTIF($C$2:C74,C74) -> FCC01101 | C74: FCC0110 | E74: advance | F74: 125 | G74: 3166994.59 | H74: 2023-07-10 | I74: 25 | P74: 3166994.59 | Q74: 3166994.59 | AW74: 3166994.59 | AX74: FCC0110-10-07-2023
A75: =IFERROR(VLOOKUP(C75,#REF!,9,FALSE),"") ->  | B75: =C75&COUNTIF($C$2:C75,C75) -> FCC30401 | C75: FCC3040 | E75: advance | F75: 45 | G75: 820775.8 | H75: 2023-07-10 | I75: 25 | J75: 2023-07-26 | K75: 744062.09 | L75: 0 | M75: 0 | N75: 76713.71 | O75: 0 | P75: 0 | Q75: 820775.8 | AW75: 820775.8 | AX75: FCC3040-10-07-2023
A76: =IFERROR(VLOOKUP(C76,#REF!,9,FALSE),"") ->  | B76: =C76&COUNTIF($C$2:C76,C76) -> FCC00901 | C76: FCC0090 | E76: advance | F76: 172 | G76: 7143878.75 | H76: 2023-07-10 | I76: 25 | P76: 7143878.75 | Q76: 7143878.75 | AW76: 7143878.75 | AX76: FCC0090-10-07-2023
A77: =IFERROR(VLOOKUP(C77,#REF!,9,FALSE),"") ->  | B77: =C77&COUNTIF($C$2:C77,C77) -> FCX18401 | C77: FCX1840 | E77: advance | F77: 47 | G77: 601023.71 | H77: 2023-07-10 | I77: 25 | P77: 601023.71 | Q77: 601023.71 | AW77: 601023.71 | AX77: FCX1840-10-07-2023
A78: =IFERROR(VLOOKUP(C78,#REF!,9,FALSE),"") ->  | B78: =C78&COUNTIF($C$2:C78,C78) -> FCC03401 | C78: FCC0340 | F78: 1 | G78: 5356.53 | H78: 2023-07-10 | I78: 25 | P78: 5356.53 | Q78: 5356.53 | AW78: 5356.53 | AX78: FCC0340-10-07-2023
A79: =IFERROR(VLOOKUP(C79,#REF!,9,FALSE),"") ->  | B79: =C79&COUNTIF($C$2:C79,C79) -> FCC91551 | C79: FCC9155 | F79: 9 | G79: 435639.2 | H79: 2023-07-10 | I79: 25 | P79: 435639.2 | Q79: 435639.2 | AW79: 435639.2 | AX79: FCC9155-10-07-2023
A80: =IFERROR(VLOOKUP(C80,#REF!,9,FALSE),"") ->  | B80: =C80&COUNTIF($C$2:C80,C80) -> FCX34901 | C80: FCX3490 | F80: 1 | G80: 11795 | H80: 2023-07-11 | I80: 24 | P80: 11795 | Q80: 11795 | AW80: 11795 | AX80: FCX3490-11-07-2023
A81: =IFERROR(VLOOKUP(C81,#REF!,9,FALSE),"") ->  | B81: =C81&COUNTIF($C$2:C81,C81) -> fcx26701 | C81: fcx2670 | F81: 4 | G81: 25150 | H81: 2023-07-11 | I81: 24 | P81: 25150 | Q81: 25150 | AW81: 25150 | AX81: fcx2670-11-07-2023
A82: =IFERROR(VLOOKUP(C82,#REF!,9,FALSE),"") ->  | B82: =C82&COUNTIF($C$2:C82,C82) -> FCX18201 | C82: FCX1820 | F82: 4 | G82: 8752.07 | H82: 2023-07-11 | I82: 24 | P82: 8752.07 | Q82: 8752.07 | AW82: 8752.07 | AX82: FCX1820-11-07-2023
A83: =IFERROR(VLOOKUP(C83,#REF!,9,FALSE),"") ->  | B83: =C83&COUNTIF($C$2:C83,C83) -> FCM27611 | C83: FCM2761 | F83: 1 | G83: 4950 | H83: 2023-07-11 | I83: 24 | P83: 4950 | Q83: 4950 | AW83: 4950 | AX83: FCM2761-11-07-2023
A84: =IFERROR(VLOOKUP(C84,#REF!,9,FALSE),"") ->  | B84: =C84&COUNTIF($C$2:C84,C84) -> FCC04001 | C84: FCC0400 | E84: advance | F84: 173 | G84: 3719772.06 | H84: 2023-07-11 | I84: 24 | P84: 3719772.06 | Q84: 3719772.06 | AW84: 3719772.06 | AX84: FCC0400-11-07-2023
A85: =IFERROR(VLOOKUP(C85,#REF!,9,FALSE),"") ->  | B85: =C85&COUNTIF($C$2:C85,C85) -> FCE01001 | C85: FCE0100 | F85: 3 | G85: 13680 | H85: 2023-07-11 | I85: 24 | P85: 13680 | Q85: 13680 | AW85: 13680 | AX85: FCE0100-11-07-2023
A86: =IFERROR(VLOOKUP(C86,#REF!,9,FALSE),"") ->  | B86: =C86&COUNTIF($C$2:C86,C86) -> FCC91981 | C86: FCC9198 | E86: advance | F86: 32 | G86: 676259.65 | H86: 2023-07-11 | I86: 24 | P86: 676259.65 | Q86: 676259.65 | AW86: 676259.65 | AX86: FCC9198-11-07-2023
A87: =IFERROR(VLOOKUP(C87,#REF!,9,FALSE),"") ->  | B87: =C87&COUNTIF($C$2:C87,C87) -> FCC03001 | C87: FCC0300 | E87: advance | F87: 204 | G87: 6608235.82 | H87: 2023-07-11 | I87: 24 | P87: 6608235.82 | Q87: 6608235.82 | AW87: 6608235.82 | AX87: FCC0300-11-07-2023
A88: =IFERROR(VLOOKUP(C88,#REF!,9,FALSE),"") ->  | B88: =C88&COUNTIF($C$2:C88,C88) -> FCS10301 | C88: FCS1030 | E88: advance | F88: 84 | G88: 1131170.48 | H88: 2023-07-11 | I88: 24 | P88: 1131170.48 | Q88: 1131170.48 | AW88: 1131170.48 | AX88: FCS1030-11-07-2023
A89: =IFERROR(VLOOKUP(C89,#REF!,9,FALSE),"") ->  | B89: =C89&COUNTIF($C$2:C89,C89) -> FCC17101 | C89: FCC1710 | E89: advance | F89: 6 | G89: 26539 | H89: 2023-07-11 | I89: 24 | P89: 26539 | Q89: 26539 | AW89: 26539 | AX89: FCC1710-11-07-2023
A90: =IFERROR(VLOOKUP(C90,#REF!,9,FALSE),"") ->  | B90: =C90&COUNTIF($C$2:C90,C90) -> FCF06901 | C90: FCF0690 | F90: 20 | G90: 84757.3 | H90: 2023-07-11 | I90: 24 | P90: 84757.3 | Q90: 84757.3 | AW90: 84757.3 | AX90: FCF0690-11-07-2023
A91: =IFERROR(VLOOKUP(C91,#REF!,9,FALSE),"") ->  | B91: =C91&COUNTIF($C$2:C91,C91) -> FCS29151 | C91: FCS2915 | F91: 2 | G91: 8809 | H91: 2023-07-11 | I91: 24 | P91: 8809 | Q91: 8809 | AW91: 8809 | AX91: FCS2915-11-07-2023
A92: =IFERROR(VLOOKUP(C92,#REF!,9,FALSE),"") ->  | B92: =C92&COUNTIF($C$2:C92,C92) -> FCC35701 | C92: FCC3570 | E92: advance | F92: 9 | G92: 65477.31 | H92: 2023-07-11 | I92: 24 | P92: 65477.31 | Q92: 65477.31 | AW92: 65477.31 | AX92: FCC3570-11-07-2023
A93: =IFERROR(VLOOKUP(C93,#REF!,9,FALSE),"") ->  | B93: =C93&COUNTIF($C$2:C93,C93) -> FCC91311 | C93: FCC9131 | F93: 3 | G93: 27433.75 | H93: 2023-07-11 | I93: 24 | P93: 27433.75 | Q93: 27433.75 | AW93: 27433.75 | AX93: FCC9131-11-07-2023
A94: =IFERROR(VLOOKUP(C94,#REF!,9,FALSE),"") ->  | B94: =C94&COUNTIF($C$2:C94,C94) -> FCC91751 | C94: FCC9175 | F94: 2 | G94: 90000 | H94: 2023-07-11 | I94: 24 | P94: 90000 | Q94: 90000 | AW94: 90000 | AX94: FCC9175-11-07-2023
A95: =IFERROR(VLOOKUP(C95,#REF!,9,FALSE),"") ->  | B95: =C95&COUNTIF($C$2:C95,C95) -> FCX12901 | C95: FCX1290 | E95: advance | F95: 136 | G95: 3400565.7 | H95: 2023-07-11 | I95: 24 | P95: 3400565.7 | Q95: 3400565.7 | AW95: 3400565.7 | AX95: FCX1290-11-07-2023
A96: =IFERROR(VLOOKUP(C96,#REF!,9,FALSE),"") ->  | B96: =C96&COUNTIF($C$2:C96,C96) -> FCC32501 | C96: FCC3250 | F96: 1 | G96: 15784.5 | H96: 2023-07-11 | I96: 24 | P96: 15784.5 | Q96: 15784.5 | AW96: 15784.5 | AX96: FCC3250-11-07-2023
A97: =IFERROR(VLOOKUP(C97,#REF!,9,FALSE),"") ->  | B97: =C97&COUNTIF($C$2:C97,C97) -> FCC91791 | C97: FCC9179 | F97: 1 | G97: 61845.74 | H97: 2023-07-12 | I97: 23 | P97: 61845.74 | Q97: 61845.74 | AW97: 61845.74 | AX97: FCC9179-12-07-2023
A98: =IFERROR(VLOOKUP(C98,#REF!,9,FALSE),"") ->  | B98: =C98&COUNTIF($C$2:C98,C98) -> FCX16201 | C98: FCX1620 | F98: 5 | G98: 41351.85 | H98: 2023-07-12 | I98: 23 | P98: 41351.85 | Q98: 41351.85 | AW98: 41351.85 | AX98: FCX1620-12-07-2023
A99: =IFERROR(VLOOKUP(C99,#REF!,9,FALSE),"") ->  | B99: =C99&COUNTIF($C$2:C99,C99) -> FCX27981 | C99: FCX2798 | F99: 21 | G99: 303247.8 | H99: 2023-07-12 | I99: 23 | P99: 303247.8 | Q99: 303247.8 | AW99: 303247.8 | AX99: FCX2798-12-07-2023
A100: =IFERROR(VLOOKUP(C100,#REF!,9,FALSE),"") ->  | B100: =C100&COUNTIF($C$2:C100,C100) -> FCC01201 | C100: FCC0120 | F100: 34 | G100: 792144.49 | H100: 2023-07-12 | I100: 23 | P100: 792144.49 | Q100: 792144.49 | AW100: 792144.49 | AX100: FCC0120-12-07-2023
A101: =IFERROR(VLOOKUP(C101,#REF!,9,FALSE),"") ->  | B101: =C101&COUNTIF($C$2:C101,C101) -> FCC91841 | C101: FCC9184 | F101: 1 | G101: 7790 | H101: 2023-07-12 | I101: 23 | P101: 7790 | Q101: 7790 | AW101: 7790 | AX101: FCC9184-12-07-2023
A102: =IFERROR(VLOOKUP(C102,#REF!,9,FALSE),"") ->  | B102: =C102&COUNTIF($C$2:C102,C102) -> FCN08901 | C102: FCN0890 | F102: 7 | G102: 57470.98 | H102: 2023-07-12 | I102: 23 | P102: 57470.98 | Q102: 57470.98 | AW102: 57470.98 | AX102: FCN0890-12-07-2023
A103: =IFERROR(VLOOKUP(C103,#REF!,9,FALSE),"") ->  | B103: =C103&COUNTIF($C$2:C103,C103) -> FCC91691 | C103: FCC9169 | F103: 5 | G103: 54381.71 | H103: 2023-07-12 | I103: 23 | P103: 54381.71 | Q103: 54381.71 | AW103: 54381.71 | AX103: FCC9169-12-07-2023
A104: =IFERROR(VLOOKUP(C104,#REF!,9,FALSE),"") ->  | B104: =C104&COUNTIF($C$2:C104,C104) -> FCT22301 | C104: FCT2230 | F104: 13 | G104: 80775.94 | H104: 2023-07-12 | I104: 23 | P104: 80775.94 | Q104: 80775.94 | AW104: 80775.94 | AX104: FCT2230-12-07-2023
A105: =IFERROR(VLOOKUP(C105,#REF!,9,FALSE),"") ->  | B105: =C105&COUNTIF($C$2:C105,C105) -> FCX26901 | C105: FCX2690 | F105: 18 | G105: 191452.03 | H105: 2023-07-12 | I105: 23 | P105: 191452.03 | Q105: 191452.03 | AW105: 191452.03 | AX105: FCX2690-12-07-2023
A106: =IFERROR(VLOOKUP(C106,#REF!,9,FALSE),"") ->  | B106: =C106&COUNTIF($C$2:C106,C106) -> FCC91961 | C106: FCC9196 | F106: 4 | G106: 47124 | H106: 2023-07-12 | I106: 23 | P106: 47124 | Q106: 47124 | AW106: 47124 | AX106: FCC9196-12-07-2023
A107: =IFERROR(VLOOKUP(C107,#REF!,9,FALSE),"") ->  | B107: =C107&COUNTIF($C$2:C107,C107) -> FCC91521 | C107: FCC9152 | E107: advance | F107: 5 | G107: 90500 | H107: 2023-07-12 | I107: 23 | P107: 90500 | Q107: 90500 | AW107: 90500 | AX107: FCC9152-12-07-2023
A108: =IFERROR(VLOOKUP(C108,#REF!,9,FALSE),"") ->  | B108: =C108&COUNTIF($C$2:C108,C108) -> FCC91651 | C108: FCC9165 | F108: 8 | G108: 41891.8 | H108: 2023-07-12 | I108: 23 | P108: 41891.8 | Q108: 41891.8 | AW108: 41891.8 | AX108: FCC9165-12-07-2023
A109: =IFERROR(VLOOKUP(C109,#REF!,9,FALSE),"") ->  | B109: =C109&COUNTIF($C$2:C109,C109) -> FCC30601 | C109: FCC3060 | F109: 4 | G109: 90000 | H109: 2023-07-12 | I109: 23 | P109: 90000 | Q109: 90000 | AW109: 90000 | AX109: FCC3060-12-07-2023
A110: =IFERROR(VLOOKUP(C110,#REF!,9,FALSE),"") ->  | B110: =C110&COUNTIF($C$2:C110,C110) -> FCN31441 | C110: FCN3144 | F110: 25 | G110: 207047.6 | H110: 2023-07-12 | I110: 23 | P110: 207047.6 | Q110: 207047.6 | AW110: 207047.6 | AX110: FCN3144-12-07-2023
A111: =IFERROR(VLOOKUP(C111,#REF!,9,FALSE),"") ->  | B111: =C111&COUNTIF($C$2:C111,C111) -> FCC22501 | C111: FCC2250 | F111: 1 | G111: 16301 | H111: 2023-07-12 | I111: 23 | P111: 16301 | Q111: 16301 | AW111: =G111-(L111++R111+T111+V111+X111+Z111+AB111+AD111+AF111+AH111+AJ111+AL111+AN111+AP111+AR111+AT111+AV111) -> 16301 | AX111: FCC2250-12-07-2023
A112: =IFERROR(VLOOKUP(C112,#REF!,9,FALSE),"") ->  | B112: =C112&COUNTIF($C$2:C112,C112) -> FCC91561 | C112: FCC9156 | E112: advance | F112: 15 | G112: 240467.28 | H112: 2023-07-12 | I112: 23 | P112: 240467.28 | Q112: 240467.28 | AW112: 240467.28 | AX112: FCC9156-12-07-2023
A113: =IFERROR(VLOOKUP(C113,#REF!,9,FALSE),"") ->  | B113: =C113&COUNTIF($C$2:C113,C113) -> FCC04201 | C113: FCC0420 | F113: 1 | G113: 46700 | H113: 2023-07-12 | I113: 23 | P113: 46700 | Q113: 46700 | AW113: 46700 | AX113: FCC0420-12-07-2023
A114: =IFERROR(VLOOKUP(C114,#REF!,9,FALSE),"") ->  | B114: =C114&COUNTIF($C$2:C114,C114) -> FCX12601 | C114: FCX1260 | F114: 6 | G114: 63775 | H114: 2023-07-13 | I114: 22 | P114: 63775 | Q114: 63775 | AW114: 63775 | AX114: FCX1260-13-07-2023
A115: =IFERROR(VLOOKUP(C115,#REF!,9,FALSE),"") ->  | B115: =C115&COUNTIF($C$2:C115,C115) -> FCC21301 | C115: FCC2130 | F115: 9 | G115: 30275.2 | H115: 2023-07-13 | I115: 22 | P115: 30275.2 | Q115: 30275.2 | AW115: 30275.2 | AX115: FCC2130-13-07-2023
A116: =IFERROR(VLOOKUP(C116,#REF!,9,FALSE),"") ->  | B116: =C116&COUNTIF($C$2:C116,C116) -> FCX16102 | C116: FCX1610 | F116: 1 | G116: 86857.32 | H116: 2023-07-13 | I116: 22 | P116: 86857.32 | Q116: 86857.32 | AW116: 86857.32 | AX116: FCX1610-13-07-2023
A117: =IFERROR(VLOOKUP(C117,#REF!,9,FALSE),"") ->  | B117: =C117&COUNTIF($C$2:C117,C117) -> FCC01901 | C117: FCC0190 | F117: 22 | G117: 139543 | H117: 2023-07-13 | I117: 22 | P117: 139543 | Q117: 139543 | AW117: 139543 | AX117: FCC0190-13-07-2023
A118: =IFERROR(VLOOKUP(C118,#REF!,9,FALSE),"") ->  | B118: =C118&COUNTIF($C$2:C118,C118) -> FCS10501 | C118: FCS1050 | F118: 6 | G118: 27677.2 | H118: 2023-07-13 | I118: 22 | P118: 27677.2 | Q118: 27677.2 | AW118: 27677.2 | AX118: FCS1050-13-07-2023
A119: =IFERROR(VLOOKUP(C119,#REF!,9,FALSE),"") ->  | B119: =C119&COUNTIF($C$2:C119,C119) -> FCC16601 | C119: FCC1660 | E119: advance | F119: 52 | G119: 683246.48 | H119: 2023-07-13 | I119: 22 | P119: 683246.48 | Q119: 683246.48 | AW119: 683246.48 | AX119: FCC1660-13-07-2023
A120: =IFERROR(VLOOKUP(C120,#REF!,9,FALSE),"") ->  | B120: =C120&COUNTIF($C$2:C120,C120) -> FCK30781 | C120: FCK3078 | F120: 16 | G120: 88405.75 | H120: 2023-07-13 | I120: 22 | P120: 88405.75 | Q120: 88405.75 | AW120: 88405.75 | AX120: FCK3078-13-07-2023
A121: =IFERROR(VLOOKUP(C121,#REF!,9,FALSE),"") ->  | B121: =C121&COUNTIF($C$2:C121,C121) -> FCC01301 | C121: FCC0130 | E121: advance | F121: 49 | G121: 962089.51 | H121: 2023-07-13 | I121: 22 | P121: 962089.51 | Q121: 962089.51 | AW121: 962089.51 | AX121: FCC0130-13-07-2023
A122: =IFERROR(VLOOKUP(C122,#REF!,9,FALSE),"") ->  | B122: =C122&COUNTIF($C$2:C122,C122) -> FCC02401 | C122: FCC0240 | F122: 2 | G122: 34684.55 | H122: 2023-07-13 | I122: 22 | P122: 34684.55 | Q122: 34684.55 | AW122: 34684.55 | AX122: FCC0240-13-07-2023
A123: =IFERROR(VLOOKUP(C123,#REF!,9,FALSE),"") ->  | B123: =C123&COUNTIF($C$2:C123,C123) -> FCC91671 | C123: FCC9167 | E123: advance | F123: 77 | G123: 1668247.94 | H123: 2023-07-13 | I123: 22 | P123: 1668247.94 | Q123: 1668247.94 | AW123: 1668247.94 | AX123: FCC9167-13-07-2023
A124: =IFERROR(VLOOKUP(C124,#REF!,9,FALSE),"") ->  | B124: =C124&COUNTIF($C$2:C124,C124) -> FCV11721 | C124: FCV1172 | F124: 1 | G124: 3650.5 | H124: 2023-07-16 | I124: 19 | P124: 3650.5 | Q124: 3650.5 | AW124: 3650.5 | AX124: FCV1172-16-07-2023
A125: =IFERROR(VLOOKUP(C125,#REF!,9,FALSE),"") ->  | B125: =C125&COUNTIF($C$2:C125,C125) -> FCC00401 | C125: FCC0040 | F125: 2 | G125: 7088.5 | H125: 2023-07-16 | I125: 19 | P125: 7088.5 | Q125: 7088.5 | AW125: 7088.5 | AX125: FCC0040-16-07-2023
A126: =IFERROR(VLOOKUP(C126,#REF!,9,FALSE),"") ->  | B126: =C126&COUNTIF($C$2:C126,C126) -> FCP17201 | C126: FCP1720 | F126: 12 | G126: 119099.57 | H126: 2023-07-16 | I126: 19 | P126: 119099.57 | Q126: 119099.57 | AW126: 119099.57 | AX126: FCP1720-16-07-2023
A127: =IFERROR(VLOOKUP(C127,#REF!,9,FALSE),"") ->  | B127: =C127&COUNTIF($C$2:C127,C127) -> FCX28001 | C127: FCX2800 | F127: 1 | G127: 9117.5 | H127: 2023-07-16 | I127: 19 | P127: 9117.5 | Q127: 9117.5 | AW127: 9117.5 | AX127: FCX2800-16-07-2023
A128: =IFERROR(VLOOKUP(C128,#REF!,9,FALSE),"") ->  | B128: =C128&COUNTIF($C$2:C128,C128) -> FCX27921 | C128: FCX2792 | F128: 6 | G128: 39905.4 | H128: 2023-07-16 | I128: 19 | P128: 39905.4 | Q128: 39905.4 | AW128: 39905.4 | AX128: FCX2792-16-07-2023
A129: =IFERROR(VLOOKUP(C129,#REF!,9,FALSE),"") ->  | B129: =C129&COUNTIF($C$2:C129,C129) -> FCC25801 | C129: FCC2580 | F129: 3 | G129: 9523 | H129: 2023-07-16 | I129: 19 | P129: 9523 | Q129: 9523 | AW129: 9523 | AX129: =CONCATENATE(C129,"-",TEXT(H129,"DD-MM-YYYY")) -> FCC2580-16-07-2023
A130: =IFERROR(VLOOKUP(C130,#REF!,9,FALSE),"") ->  | B130: =C130&COUNTIF($C$2:C130,C130) -> FCV11711 | C130: FCV1171 | F130: 3 | G130: 8032.72 | H130: 2023-07-16 | I130: =+TODAY()-H130 -> 19 | P130: =+G130-K130-L130-M130-N130 -> 8032.72 | Q130: =+G130-R130-T130-V130-X130-Z130-AB130-AD130-AF130-AH130-AJ130-AL130-AN130-AP130-AT130-AV130 -> 8032.72 | AW130: =G130-(L130++R130+T130+V130+X130+Z130+AB130+AD130+AF130+AH130+AJ130+AL130+AN130+AP130+AR130) -> 8032.72 | AX130: FCV1171-16-07-2023
A131: =IFERROR(VLOOKUP(C131,#REF!,9,FALSE),"") ->  | B131: =C131&COUNTIF($C$2:C131,C131) -> FCE00971 | C131: FCE0097 | F131: 1 | G131: 968 | H131: 2023-07-16 | I131: 19 | P131: 968 | Q131: 968 | AW131: 968 | AX131: FCE0097-16-07-2023
A132: =IFERROR(VLOOKUP(C132,#REF!,9,FALSE),"") ->  | B132: =C132&COUNTIF($C$2:C132,C132) -> FCC91871 | C132: FCC9187 | F132: 3 | G132: 12900 | H132: 2023-07-16 | I132: 19 | P132: 12900 | Q132: 12900 | AW132: 12900 | AX132: FCC9187-16-07-2023
A133: =IFERROR(VLOOKUP(C133,#REF!,9,FALSE),"") ->  | B133: =C133&COUNTIF($C$2:C133,C133) -> FCC15701 | C133: FCC1570 | F133: 4 | G133: 27496 | H133: 2023-07-16 | I133: 19 | P133: 27496 | Q133: 27496 | AW133: 27496 | AX133: FCC1570-16-07-2023
A134: =IFERROR(VLOOKUP(C134,#REF!,9,FALSE),"") ->  | B134: =C134&COUNTIF($C$2:C134,C134) -> FCR34601 | C134: FCR3460 | F134: 5 | G134: 43890 | H134: 2023-07-16 | I134: 19 | P134: 43890 | Q134: 43890 | AW134: 43890 | AX134: FCR3460-16-07-2023
A135: =IFERROR(VLOOKUP(C135,#REF!,9,FALSE),"") ->  | B135: =C135&COUNTIF($C$2:C135,C135) -> FCC06001 | C135: FCC0600 | F135: 22 | G135: 141687.5 | H135: 2023-07-16 | I135: 19 | P135: 141687.5 | Q135: 141687.5 | AW135: 141687.5 | AX135: FCC0600-16-07-2023
A136: =IFERROR(VLOOKUP(C136,#REF!,9,FALSE),"") ->  | B136: =C136&COUNTIF($C$2:C136,C136) -> FCH17901 | C136: FCH1790 | E136: advance | F136: 7 | G136: 146818 | H136: 2023-07-16 | I136: 19 | P136: 146818 | Q136: 146818 | AW136: 146818 | AX136: FCH1790-16-07-2023
A137: =IFERROR(VLOOKUP(C137,#REF!,9,FALSE),"") ->  | B137: =C137&COUNTIF($C$2:C137,C137) -> FCF26151 | C137: FCF2615 | F137: 2 | G137: 16383 | H137: 2023-07-16 | I137: 19 | P137: 16383 | Q137: 16383 | AW137: 16383 | AX137: FCF2615-16-07-2023
A138: =IFERROR(VLOOKUP(C138,#REF!,9,FALSE),"") ->  | B138: =C138&COUNTIF($C$2:C138,C138) -> FCC33001 | C138: FCC3300 | E138: advance | F138: 178 | G138: 5232136.13 | H138: 2023-07-16 | I138: 19 | P138: 5232136.13 | Q138: 5232136.13 | AW138: 5232136.13 | AX138: FCC3300-16-07-2023
A139: =IFERROR(VLOOKUP(C139,#REF!,9,FALSE),"") ->  | B139: =C139&COUNTIF($C$2:C139,C139) -> FCC18301 | C139: FCC1830 | F139: 1 | G139: 28500 | H139: 2023-07-16 | I139: 19 | P139: 28500 | Q139: 28500 | AW139: 28500 | AX139: FCC1830-16-07-2023
A140: =IFERROR(VLOOKUP(C140,#REF!,9,FALSE),"") ->  | B140: =C140&COUNTIF($C$2:C140,C140) -> FCC27301 | C140: FCC2730 | E140: advance | F140: 24 | G140: 249413.25 | H140: 2023-07-16 | I140: 19 | P140: 249413.25 | Q140: 249413.25 | AW140: 249413.25 | AX140: FCC2730-16-07-2023
A141: =IFERROR(VLOOKUP(C141,#REF!,9,FALSE),"") ->  | B141: =C141&COUNTIF($C$2:C141,C141) -> FCK24101 | C141: FCK2410 | F141: 13 | G141: 71556.34 | H141: 2023-07-16 | I141: 19 | P141: 71556.34 | Q141: 71556.34 | AW141: 71556.34 | AX141: FCK2410-16-07-2023
A142: =IFERROR(VLOOKUP(C142,#REF!,9,FALSE),"") ->  | B142: =C142&COUNTIF($C$2:C142,C142) -> FCC91681 | C142: FCC9168 | F142: 8 | G142: 260362.35 | H142: 2023-07-16 | I142: 19 | P142: 260362.35 | Q142: 260362.35 | AW142: 260362.35 | AX142: FCC9168-16-07-2023
A143: =IFERROR(VLOOKUP(C143,#REF!,9,FALSE),"") ->  | B143: =C143&COUNTIF($C$2:C143,C143) -> FCS10401 | C143: FCS1040 | F143: 2 | G143: 14491 | H143: 2023-07-16 | I143: 19 | P143: 14491 | Q143: 14491 | AW143: 14491 | AX143: FCS1040-16-07-2023
A144: =IFERROR(VLOOKUP(C144,#REF!,9,FALSE),"") ->  | B144: =C144&COUNTIF($C$2:C144,C144) -> FCC91501 | C144: FCC9150 | F144: 2 | G144: 18457.87 | H144: 2023-07-16 | I144: 19 | P144: 18457.87 | Q144: 18457.87 | AW144: 18457.87 | AX144: FCC9150-16-07-2023
A145: =IFERROR(VLOOKUP(C145,#REF!,9,FALSE),"") ->  | B145: =C145&COUNTIF($C$2:C145,C145) -> FCC91761 | C145: FCC9176 | E145: advance | F145: 99 | G145: 1326853.14 | H145: 2023-07-16 | I145: 19 | P145: 1326853.14 | Q145: 1326853.14 | AW145: 1326853.14 | AX145: FCC9176-16-07-2023
A146: =IFERROR(VLOOKUP(C146,#REF!,9,FALSE),"") ->  | B146: =C146&COUNTIF($C$2:C146,C146) -> FCC91941 | C146: FCC9194 | F146: 4 | G146: 50561 | H146: 2023-07-17 | I146: 18 | P146: 50561 | Q146: 50561 | AW146: 50561 | AX146: FCC9194-17-07-2023
A147: =IFERROR(VLOOKUP(C147,#REF!,9,FALSE),"") ->  | B147: =C147&COUNTIF($C$2:C147,C147) -> FCH07101 | C147: FCH0710 | F147: 6 | G147: 31462.13 | H147: 2023-07-17 | I147: 18 | P147: 31462.13 | Q147: 31462.13 | AW147: 31462.13 | AX147: FCH0710-17-07-2023
A148: =IFERROR(VLOOKUP(C148,#REF!,9,FALSE),"") ->  | B148: =C148&COUNTIF($C$2:C148,C148) -> FCC28401 | C148: FCC2840 | E148: advance | F148: 45 | G148: 251535 | H148: 2023-07-17 | I148: 18 | P148: 251535 | Q148: 251535 | AW148: 251535 | AX148: FCC2840-17-07-2023
A149: =IFERROR(VLOOKUP(C149,#REF!,9,FALSE),"") ->  | B149: =C149&COUNTIF($C$2:C149,C149) -> FCC31201 | C149: FCC3120 | F149: 98 | G149: 2552187.8 | H149: 2023-07-17 | I149: 18 | P149: 2552187.8 | Q149: 2552187.8 | AW149: 2552187.8 | AX149: FCC3120-17-07-2023
A150: =IFERROR(VLOOKUP(C150,#REF!,9,FALSE),"") ->  | B150: =C150&COUNTIF($C$2:C150,C150) -> FCN21701 | C150: FCN2170 | F150: 5 | G150: 172230 | H150: 2023-07-17 | I150: 18 | P150: 172230 | Q150: 172230 | AW150: 172230 | AX150: FCN2170-17-07-2023
A151: =IFERROR(VLOOKUP(C151,#REF!,9,FALSE),"") ->  | B151: =C151&COUNTIF($C$2:C151,C151) -> FCX18501 | C151: FCX1850 | F151: 4 | G151: 10715 | H151: 2023-07-17 | I151: 18 | P151: 10715 | Q151: 10715 | AW151: 10715 | AX151: FCX1850-17-07-2023
A152: =IFERROR(VLOOKUP(C152,#REF!,9,FALSE),"") ->  | B152: =C152&COUNTIF($C$2:C152,C152) -> FCN31432 | C152: FCN3143 | F152: 8 | G152: 34753.25 | H152: 2023-07-17 | I152: 18 | P152: 34753.25 | Q152: 34753.25 | AW152: 34753.25 | AX152: FCN3143-17-07-2023
A153: =IFERROR(VLOOKUP(C153,#REF!,9,FALSE),"") ->  | B153: =C153&COUNTIF($C$2:C153,C153) -> FCL07701 | C153: FCL0770 | F153: 4 | G153: 34461 | H153: 2023-07-17 | I153: 18 | P153: 34461 | Q153: 34461 | AW153: 34461 | AX153: FCL0770-17-07-2023
A154: =IFERROR(VLOOKUP(C154,#REF!,9,FALSE),"") ->  | B154: =C154&COUNTIF($C$2:C154,C154) -> FCP31601 | C154: FCP3160 | F154: 1 | G154: 3462 | H154: 2023-07-17 | I154: 18 | P154: 3462 | Q154: 3462 | AW154: 3462 | AX154: FCP3160-17-07-2023
A155: =IFERROR(VLOOKUP(C155,#REF!,9,FALSE),"") ->  | B155: =C155&COUNTIF($C$2:C155,C155) -> FCT10801 | C155: FCT1080 | F155: 1 | G155: 14275 | H155: 2023-07-17 | I155: 18 | P155: 14275 | Q155: 14275 | AW155: 14275 | AX155: FCT1080-17-07-2023
A156: =IFERROR(VLOOKUP(C156,#REF!,9,FALSE),"") ->  | B156: =C156&COUNTIF($C$2:C156,C156) -> FCX13001 | C156: FCX1300 | F156: 1 | G156: 6256.34 | H156: 2023-07-17 | I156: 18 | P156: 6256.34 | Q156: 6256.34 | AW156: 6256.34 | AX156: FCX1300-17-07-2023
A157: =IFERROR(VLOOKUP(C157,#REF!,9,FALSE),"") ->  | B157: =C157&COUNTIF($C$2:C157,C157) -> FCC21101 | C157: FCC2110 | F157: 2 | G157: 6733.5 | H157: 2023-07-17 | I157: 18 | P157: 6733.5 | Q157: 6733.5 | AW157: 6733.5 | AX157: FCC2110-17-07-2023
A158: =IFERROR(VLOOKUP(C158,#REF!,9,FALSE),"") ->  | B158: =C158&COUNTIF($C$2:C158,C158) -> FCC16501 | C158: FCC1650 | E158: advance | F158: 7 | G158: 89159.91 | H158: 2023-07-17 | I158: 18 | P158: 89159.91 | Q158: 89159.91 | AW158: 89159.91 | AX158: FCC1650-17-07-2023
A159: =IFERROR(VLOOKUP(C159,#REF!,9,FALSE),"") ->  | B159: =C159&COUNTIF($C$2:C159,C159) -> FCC91971 | C159: FCC9197 | F159: 2 | G159: 12728.87 | H159: 2023-07-17 | I159: 18 | P159: 12728.87 | Q159: 12728.87 | AW159: 12728.87 | AX159: FCC9197-17-07-2023
A160: =IFERROR(VLOOKUP(C160,#REF!,9,FALSE),"") ->  | B160: =C160&COUNTIF($C$2:C160,C160) -> FCC90901 | C160: FCC9090 | F160: 26 | G160: 589576.81 | H160: 2023-07-17 | I160: 18 | P160: 589576.81 | Q160: 589576.81 | AW160: 589576.81 | AX160: FCC9090-17-07-2023
A161: =IFERROR(VLOOKUP(C161,#REF!,9,FALSE),"") ->  | B161: =C161&COUNTIF($C$2:C161,C161) -> FCC91541 | C161: FCC9154 | F161: 9 | G161: 266779.09 | H161: 2023-07-17 | I161: 18 | P161: 266779.09 | Q161: 266779.09 | AW161: 266779.09 | AX161: FCC9154-17-07-2023
A162: =IFERROR(VLOOKUP(C162,#REF!,9,FALSE),"") ->  | B162: =C162&COUNTIF($C$2:C162,C162) -> FCC04801 | C162: FCC0480 | F162: 41 | G162: 644858 | H162: 2023-07-17 | I162: 18 | P162: 644858 | Q162: 644858 | AW162: 644858 | AX162: FCC0480-17-07-2023
A163: =IFERROR(VLOOKUP(C163,#REF!,9,FALSE),"") ->  | B163: =C163&COUNTIF($C$2:C163,C163) -> FCC26601 | C163: FCC2660 | F163: 17 | G163: 49959 | H163: 2023-07-17 | I163: 18 | P163: 49959 | Q163: 49959 | AW163: 49959 | AX163: FCC2660-17-07-2023
A164: =IFERROR(VLOOKUP(C164,#REF!,9,FALSE),"") ->  | B164: =C164&COUNTIF($C$2:C164,C164) -> FCC30201 | C164: FCC3020 | F164: 1 | G164: 2000 | H164: 2023-07-17 | I164: 18 | P164: 2000 | Q164: 2000 | AW164: 2000 | AX164: FCC3020-17-07-2023
A165: =IFERROR(VLOOKUP(C165,#REF!,9,FALSE),"") ->  | B165: =C165&COUNTIF($C$2:C165,C165) -> FCC91581 | C165: FCC9158 | E165: advance | F165: 41 | G165: 1465686.51 | H165: 2023-07-17 | I165: 18 | P165: 1465686.51 | Q165: 1465686.51 | AW165: 1465686.51 | AX165: FCC9158-17-07-2023
A166: =IFERROR(VLOOKUP(C166,#REF!,9,FALSE),"") ->  | B166: =C166&COUNTIF($C$2:C166,C166) -> FCC05901 | C166: FCC0590 | E166: advance | F166: 115 | G166: 3944708.21 | H166: 2023-07-17 | I166: 18 | P166: 3944708.21 | Q166: 3944708.21 | AW166: 3944708.21 | AX166: FCC0590-17-07-2023
A167: =IFERROR(VLOOKUP(C167,#REF!,9,FALSE),"") ->  | B167: =C167&COUNTIF($C$2:C167,C167) -> FCS29781 | C167: FCS2978 | F167: 10 | G167: 44687 | H167: 2023-07-18 | I167: 17 | P167: 44687 | Q167: 44687 | AW167: 44687 | AX167: FCS2978-18-07-2023
A168: =IFERROR(VLOOKUP(C168,#REF!,9,FALSE),"") ->  | B168: =C168&COUNTIF($C$2:C168,C168) -> FCS29231 | C168: FCS2923 | F168: 2 | G168: 110601 | H168: 2023-07-18 | I168: 17 | P168: 110601 | Q168: 110601 | AW168: 110601 | AX168: FCS2923-18-07-2023
A169: =IFERROR(VLOOKUP(C169,#REF!,9,FALSE),"") ->  | B169: =C169&COUNTIF($C$2:C169,C169) -> FCC17801 | C169: FCC1780 | F169: 3 | G169: 67790.75 | H169: 2023-07-18 | I169: 17 | P169: 67790.75 | Q169: 67790.75 | AW169: 67790.75 | AX169: FCC1780-18-07-2023
A170: =IFERROR(VLOOKUP(C170,#REF!,9,FALSE),"") ->  | B170: =C170&COUNTIF($C$2:C170,C170) -> FCP31602 | C170: FCP3160 | F170: 1 | G170: 2674 | H170: 2023-07-18 | I170: 17 | P170: 2674 | Q170: 2674 | AW170: 2674 | AX170: FCP3160-18-07-2023
A171: =IFERROR(VLOOKUP(C171,#REF!,9,FALSE),"") ->  | B171: =C171&COUNTIF($C$2:C171,C171) -> FCS10701 | C171: FCS1070 | F171: 4 | G171: 15724 | H171: 2023-07-18 | I171: 17 | P171: 15724 | Q171: 15724 | AW171: 15724 | AX171: FCS1070-18-07-2023
A172: =IFERROR(VLOOKUP(C172,#REF!,9,FALSE),"") ->  | B172: =C172&COUNTIF($C$2:C172,C172) -> FCF26221 | C172: FCF2622 | F172: 4 | G172: 13339.6 | H172: 2023-07-18 | I172: 17 | P172: 13339.6 | Q172: 13339.6 | AW172: 13339.6 | AX172: FCF2622-18-07-2023
A173: =IFERROR(VLOOKUP(C173,#REF!,9,FALSE),"") ->  | B173: =C173&COUNTIF($C$2:C173,C173) -> FCC33801 | C173: FCC3380 | F173: 26 | G173: 245448 | H173: 2023-07-18 | I173: 17 | P173: 245448 | Q173: 245448 | AW173: 245448 | AX173: FCC3380-18-07-2023
A174: =IFERROR(VLOOKUP(C174,#REF!,9,FALSE),"") ->  | B174: =C174&COUNTIF($C$2:C174,C174) -> FCN31001 | C174: FCN3100 | F174: 1 | G174: 7580 | H174: 2023-07-18 | I174: 17 | P174: 7580 | Q174: 7580 | AW174: 7580 | AX174: FCN3100-18-07-2023
A175: =IFERROR(VLOOKUP(C175,#REF!,9,FALSE),"") ->  | B175: =C175&COUNTIF($C$2:C175,C175) -> FCC20601 | C175: FCC2060 | F175: 2 | G175: 67880 | H175: 2023-07-18 | I175: 17 | P175: 67880 | Q175: 67880 | AW175: 67880 | AX175: FCC2060-18-07-2023
A176: =IFERROR(VLOOKUP(C176,#REF!,9,FALSE),"") ->  | B176: =C176&COUNTIF($C$2:C176,C176) -> FCK25201 | C176: FCK2520 | F176: 6 | G176: 28500 | H176: 2023-07-18 | I176: 17 | P176: 28500 | Q176: 28500 | AW176: 28500 | AX176: FCK2520-18-07-2023
A177: =IFERROR(VLOOKUP(C177,#REF!,9,FALSE),"") ->  | B177: =C177&COUNTIF($C$2:C177,C177) -> FCC33501 | C177: FCC3350 | F177: 15 | G177: 179502 | H177: 2023-07-18 | I177: 17 | P177: 179502 | Q177: 179502 | AW177: 179502 | AX177: FCC3350-18-07-2023
A178: =IFERROR(VLOOKUP(C178,#REF!,9,FALSE),"") ->  | B178: =C178&COUNTIF($C$2:C178,C178) -> FCC04501 | C178: FCC0450 | F178: 1 | G178: 513.7 | H178: 2023-07-18 | I178: 17 | P178: 513.7 | Q178: 513.7 | AW178: 513.7 | AX178: FCC0450-18-07-2023
A179: =IFERROR(VLOOKUP(C179,#REF!,9,FALSE),"") ->  | B179: =C179&COUNTIF($C$2:C179,C179) -> FCS22701 | C179: FCS2270 | F179: 1 | G179: 20000 | H179: 2023-07-19 | I179: 16 | P179: 20000 | Q179: 20000 | AW179: 20000 | AX179: FCS2270-19-07-2023
A180: =IFERROR(VLOOKUP(C180,#REF!,9,FALSE),"") ->  | B180: =C180&COUNTIF($C$2:C180,C180) -> FCS29271 | C180: FCS2927 | F180: 15 | G180: 177410.23 | H180: 2023-07-19 | I180: 16 | P180: 177410.23 | Q180: 177410.23 | AW180: 177410.23 | AX180: FCS2927-19-07-2023
A181: =IFERROR(VLOOKUP(C181,#REF!,9,FALSE),"") ->  | B181: =C181&COUNTIF($C$2:C181,C181) -> FCS29141 | C181: FCS2914 | F181: 8 | G181: 38213.81 | H181: 2023-07-19 | I181: 16 | P181: 38213.81 | Q181: 38213.81 | AW181: 38213.81 | AX181: FCS2914-19-07-2023
A182: =IFERROR(VLOOKUP(C182,#REF!,9,FALSE),"") ->  | B182: =C182&COUNTIF($C$2:C182,C182) -> FCC91711 | C182: FCC9171 | F182: 22 | G182: 755459.5 | H182: 2023-07-19 | I182: 16 | P182: 755459.5 | Q182: 755459.5 | AW182: 755459.5 | AX182: FCC9171-19-07-2023
A183: =IFERROR(VLOOKUP(C183,#REF!,9,FALSE),"") ->  | B183: =C183&COUNTIF($C$2:C183,C183) -> FCU19921 | C183: FCU1992 | F183: 7 | G183: 150632.85 | H183: 2023-07-19 | I183: 16 | P183: 150632.85 | Q183: 150632.85 | AW183: 150632.85 | AX183: FCU1992-19-07-2023
A184: =IFERROR(VLOOKUP(C184,#REF!,9,FALSE),"") ->  | B184: =C184&COUNTIF($C$2:C184,C184) -> FCM27621 | C184: FCM2762 | F184: 4 | G184: 19782 | H184: 2023-07-19 | I184: 16 | P184: 19782 | Q184: 19782 | AW184: 19782 | AX184: FCM2762-19-07-2023
A185: =IFERROR(VLOOKUP(C185,#REF!,9,FALSE),"") ->  | B185: =C185&COUNTIF($C$2:C185,C185) -> FCC28701 | C185: FCC2870 | F185: 1 | G185: 5661.98 | H185: 2023-07-19 | I185: 16 | P185: 5661.98 | Q185: 5661.98 | AW185: 5661.98 | AX185: FCC2870-19-07-2023
A186: =IFERROR(VLOOKUP(C186,#REF!,9,FALSE),"") ->  | B186: =C186&COUNTIF($C$2:C186,C186) -> FCB17601 | C186: FCB1760 | F186: 39 | G186: 89915.95 | H186: 2023-07-19 | I186: 16 | P186: 89915.95 | Q186: 89915.95 | AW186: 89915.95 | AX186: FCB1760-19-07-2023
A187: =IFERROR(VLOOKUP(C187,#REF!,9,FALSE),"") ->  | B187: =C187&COUNTIF($C$2:C187,C187) -> FCC00601 | C187: FCC0060 | E187: advance | F187: 12 | G187: 163636.31 | H187: 2023-07-19 | I187: 16 | P187: 163636.31 | Q187: 163636.31 | AW187: 163636.31 | AX187: FCC0060-19-07-2023
A188: =IFERROR(VLOOKUP(C188,#REF!,9,FALSE),"") ->  | B188: =C188&COUNTIF($C$2:C188,C188) -> fcx28021 | C188: fcx2802 | F188: 1 | G188: 8512.25 | H188: 2023-07-19 | I188: 16 | P188: 8512.25 | Q188: 8512.25 | AW188: 8512.25 | AX188: fcx2802-19-07-2023
A189: =IFERROR(VLOOKUP(C189,#REF!,9,FALSE),"") ->  | B189: =C189&COUNTIF($C$2:C189,C189) -> FCC02801 | C189: FCC0280 | E189: advance | F189: 66 | G189: 1410034.41 | H189: 2023-07-19 | I189: 16 | P189: 1410034.41 | Q189: 1410034.41 | AW189: 1410034.41 | AX189: FCC0280-19-07-2023
A190: =IFERROR(VLOOKUP(C190,#REF!,9,FALSE),"") ->  | B190: =C190&COUNTIF($C$2:C190,C190) -> FCC03801 | C190: FCC0380 | F190: 25 | G190: 255784 | H190: 2023-07-19 | I190: 16 | P190: 255784 | Q190: 255784 | AW190: 255784 | AX190: FCC0380-19-07-2023
A191: =IFERROR(VLOOKUP(C191,#REF!,9,FALSE),"") ->  | B191: =C191&COUNTIF($C$2:C191,C191) -> FCC00902 | C191: FCC0090 | E191: advance | F191: 81 | G191: 3413636.13 | H191: 2023-07-19 | I191: 16 | P191: 3413636.13 | Q191: 3413636.13 | AW191: 3413636.13 | AX191: FCC0090-19-07-2023
A192: =IFERROR(VLOOKUP(C192,#REF!,9,FALSE),"") ->  | B192: =C192&COUNTIF($C$2:C192,C192) -> FCK30801 | C192: FCK3080 | F192: 1 | G192: 3069.92 | H192: 2023-07-24 | I192: 11 | P192: 3069.92 | Q192: 3069.92 | AW192: 3069.92 | AX192: FCK3080-24-07-2023
A193: =IFERROR(VLOOKUP(C193,#REF!,9,FALSE),"") ->  | B193: =C193&COUNTIF($C$2:C193,C193) -> FCK30821 | C193: FCK3082 | F193: 12 | G193: 78261 | H193: 2023-07-24 | I193: 11 | P193: 78261 | Q193: 78261 | AW193: 78261 | AX193: =CONCATENATE(C193,"-",TEXT(H193,"DD-MM-YYYY")) -> FCK3082-24-07-2023
A194: =IFERROR(VLOOKUP(C194,#REF!,9,FALSE),"") ->  | B194: =C194&COUNTIF($C$2:C194,C194) -> FCK35501 | C194: FCK3550 | F194: 4 | G194: 17116.19 | H194: 2023-07-24 | I194: =+TODAY()-H194 -> 11 | P194: =+G194-K194-L194-M194-N194 -> 17116.19 | Q194: =+G194-R194-T194-V194-X194-Z194-AB194-AD194-AF194-AH194-AJ194-AL194-AN194-AP194-AT194-AV194 -> 17116.19 | AW194: =G194-(L194++R194+T194+V194+X194+Z194+AB194+AD194+AF194+AH194+AJ194+AL194+AN194+AP194+AR194) -> 17116.19 | AX194: FCK3550-24-07-2023
A195: =IFERROR(VLOOKUP(C195,#REF!,9,FALSE),"") ->  | B195: =C195&COUNTIF($C$2:C195,C195) -> FCC14901 | C195: FCC1490 | F195: 2 | G195: 23984.13 | H195: 2023-07-24 | I195: 11 | P195: 23984.13 | Q195: 23984.13 | AW195: 23984.13 | AX195: FCC1490-24-07-2023
A196: =IFERROR(VLOOKUP(C196,#REF!,9,FALSE),"") ->  | B196: =C196&COUNTIF($C$2:C196,C196) -> FCC33502 | C196: FCC3350 | F196: 13 | G196: 146770 | H196: 2023-07-24 | I196: 11 | P196: 146770 | Q196: 146770 | AW196: 146770 | AX196: FCC3350-24-07-2023
A197: =IFERROR(VLOOKUP(C197,#REF!,9,FALSE),"") ->  | B197: =C197&COUNTIF($C$2:C197,C197) -> FCS29171 | C197: FCS2917 | F197: 13 | G197: 64746.25 | H197: 2023-07-24 | I197: 11 | P197: 64746.25 | Q197: 64746.25 | AW197: 64746.25 | AX197: FCS2917-24-07-2023
A198: =IFERROR(VLOOKUP(C198,#REF!,9,FALSE),"") ->  | B198: =C198&COUNTIF($C$2:C198,C198) -> FCS22601 | C198: FCS2260 | F198: 16 | G198: 56283.5 | H198: 2023-07-24 | I198: 11 | P198: 56283.5 | Q198: 56283.5 | AW198: 56283.5 | AX198: FCS2260-24-07-2023
A199: =IFERROR(VLOOKUP(C199,#REF!,9,FALSE),"") ->  | B199: =C199&COUNTIF($C$2:C199,C199) -> FCC17401 | C199: FCC1740 | F199: 13 | G199: 123966 | H199: 2023-07-24 | I199: 11 | P199: 123966 | Q199: 123966 | AW199: 123966 | AX199: FCC1740-24-07-2023
A200: =IFERROR(VLOOKUP(C200,#REF!,9,FALSE),"") ->  | B200: =C200&COUNTIF($C$2:C200,C200) -> FCK30841 | C200: FCK3084 | F200: 2 | G200: 17437.88 | H200: 2023-07-24 | I200: 11 | P200: 17437.88 | Q200: 17437.88 | AW200: 17437.88 | AX200: FCK3084-24-07-2023
... 50 more rows

Sheet suspended contract hospital (hidden)
A1: Code | B1: Name | C1: Effective Date
A2: FCC9161 | B2: Islamic Medical Association - Hawamdya Hospital | C2: 2022-02-01
A3: FCH3030 | B3: PORT GHALB HOSPITAL | C3: 2022-02-01
A4: FCM2760 | B4: EL GEZERA INTERNATIONAL HOSPITAL - EL SALLAB | C4: 2022-02-01
A5: FCM2760 | B5: EL GEZERA INTERNATIONAL HOSPITAL - EL SALLAB | C5: 2022-02-01
A6: FCC9157 | B6: Asfour medical center | C6: 2022-03-01
A7: FCC9171 | B7: NEUROESPITALIA HOSPITAL | C7: 2022-03-01
A8: FCQ0980 | B8: SAN MARY CHARITY SP. HOSPITAL | C8: 2022-03-01
A9: FCS2340 | B9: EL GALAL HOSPITAL | C9: 2022-03-01
A10: FCC0140 | B10: ST. PETER INT'L HOSPITAL | C10: 2022-03-01
A11: FCC0480 | B11: Al Hayat Medical Center | C11: 2022-03-01
A12: FCC9157 | B12: Asfour medical center | C12: 2022-03-01
A13: FCC9171 | B13: Neuro Espitalia Hospital | C13: 2022-03-01
A14: FCQ0980 | B14: SAN MARY CHARITY SP. HOSPITAL | C14: 2022-03-01
A15: FCS2340 | B15: EL GALAL HOSPITAL | C15: 2022-03-01
A16: FCX3480 | B16: SEMOHA PEDIATRIC CENTER | C16: 2022-03-01
A17: FCK3078 | B17: AL HAYAA AL GADIDA HOSPITAL | C17: 2022-04-01
A18: FCD2430 | B18: EL SHEROUK HOSPITALL | C18: 2022-04-01
A19: FCK2410 | B19: EL FAYOUMY HOSPITAL | C19: 2022-04-01
A20: FCC2870 | B20: Medical Planet Hospital | C20: 2022-04-01
A21: FCK3078 | B21: AL HAYAA AL GADIDA HOSPITAL | C21: 2022-04-01
A22: FCC0120 | B22: NOZHA INTERNATIONAL HOSPITAL | C22: 2022-05-01
A23: FCN3370 | B23: Dorra Hospital - Mahalla | C23: 2022-05-01
A24: FCC2980 | B24: MISR UNIVERSITY FOR SCIENCE & TECHNOLOGY | C24: 2022-05-01
A25: FCD3050 | B25: DAR EL HAYAH HOSPITAL | C25: 2022-06-01
A26: FCX2560 | B26: EL BADRAWY HOSPITAL | C26: 2022-06-01

Sheet Sheet1
A2: 1226212 | B2: 703.9 | C2: VNX6013 | D2: ANDALUSIA AL SHALALAT PH armacy | F2: 2023-06-15 | H2: 0 | I2: PHX6013 | K2: 0 | M2: 0 | N2: PHX6013-15-06-2023
A3: 1226214 | B3: 213769.41 | C3: VNC3380 | D3: MAGHRABI HOSPITALS AND C NETARS COMPANY | F3: 2023-06-19 | H3: 6611.39 | I3: FCC3380 | K3: 001144609007 | M3: 1 | N3: FCC3380-19-06-2023
A4: 1226215 | B4: 8062.64 | C4: VNJ3172 | D4: ELTADAWI HOUSE FOR MEDIC al and Sports Investment | F4: 2023-06-12 | H4: 249.36 | I4: FCJ3172 | K4: 004980880001 | M4: 1 | N4: FCJ3172-12-06-2023
A5: 1226216 | B5: 2587.5 | C5: VNQ3440 | D5: RED RESENT HOSPITAL - QE NA | F5: 2023-03-26 | H5: 0 | I5: FCQ3440 | M5: 1 | N5: FCQ3440-26-03-2023
A6: 1226217 | B6: 81016.72 | C6: VNS2927 | D6: HAYATT PALACE HOSPITAL | F6: 2023-05-21 | H6: 2505.69 | I6: FCS2927 | K6: 4453070479109200025 | M6: 1 | N6: FCS2927-21-05-2023
A7: 1226218 | B7: 155964.37 | C7: VNC0060 | D7: AL MOKATTAM SPECIALIZEDH OSP. | F7: 2023-05-18 | H7: 4823.93 | I7: FCC0060 | K7: 0 | M7: 0 | N7: FCC0060-18-05-2023
A8: 1226219 | B8: 2369.7 | C8: VNC0130 | D8: GANZOURI SPECIALIZED HOS PIT | F8: 2023-03-14 | H8: 0 | I8: FCC0130 | K8: 0 | M8: 0 | N8: FCC0130-14-03-2023
A9: 1226220 | B9: 34845.81 | C9: VNC0640 | D9: AL SHROUK HOSPITAL | F9: 2023-06-19 | H9: 1077.69 | I9: FCC0640 | M9: 0 | N9: FCC0640-19-06-2023
A10: 1226221 | B10: 19475 | C10: VNC1780 | D10: EGYHEART CENTER | F10: 2023-06-22 | H10: 602.36 | I10: FCC1780 | K10: 0723070973461801016 | M10: 0 | N10: FCC1780-22-06-2023
A11: 1226222 | B11: 3931.41 | C11: VNC2200 | D11: DURRAH SPECIALIZED EYE C ENTER | F11: 2023-07-04 | H11: 121.59 | I11: FCC2200 | M11: 0 | N11: FCC2200-04-07-2023
A12: 1226223 | B12: 528.68 | C12: VNC2880 | D12: EL OBOUR FOR MEDICAL AND EDUCATION SERVICE | F12: 2023-05-11 | H12: 16.35 | I12: FCC2880 | K12: 100022179351 | M12: 0 | N12: FCC2880-11-05-2023
A13: 1226224 | B13: 169352.11 | C13: VNC3380 | D13: MAGHRABI HOSPITALS AND C NETARS COMPANY | F13: 2023-06-19 | H13: 5237.69 | I13: FCC3380 | K13: 001144609007 | M13: 0 | N13: FCC3380-19-06-2023
A14: 1226225 | B14: 494.7 | C14: VNC9162 | D14: CAIRO WEST FOR MEDICAL S ERVICES | F14: 2023-03-06 | H14: 15.3 | I14: FCC9162 | K14: 0 | M14: 0 | N14: FCC9162-06-03-2023
A15: 1226226 | B15: 5188.04 | C15: VNC9169 | D15: EGYPTIAN COMPANY FOR SPE cialized Medical Service | F15: 2023-06-19 | H15: 160.46 | I15: FCC9169 | K15: 0002165698001 | M15: 0 | N15: FCC9169-19-06-2023
A16: 1226227 | B16: 15529.22 | C16: VNC9192 | D16: NILE LIFE FOR MEDICAL PR ojects Management | F16: 2023-06-25 | H16: 480.3 | I16: FCC9192 | K16: 100042558488 | M16: 0 | N16: FCC9192-25-06-2023
A17: 1226228 | B17: 57343.81 | C17: VNE0101 | D17: CONCORD SPECIALIZED HOSP ital | F17: 2023-06-21 | H17: 1773.75 | I17: FCE0101 | K17: 100032508485 | M17: 0 | N17: FCE0101-21-06-2023
A18: 1226229 | B18: 4730.79 | C18: VNK3550 | D18: EBSAR FOR MEDICAL SERVIC ES | F18: 2023-06-25 | H18: 146.21 | I18: FCK3550 | K18: 144007934001 | M18: 0 | N18: FCK3550-25-06-2023
A19: 1226230 | B19: 1998.8 | C19: VNP3281 | D19: ATAA SPECIALIZED HOSPITA L | F19: 2023-03-08 | H19: 0 | I19: FCP3281 | K19: 100029466542 | M19: 0 | N19: FCP3281-08-03-2023
A20: 1226231 | B20: 2930.64 | C20: VNS2910 | D20: AL FARDOUS EYE HOSPITAL | F20: 2023-06-25 | H20: 90.61 | I20: FCS2910 | M20: 0 | N20: FCS2910-25-06-2023
A21: 1226232 | B21: 2313937.93 | C21: VNX1290 | D21: ANDALUSIA ALSHALALAT HOS pital | F21: 2023-06-11 | H21: 0 | I21: FCX1290 | K21: 0 | M21: 0 | N21: FCX1290-11-06-2023
A22: 1226233 | B22: 94285.22 | C22: VNX1830 | D22: OQBA IBN NAFIE HOSPITAL | F22: 2023-06-25 | H22: 2915.78 | I22: FCX1830 | K22: 0 | M22: 0 | N22: FCX1830-25-06-2023
A23: 1226234 | B23: 12952.96 | C23: VNZ1830 | D23: AL CANAL INTERNATIONALHO SPITAL | F23: 2023-06-26 | H23: 400.54 | I23: FCZ1830 | K23: 2097160473010017 | M23: 0 | N23: FCZ1830-26-06-2023

Sheet pos
A1: Adjuster | B1: UB/HCFA | C1: Provider Code | D1: Vendor Code | E1: Vendor Type | F1: Provider name | G1: In/Out | H1: Date received | I1: Batch no from | J1: Batch no to | K1: claim no from | L1: claim no to | M1: Net Requested | N1: Batch review amount | O1: Total Deds | P1: Total H.H | Q1: Pending | R1: Notes | S1: Gulf | T1: Underwriting | U1: Column1
C2: FCC1410 | D2: VNC1410 | E2: ppo | G2: IN | H2: 2023-06-11 | M2: 586264.38 | N2: 553260 | O2: 1551.38 | Q2: 31453 | U2: =CONCATENATE(Table2[[#This Row],[Provider Code]],"-",TEXT(Table2[[#This Row],[Date received]],"DD-MM-YYYY")) -> FCC1410-11-06-2023
C3: FCC3380 | D3: VNC3380 | E3: ppo | G3: IN | H3: 2023-06-19 | M3: 237061 | N3: 214169 | O3: 3 | Q3: 22889 | U3: =CONCATENATE(Table2[[#This Row],[Provider Code]],"-",TEXT(Table2[[#This Row],[Date received]],"DD-MM-YYYY")) -> FCC3380-19-06-2023
C4: FCJ3172 | D4: Vnj3172 | E4: ppo | G4: IN | H4: 2023-06-12 | M4: 10811 | N4: 8312 | O4: - | Q4: 2499 | U4: =CONCATENATE(Table2[[#This Row],[Provider Code]],"-",TEXT(Table2[[#This Row],[Date received]],"DD-MM-YYYY")) -> FCJ3172-12-06-2023
C5: fcq3440 | D5: VNQ3440 | E5: ppo | G5: IN | H5: 2023-03-26 | M5: 10153 | N5: 8323 | O5: 1830 | U5: =CONCATENATE(Table2[[#This Row],[Provider Code]],"-",TEXT(Table2[[#This Row],[Date received]],"DD-MM-YYYY")) -> fcq3440-26-03-2023
C6: fcc9188 | D6: VNC9188 | E6: ppo | G6: in | H6: 2023-05-23 | M6: 397506.05 | N6: 314599.95 | O6: 102.06 | Q6: 82804.04 | U6: =CONCATENATE(Table2[[#This Row],[Provider Code]],"-",TEXT(Table2[[#This Row],[Date received]],"DD-MM-YYYY")) -> fcc9188-23-05-2023
C7: fcs2927 | D7: VNS2927 | E7: ppo | G7: in | H7: 2023-05-21 | M7: 95426.12 | N7: 95426.11 | O7: 0.01 | U7: =CONCATENATE(Table2[[#This Row],[Provider Code]],"-",TEXT(Table2[[#This Row],[Date received]],"DD-MM-YYYY")) -> fcs2927-21-05-2023
U8: =CONCATENATE(Table2[[#This Row],[Provider Code]],"-",TEXT(Table2[[#This Row],[Date received]],"DD-MM-YYYY")) -> -00-01-1900
U9: =CONCATENATE(Table2[[#This Row],[Provider Code]],"-",TEXT(Table2[[#This Row],[Date received]],"DD-MM-YYYY")) -> -00-01-1900
U10: =CONCATENATE(Table2[[#This Row],[Provider Code]],"-",TEXT(Table2[[#This Row],[Date received]],"DD-MM-YYYY")) -> -00-01-1900
U11: =CONCATENATE(Table2[[#This Row],[Provider Code]],"-",TEXT(Table2[[#This Row],[Date received]],"DD-MM-YYYY")) -> -00-01-1900
U12: =CONCATENATE(Table2[[#This Row],[Provider Code]],"-",TEXT(Table2[[#This Row],[Date received]],"DD-MM-YYYY")) -> -00-01-1900
U13: =CONCATENATE(Table2[[#This Row],[Provider Code]],"-",TEXT(Table2[[#This Row],[Date received]],"DD-MM-YYYY")) -> -00-01-1900
U14: =CONCATENATE(Table2[[#This Row],[Provider Code]],"-",TEXT(Table2[[#This Row],[Date received]],"DD-MM-YYYY")) -> -00-01-1900
U15: =CONCATENATE(Table2[[#This Row],[Provider Code]],"-",TEXT(Table2[[#This Row],[Date received]],"DD-MM-YYYY")) -> -00-01-1900
U16: =CONCATENATE(Table2[[#This Row],[Provider Code]],"-",TEXT(Table2[[#This Row],[Date received]],"DD-MM-YYYY")) -> -00-01-1900
U17: =CONCATENATE(Table2[[#This Row],[Provider Code]],"-",TEXT(Table2[[#This Row],[Date received]],"DD-MM-YYYY")) -> -00-01-1900
U18: =CONCATENATE(Table2[[#This Row],[Provider Code]],"-",TEXT(Table2[[#This Row],[Date received]],"DD-MM-YYYY")) -> -00-01-1900
U19: =CONCATENATE(Table2[[#This Row],[Provider Code]],"-",TEXT(Table2[[#This Row],[Date received]],"DD-MM-YYYY")) -> -00-01-1900
U20: =CONCATENATE(Table2[[#This Row],[Provider Code]],"-",TEXT(Table2[[#This Row],[Date received]],"DD-MM-YYYY")) -> -00-01-1900
U21: =CONCATENATE(Table2[[#This Row],[Provider Code]],"-",TEXT(Table2[[#This Row],[Date received]],"DD-MM-YYYY")) -> -00-01-1900
U22: =CONCATENATE(Table2[[#This Row],[Provider Code]],"-",TEXT(Table2[[#This Row],[Date received]],"DD-MM-YYYY")) -> -00-01-1900
U23: =CONCATENATE(Table2[[#This Row],[Provider Code]],"-",TEXT(Table2[[#This Row],[Date received]],"DD-MM-YYYY")) -> -00-01-1900
U24: =CONCATENATE(Table2[[#This Row],[Provider Code]],"-",TEXT(Table2[[#This Row],[Date received]],"DD-MM-YYYY")) -> -00-01-1900
U25: =CONCATENATE(Table2[[#This Row],[Provider Code]],"-",TEXT(Table2[[#This Row],[Date received]],"DD-MM-YYYY")) -> -00-01-1900
U26: =CONCATENATE(Table2[[#This Row],[Provider Code]],"-",TEXT(Table2[[#This Row],[Date received]],"DD-MM-YYYY")) -> -00-01-1900
U27: =CONCATENATE(Table2[[#This Row],[Provider Code]],"-",TEXT(Table2[[#This Row],[Date received]],"DD-MM-YYYY")) -> -00-01-1900
U28: =CONCATENATE(Table2[[#This Row],[Provider Code]],"-",TEXT(Table2[[#This Row],[Date received]],"DD-MM-YYYY")) -> -00-01-1900
U29: =CONCATENATE(Table2[[#This Row],[Provider Code]],"-",TEXT(Table2[[#This Row],[Date received]],"DD-MM-YYYY")) -> -00-01-1900
U30: =CONCATENATE(Table2[[#This Row],[Provider Code]],"-",TEXT(Table2[[#This Row],[Date received]],"DD-MM-YYYY")) -> -00-01-1900
U31: =CONCATENATE(Table2[[#This Row],[Provider Code]],"-",TEXT(Table2[[#This Row],[Date received]],"DD-MM-YYYY")) -> -00-01-1900
U32: =CONCATENATE(Table2[[#This Row],[Provider Code]],"-",TEXT(Table2[[#This Row],[Date received]],"DD-MM-YYYY")) -> -00-01-1900
U33: =CONCATENATE(Table2[[#This Row],[Provider Code]],"-",TEXT(Table2[[#This Row],[Date received]],"DD-MM-YYYY")) -> -00-01-1900
U34: =CONCATENATE(Table2[[#This Row],[Provider Code]],"-",TEXT(Table2[[#This Row],[Date received]],"DD-MM-YYYY")) -> -00-01-1900
U35: =CONCATENATE(Table2[[#This Row],[Provider Code]],"-",TEXT(Table2[[#This Row],[Date received]],"DD-MM-YYYY")) -> -00-01-1900
U36: =CONCATENATE(Table2[[#This Row],[Provider Code]],"-",TEXT(Table2[[#This Row],[Date received]],"DD-MM-YYYY")) -> -00-01-1900
U37: =CONCATENATE(Table2[[#This Row],[Provider Code]],"-",TEXT(Table2[[#This Row],[Date received]],"DD-MM-YYYY")) -> -00-01-1900
U38: =CONCATENATE(Table2[[#This Row],[Provider Code]],"-",TEXT(Table2[[#This Row],[Date received]],"DD-MM-YYYY")) -> -00-01-1900
U39: =CONCATENATE(Table2[[#This Row],[Provider Code]],"-",TEXT(Table2[[#This Row],[Date received]],"DD-MM-YYYY")) -> -00-01-1900
U40: =CONCATENATE(Table2[[#This Row],[Provider Code]],"-",TEXT(Table2[[#This Row],[Date received]],"DD-MM-YYYY")) -> -00-01-1900
U41: =CONCATENATE(Table2[[#This Row],[Provider Code]],"-",TEXT(Table2[[#This Row],[Date received]],"DD-MM-YYYY")) -> -00-01-1900
U42: =CONCATENATE(Table2[[#This Row],[Provider Code]],"-",TEXT(Table2[[#This Row],[Date received]],"DD-MM-YYYY")) -> -00-01-1900
U43: =CONCATENATE(Table2[[#This Row],[Provider Code]],"-",TEXT(Table2[[#This Row],[Date received]],"DD-MM-YYYY")) -> -00-01-1900
U44: =CONCATENATE(Table2[[#This Row],[Provider Code]],"-",TEXT(Table2[[#This Row],[Date received]],"DD-MM-YYYY")) -> -00-01-1900
U45: =CONCATENATE(Table2[[#This Row],[Provider Code]],"-",TEXT(Table2[[#This Row],[Date received]],"DD-MM-YYYY")) -> -00-01-1900
U46: =CONCATENATE(Table2[[#This Row],[Provider Code]],"-",TEXT(Table2[[#This Row],[Date received]],"DD-MM-YYYY")) -> -00-01-1900
U47: =CONCATENATE(Table2[[#This Row],[Provider Code]],"-",TEXT(Table2[[#This Row],[Date received]],"DD-MM-YYYY")) -> -00-01-1900
U48: =CONCATENATE(Table2[[#This Row],[Provider Code]],"-",TEXT(Table2[[#This Row],[Date received]],"DD-MM-YYYY")) -> -00-01-1900
U49: =CONCATENATE(Table2[[#This Row],[Provider Code]],"-",TEXT(Table2[[#This Row],[Date received]],"DD-MM-YYYY")) -> -00-01-1900
U50: =CONCATENATE(Table2[[#This Row],[Provider Code]],"-",TEXT(Table2[[#This Row],[Date received]],"DD-MM-YYYY")) -> -00-01-1900
U51: =CONCATENATE(Table2[[#This Row],[Provider Code]],"-",TEXT(Table2[[#This Row],[Date received]],"DD-MM-YYYY")) -> -00-01-1900
U52: =CONCATENATE(Table2[[#This Row],[Provider Code]],"-",TEXT(Table2[[#This Row],[Date received]],"DD-MM-YYYY")) -> -00-01-1900
U53: =CONCATENATE(Table2[[#This Row],[Provider Code]],"-",TEXT(Table2[[#This Row],[Date received]],"DD-MM-YYYY")) -> -00-01-1900
U54: =CONCATENATE(Table2[[#This Row],[Provider Code]],"-",TEXT(Table2[[#This Row],[Date received]],"DD-MM-YYYY")) -> -00-01-1900
U55: =CONCATENATE(Table2[[#This Row],[Provider Code]],"-",TEXT(Table2[[#This Row],[Date received]],"DD-MM-YYYY")) -> -00-01-1900
U56: =CONCATENATE(Table2[[#This Row],[Provider Code]],"-",TEXT(Table2[[#This Row],[Date received]],"DD-MM-YYYY")) -> -00-01-1900
U57: =CONCATENATE(Table2[[#This Row],[Provider Code]],"-",TEXT(Table2[[#This Row],[Date received]],"DD-MM-YYYY")) -> -00-01-1900
U58: =CONCATENATE(Table2[[#This Row],[Provider Code]],"-",TEXT(Table2[[#This Row],[Date received]],"DD-MM-YYYY")) -> -00-01-1900
U59: =CONCATENATE(Table2[[#This Row],[Provider Code]],"-",TEXT(Table2[[#This Row],[Date received]],"DD-MM-YYYY")) -> -00-01-1900
U60: =CONCATENATE(Table2[[#This Row],[Provider Code]],"-",TEXT(Table2[[#This Row],[Date received]],"DD-MM-YYYY")) -> -00-01-1900
U61: =CONCATENATE(Table2[[#This Row],[Provider Code]],"-",TEXT(Table2[[#This Row],[Date received]],"DD-MM-YYYY")) -> -00-01-1900
U62: =CONCATENATE(Table2[[#This Row],[Provider Code]],"-",TEXT(Table2[[#This Row],[Date received]],"DD-MM-YYYY")) -> -00-01-1900
U63: =CONCATENATE(Table2[[#This Row],[Provider Code]],"-",TEXT(Table2[[#This Row],[Date received]],"DD-MM-YYYY")) -> -00-01-1900
U64: =CONCATENATE(Table2[[#This Row],[Provider Code]],"-",TEXT(Table2[[#This Row],[Date received]],"DD-MM-YYYY")) -> -00-01-1900
U65: =CONCATENATE(Table2[[#This Row],[Provider Code]],"-",TEXT(Table2[[#This Row],[Date received]],"DD-MM-YYYY")) -> -00-01-1900
U66: =CONCATENATE(Table2[[#This Row],[Provider Code]],"-",TEXT(Table2[[#This Row],[Date received]],"DD-MM-YYYY")) -> -00-01-1900
U67: =CONCATENATE(Table2[[#This Row],[Provider Code]],"-",TEXT(Table2[[#This Row],[Date received]],"DD-MM-YYYY")) -> -00-01-1900
U68: =CONCATENATE(Table2[[#This Row],[Provider Code]],"-",TEXT(Table2[[#This Row],[Date received]],"DD-MM-YYYY")) -> -00-01-1900
U69: =CONCATENATE(Table2[[#This Row],[Provider Code]],"-",TEXT(Table2[[#This Row],[Date received]],"DD-MM-YYYY")) -> -00-01-1900
U70: =CONCATENATE(Table2[[#This Row],[Provider Code]],"-",TEXT(Table2[[#This Row],[Date received]],"DD-MM-YYYY")) -> -00-01-1900
U71: =CONCATENATE(Table2[[#This Row],[Provider Code]],"-",TEXT(Table2[[#This Row],[Date received]],"DD-MM-YYYY")) -> -00-01-1900
U72: =CONCATENATE(Table2[[#This Row],[Provider Code]],"-",TEXT(Table2[[#This Row],[Date received]],"DD-MM-YYYY")) -> -00-01-1900
U73: =CONCATENATE(Table2[[#This Row],[Provider Code]],"-",TEXT(Table2[[#This Row],[Date received]],"DD-MM-YYYY")) -> -00-01-1900
U74: =CONCATENATE(Table2[[#This Row],[Provider Code]],"-",TEXT(Table2[[#This Row],[Date received]],"DD-MM-YYYY")) -> -00-01-1900
U75: =CONCATENATE(Table2[[#This Row],[Provider Code]],"-",TEXT(Table2[[#This Row],[Date received]],"DD-MM-YYYY")) -> -00-01-1900
U76: =CONCATENATE(Table2[[#This Row],[Provider Code]],"-",TEXT(Table2[[#This Row],[Date received]],"DD-MM-YYYY")) -> -00-01-1900
U77: =CONCATENATE(Table2[[#This Row],[Provider Code]],"-",TEXT(Table2[[#This Row],[Date received]],"DD-MM-YYYY")) -> -00-01-1900
U78: =CONCATENATE(Table2[[#This Row],[Provider Code]],"-",TEXT(Table2[[#This Row],[Date received]],"DD-MM-YYYY")) -> -00-01-1900
U79: =CONCATENATE(Table2[[#This Row],[Provider Code]],"-",TEXT(Table2[[#This Row],[Date received]],"DD-MM-YYYY")) -> -00-01-1900
U80: =CONCATENATE(Table2[[#This Row],[Provider Code]],"-",TEXT(Table2[[#This Row],[Date received]],"DD-MM-YYYY")) -> -00-01-1900
U81: =CONCATENATE(Table2[[#This Row],[Provider Code]],"-",TEXT(Table2[[#This Row],[Date received]],"DD-MM-YYYY")) -> -00-01-1900
U82: =CONCATENATE(Table2[[#This Row],[Provider Code]],"-",TEXT(Table2[[#This Row],[Date received]],"DD-MM-YYYY")) -> -00-01-1900
U83: =CONCATENATE(Table2[[#This Row],[Provider Code]],"-",TEXT(Table2[[#This Row],[Date received]],"DD-MM-YYYY")) -> -00-01-1900
U84: =CONCATENATE(Table2[[#This Row],[Provider Code]],"-",TEXT(Table2[[#This Row],[Date received]],"DD-MM-YYYY")) -> -00-01-1900
U85: =CONCATENATE(Table2[[#This Row],[Provider Code]],"-",TEXT(Table2[[#This Row],[Date received]],"DD-MM-YYYY")) -> -00-01-1900
U86: =CONCATENATE(Table2[[#This Row],[Provider Code]],"-",TEXT(Table2[[#This Row],[Date received]],"DD-MM-YYYY")) -> -00-01-1900
U87: =CONCATENATE(Table2[[#This Row],[Provider Code]],"-",TEXT(Table2[[#This Row],[Date received]],"DD-MM-YYYY")) -> -00-01-1900
U88: =CONCATENATE(Table2[[#This Row],[Provider Code]],"-",TEXT(Table2[[#This Row],[Date received]],"DD-MM-YYYY")) -> -00-01-1900
U89: =CONCATENATE(Table2[[#This Row],[Provider Code]],"-",TEXT(Table2[[#This Row],[Date received]],"DD-MM-YYYY")) -> -00-01-1900
U90: =CONCATENATE(Table2[[#This Row],[Provider Code]],"-",TEXT(Table2[[#This Row],[Date received]],"DD-MM-YYYY")) -> -00-01-1900
U91: =CONCATENATE(Table2[[#This Row],[Provider Code]],"-",TEXT(Table2[[#This Row],[Date received]],"DD-MM-YYYY")) -> -00-01-1900
U92: =CONCATENATE(Table2[[#This Row],[Provider Code]],"-",TEXT(Table2[[#This Row],[Date received]],"DD-MM-YYYY")) -> -00-01-1900
U93: =CONCATENATE(Table2[[#This Row],[Provider Code]],"-",TEXT(Table2[[#This Row],[Date received]],"DD-MM-YYYY")) -> -00-01-1900
U94: =CONCATENATE(Table2[[#This Row],[Provider Code]],"-",TEXT(Table2[[#This Row],[Date received]],"DD-MM-YYYY")) -> -00-01-1900
U95: =CONCATENATE(Table2[[#This Row],[Provider Code]],"-",TEXT(Table2[[#This Row],[Date received]],"DD-MM-YYYY")) -> -00-01-1900
U96: =CONCATENATE(Table2[[#This Row],[Provider Code]],"-",TEXT(Table2[[#This Row],[Date received]],"DD-MM-YYYY")) -> -00-01-1900
